Workbook

Sheet BasicData
A1: Basic Data (electricity tariffs and efficiency, exchange rates, inflation projections, labor costs, water production and losses)
A2: Основні дані (тариф на електроенергію та енергоефективність, курс обміну валюти, прогнозування інфляції, витрат на працю, виробництво води та втрати)
A4: Key figures/Ключові цифри | C4: Note/Примітка
A5: CVK total 2017 revenue from water sales (UAH) Загальний дохід ЧВК в 2017 році від реалізації води | B5: =5223000*12 -> 62676000 | C5: confirmed Підтверджений
A6: USD/UAH exchange rate Курс обміну валюти доллар США/гривня | B6: 26.887 | C6: mid-market exchange rate of 1st Nov 2017 (www.xe.com) середньоринковий курс обміну валюти на 01.11.2017 (www.xe.com)
A7: CVK total 2017 budget for maintenance and repair of water supply network - material only (UAH) Загальний бюджет ЧВК в 2017 році на технічне обслуговування та ремонт водопостачальної мережі - лише матеріали (грн) | B7: 1334338 | C7: check with Gennadii and chief accountant and O. Nych перевірити із Геннадієм та головним бухгалтером і О. Нич
A8: Total water production 2016 (m3) Загальне виробництво води в 2016 році (м3) | B8: =WaterBalance!$F$47 -> 28236765 | G8: Electricity Tariff (September 2017, excluding VAT) Тариф на електроенергію (вересень 2017, без ПДВ)
A9: Total water sold 2016 (m3) Загальний об'єм реалізованої води в 2016 році (м3) | B9: =WaterBalance!$F$48 -> 8758905 | G9: Class 1 Клас 1 | H9: Time Час | I9: Coefficient Коефіцієнт | J9: Tariff UAH/kWh Тариф грн/кВтг
A10: Total NRW 2016 (m3) Загальний об'єм БДВ в 2016 році (м3) | B10: =WaterBalance!$F$49 -> 19477860 | G10: night нічний | H10: 23:00 - 6:00 | I10: 0.25 | J10: =$B$15*I10 -> 0.3830125
A11: Total physical losses 2016 (m3) Загальні фізичні втрати в 2016 році (м3) | B11: =SUM(B12:B13) -> 17585996.75 | G11: semi напів- | H11: 6:00 - 8:00 | I11: 1.02 | J11: 1.562691
A12: Total losses transmission 2016 (m3) Загальні втрати на магістралі в 2016 році (м3) | B12: =WaterBalance!$F$50 -> 6804330 | G12: peak піковий | H12: 8:00 - 10:00 | I12: 1.8 | J12: 2.75769
A13: Total physical losses network 2016 (m3) Загальні фізичні втрати в мережі в 2016 році (м3) | B13: =WaterBalance!$F$56 -> 10781666.75 | G13: semi напів- | H13: 10:00 - 17:00 | I13: 1.02 | J13: 1.562691
A14: Total commercial losses 2016 (m3) Загальні комерційні втрати в 2016 році (м3) | B14: =WaterBalance!$F$55 -> 1891863.255 | C14: assumed 6.7% of total production (feasibility study) припускалося 6,7% від загального об'єму виробництва (техніко-економічне обґрунтування) | G14: peak піковий | H14: 17:00 - 21:00 | I14: 1.8 | J14: 2.75769
A15: Energy tariff class 1 (>110kV) UAH/kWh Клас споживача електроенергії 1 (>110кВ) грн/кВтг | B15: 1.53205 | G15: semi напів- | H15: 21:00 - 23:00 | I15: 1.02 | J15: =$B$15*I15 -> 1.562691
A16: Energy tariff class 1 (>110kV) - peak (180%) UAH/kWh Клас споживача електроенергії 1 (>110кВ) - пік (180%) грн/кВтг | B16: =$B$15*1.8 -> 2.75769
A17: Energy tariff class 1 (>110kV) - semi-peak (102%) UAH/kWh Клас споживача електроенергії 1 (>110кВ) - напівпік (102%) грн/кВтг | B17: =$B$15*1.02 -> 1.562691 | G17: Class 2 Класс 2 | H17: Time Час | I17: Coefficient Коефіцієнт | J17: Tariff UAH/kWh Тариф грн/кВтг
A18: Energy tariff class 1 (>110kV) - night (25%) UAH/kWh Клас споживача електроенергії 1 (>110кВ) - нічний (25%) грн/кВтг | B18: =$B$15*0.25 -> 0.3830125 | G18: night нічний | H18: 23:00 - 6:00 | I18: 0.25 | J18: =$B$19*I18 -> 0.4803675
A19: Energy tariff class 2 (<110kV) UAH/kWh Клас споживача електроенергії 2 (<110кВ) грн/кВтг | B19: 1.92147 | G19: semi напів- | H19: 6:00 - 8:00 | I19: 1.02 | J19: 1.9598994
A20: Energy tariff class 2 (<110kV) - peak (180%) UAH/kWh Клас споживача електроенергії 2 (<110кВ) - пік (180%) грн/кВтг | B20: =$B$19*1.8 -> 3.458646 | G20: peak піковий | H20: 8:00 - 10:00 | I20: 1.8 | J20: 3.458646
A21: Energy tariff class 2 (<110kV) - semi-peak (102%) UAH/kWh Клас споживача електроенергії 2 (<110кВ) - напівпік (102%) грн/кВтг | B21: =$B$19*1.02 -> 1.9598994 | G21: semi напів- | H21: 10:00 - 17:00 | I21: 1.02 | J21: 1.9598994
A22: Energy tariff class 2 (<110kV) - night (25%) UAH/kWh Клас споживача електроенергії 2 (<110кВ) - нічний (25%) грн/кВтг | B22: =$B$19*0.25 -> 0.4803675 | G22: peak піковий | H22: 17:00 - 21:00 | I22: 1.8 | J22: 3.458646
A23: CVK total labor costs for water 2016 (UAH) Загальні витрати ЧВК на працю в 2016 році (грн) | B23: 21354000 | G23: semi напів- | H23: 21:00 - 23:00 | I23: 1.02 | J23: 1.9598994
A24: CVK total social security costs for water 2016 (UAH) Загальні внески ЧВК на соціальне страхування в 2016 році (грн) | B24: 4653000
A25: EUR/UAH exchange rate Курс обміну валюти євро/грн | B25: 31.2352 | C25: mid-market exchange rate of 1st Nov 2017 (www.xe.com) середньоринковий курс обміну валюти на 01.11.2017 (www.xe.com)
A26: EUR/UAH exchange rate (mid year) Курс обміну валюти євро/грн (середина року) | B26: 29.5788 | C26: mid-market exchange rate of 30 June Nov 2017 (www.oanda.com) середньоринковий курс обміну валюти на 01.11.2017 (www.oanda.com)
A27: Inflation 2016->2017 (mid-year to mid-year) Інфляція 2016->2017 (середина року до середини року) | B27: 1.115
A28: Return on capital (real) as per regulator expectations Дохід на капітал (реальний) відповідно до очікувань НКРЕКП | B28: 0.125
A30: Ukraine Inflation forecasts (NBU inflation report, July 2017) Прогноз інфляції в Україні (Інфляційний звіт НБУ, липень 2017) | B30: 2017 | C30: 2018 | D30: 2019 | E30: 2020 | F30: 2021 | G30: 2022
A31: Inflation projection (year) Прогноз інфляції (рік) | B31: 0.091 | C31: 0.06 | D31: 0.05 | E31: 0.05 | F31: 0.05 | G31: 0.05
A32: Inflation projection (mid-year to mid-year) Прогноз інфляції (середина року до середини року) | C32: =AVERAGE(B31:C31) -> 0.0755 | D32: =AVERAGE(C31:D31) -> 0.055 | E32: 0.05 | F32: 0.05 | G32: 0.05
A33: Inflation multiplier to mid 2017 Коефіцієнт інфляції до середини 2017 року | B33: 1 | C33: =(1+C32) -> 1.0755 | D33: =C33*(1+D32) -> 1.1346525 | E33: =D33*(1+E32) -> 1.191385125 | F33: 1.250954381 | G33: 1.3135021
A35: Euro area inflation forecasts (HCIP) Прогноз інфляції в Єврозоні (ГІСЦ)
A36: Inflation projection (year) Прогноз інфляції (рік) | B36: 0.015 | C36: 0.012 | D36: 0.015 | E36: 0.015 | F36: 0.015 | G36: 0.05
A37: Inflation projection (mid-year to mid-year) Прогноз інфляції (середина року до середини року) | C37: =AVERAGE(B36:C36) -> 0.0135 | D37: =AVERAGE(C36:D36) -> 0.0135 | E37: =AVERAGE(D36:E36) -> 0.015 | F37: =AVERAGE(E36:F36) -> 0.015 | G37: =AVERAGE(F36:G36) -> 0.0325
A38: Inflation multiplier to mid 2017 (calculated from 30 Nov 2017) Мультиплікатор інфляції до середини 2017 року (розрахований від 30.11.2017) | B38: 1 | C38: =(1+C37) -> 1.0135 | D38: =C38*(1+D37) -> 1.02718225 | E38: =D38*(1+E37) -> 1.042589984 | F38: =E38*(1+F37) -> 1.058228834 | G38: =F38*(1+G37) -> 1.092621271
A40: UAH:EUR exchange rate projections (mid year) грн:євро прогнози курсу обміну валют (середина року)
A41: UAH:EUR exchange rate projections (mid year) грн:євро прогнози курсу обміну валют (середина року) | B41: =B26 -> 29.5788 | C41: =B41*C33/C38 -> 31.38825792 | D41: =C41*D33/D38 -> 34.67229434 | E41: 39.62061441 | F41: 46.83635487 | G41: 56.30464293
A44: Energy data were calculated separately Дані по електроенергії розраховувалися окремо
A45: Pump station energy balance (current) Енергобаланс насосної станції (поточний) | C45: Mytkiv Митків | D45: Vikno Вікно | E45: Shubranets Шубранець | F45: Bila Біла | G45: Mahala II Магала ІІ | H45: Mahala III Магала ІІІ | I45: Rohizna Рогізна | J45: Ocheret Очерет | K45: Lenkivtsi Ленківці | L45: School 34 Школа 34 | M45: 25 Mistecko 25 містечко | N45: Booster (25x) Підкачка (25х) | O45: Popova Попова | P45: Chapayeva Чапаєва | Q45: CVK HQ ЧВК ЦО | R45: CVK Customer Center ЧВК Абонентський відділ
A46: Daily quantity pumped (during peak hours) Денний перекачаний об'єм води (під час пікових годин) | B46: m3 м3 | C46: 16213.75 | D46: 12703.79 | E46: 9957.14 | F46: 1343 | G46: 1075.25
A47: Daily quantity pumped (during semi-peak hours) Денний перекачаний об'єм води (під час напів-пікових годин) | B47: m3 м3 | C47: =64855-C46-C48 -> 29725.21 | D47: =50815-D46-D48 -> 20325.91 | E47: =46857-E46-E48 -> 18254.62 | F47: =5373-F46-F48 -> 2463.17 | G47: =4301-G46-G48 -> 1971.29
A48: Daily quantity pumped (during night hours) Денний перекачаний об'єм води (під час ночних годин) | B48: m3 м3 | C48: 18916.04 | D48: 17785.3 | E48: 18645.24 | F48: 1566.83 | G48: 1254.46
A49: Daily energy consumed (during peak hours) Спожита електроенергія щоденно (під час пікових годин) | B49: kWh кВтч | C49: 5020.36 | D49: 7212.05 | E49: 4090.43 | F49: 1253.54 | G49: 908
A50: Daily energy consumed (during semi-peak hours) Спожита електроенергія щоденно (під час напів-пікових годин) | B50: kWh кВтч | C50: =20081-C51-C49 -> 9203.55 | D50: =28848-D49-D51 -> 11539.09 | E50: =19249-E49-E51 -> 7499.03 | F50: 2285.93 | G50: 1671
A51: Daily energy consumed (during night hours) Спожита електроенергія щоденно (під час нічних годин) | B51: kWh кВтч | C51: 5857.09 | D51: 10096.86 | E51: 7659.54 | F51: 1452.97 | G51: 898
A52: Daily energy costs (peak) Щоденні витрати на електроенергію (пік) | B52: UAH грн | C52: =C49*$B$16 -> 13844.59657 | D52: =D49*$B$16 -> 19888.59816 | E52: =E49*$B$16 -> 11280.13791 | F52: =F49*$B$20 -> 4335.551107 | G52: =G49*$B$16 -> 2503.98252
A53: Daily energy costs (semi-peak) Щоденні витрати на електроенергію (напів-пік) | B53: UAH грн | C53: =C50*$B$17 -> 14382.30475 | D53: =D50*$B$17 -> 18032.03209 | E53: =E50*$B$17 -> 11718.66669 | F53: =F50*$B$21 -> 4480.192835 | G53: =G50*$B$17 -> 2611.256661
A54: Daily energy costs (night) Щоденні витрати на електроенергію (нічні) | B54: UAH грн | C54: =C51*$B$18 -> 2243.338684 | D54: =D51*$B$18 -> 3867.223591 | E54: =E51*$B$18 -> 2933.699564 | F54: =F51*$B$22 -> 697.9595665 | G54: =G51*$B$18 -> 343.945225
A55: Daily quantity pumped (total) Денний перекачаний об'єм води (всього) | B55: m3 м3 | C55: =SUM(C46:C48) -> 64855 | D55: =SUM(D46:D48) -> 50815 | E55: =SUM(E46:E48) -> 46857 | F55: =SUM(F46:F48) -> 5373 | G55: =SUM(G46:G48) -> 4301 | H55: 3956 | I55: 2832 | J55: 1859 | K55: 0 | L55: 52 | M55: 4 | N55: n/a | O55: 0 | P55: 0 | Q55: 0 | R55: 0
A56: Daily energy consumed (total) Денна спожита електроенергія (всього) | B56: kWh кВтч | C56: =SUM(C49:C51) -> 20081 | D56: =SUM(D49:D51) -> 28848 | E56: =SUM(E49:E51) -> 19249 | F56: =SUM(F49:F51) -> 4992.44 | G56: =SUM(G49:G51) -> 3477 | H56: 984 | I56: 883 | J56: 380 | K56: 11 | L56: 44 | M56: 23 | N56: 1627 | O56: 243 | P56: 14 | Q56: 628 | R56: 25
A57: Daily energy costs (total) Щоденні витрати на електроенергію (всього) | B57: UAH грн | C57: =SUM(C52:C54) -> 30470.24001 | D57: =SUM(D52:D54) -> 41787.85385 | E57: =SUM(E52:E54) -> 25932.50416 | F57: =SUM(F52:F54) -> 9513.703509 | G57: =SUM(G52:G54) -> 5459.184406 | H57: =H56*$B$19 -> 1890.72648 | I57: 1696.65801 | J57: 730.1586 | K57: 21.13617 | L57: 84.54468 | M57: 44.19381 | N57: 3126.23169 | O57: 466.91721 | P57: =P56*$B$19 -> 26.90058 | Q57: =Q56*$B$19 -> 1206.68316 | R57: =R56*$B$19 -> 48.03675
A59: Pump station energy balance (future) Енергобаланс насосної станції (в майбутньому) | B59: unit одиниця | C59: Митків | D59: Вікно | E59: Шубранець
A60: Daily quantity pumped (during peak hours) Денний перекачаний об'єм води (під час пікових годин) | B60: m3 м3 | C60: 7560 | D60: 1800 | E60: 1200
A61: Daily quantity pumped (during semi-peak hours) Денний перекачаний об'єм води (під час напів-пікових годин) | B61: m3 м3 | C61: =43790-C60-C62 -> 13830 | D61: =38728-D60-D62 -> 10428 | E61: =34822-E60-E62 -> 14022
A62: Daily quantity pumped (during night hours) Денний перекачаний об'єм води (під час ночних годин) | B62: m3 м3 | C62: 22400 | D62: 26500 | E62: 19600
A63: Daily energy consumed (during peak hours) Спожита електроенергія щоденно (під час пікових годин) | B63: kWh кВтч | C63: 2334.78 | D63: 948 | E63: 493
A64: Daily energy consumed (during semi-peak hours) Спожита електроенергія щоденно (під час напів-пікових годин) | B64: kWh кВтч | C64: =13524-C65-C63 -> 4271.35 | D64: =20403-D63-D65 -> 5494 | E64: =14309-E63-E65 -> 5762
A65: Daily energy consumed (during night hours) Спожита електроенергія щоденно (під час нічних годин) | B65: kWh кВтч | C65: 6917.87 | D65: 13961 | E65: 8054
A66: Daily energy costs (peak) Щоденні витрати на електроенергію (пік) | B66: UAH грн | C66: =C63*$B$16 -> 6438.599458 | D66: =D63*$B$16 -> 2614.29012 | E66: =E63*$B$16 -> 1359.54117
A67: Daily energy costs (semi-peak) Щоденні витрати на електроенергію (напів-пік) | B67: UAH грн | C67: =C64*$B$17 -> 6674.800203 | D67: =D64*$B$17 -> 8585.424354 | E67: =E64*$B$17 -> 9004.225542
A68: Daily energy costs (night) Щоденні витрати на електроенергію (нічні) | B68: UAH грн | C68: =C65*$B$18 -> 2649.630683 | D68: =D65*$B$18 -> 5347.237512 | E68: =E65*$B$18 -> 3084.782675
A69: Daily quantity pumped (total) Денний перекачаний об'єм води (всього) | B69: m3 м3 | C69: =SUM(C60:C62) -> 43790 | D69: =SUM(D60:D62) -> 38728 | E69: =SUM(E60:E62) -> 34822
A70: Daily energy consumed (total) Денна спожита електроенергія (всього) | B70: kWh кВтч | C70: =SUM(C63:C65) -> 13524 | D70: =SUM(D63:D65) -> 20403 | E70: =SUM(E63:E65) -> 14309
A71: Daily energy costs (total) Щоденні витрати на електроенергію (всього) | B71: UAH грн | C71: =SUM(C66:C68) -> 15763.03034 | D71: =SUM(D66:D68) -> 16546.95199 | E71: =SUM(E66:E68) -> 13448.54939

Sheet WaterBalance
A1: CVK Water Balance 2017 and 2022 Водний баланс ЧВК 2017 та 2022
A2: Note: The figures in this water balance are based on thorough and extensive, month-long investigations undergone by CVK in close collaboration with technical assistance consultant. They reflect CVKs best estimate of actual current (2017) water losses and may deviate from past reports submitted to the Regulator or City Council. Due to the lack of water meters or of sufficiently accurate and functioning water meters, some of the figures had to based on estimations and shall be verified, once new meters have been procured under this business plan's investment plan. All estimations were done by professional engineers and consultants to their best ability and knowledge. Примітка: Всі дані представленого Водного балансу ґрунтуються на ретельному та комплексному дослідженні, яке проводилось протягом місяця робітниками ЧВК при технічній підтримці консультанта. Вони надають найкращу оцінку фактичних поточних (2017) втрат води та можуть відрізнятися від даних, які містилася в минулих звітах, які подавалися до регулятора чи міської ради. Через брак лічильників або їх недостатньо точні показники та загалом роботу, по деяким даним виявилося необхідними робити припущення, тож вони потребують перевірки відразу, як нові лічильники будуть придбані в рамках інвестиційного плану цього бізнес-плану. Всі оцінки були зроблені професійними інженерами та консультантами виходячи з їх найкращих здібностей та знань.
E4: 2017 | G4: 2022
A5: Production & Throughput Виробництво та пропускна здатність | B5: Demand Попит | C5: Loss Втрати | D5: Technical use Технологічні потреби | E5: m3/day м3/день | F5: m3/year м3/рік | G5: m3/day м3/день | H5: m3/year м3/рік
A6: PROD Mytkiv Виробництво Митків | E6: 64855 | F6: =E6*365 -> 23672075 | G6: 43790 | H6: =G6*365 -> 15983350
A7: OUT Mytkiv PS Вихід Митків НС | E7: 64855 | F7: =E7*365 -> 23672075 | G7: 43790 | H7: =G7*365 -> 15983350
C8: Скидання надлишків Митків-Вікно | E8: 4540 | F8: 1657100 | G8: 0 | H8: 0
A9: IN Vikno WTP Вхід Вікно ВОС | E9: 60315 | F9: 22014975 | G9: =G7-G8 -> 43790 | H9: 15983350
D10: Filter backflush Vikno | E10: 7000 | F10: 2555000 | G10: 5062 | H10: 1847630
C11: Засувки на фільтрах Вікно | E11: 2500 | F11: 912500 | G11: 0 | H11: 0
A12: OUT Vikno PS Вихід Вікно НС | E12: 50815 | F12: 18547475 | G12: =G9-G10-G11 -> 38728 | H12: 14135720
C13: TM Vikno-Shubranets МВ Вікно-Шубранець | E13: 700 | F13: 255500 | G13: 700 | H13: 255500
B14: Заставна, Вікно, Погорілівка | E14: 808 | F14: 294920 | G14: 808 | H14: 294920
A15: IN Shubranets PS Вхід Шубранець НС | E15: 49307 | F15: 17997055 | G15: =G12-G13-G14 -> 37220 | H15: 13585300
C16: Reservoir Shubranets Резервуар Шубранець | E16: 250 | F16: 91250 | G16: 243 | H16: 88695
A17: OUT Shubranets PS to city (Sadgora Rayon) Вихід на місто Шубранець НС (р-н Садгора) | E17: 2200 | F17: 803000 | G17: 2155 | H17: 786575 | J17: гравітація
A18: OUT Shubranets PS to Popov Вихід на Попова Шубранець НС | E18: 46857 | F18: 17102805 | G18: =G15-G16-G17 -> 34822 | H18: 12710030
C19: TM Shubranets-Popov МВ Шубранець-Попова | E19: 3000 | F19: 1095000 | G19: 674 | H19: 246010
A20: IN Popov Вхід Попова | E20: 43789 | F20: 15982985 | G20: =G18-G19 -> 34148 | H20: 12464020
C21: Reservoir Popov Резервуар Попова | E21: 345 | F21: 125925 | G21: 332 | H21: 121180
A22: OUT Popov to city Вихід Попова на масто | E22: 43512 | F22: 15881880 | G22: =G20-G21 -> 33816 | H22: 12342840
A25: PROD Bila Виробництво Біла | E25: 5373 | F25: 1961145 | G25: 5373 | H25: 1961145
A26: OUT Bila to City Вихід на місто Біла | E26: 5373 | F26: 1961145 | G26: 5373 | H26: 1961145
A29: PROD Mahala Виробництво Магала | E29: 4301 | F29: 1569865 | G29: 4301 | H29: 1569865
B30: Магала ІІ | E30: 38 | F30: 13870 | G30: 38 | H30: 13870
C31: TM Mahala II-Mahala III МВ Магала ІІ-Магала ІІІ | E31: 307 | F31: 112055 | G31: 307 | H31: 112055
A32: OUT Mahala to city Вихід на місто Магала | E32: 3956 | F32: 1443940 | G32: =G29-G30-G31 -> 3956 | H32: 1443940
A35: PROD Rohizna Виробництво Рогізна | E35: 2832 | F35: 1033680 | G35: 2832 | H35: 1033680
A36: OUT Rohizna to city Вихід на місто Рогізна | E36: 2832 | F36: 1033680 | G36: 2832 | H36: 1033680
A39: Total sales Всього реалізація | E39: 23997 | F39: 8758905 | G39: 28367 | H39: 10353955
A40: Sales Zastavna & Vikno & Pogorilivka Реалізація Заставна, Вікно та Погорілівка | E40: 808 | F40: 294920 | G40: 808 | H40: 294920
A41: Sales Mahala II Реалізація Магала ІІ | E41: 38 | F41: 13870 | G41: 38 | H41: 13870
A42: Sales Sadgora Rayon Реалізація р-н Садгора | E42: =2200*0.65 -> 1430 | F42: 521950 | G42: 1690 | H42: 616850
A43: Sales in remaining city area Реалізація в інших районах | E43: =E39-E40-E42-E41 -> 21721 | F43: 7928165 | G43: 25831 | H43: 9428315
A46: Summary Зведена інформація
A47: Total production Всього виробництво | E47: =SUM(E6,E25,E29,E35) -> 77361 | F47: 28236765 | G47: =F47/F47 -> 1
A48: Total sales Всього реалізація | E48: =E39 -> 23997 | F48: 8758905 | G48: =F48/F47 -> 0.3101950595
A49: Total NRW Всього БДВ | E49: =E47-E48 -> 53364 | F49: 19477860 | G49: =F49/F47 -> 0.6898049405
A50: Total physical & technical losses TM Всього фізичні та технічні втрати на магістральному водогоні | E50: =SUM(E8,E10,E11,E13,E16,E19,E21,E31) -> 18642 | F50: 6804330 | G50: =F50/F47 -> 0.2409741343
A51: Total sales along TM Всього реалізація з магістрального водогону | E51: =E14+E30 -> 846 | F51: 308790
A52: Total inflow to city network & Sadgora Всього вхідний потік в мережу міста та Садгори | E52: =E47-E50-E51 -> 57873 | F52: 21123645
A53: Total sales in city area & Sadgora Всього реалізація в мсіті та Садгорі | E53: =E43+E42 -> 23151 | F53: 8450115
A54: Total losses in network Всього втрати в мережі | E54: =E52-E53 -> 34722 | F54: 12673530 | G54: =F54/F47 -> 0.4488308062
A55: - in that commercial losses - із них комерційних втрат | E55: =E47*0.067 -> 5183.187 | F55: 1891863.255 | G55: =F55/F47 -> 0.067 | I55: Note: Figure of commercial losses is based on feasibility study water balance (6,7% of total production) Примітка: Дані комерційних втрат базується на техніко-економічному обгрунтуванні водного балансу (6,7% від загального обсягу виробництва)
A56: - in that physical losses - із них фізичних втрат | E56: =E54-E55 -> 29538.813 | F56: 10781666.75 | G56: =F56/F47 -> 0.3818308062
D61: =F47 -> 28236765 | E61: =F48 -> 8758905 | F61: =E61 -> 8758905 | G61: =F61 -> 8758905 | J61: Total sales | L61: Total sales | Q61: Всього реалізація | S61: Всього реалізація
E62: =F49 -> 19477860 | F62: =F50 -> 6804330 | G62: =F62 -> 6804330 | J62: Losses in transmission | L62: Physical losses in transmission & production | Q62: Втрати на водогоні | S62: Фізичні втрати на водогоні та при виробництві
F63: =F54 -> 12673530 | G63: =F56 -> 10781666.75 | J63: Losses in network | L63: Physical losses in network | Q63: Втрати в мережі | S63: Фізичні втрати в мережі
G64: =F55 -> 1891863.255 | L64: Commercial losses | S64: Комерційні втрати
L66: Total sales | S66: Всього реалізація
L67: Total NRW | S67: Всього БДВ

Sheet Workforce
A1: CVK Workforce Analysis Аналіз складу персоналу ЧВК
A2: Status: 31 May 2017 Станом на 31.05.2017
D3: TOTAL CVK ЗАГАЛОМ ЧВК | G3: WATER BUSINESS ВОДОПОСТАЧАННЯ | J3: WASTEWATER BUSINESS ВОДОВІДВЕДЕННЯ
B4: Factor (water/ww) Фактор (ВП/ВВ) | C4: actual фактично | D4: scheduled згідно штатного розкладу | E4: vacancies вакансії | F4: actual фактично | G4: scheduled згідно штатного розкладу | H4: vacancies вакансії | I4: actual фактично | J4: scheduled згідно штатного розкладу | K4: vacancies вакансії
A6: Director Начальник | B6: 0.7 | C6: 1 | D6: 1 | E6: =D6-C6 -> 0 | F6: =C6*$B6 -> 0.7 | G6: =D6*$B6 -> 0.7 | H6: =G6-F6 -> 0 | I6: =(B6-1)*C6*-1 -> 0.3 | J6: =($B6-1)*D6*-1 -> 0.3 | K6: =J6-I6 -> 0
A7: 1st Deputy Director 1-ий заступник начальника | B7: 0.7 | C7: 1 | D7: 1 | E7: =D7-C7 -> 0 | F7: =C7*$B7 -> 0.7 | G7: =D7*$B7 -> 0.7 | H7: =G7-F7 -> 0 | I7: =(B7-1)*$C7*-1 -> 0.3 | J7: =($B7-1)*D7*-1 -> 0.3 | K7: =J7-I7 -> 0
A8: Deputy Director Заступник начальника | B8: 0.7 | C8: 1 | D8: 1 | E8: 0 | F8: 0.7 | G8: 0.7 | H8: 0 | I8: 0.3 | J8: 0.3 | K8: 0
A9: Chief Engineer Головний інженер | B9: 0.7 | C9: 1 | D9: 1 | E9: 0 | F9: 0.7 | G9: 0.7 | H9: 0 | I9: 0.3 | J9: 0.3 | K9: 0
A10: Anti-corruption Officer Уповноважений з питань запобігання корупції | B10: 0.7 | C10: 1 | D10: 1 | E10: 0 | F10: 0.7 | G10: 0.7 | H10: 0 | I10: 0.3 | J10: 0.3 | K10: 0
A11: Principal procurement engineer Провідний інженер з постачання та закупівель | B11: 0.7 | C11: 1 | D11: 1 | E11: 0 | F11: 0.7 | G11: 0.7 | H11: 0 | I11: 0.3 | J11: 0.3 | K11: 0
A12: Strategic planning department Відділ стратегічного розвитку та фін аналізу | B12: 0.7 | C12: 2 | D12: 3 | E12: 1 | F12: 1.4 | G12: 2.1 | H12: 0.7 | I12: 0.6 | J12: 0.9 | K12: 0.3
A13: Accounting department Бухгалтерія | B13: 0.7 | C13: 10 | D13: 10 | E13: 0 | F13: 7 | G13: 7 | H13: 0 | I13: 3 | J13: 3 | K13: 0
A14: Planning and economic department Планово-економічний відділ | B14: 0.7 | C14: 4 | D14: 4 | E14: 0 | F14: 2.8 | G14: 2.8 | H14: 0 | I14: 1.2 | J14: 1.2 | K14: 0
A15: Sales volume control department Інспекція по контролю за реалізацією та обліком послуг | B15: 1 | C15: 3 | D15: 3 | E15: 0 | F15: 3 | G15: 3 | H15: 0 | I15: 0 | J15: 0 | K15: 0
A16: Legal department Служба правового регулювання та контролю | B16: 0.7 | C16: 3 | D16: 3 | E16: 0 | F16: 2.1 | G16: 2.1 | H16: 0 | I16: 0.9 | J16: 0.9 | K16: 0
A17: Corporate contract management unit Юр. відділ, сектор по договорах, сектор зовнішніх зв'язків | B17: 0.7 | C17: 3 | D17: 3 | E17: 0 | F17: 2.1 | G17: 2.1 | H17: 0 | I17: 0.9 | J17: 0.9 | K17: 0
A18: Labor protection and emergency department Відділ охорони праці та надзвичайних ситуацій | B18: 0.7 | C18: 2 | D18: 3 | E18: 1 | F18: 1.4 | G18: 2.1 | H18: 0.7 | I18: 0.6 | J18: 0.9 | K18: 0.3
A19: Security guard division Відомча охорона | B19: 0.7 | C19: 66 | D19: 68 | E19: 2 | F19: 46.2 | G19: 47.6 | H19: 1.4 | I19: 19.8 | J19: 20.4 | K19: 0.6
A20: HR department Відділ кадрів | B20: 0.7 | C20: 2 | D20: 2 | E20: 0 | F20: 1.4 | G20: 1.4 | H20: 0 | I20: 0.6 | J20: 0.6 | K20: 0
A21: Indirect discharge control unit Лабораторія контролю стічної води | B21: 0 | C21: 4 | D21: 4 | E21: 0 | F21: 0 | G21: 0 | H21: 0 | I21: 4 | J21: 4 | K21: 0
A22: Customer department Абонентний відділ | B22: 0.7 | C22: 61 | D22: 63 | E22: 2 | F22: 42.7 | G22: 44.1 | H22: 1.4 | I22: 18.3 | J22: 18.9 | K22: 0.6
A23: Secreteriate and communications Сектор діловодства, контролю та звернень | B23: 0.7 | C23: 4 | D23: 4 | E23: 0 | F23: 2.8 | G23: 2.8 | H23: 0 | I23: 1.2 | J23: 1.2 | K23: 0
A24: IT / network administration Інженер з комп'ютерних мереж | B24: 0.7 | C24: 1 | D24: 1 | E24: 0 | F24: 0.7 | G24: 0.7 | H24: 0 | I24: 0.3 | J24: 0.3 | K24: 0
A25: Procurement & maintenance department Господарський відділ | B25: 0.7 | C25: 14 | D25: 19 | E25: 5 | F25: 9.8 | G25: 13.3 | H25: 3.5 | I25: 4.2 | J25: 5.7 | K25: 1.5
A26: Garage Гараж | B26: 0.7 | C26: 76 | D26: 76 | E26: 0 | F26: 53.2 | G26: 53.2 | H26: 0 | I26: 22.8 | J26: 22.8 | K26: 0
A27: Production & technical department Виробничо-технічний відділ | B27: 0.7 | C27: 6 | D27: 7 | E27: 1 | F27: 4.2 | G27: 4.9 | H27: 0.7 | I27: 1.8 | J27: 2.1 | K27: 0.3
A28: Dispatch service Аварійно-диспетчерська служба | B28: 0.7 | C28: 24 | D28: 27 | E28: 3 | F28: 16.8 | G28: 18.9 | H28: 2.1 | I28: 7.2 | J28: 8.1 | K28: 0.9
A29: Water network unit Дільниця водопровідної мережі | B29: 1 | C29: 26 | D29: 53 | E29: 27 | F29: 26 | G29: 53 | H29: 27 | I29: 0 | J29: 0 | K29: 0
A30: Road surface reconstruction unit Дільниця відновлення дорожнього покриття | B30: 0.7 | C30: 6 | D30: 11 | E30: 5 | F30: 4.2 | G30: 7.7 | H30: 3.5 | I30: 1.8 | J30: 3.3 | K30: 1.5
A31: Power supply unit Відділ головного енергетика | B31: 0.7 | C31: 10 | D31: 14 | E31: 4 | F31: 7 | G31: 9.8 | H31: 2.8 | I31: 3 | J31: 4.2 | K31: 1.2
A32: Instrument control unit Лабораторія КВПіА | B32: 0.7 | C32: 4 | D32: 4 | E32: 0 | F32: 2.8 | G32: 2.8 | H32: 0 | I32: 1.2 | J32: 1.2 | K32: 0
A33: Mechanical unit Відділ головного механіка | B33: 1 | C33: 15 | D33: 26 | E33: 11 | F33: 15 | G33: 26 | H33: 11 | I33: 0 | J33: 0 | K33: 0
A34: Bila intake в.н./ст "Біла" | B34: 1 | C34: 20 | D34: 20 | E34: 0 | F34: 20 | G34: 20 | H34: 0 | I34: 0 | J34: 0 | K34: 0
A35: Mahala intake Level II в.н./ст Магала 2-ий підйом | B35: 1 | C35: 18 | D35: 18 | E35: 0 | F35: 18 | G35: 18 | H35: 0 | I35: 0 | J35: 0 | K35: 0
A36: Mahala Level III PS в.н./ст Магала 3-ій підйом | B36: 1 | C36: 5 | D36: 5 | E36: 0 | F36: 5 | G36: 5 | H36: 0 | I36: 0 | J36: 0 | K36: 0
A37: Ocheret well field н./ст Очерет | B37: 1 | C37: 5 | D37: 5 | E37: 0 | F37: 5 | G37: 5 | H37: 0 | I37: 0 | J37: 0 | K37: 0
A38: Rohizna WTP н./ст Рогізна | B38: 1 | C38: 11 | D38: 12 | E38: 1 | F38: 11 | G38: 12 | H38: 1 | I38: 0 | J38: 0 | K38: 0
A39: Mytkiv intake Митків І підйом | B39: 1 | C39: 15 | D39: 15 | E39: 0 | F39: 15 | G39: 15 | H39: 0 | I39: 0 | J39: 0 | K39: 0
A40: Vikno WTP Вікно ІІ підйом | B40: 1 | C40: 80 | D40: 87 | E40: 7 | F40: 80 | G40: 87 | H40: 7 | I40: 0 | J40: 0 | K40: 0
A41: Shubranets PS Шубранець ІІ підйом | B41: 1 | C41: 18 | D41: 18 | E41: 0 | F41: 18 | G41: 18 | H41: 0 | I41: 0 | J41: 0 | K41: 0
A42: Popov Reservoir РЧВ Попова | B42: 1 | C42: 11 | D42: 11 | E42: 0 | F42: 11 | G42: 11 | H42: 0 | I42: 0 | J42: 0 | K42: 0
A43: Water safety control lab Вим. лабораторія по контр. питної води | B43: 1 | C43: 9 | D43: 9 | E43: 0 | F43: 9 | G43: 9 | H43: 0 | I43: 0 | J43: 0 | K43: 0
A44: Sewage network unit Дільниця каналізаційних мереж | B44: 0 | C44: 31 | D44: 37 | E44: 6 | F44: 0 | G44: 0 | H44: 0 | I44: 31 | J44: 37 | K44: 6
A45: Sewage pump stations ГКНС, КНС, Сонячна, хотинська, Денисівська, Садгірська | B45: 0 | C45: 71 | D45: 75 | E45: 4 | F45: 0 | G45: 0 | H45: 0 | I45: 71 | J45: 75 | K45: 4
A46: WWTP ОСК | B46: 0 | C46: 74 | D46: 77 | E46: 3 | F46: 0 | G46: 0 | H46: 0 | I46: 74 | J46: 77 | K46: 3
A47: Lenkivci, Schola, Misteko Ленківці, Школа, Містечко | B47: 1 | C47: 6 | D47: 6 | E47: 0 | F47: 6 | G47: 6 | H47: 0 | I47: 0 | J47: 0 | K47: 0
A48: Booster PS Начальник експлуатац. НС підкачки води | B48: 1 | C48: 19 | D48: 19 | E48: 0 | F48: 19 | G48: 19 | H48: 0 | I48: 0 | J48: 0 | K48: 0
A49: Total Разом | C49: =SUM(C6:C48) -> 745 | D49: 828 | E49: 83 | F49: 473.8 | G49: 536.6 | H49: 62.8 | I49: 271.2 | J49: 291.4 | K49: 20.2
A51: No of water connections Кількість підключень до централізованого водопостачання | B51: 67198
A52: No of sewerage connections Кількість підключень до централізованого водовідведення | B52: 14032
A53: Staff per 1000 connections Кількість робітників на 1000 підключень | F53: =F49/$B$51*1000 -> 7.050805083 | G53: =G49/$B$51*1000 -> 7.985356707 | I53: =I49/$B$52*1000 -> 19.327252 | J53: =J49/$B$52*1000 -> 20.7668187
A56: Note: Cells highlighted in light red are departments/units with more than 3 vacancies. Примітка: Комірки рожевого кольору містять інформацію про відділи/підрозділи, в яких відкритими є понад 3 вакансії.

Sheet IT
A1: CVK Procurement plan for IT equipment with costs allocated proportionally (70%) to water tariff План закупівель ІТ-обладнання для ЧВК із витратами пропорційно (70%) віднесеними до тарифу на централізоване водопостачання
A4: IT Procurement Plan | B4: План закупівель ІТ-обладнання | D4: Factors Фактори | G4: Quantities Кількість | M4: Quantities (Water portion) Кількість (частина водопостачання)
D5: Water ВП | E5: WW ВВ | M5: 2018 | N5: 2019 | O5: 2020 | P5: 2021 | Q5: 2022
A6: Hardware procurement | B6: Закупівля обладнання
A7: Key Management Positions (Laptops) | B7: Ключові керівні посади (ноутбуки)
A8: 1st Deputy Director - Adminsitration | B8: 1-ий заступник начальника - з адміністративних питань | D8: 0.7 | E8: 0.3 | G8: 1 | M8: =$D8*G8 -> 0.7 | N8: =$D8*H8 -> 0 | O8: 0 | P8: 0 | Q8: 0
A9: Deputy Director - Projects | B9: Заступник начальника - з питань роботи проектів | D9: 0.7 | E9: 0.3 | J9: 1 | M9: =$D9*G9 -> 0 | N9: =$D9*H9 -> 0 | O9: =$D9*I9 -> 0 | P9: =$D9*J9 -> 0.7 | Q9: =$D9*K9 -> 0
A10: Deputy Director - Commerce | B10: Заступник начальника - з комерційних питань | C10: new proposed position нова запропонована позиція | D10: 0.7 | E10: 0.3 | G10: 1 | M10: 0.7 | N10: 0 | O10: 0 | P10: 0 | Q10: 0
A11: Chief Accountant | B11: Головний бухгалтер | D11: 0.7 | E11: 0.3 | K11: 1 | M11: 0 | N11: 0 | O11: 0 | P11: 0 | Q11: 0.7
A12: Head of Production & Technical Department | B12: Начальник виробничо-технічного відділу | D12: 0.7 | E12: 0.3 | K12: 1 | M12: 0 | N12: 0 | O12: 0 | P12: 0 | Q12: 0.7
A13: Head of Customer Department | B13: Начальник абонентського відділу | D13: 0.7 | E13: 0.3 | G13: 1 | M13: 0.7 | N13: 0 | O13: 0 | P13: 0 | Q13: 0
A14: Chief Engineer | B14: Головний інженер | D14: 0.7 | E14: 0.3 | K14: 1 | M14: 0 | N14: 0 | O14: 0 | P14: 0 | Q14: 0.7
A15: Supporting Services Manager / Deputy Chief Engineer | B15: Менеджер служби підтримки / Заступник головного інженера | C15: new proposed position нова запропонована позиція | D15: 0.7 | E15: 0.3 | H15: 1 | M15: 0 | N15: 0.7 | O15: 0 | P15: 0 | Q15: 0
A16: Water Supply Operations Manager | B16: Менеджер з операцій з водопостачання | C16: new proposed position нова запропонована позиція | D16: 1 | E16: 0 | H16: 1 | M16: 0 | N16: 1 | O16: 0 | P16: 0 | Q16: 0
A17: Strategic Development Department | B17: Відділ стратегічного розвитку | M17: 0 | N17: 0 | O17: 0 | P17: 0 | Q17: 0
A18: PCs (incl. 22' flat screen) | B18: ПК (включ. 22' плоский екран) | D18: 0.7 | E18: 0.3 | G18: 2 | M18: 1.4 | N18: 0 | O18: 0 | P18: 0 | Q18: 0
A19: Printer | B19: Принтер | D19: 0.7 | E19: 0.3 | H19: 1 | M19: 0 | N19: 0.7 | O19: 0 | P19: 0 | Q19: 0
A20: Economic & Planning Department | B20: Планово-економічний відділ | M20: 0 | N20: 0 | O20: 0 | P20: 0 | Q20: 0
A21: PCs (incl. 22' flat screen) | B21: ПК (включ. 22' плоский екран) | D21: 0.7 | E21: 0.3 | G21: 1 | H21: 1 | I21: 1 | M21: 0.7 | N21: 0.7 | O21: 0.7 | P21: 0 | Q21: 0
A22: Accounting Department | B22: Бухгалтерський відділ | M22: 0 | N22: 0 | O22: 0 | P22: 0 | Q22: 0
A23: PCs (incl. 22' flat screen) | B23: ПК (включ. 22' плоский екран) | D23: 0.7 | E23: 0.3 | G23: 2 | M23: 1.4 | N23: 0 | O23: 0 | P23: 0 | Q23: 0
A24: Printer | B24: Принтер | D24: 0.7 | E24: 0.3 | I24: 1 | M24: 0 | N24: 0 | O24: 0.7 | P24: 0 | Q24: 0
A25: Human Resource Department | B25: Відділ кадрів | M25: 0 | N25: 0 | O25: 0 | P25: 0 | Q25: 0
A26: PCs (incl. 22' flat screen) | B26: ПК (включ. 22' плоский екран) | D26: 0.7 | E26: 0.3 | G26: 1 | M26: 0.7 | N26: 0 | O26: 0 | P26: 0 | Q26: 0
A27: Printer | B27: Принтер | D27: 0.7 | E27: 0.3 | G27: 1 | M27: 0.7 | N27: 0 | O27: 0 | P27: 0 | Q27: 0
A28: Legal Department | B28: Юридичний відділ | M28: 0 | N28: 0 | O28: 0 | P28: 0 | Q28: 0
A29: PCs (incl. 22' flat screen) | B29: ПК (включ. 22' плоский екран) | D29: 0.7 | E29: 0.3 | M29: 0 | N29: 0 | O29: 0 | P29: 0 | Q29: 0
A30: Printer | B30: Принтер | D30: 0.7 | E30: 0.3 | I30: 1 | M30: 0 | N30: 0 | O30: 0.7 | P30: 0 | Q30: 0
A31: IT & Network Administration Unit | B31: Відділ ІТ та адміністрування мереж | M31: 0 | N31: 0 | O31: 0 | P31: 0 | Q31: 0
A32: PCs (incl. 22' flat screen) | B32: ПК (включ. 22' плоский екран) | C32: upgrade to 23 or 24" screen оновлення до 23 або 24' екрану | D32: 0.7 | E32: 0.3 | G32: 1 | M32: 0.7 | N32: 0 | O32: 0 | P32: 0 | Q32: 0
A33: Laptops | B33: Ноутбуки | D33: 0.7 | E33: 0.3 | G33: 1 | M33: 0.7 | N33: 0 | O33: 0 | P33: 0 | Q33: 0
A34: Procurement Unit | B34: Відділ закупівель | M34: 0 | N34: 0 | O34: 0 | P34: 0 | Q34: 0
A35: PCs (incl. 22' flat screen) | B35: ПК (включ. 22' плоский екран) | D35: 0.7 | E35: 0.3 | M35: 0 | N35: 0 | O35: 0 | P35: 0 | Q35: 0
A36: Printer | B36: Принтер | D36: 0.7 | E36: 0.3 | G36: 1 | M36: 0.7 | N36: 0 | O36: 0 | P36: 0 | Q36: 0
A37: Principal Tender Engineer | B37: Провідний інженер з постачання та закупівель | M37: 0 | N37: 0 | O37: 0 | P37: 0 | Q37: 0
A38: PCs (incl. 22' flat screen) | B38: ПК (включ. 22' плоский екран) | D38: 0.7 | E38: 0.3 | G38: 1 | M38: 0.7 | N38: 0 | O38: 0 | P38: 0 | Q38: 0
A39: Secreteriat / Document Control Unit | B39: Приймальня / канцелярія | M39: 0 | N39: 0 | O39: 0 | P39: 0 | Q39: 0
A40: Multi-function printer | B40: Багатофункціональний принтер | D40: 0.7 | E40: 0.3 | H40: 1 | M40: 0 | N40: 0.7 | O40: 0 | P40: 0 | Q40: 0
A41: Customer Department | B41: Абонентський відділ | M41: 0 | N41: 0 | O41: 0 | P41: 0 | Q41: 0
A42: PCs (incl. 22' flat screen) | B42: ПК (включ. 22' плоский екран) | D42: 0.7 | E42: 0.3 | G42: 2 | M42: 1.4 | N42: 0 | O42: 0 | P42: 0 | Q42: 0
A43: Printer | B43: Принтер | D43: 0.7 | E43: 0.3 | G43: 1 | M43: 0.7 | N43: 0 | O43: 0 | P43: 0 | Q43: 0
A44: Production & Technical Department (incl. asset management unit) | B44: Виробничо-технічний відділ (включ. з командою з управління активами) | M44: 0 | N44: 0 | O44: 0 | P44: 0 | Q44: 0
A45: High performance PC (incl. flat screen) | B45: Високопродуктивний ПК (включ. плоский екран) | D45: 0.7 | E45: 0.3 | G45: 3 | M45: 2.1 | N45: 0 | O45: 0 | P45: 0 | Q45: 0
A46: PCs (incl. 22' flat screen) | B46: ПК (включ. 22' плоский екран) | D46: 0.7 | E46: 0.3 | I46: 1 | M46: 0 | N46: 0 | O46: 0.7 | P46: 0 | Q46: 0
A47: Laptop and 23' flat screen | B47: Ноутбук та 23' плоский екран | D47: 0.7 | E47: 0.3 | G47: 1 | M47: 0.7 | N47: 0 | O47: 0 | P47: 0 | Q47: 0
A48: Tablet PC or camera | B48: Планшет або камера | D48: 0.7 | E48: 0.3 | G48: 5 | M48: 3.5 | N48: 0 | O48: 0 | P48: 0 | Q48: 0
A49: Printer | B49: Принтер | D49: 0.7 | E49: 0.3 | G49: 1 | I49: 1 | M49: 0.7 | N49: 0 | O49: 0.7 | P49: 0 | Q49: 0
A50: Emergency Dispatch Service | B50: Аварійно-диспетчерська служба | M50: 0 | N50: 0 | O50: 0 | P50: 0 | Q50: 0
A51: PCs (incl. 22' flat screen) | B51: ПК (включ. 22' плоский екран) | D51: 0.7 | E51: 0.3 | G51: 2 | M51: 1.4 | N51: 0 | O51: 0 | P51: 0 | Q51: 0
A52: Printer | B52: Принтер | D52: 0.7 | E52: 0.3 | G52: 1 | M52: 0.7 | N52: 0 | O52: 0 | P52: 0 | Q52: 0
A53: Mytkiv Intake Division | B53: Дільниця водозабору Митків | M53: 0 | N53: 0 | O53: 0 | P53: 0 | Q53: 0
A54: Intake & PS Level I (Mytkiv) | B54: Водозабір та НС підйом І (Митків) | M54: 0 | N54: 0 | O54: 0 | P54: 0 | Q54: 0
A55: PCs (incl. 22' flat screen) | B55: ПК (включ. 22' плоский екран) | D55: 1 | E55: 0 | J55: 1 | M55: 0 | N55: 0 | O55: 0 | P55: 1 | Q55: 0
A56: Printer | B56: Принтер | D56: 1 | E56: 0 | J56: 1 | M56: 0 | N56: 0 | O56: 0 | P56: 1 | Q56: 0
A57: WTP & PS Level II (Vikno) | B57: ВОС та НС підйом ІІ (Вікно) | M57: 0 | N57: 0 | O57: 0 | P57: 0 | Q57: 0
A58: PCs (incl. 22' flat screen) | B58: ПК (включ. 22' плоский екран) | D58: 1 | E58: 0 | J58: 1 | M58: 0 | N58: 0 | O58: 0 | P58: 1 | Q58: 0
A59: Printer | B59: Принтер | D59: 1 | E59: 0 | J59: 1 | M59: 0 | N59: 0 | O59: 0 | P59: 1 | Q59: 0
A60: PS Level III (Shubranitz) | B60: НС підйом ІІІ (Шубранець) | M60: 0 | N60: 0 | O60: 0 | P60: 0 | Q60: 0
A61: PCs (incl. 22' flat screen) | B61: ПК (включ. 22' плоский екран) | D61: 1 | E61: 0 | J61: 1 | M61: 0 | N61: 0 | O61: 0 | P61: 1 | Q61: 0
A62: Printer | B62: Принтер | D62: 1 | E62: 0 | J62: 1 | M62: 0 | N62: 0 | O62: 0 | P62: 1 | Q62: 0
A63: Reservoir Popov | B63: Резервуар Попов | M63: 0 | N63: 0 | O63: 0 | P63: 0 | Q63: 0
A64: PCs (incl. 22' flat screen) | B64: ПК (включ. 22' плоский екран) | D64: 1 | E64: 0 | J64: 1 | M64: 0 | N64: 0 | O64: 0 | P64: 1 | Q64: 0
A65: Printer | B65: Принтер | D65: 1 | E65: 0 | J65: 1 | M65: 0 | N65: 0 | O65: 0 | P65: 1 | Q65: 0
A66: Bila Intake Division | B66: Дільниця водозабору Біла | M66: 0 | N66: 0 | O66: 0 | P66: 0 | Q66: 0
A67: PCs (incl. 22' flat screen) | B67: ПК (включ. 22' плоский екран) | D67: 1 | E67: 0 | J67: 1 | M67: 0 | N67: 0 | O67: 0 | P67: 1 | Q67: 0
A68: Printer | B68: Принтер | D68: 1 | E68: 0 | J68: 1 | M68: 0 | N68: 0 | O68: 0 | P68: 1 | Q68: 0
A69: Mahala Intake Division | B69: Дільниця водозабору Магала | M69: 0 | N69: 0 | O69: 0 | P69: 0 | Q69: 0
A70: PS Level II & Reservoir | B70: НС підйом ІІ та резервуар | M70: 0 | N70: 0 | O70: 0 | P70: 0 | Q70: 0
A71: PCs (incl. 22' flat screen) | B71: ПК (включ. 22' плоский екран) | D71: 1 | E71: 0 | J71: 1 | M71: 0 | N71: 0 | O71: 0 | P71: 1 | Q71: 0
A72: Printer | B72: Принтер | D72: 1 | E72: 0 | J72: 1 | M72: 0 | N72: 0 | O72: 0 | P72: 1 | Q72: 0
A73: PS Level III & Reservoir | B73: НС підйом ІІІ та резервуар | M73: =$D73*G73 -> 0 | N73: =$D73*H73 -> 0 | O73: =$D73*I73 -> 0 | P73: =$D73*J73 -> 0 | Q73: =$D73*K73 -> 0
A74: PCs (incl. 22' flat screen) | B74: ПК (включ. 22' плоский екран) | D74: 1 | E74: 0 | J74: 1 | M74: 0 | N74: 0 | O74: 0 | P74: 1 | Q74: 0
A75: Printer | B75: Принтер | D75: 1 | E75: 0 | J75: 1 | M75: 0 | N75: 0 | O75: 0 | P75: 1 | Q75: 0
A76: Rohizna Intake Division | B76: Дільниця водозабору Рогізна | M76: 0 | N76: 0 | O76: 0 | P76: 0 | Q76: 0
A77: Ocheret Intake | B77: Водозабір Очерет | M77: 0 | N77: 0 | O77: 0 | P77: 0 | Q77: 0
A78: Lenkivci Intake | B78: Водозабір Ленківці | M78: 0 | N78: 0 | O78: 0 | P78: 0 | Q78: 0
A79: PCs (incl. 22' flat screen) | B79: ПК (включ. 22' плоский екран) | D79: 1 | E79: 0 | K79: 1 | M79: 0 | N79: 0 | O79: 0 | P79: 0 | Q79: 1
A80: Printer | B80: Принтер | D80: 1 | E80: 0 | K80: 1 | M80: 0 | N80: 0 | O80: 0 | P80: 0 | Q80: 1
A81: Rohizna WTP | B81: ВОС Рогізна | M81: 0 | N81: 0 | O81: 0 | P81: 0 | Q81: 0
A82: PCs (incl. 22' flat screen) | B82: ПК (включ. 22' плоский екран) | D82: 1 | E82: 0 | J82: 1 | M82: 0 | N82: 0 | O82: 0 | P82: 1 | Q82: 0
A83: Printer | B83: Принтер | D83: 1 | E83: 0 | J83: 1 | M83: 0 | N83: 0 | O83: 0 | P83: 1 | Q83: 0
A84: Water Network Division | B84: Дільниця водопровідної мережі | M84: 0 | N84: 0 | O84: 0 | P84: 0 | Q84: 0
A85: PCs (incl. 22' flat screen) | B85: ПК (включ. 22' плоский екран) | D85: 1 | E85: 0 | I85: 1 | M85: 0 | N85: 0 | O85: 1 | P85: 0 | Q85: 0
A86: Printer | B86: Принтер | D86: 1 | E86: 0 | I86: 1 | M86: 0 | N86: 0 | O86: 1 | P86: 0 | Q86: 0
A87: Instrument Control Lab | B87: Лабораторія контрольно-вимірювальних приладів | M87: 0 | N87: 0 | O87: 0 | P87: 0 | Q87: 0
A88: PCs (incl. 22' flat screen) | B88: ПК (включ. 22' плоский екран) | D88: 0.7 | E88: 0.3 | I88: 1 | M88: 0 | N88: 0 | O88: 0.7 | P88: 0 | Q88: 0
A89: Printer | B89: Принтер | D89: 0.7 | E89: 0.3 | I89: 1 | M89: 0 | N89: 0 | O89: 0.7 | P89: 0 | Q89: 0
A90: Environment Protection Division | B90: Служба охорони навколишнього середовища | M90: 0 | N90: 0 | O90: 0 | P90: 0 | Q90: 0
A91: PCs (incl. 22' flat screen) | B91: ПК (включ. 22' плоский екран) | D91: 0 | E91: 1 | H91: 1 | M91: 0 | N91: 0 | O91: 0 | P91: 0 | Q91: 0
A92: Printer | B92: Принтер | D92: 0 | E92: 1 | H92: 1 | M92: 0 | N92: 0 | O92: 0 | P92: 0 | Q92: 0
A93: Water Safety Control Lab | B93: Лабораторія контролю якості води | M93: 0 | N93: 0 | O93: 0 | P93: 0 | Q93: 0
A94: PCs (incl. 22' flat screen) | B94: ПК (включ. 22' плоский екран) | D94: 1 | E94: 0 | G94: 1 | M94: 1 | N94: 0 | O94: 0 | P94: 0 | Q94: 0
A95: Energy Supply Division | B95: Відділ головного енергетика | M95: 0 | N95: 0 | O95: 0 | P95: 0 | Q95: 0
A96: Mechanical Division | B96: Відділ головного механіка | M96: 0 | N96: 0 | O96: 0 | P96: 0 | Q96: 0
A97: PCs (incl. 22' flat screen) | B97: ПК (включ. 22' плоский екран) | D97: 0.7 | E97: 0.3 | G97: 1 | M97: 0.7 | N97: 0 | O97: 0 | P97: 0 | Q97: 0
A98: Warehouse Division | B98: Склад | M98: 0 | N98: 0 | O98: 0 | P98: 0 | Q98: 0
A99: PCs (incl. 22' flat screen) | B99: ПК (включ. 22' плоский екран) | D99: 0.7 | E99: 0.3 | M99: 0 | N99: 0 | O99: 0 | P99: 0 | Q99: 0
A100: Printer | B100: Принтер | D100: 0.7 | E100: 0.3 | G100: 1 | M100: 0.7 | N100: 0 | O100: 0 | P100: 0 | Q100: 0
A101: Vehicle Division / Garage | B101: Автогараж
A102: Road Surface Reconstruction Division | B102: Служба ремонту дорожнього покриття
A105: Summary for hardware | B105: Разом обладнання
A106: PCs (incl. 22' flat screen) | B106: ПК (включ. 22' плоский екран) | G106: =SUMIF($A4:$A102,"PCs (incl. 22' flat screen)", G4:G102) -> 14 | H106: =SUMIF($A4:$A102,"PCs (incl. 22' flat screen)", H4:H102) -> 2 | I106: =SUMIF($A4:$A102,"PCs (incl. 22' flat screen)", I4:I102) -> 4 | J106: =SUMIF($A4:$A102,"PCs (incl. 22' flat screen)", J4:J102) -> 8 | K106: =SUMIF($A4:$A102,"PCs (incl. 22' flat screen)", K4:K102) -> 1 | M106: =SUMIF($A8:$A102,"PCs (incl. 22' flat screen)", M8:M102) -> 10.1 | N106: =SUMIF($A8:$A102,"PCs (incl. 22' flat screen)", N8:N102) -> 0.7 | O106: 3.1 | P106: 8 | Q106: 1
A107: Laptop | B107: Ноутбук | G107: =SUM(G8:G16)+G33 -> 4 | H107: =SUM(H8:H16) -> 2 | I107: =SUM(I8:I16) -> 0 | J107: =SUM(J8:J16) -> 1 | K107: =SUM(K8:K16) -> 3 | M107: =SUM(M8:M16)+M33 -> 2.8 | N107: =SUM(N8:N16)+N33 -> 1.7 | O107: 0 | P107: 0.7 | Q107: 2.1
A108: Printer | B108: Принтер | G108: =SUMIF($A8:$A102, "Printer", G8:G102) -> 6 | H108: =SUMIF($A4:$A102, "Printer", H4:H102) -> 2 | I108: =SUMIF($A4:$A102, "Printer", I4:I102) -> 5 | J108: =SUMIF($A4:$A102, "Printer", J4:J102) -> 8 | K108: =SUMIF($A4:$A102, "Printer", K4:K102) -> 1 | M108: =SUMIF($A8:$A102, "Printer", M8:M102) -> 4.2 | N108: =SUMIF($A8:$A102, "Printer", N8:N102) -> 0.7 | O108: 3.8 | P108: 8 | Q108: 1
A109: Multi-function printer | B109: Багатофункціональний принтер | G109: =SUMIF($A8:$A102, "Multi-function printer", G8:G$102) -> 0 | H109: =SUMIF($A4:$A102, "Multi-function printer", H102:H$280) -> 26887 | I109: =SUMIF($A4:$A102, "Multi-function printer", I102:I$280) -> 53774 | J109: =SUMIF($A4:$A102, "Multi-function printer", J102:J$280) -> 134435 | K109: =SUMIF($A4:$A102, "Multi-function printer", K102:K$280) -> 215096 | M109: =SUMIF($A8:$A102, "Multi-function printer", M8:M$102) -> 0 | N109: =SUMIF($A8:$A102, "Multi-function printer", N8:N$102) -> 0.7 | O109: =SUMIF($A8:$A102, "Multi-function printer", O8:O$102) -> 0 | P109: =SUMIF($A8:$A102, "Multi-function printer", P8:P$102) -> 0 | Q109: =SUMIF($A8:$A102, "Multi-function printer", Q8:Q$102) -> 0
A110: High performance PC (incl. flat screen) | B110: Високопродуктивний ПК (включ. плоский екран) | G110: =SUMIF($A8:$A102, "High performance PC (incl. flat screen)", G8:G102) -> 3 | H110: =SUMIF($A4:$A102, "High performance PC (incl. flat screen)", H4:H102) -> 0 | I110: =SUMIF($A4:$A102, "High performance PC (incl. flat screen)", I4:I102) -> 0 | J110: =SUMIF($A4:$A102, "High performance PC (incl. flat screen)", J4:J102) -> 0 | K110: =SUMIF($A4:$A102, "High performance PC (incl. flat screen)", K4:K102) -> 0 | M110: =SUMIF($A8:$A102, "High performance PC (incl. flat screen)", M8:M102) -> 2.1 | N110: =SUMIF($A8:$A102, "High performance PC (incl. flat screen)", N8:N102) -> 0 | O110: 0 | P110: 0 | Q110: 0
A111: Laptop and 23' flat screen | B111: Ноутбук та 23' плоский екран | G111: =SUMIF($A4:$A102, "Laptop and 23' flat screen", G4:G102) -> 1 | H111: =SUMIF($A4:$A102, "Laptop and 23' flat screen", H4:H102) -> 0 | I111: =SUMIF($A4:$A102, "Laptop and 23' flat screen", I4:I102) -> 0 | J111: =SUMIF($A4:$A102, "Laptop and 23' flat screen", J4:J102) -> 0 | K111: =SUMIF($A4:$A102, "Laptop and 23' flat screen", K4:K102) -> 0 | M111: =SUMIF($A4:$A102, "Laptop and 23' flat screen", M4:M102) -> 0.7 | N111: =SUMIF($A4:$A102, "Laptop and 23' flat screen", N4:N102) -> 0 | O111: =SUMIF($A4:$A102, "Laptop and 23' flat screen", O4:O102) -> 0 | P111: =SUMIF($A4:$A102, "Laptop and 23' flat screen", P4:P102) -> 0 | Q111: =SUMIF($A4:$A102, "Laptop and 23' flat screen", Q4:Q102) -> 0
A112: Tablet PC or camera | B112: Планшет або камера | G112: =SUMIF($A4:$A102, "Tablet PC or camera", G4:G102) -> 5 | H112: =SUMIF($A4:$A102, "Tablet PC or camera", H4:H102) -> 0 | I112: =SUMIF($A4:$A102, "Tablet PC or camera", I4:I102) -> 0 | J112: =SUMIF($A4:$A102, "Tablet PC or camera", J4:J102) -> 0 | K112: =SUMIF($A4:$A102, "Tablet PC or camera", K4:K102) -> 0 | M112: =SUMIF($A4:$A102, "Tablet PC or camera", M4:M102) -> 3.5 | N112: =SUMIF($A4:$A102, "Tablet PC or camera", N4:N102) -> 0 | O112: =SUMIF($A4:$A102, "Tablet PC or camera", O4:O102) -> 0 | P112: =SUMIF($A4:$A102, "Tablet PC or camera", P4:P102) -> 0 | Q112: =SUMIF($A4:$A102, "Tablet PC or camera", Q4:Q102) -> 0
A113: PCs (incl. 22' flat screen) | B113: ПК (включ. 22' плоский екран) | C113: =600*USDrate -> 16132.2 | F113: UAH грн | G113: =G106*$C113 -> 225850.8 | H113: =H106*$C113 -> 32264.4 | I113: 64528.8 | J113: 129057.6 | K113: 16132.2 | L113: UAH грн | M113: =M106*$C113 -> 162935.22 | N113: =N106*$C113 -> 11292.54 | O113: 50009.82 | P113: 129057.6 | Q113: 16132.2
A114: Laptop | B114: Ноутбук | C114: =600*USDrate -> 16132.2 | F114: UAH грн | G114: 64528.8 | H114: 32264.4 | J114: =J107*$C114 -> 16132.2 | K114: =K107*$C114 -> 48396.6 | L114: UAH грн | M114: =M107*$C114 -> 45170.16 | N114: 27424.74 | P114: 11292.54 | Q114: 33877.62
A115: Printer | B115: Принтер | C115: =210*USDrate -> 5646.27 | F115: UAH грн | G115: 33877.62 | H115: 11292.54 | I115: =I108*$C115 -> 28231.35 | J115: =J108*$C115 -> 45170.16 | K115: =K108*$C115 -> 5646.27 | L115: UAH грн | M115: =M108*$C115 -> 23714.334 | N115: 3952.389 | O115: 21455.826 | P115: 45170.16 | Q115: 5646.27
A116: Multi-function printer | B116: Багатофункціональний принтер | C116: =510*USDrate -> 13712.37 | F116: UAH грн | H116: =H109*$C116 -> 368684492.2 | L116: UAH грн | N116: =N109*$C116 -> 9598.659
A117: High performance PC (incl. flat screen) | B117: Високопродуктивний ПК (включ. плоский екран) | C117: =(160+600)*USDrate -> 20434.12 | F117: UAH грн | G117: =G110*$C117 -> 61302.36 | L117: UAH грн | M117: =M110*$C117 -> 42911.652
A118: Laptop and 23' flat screen | B118: Ноутбук та 23' плоский екран | C118: =(160+600)*USDrate -> 20434.12 | F118: UAH грн | G118: =G111*$C118 -> 20434.12 | L118: UAH грн | M118: =M111*$C118 -> 14303.884
A119: Tablet PC or camera | B119: Планшет або камера | C119: =120*USDrate -> 3226.44 | F119: UAH грн | G119: =G112*$C119 -> 16132.2 | L119: UAH грн | M119: =M112*$C119 -> 11292.54
A120: IT tools | B120: ІТ-інструменти | F120: UAH грн | G120: =1*200*USDrate -> 5377.4 | L120: UAH грн | M120: =G120*0.7 -> 3764.18
A121: Server room upgrading | B121: Ремонт серверної кімнати | C121: Repair of the ceiling and windows Ремонт стелі та вікон | F121: UAH грн | G121: =(250+200)*USDrate -> 12099.15 | L121: UAH грн | M121: =G121*0.7 -> 8469.405
A122: Guests WiFi network | B122: Гостьова WiFi мережа | C122: 1 pc. Mikrotik RB2011UiA, 8pcs. MikroTik cAP-2nD and cable 1 шт. Mikrotik RB2011UiA, 8pcs. MikroTik cAP-2nD та кабель | F122: UAH грн | G122: =(1*150+8*100+1*80)*USDrate -> 27693.61 | L122: UAH грн | M122: 19385.527
A123: SSD | B123: диск SSD | C123: for update Desktop PC's of the company (70 pcs.) для оновлення комп'ютерів компанії (70 шт.) | F123: UAH грн | G123: =(30*100)*USDrate -> 80661 | H123: =(30*100)*USDrate -> 80661 | I123: =(10*100)*USDrate -> 26887 | L123: UAH грн | M123: 56462.7 | N123: =H123*0.7 -> 56462.7 | O123: 18820.9
A124: Glass fibre cables for LAN in headquarter | B124: Скло-волокнині кабелі для локальної мережі в головному офісі | F124: UAH грн | G124: =400*USDrate -> 10754.8 | L124: UAH грн | M124: 7528.36
A126: Software Systems | B126: Програмні системи
A127: Customer Management Software & Database | B127: Програма управління споживачами та база даних | D127: 0.7 | E127: 0.3 | F127: UAH грн | G127: =SUM(G128:G130) -> 30000 | H127: =SUM(H128:H130) -> 2000000 | L127: UAH грн | M127: =G127*0.7 -> 21000 | N127: =H127*0.7 -> 1400000
A128: Draft technical task order for development and implementation new commercial management software | B128: Проект технічного завдання на розробку та реалізацію нового програмного забезпечення для комерційного управління | F128: UAH грн | G128: 20000 | L128: UAH грн | M128: =G128*0.7 -> 14000 | N128: 0
A129: Organize tender and find contractor | B129: Організація тендеру та пошуки підрядника | F129: UAH грн | G129: 10000 | L129: UAH грн | M129: 7000 | N129: 0
A130: Implement new IT system (incl. billing) in all customer service units based on common database and put into use | B130: Реалізація нової ІТ-системи (включ. облік споживання) в усіх відділах, що займаються обслуговуванням споживачів, заснованої на спільній базі даних, а також її запуск в роботу | C130: costs for this should be moved to IT plan under overheads | F130: UAH грн | H130: 2000000 | L130: UAH грн | M130: 0 | N130: 1400000
A131: New staff needed for IT system operation | B131: Нові працівники, необхідні для роботи ІТ-системи | F131: UAH грн | H131: 1 | I131: 1 | L131: UAH грн | M131: 0 | N131: 0.7
A132: Personnel Management Software (1C module) | B132: Програмне забезпечення для управління персоналом (модуль 1С) | D132: 0.7 | E132: 0.3 | F132: UAH грн | H132: =4000*BasicData!$B$6 -> 107548 | L132: UAH грн | N132: 75283.6
A133: Technical Connection Requirements Software (1C module) | B133: Програмне забезпечення для технічного підключення (модуль 1С) | D133: 1 | E133: 0 | F133: UAH грн | I133: =4000*BasicData!$B$6 -> 107548 | L133: UAH грн | O133: 75283.6
A134: Accounting Software | B134: Програмне забезпечення для бухгалтерського обліку | C134: 1C, Medok, LogicLand, IsPro | D134: 0.7 | E134: 0.3 | F134: UAH грн | G134: 181000 | H134: 181000 | I134: 181000 | J134: 181000 | K134: 181000 | L134: UAH грн | M134: 126700 | N134: 126700 | O134: 126700 | P134: 126700 | Q134: 126700
A135: Warehouse Management Software (1C module) | B135: Програмне забезпечення для управління складом (модуль 1С) | D135: 0.7 | E135: 0.3 | F135: UAH грн | H135: =2000*BasicData!$B$6 -> 53774 | L135: UAH грн | N135: 37641.8
A136: Document Management System | B136: Система документообігу | C136: vchasno.com.ua or papka24.com.ua vchasno.com.ua або papka24.com.ua | D136: 0.7 | E136: 0.3 | F136: UAH грн | H136: =500*BasicData!$B$6 -> 13443.5 | I136: =500*BasicData!$B$6 -> 13443.5 | J136: =500*BasicData!$B$6 -> 13443.5 | K136: =500*BasicData!$B$6 -> 13443.5 | L136: UAH грн | N136: 9410.45 | O136: 9410.45 | P136: 9410.45 | Q136: 9410.45
A137: MS Office Software Licenses | B137: Ліцензії на програмне забезпечення MS Office | C137: 65 pcs. 65 шт | D137: 0.7 | E137: 0.3 | F137: UAH грн | H137: =(5*260)*BasicData!$B$6 -> 34953.1 | I137: =(10*260)*BasicData!$B$6 -> 69906.2 | J137: =(15*260)*BasicData!$B$6 -> 104859.3 | K137: =(35*260)*BasicData!$B$6 -> 244671.7 | L137: UAH грн | N137: 24467.17 | O137: 48934.34 | P137: 73401.51 | Q137: 171270.19
A138: MS Windows 10 Software Licenses | B138: Ліцензії на програмне забезпечення MS Windows 10 | C138: 80 pcs. 80 шт. | D138: 0.7 | E138: 0.3 | F138: UAH грн | H138: =(5*200)*BasicData!$B$6 -> 26887 | I138: =(10*200)*BasicData!$B$6 -> 53774 | J138: =(25*200)*BasicData!$B$6 -> 134435 | K138: =(40*200)*BasicData!$B$6 -> 215096 | L138: UAH грн | N138: 18820.9 | O138: 37641.8 | P138: 94104.5 | Q138: 150567.2
A139: Exchange Email Server (in-house) | B139: Сервер електронної пошти (внутрішній) | C139: 5 corporate Gmail mailboxes 5 корпоративних поштових скриньок Gmail | D139: 0.7 | E139: 0.3 | F139: UAH грн | G139: =5*100*BasicData!$B$6 -> 13443.5 | H139: =5*100*BasicData!$B$6 -> 13443.5 | I139: =5*100*BasicData!$B$6 -> 13443.5 | J139: =5*100*BasicData!$B$6 -> 13443.5 | K139: =5*100*BasicData!$B$6 -> 13443.5 | L139: UAH грн | M139: 9410.45 | N139: 9410.45 | O139: 9410.45 | P139: 9410.45 | Q139: 9410.45
A142: Total hardware | B142: Загалом обладання | F142: UAH грн | G142: =SUM(G127:G139) -> 254443.5 | H142: =SUM(H127:H139) -> 4431050.1 | I142: =SUM(I127:I139) -> 439116.2 | J142: 447181.3 | K142: 667654.7 | L142: UAH | M142: =SUM(M127:M139) -> 178110.45 | N142: =SUM(N127:N139) -> 3101735.07 | O142: 307380.64 | P142: 313026.91 | Q142: 467358.29
A143: Total software | B143: Загалом програмне забезпечення | F143: UAH грн | G143: =SUM(G113:G124) -> 558711.86 | H143: 368840974.5 | I143: 119647.15 | J143: 190359.96 | K143: 70175.07 | L143: UAH | M143: =SUM(M113:M124) -> 395937.962 | N143: =SUM(N113:N124) -> 108731.028 | O143: 90286.546 | P143: 185520.3 | Q143: 55656.09
A144: Total | B144: Разом | F144: UAH грн | G144: =G142+G143 -> 813155.36 | H144: 373272024.6 | I144: 558763.35 | J144: 637541.26 | K144: 737829.77 | L144: UAH | M144: =M142+M143 -> 574048.412 | N144: =N142+N143 -> 3210466.098 | O144: 397667.186 | P144: 498547.21 | Q144: 523014.38

Sheet Training
B1: CVK Calculation of Required Annual Training Budget
B2: Розрахунок ЧВК бюджету для необхідних щорічних заходів з навчання
B3: Total staff (water) Всього персоналу (водопостачання) | C3: =Workforce!F49 -> 473.8
B4: Training days/year/person Днів навчання/рік/людина | C4: 3
B5: Total training days/year Всього днів навчання/рік | C5: =C3*C4 -> 1421.4
B7: Participants/course Учасники/курс | C7: 5
B8: Total course days Всього днів курсу | C8: =C5/C7 -> 284.28
B10: Costs / course day (UAH) Витрати / день курсу (грн)
B11: Trainer Тренер | C11: 1500
B12: Other Інші | C12: 500
B13: Total Всього | C13: =SUM(C11:C12) -> 2000
B15: Total costs Всього витрат | C15: =C13*C8 -> 568560
B17: Для бінес-плану | C17: 500000

Sheet CVKInvest
A1: Depreciation of Other CVK Investments 2018-2022 Амортизація інших інвестицій ЧВК 2018-2022
A2: Note 1: Some investment items serve both CVK businesses, water and wastewater. In that case only 70% of costs are accounted for in the water tariff and 30% have to be included in the wastewater tariff) Примітка 1: Деякі інвестиційні статті задіяні для обох послуг, які надає ЧВК, а саме централізоване водопостачання та водовідведення. В таких випадках, лише 70% витрат входять до тарифу на централізоване водопостачання, а 30% має включатися в тариф на послуги водовідведення.
A3: Note 2: For simplicity reasons, depreciation of each item is assumed to start in the middle of the year. Примітка 2: З міркувань простоти припускається, що амортизація кожного активу розпочнеться в середині року.
A5: CVK Other capital investment measures Інші заходи ЧВК з капітального інвестування | B5: Total (UAH) Всього (грн) | C5: 2018 | D5: 2019 | E5: 2020 | F5: 2021 | G5: 2022 | H5: Factor for water tariff Фактор для тарифу на водопостачання | I5: 2018 | J5: 2019 | K5: 2020 | L5: 2021 | M5: 2022 | N5: TOTAL ВСЬОГО | O5: Dep (y) Аморт (р)
A7: 5-year asset accounting life актив із 5-річним строком амортизації
A8: Technical measuring equipment Обладнання для проведення технічних вимірювань | B8: 5050700 | C8: 2013700 | D8: 1461600 | E8: 1575400 | F8: 0 | G8: 0 | H8: 1 | I8: =C8*$H$8 -> 2013700 | J8: 1461600 | K8: 1575400 | L8: 0 | M8: 0 | N8: =SUM(I8:M8) -> 5050700 | O8: 5
A9: Install bulk meters for unmanaged MAB Встановлення будинкових лічильників для БКБ без ОСББ або іншої організації-управителя | B9: 22428000 | C9: 5250000 | D9: 17178000 | H9: 1 | I9: 5250000 | J9: 17178000 | K9: 0 | L9: 0 | M9: 0 | N9: =SUM(I9:M9) -> 22428000 | O9: 5
A10: Ultrasonic flow meters to check MAB bulk meters Ультразвукові витратоміри для перевірки будинкових лічильнків БКБ | B10: 250000 | C10: 50000 | D10: 50000 | E10: 50000 | F10: 50000 | G10: 50000 | H10: 1 | I10: 50000 | J10: 50000 | K10: 50000 | L10: 50000 | M10: 50000 | N10: =SUM(I10:M10) -> 250000 | O10: 5
A11: IT hardware & software ІТ-обладнання та програмне забезпечення | C11: 574048.412 | D11: 4120466.098 | E11: 397667.186 | F11: 498547.21 | G11: 523014.38 | H11: 1 | I11: 574048.412 | J11: =D11*$H$8 -> 4120466.098 | K11: =E11*$H$8 -> 397667.186 | L11: =F11*$H$8 -> 498547.21 | M11: =G11*$H$8 -> 523014.38 | N11: =SUM(I11:M11) -> 6113743.286 | O11: 5
A12: Sum Сума | I12: =SUM(I8:I11) -> 7887748.412 | J12: =SUM(J8:J11) -> 22810066.1 | K12: 2023067.186 | L12: 548547.21 | M12: 573014.38 | N12: 33842443.29
A13: Dep Амортизація | I13: =I12/O11/2 -> 788774.8412 | J13: =I12/O11 -> 1577549.682 | K13: =I12/O11 -> 1577549.682 | L13: =I12/O11 -> 1577549.682 | M13: =I12/O11 -> 1577549.682
J14: =J12/O11/2 -> 2281006.61 | K14: =J12/O11 -> 4562013.22 | L14: =J12/O11 -> 4562013.22 | M14: =J12/O11 -> 4562013.22
K15: =K12/O11/2 -> 202306.7186 | L15: =K12/O11 -> 404613.4372 | M15: =K12/O11 -> 404613.4372
L16: =L12/O11/2 -> 54854.721 | M16: =L12/O11 -> 109709.442
M17: =M12/O11/2 -> 57301.438
I18: =SUM(I13:I17) -> 788774.8412 | J18: =SUM(J13:J17) -> 3858556.292 | K18: =SUM(K13:K17) -> 6341869.621 | L18: =SUM(L13:L17) -> 6599031.06 | M18: 6711187.219
A20: 10-year asset accounting life актив із 10 -річним строком амортизації
A21: Procure frequency converter for Mahala 3rd lift PS Придбання частотного перетворювача для в.н./ст. Магала, 3й підйом | B21: 165000 | C21: 165000 | H21: 1 | I21: =C21*$H$8 -> 165000 | J21: =D21*$H$8 -> 0 | K21: 0 | L21: 0 | M21: 0 | N21: =SUM(I21:M21) -> 165000 | O21: 10
A22: Rehabilitate electric cables in Bila Відновлення електричних кабелів на в.н./ст Біла | B22: 1066000 | C22: 1066000 | H22: 1 | I22: =C22*$H$8 -> 1066000 | J22: 0 | K22: 0 | L22: 0 | M22: 0 | N22: 1066000 | O22: 10
A23: Other measures to improve system reliability Інші заходи для підвищення надійності системи | B23: 9000000 | D23: 3000000 | E23: 3000000 | F23: 3000000 | H23: 1 | I23: =C23*$H$8 -> 0 | J23: =D23*$H$8 -> 3000000 | K23: 3000000 | L23: 3000000 | M23: 0 | N23: 9000000 | O23: 10
A24: Fire hydrants Протипожежні гідранти | B24: 1000000 | C24: 200000 | D24: 200000 | E24: 200000 | F24: 200000 | G24: 200000 | H24: 1 | I24: =C24*$H$8 -> 200000 | J24: 200000 | K24: 200000 | L24: 200000 | M24: 200000 | N24: 1000000 | O24: 10
A25: Excravator JCB 3CX Sitemaster Екскаватор JCB 3CX Sitemaster | B25: 2620000 | D25: 2620000 | H25: 0.7 | I25: =C25*$H25 -> 0 | J25: =D25*$H25 -> 1834000 | K25: 0 | L25: 0 | M25: 0 | N25: 1834000 | O25: 10
A26: Vacuum pump for manhole suction vehicle Вакуумний насос для асенізаторної машини | B26: 40000 | C26: 40000 | H26: 0.7 | I26: =C26*$H26 -> 28000 | J26: =D26*$H26 -> 0 | K26: =E26*$H26 -> 0 | L26: =F26*$H26 -> 0 | M26: =G26*$H26 -> 0 | N26: 28000 | O26: 10
A27: Mobile workshop vehicle Ремонтний автомобіль | B27: 3750000 | C27: 750000 | D27: 750000 | E27: 750000 | F27: 750000 | G27: 750000 | H27: 1 | I27: =C27*$H27 -> 750000 | J27: =D27*$H27 -> 750000 | K27: 750000 | L27: 750000 | M27: 750000 | N27: 3750000 | O27: 10
A28: Crawler excravator Гусеничний екскаватор | B28: 4000000 | D28: 4000000 | H28: 0.7 | I28: =C28*$H28 -> 0 | J28: 2800000 | K28: 0 | L28: 0 | M28: 0 | N28: 2800000 | O28: 10
A29: Truck crane Автокран | B29: 2500000 | D29: 2500000 | H29: 0.7 | I29: =C29*$H29 -> 0 | J29: =D29*$H29 -> 1750000 | K29: 0 | L29: 0 | M29: 0 | N29: 1750000 | O29: 10
A30: Dump truck Самоскид | B30: 2000000 | C30: 2000000 | H30: 0.7 | I30: =C30*$H30 -> 1400000 | J30: =D30*$H30 -> 0 | K30: 0 | L30: 0 | M30: 0 | N30: 1400000 | O30: 10
A31: Mini excravator Міні екскаватор | B31: 3000000 | D31: 1500000 | E31: 1500000 | H31: 0.7 | I31: 0 | J31: 1050000 | K31: 1050000 | L31: 0 | M31: 0 | N31: 2100000 | O31: 10
A32: Other technical equipment Інше технічше обладнання | B32: 19500000 | E32: 5500000 | F32: 7000000 | G32: 7000000 | H32: 0.7 | I32: 0 | J32: 0 | K32: 3850000 | L32: 4900000 | M32: 4900000 | N32: 13650000 | O32: 10
A33: Sum Сума | I33: =SUM(I21:I32) -> 3609000 | J33: =SUM(J21:J32) -> 11384000 | K33: 8850000 | L33: 8850000 | M33: 5850000
I34: =I33/O32/2 -> 180450 | J34: =I33/O32 -> 360900 | K34: =I33/O32 -> 360900 | L34: =I33/O32 -> 360900 | M34: =I33/O32 -> 360900
J35: =J33/O32/2 -> 569200 | K35: =J33/O32 -> 1138400 | L35: =J33/O32 -> 1138400 | M35: =J33/O32 -> 1138400
K36: =K33/O32/2 -> 442500 | L36: =K33/O32 -> 885000 | M36: =K33/O32 -> 885000
L37: =L33/O32/2 -> 442500 | M37: =L33/O32 -> 885000
M38: =M33/O32/2 -> 292500
I39: =SUM(I34:I38) -> 180450 | J39: =SUM(J34:J38) -> 930100 | K39: =SUM(K34:K38) -> 1941800 | L39: =SUM(L34:L38) -> 2826800 | M39: =SUM(M34:M38) -> 3561800
A41: 15-year asset accounting life актив із 15 -річним строком амортизації
A42: Install small pump in Shubranets for day-time pumping Встановлення невеликого насосу на Шубранці для денного викачування | B42: 624704 | D42: 624704 | H42: 1 | I42: =C42*$H$8 -> 0 | J42: 624704 | K42: 0 | L42: 0 | M42: 0 | N42: =SUM(I42:M42) -> 624704 | O42: 15
A43: Install pump with drive (KM 100-65) for Mahala Встановлення насосу із приводом (КМ 100-65) на Магалі | B43: 12000 | C43: 12000 | H43: 1 | I43: 12000 | J43: 0 | K43: 0 | L43: 0 | M43: 0 | N43: =SUM(I43:M43) -> 12000 | O43: 15
A44: Replace 2 existing pumps in Mahala Заміна 2 існуючих насосів на Магалі | B44: 90000 | C44: 90000 | H44: 1 | I44: 90000 | J44: 0 | K44: 0 | L44: 0 | M44: 0 | N44: =SUM(I44:M44) -> 90000 | O44: 15
A45: Procurement of pumping equipment Придбання насосного обладнання | B45: 850000 | C45: 850000 | H45: 1 | I45: 850000 | J45: 0 | K45: 0 | L45: 0 | M45: 0 | N45: =SUM(I45:M45) -> 850000 | O45: 15
A46: Sum Сума | I46: =SUM(I42:I45) -> 952000 | J46: =SUM(J42:J45) -> 624704 | K46: 0 | L46: 0 | M46: 0
I47: =I46/O45/2 -> 31733.33333 | J47: =I46/O45 -> 63466.66667 | K47: =I46/O45 -> 63466.66667 | L47: =I46/O45 -> 63466.66667 | M47: =I46/O45 -> 63466.66667
J48: =J46/O45/2 -> 20823.46667 | K48: =J46/O45 -> 41646.93333 | L48: =J46/O45 -> 41646.93333 | M48: =J46/O45 -> 41646.93333
K49: =K46/O45/2 -> 0 | L49: =K46/O45 -> 0 | M49: =K46/O45 -> 0
L50: =L46/O45/2 -> 0 | M50: =L46/O45 -> 0
M51: =M46/O45/2 -> 0
I52: =SUM(I47:I51) -> 31733.33333 | J52: =SUM(J47:J51) -> 84290.13333 | K52: =SUM(K47:K51) -> 105113.6 | L52: =SUM(L47:L51) -> 105113.6 | M52: =SUM(M47:M51) -> 105113.6
A54: 20-year asset accounting life актив із 20 -річним строком амортизації
A55: Replace valves (D100 to D500) Заміна засувок (D100 to D500) | B55: 4375000 | C55: 875000 | D55: 875000 | E55: 875000 | F55: 875000 | G55: 875000 | H55: 1 | I55: =C55*$H$8 -> 875000 | J55: 875000 | K55: 875000 | L55: 875000 | M55: 875000 | N55: =SUM(I55:M55) -> 4375000 | O55: 20
A56: Repair valves in transmission main near Prut river Ремонт засувок на магістральному водогоні поблизу р. Прут | B56: 1200000 | C56: 1200000 | H56: 1 | I56: 1200000 | J56: 0 | K56: 0 | L56: 0 | M56: 0 | N56: =SUM(I56:M56) -> 1200000 | O56: 20
A57: Install air release valves Встановлення повітряпродувних клапанів | B57: 1992000 | C57: 1992000 | H57: 1 | I57: 1992000 | J57: 0 | K57: 0 | L57: 0 | M57: 0 | N57: =SUM(I57:M57) -> 1992000 | O57: 20
A58: Anti-theft manhole covers Антивандальні кришки люків | B58: 1000000 | C58: 200000 | D58: 200000 | E58: 200000 | F58: 200000 | G58: 200000 | H58: 1 | I58: 200000 | J58: 200000 | K58: 200000 | L58: 200000 | M58: 200000 | N58: =SUM(I58:M58) -> 1000000 | O58: 20
A59: Water hammer prevention equipment Обладнання для попередження гідравлічного удару | B59: 1800000 | C59: 1800000 | H59: 1 | I59: 1800000 | J59: 0 | K59: 0 | L59: 0 | M59: 0 | N59: =SUM(I59:M59) -> 1800000 | O59: 20
A60: Sum Сума | I60: =SUM(I55:I59) -> 6067000 | J60: =SUM(J55:J59) -> 1075000 | K60: 1075000 | L60: 1075000 | M60: 1075000 | N60: 10367000
I61: =I60/O59/2 -> 151675 | J61: =I60/O59 -> 303350 | K61: =I60/O59 -> 303350 | L61: =I60/O59 -> 303350 | M61: =I60/O59 -> 303350
J62: =J60/O59/2 -> 26875 | K62: =J60/O59 -> 53750 | L62: =J60/O59 -> 53750 | M62: =J60/O59 -> 53750
K63: =K60/O59/2 -> 26875 | L63: =K60/O59 -> 53750 | M63: =K60/O59 -> 53750
L64: =L60/O59/2 -> 26875 | M64: =L60/O59 -> 53750
M65: =M60/O59/2 -> 26875
I66: =SUM(I61:I65) -> 151675 | J66: =SUM(J61:J65) -> 330225 | K66: =SUM(K61:K65) -> 383975 | L66: =SUM(L61:L65) -> 437725 | M66: =SUM(M61:M65) -> 491475
A68: 60-year asset accounting life актив із 60 -річним строком амортизації
A69: Rehabilitate water distribution pipes in addition to KfW projects (City Council budget) Реконструкція водорозподільних труб окрім передбачених проектом KfW (бюджет міста) | B69: 12000000 | C69: 3000000 | D69: 3000000 | E69: 2000000 | F69: 2000000 | G69: 2000000 | H69: 1 | I69: =C69*$H$8 -> 3000000 | J69: 3000000 | K69: 2000000 | L69: 2000000 | M69: 2000000 | N69: =SUM(I69:M69) -> 12000000 | O69: 60
A70: Rehabilitate water distribution pipes in addition to KfW projects (CVK budget) Реконструкція водорозподільних труб окрім передбачених проектом KfW (бюджет ЧВК) | B70: 3000000 | E70: 1000000 | F70: 1000000 | G70: 1000000 | H70: 1 | I70: 0 | J70: 0 | K70: 1000000 | L70: 1000000 | M70: 1000000 | N70: =SUM(I70:M70) -> 3000000 | O70: 60
A71: Sum Сума | I71: =SUM(I69:I70) -> 3000000 | J71: =SUM(J69:J70) -> 3000000 | K71: 3000000 | L71: 3000000 | M71: 3000000
I72: =I71/O70/2 -> 25000 | J72: =I71/O70 -> 50000 | K72: =I71/O70 -> 50000 | L72: =I71/O70 -> 50000 | M72: =I71/O70 -> 50000
J73: =J71/O70/2 -> 25000 | K73: =J71/O70 -> 50000 | L73: =J71/O70 -> 50000 | M73: =J71/O70 -> 50000
K74: =K71/O70/2 -> 25000 | L74: =K71/O70 -> 50000 | M74: =K71/O70 -> 50000
L75: =L71/O70/2 -> 25000 | M75: =L71/O70 -> 50000
M76: =M71/O70/2 -> 25000
I77: =SUM(I72:I76) -> 25000 | J77: =SUM(J72:J76) -> 75000 | K77: =SUM(K72:K76) -> 125000 | L77: =SUM(L72:L76) -> 175000 | M77: =SUM(M72:M76) -> 225000
A80: Загальна амортизація | I80: =I77+I66+I52+I39+I18 -> 1177633.175 | J80: =J77+J66+J52+J39+J18 -> 5278171.426 | K80: 8897758.221 | L80: 10143669.66 | M80: 11094575.82
A82: Нові інвестиції | I82: =I12+I33+I46+I60+I71 -> 21515748.41 | J82: =J12+J33+J46+J60+J71 -> 38893770.1 | K82: 14948067.19 | L82: 13473547.21 | M82: 10498014.38
A83: Амортизація | I83: =I18+I39+I52+I66+I77 -> 1177633.175 | J83: =J18+J39+J52+J66+J77 -> 5278171.426 | K83: 8897758.221 | L83: 10143669.66 | M83: 11094575.82
A89: Below is a repeat of the above, yet adjusted for inflation Нижче наведено повторення вищезазначеного, але з урахуванням інфляції
A90: Depreciation of Other CVK Investments 2018-2022 (Inflation adjusted) Амортизація інших інвестицій ЧВК 2018-2022 (з урахуванням інфляції)
A91: Note 1: Some investment items serve both CVK businesses, water and wastewater. In that case only 70% of costs are accounted for in the water tariff and 30% have to be included in the wastewater tariff) Примітка 1: Деякі інвестиційні статті задіяні для обох послуг, які надає ЧВК, а саме централізоване водопостачання та водовідведення. В таких випадках, лише 70% витрат входять до тарифу на централізоване водопостачання, а 30% має включатися в тариф на послуги водовідведення.
A92: Note 2: For simplicity reasons, depreciation of each item is assumed to start in the middle of the year. Примітка 2: З міркувань простоти припускається, що амортизація кожного активу розпочнеться в середині року.
C95: Урахування інфляції
A96: Other capital investment measures Інші заходи з капітального інвестування | B96: Total (UAH) Всього (грн) | C96: 2018 | D96: 2019 | E96: 2020 | F96: 2021 | G96: 2022 | H96: Factor for water tariff Фактор для тарифу на водопостачання | I96: 2018 | J96: 2019 | K96: 2020 | L96: 2021 | M96: 2022 | N96: TOTAL ВСЬОГО | O96: Dep (y) Аморт (р)
A99: 5-year asset accounting life актив із 5-річним строком амортизації
A100: Technical measuring equipment Обладнання для проведення технічних вимірювань | C100: =CVKInvest!C8*BasicData!C$33 -> 2165734.35 | D100: =CVKInvest!D8*BasicData!D$33 -> 1658408.094 | E100: =CVKInvest!E8*BasicData!E$33 -> 1876908.126 | F100: =CVKInvest!F8*BasicData!F$33 -> 0 | G100: =CVKInvest!G8*BasicData!G$33 -> 0 | H100: 1 | I100: =C100*$H$100 -> 2165734.35 | J100: 1658408.094 | K100: 1876908.126 | L100: 0 | M100: 0 | N100: =SUM(I100:M100) -> 5701050.57 | O100: 5
A101: Install bulk meбудинкових лічильників для БКБ без ОСББ або іншої организації-управителя | C101: =CVKInvest!C9*BasicData!C$33 -> 5646375 | D101: =CVKInvest!D9*BasicData!D$33 -> 19491060.64 | E101: =CVKInvest!E9*BasicData!E$33 -> 0 | F101: =CVKInvest!F9*BasicData!F$33 -> 0 | G101: =CVKInvest!G9*BasicData!G$33 -> 0 | H101: 1 | I101: 5646375 | J101: 19491060.64 | K101: 0 | L101: 0 | M101: 0 | N101: =SUM(I101:M101) -> 25137435.64 | O101: 5
A102: Ultrasonic flow meters to check MAB bulk meters Ультразвукові витратоміри для перевірки будинкових лічильнків БКБ | C102: =CVKInvest!C10*BasicData!C$33 -> 53775 | D102: =CVKInvest!D10*BasicData!D$33 -> 56732.625 | E102: =CVKInvest!E10*BasicData!E$33 -> 59569.25625 | F102: =CVKInvest!F10*BasicData!F$33 -> 62547.71906 | G102: =CVKInvest!G10*BasicData!G$33 -> 65675.10502 | H102: 1 | I102: 53775 | J102: 56732.625 | K102: 59569.25625 | L102: 62547.71906 | M102: 65675.10502 | N102: =SUM(I102:M102) -> 298299.7053 | O102: 5
A103: IT hardware & software ІТ-обладнання та програмне забезпечення | C103: =CVKInvest!C11*BasicData!C$33 -> 617389.0671 | D103: =CVKInvest!D11*BasicData!D$33 -> 4675297.159 | E103: =CVKInvest!E11*BasicData!E$33 -> 473774.7701 | F103: =CVKInvest!F11*BasicData!F$33 -> 623659.8166 | G103: =CVKInvest!G11*BasicData!G$33 -> 686980.4866 | I103: 617389.0671 | J103: 4675297.159 | K103: 473774.7701 | L103: 623659.8166 | M103: 686980.4866 | N103: =SUM(I103:M103) -> 7077101.3 | O103: 5
A104: Sum Сума | I104: =SUM(I100:I103) -> 8483273.417 | J104: 25881498.52 | K104: 2410252.152 | L104: 686207.5357 | M104: 752655.5916 | N104: 38213887.22
A105: Dep Амортизація | I105: =I104/O103/2 -> 848327.3417 | J105: =I104/O103 -> 1696654.683 | K105: =I104/O103 -> 1696654.683 | L105: =I104/O103 -> 1696654.683 | M105: =I104/O103 -> 1696654.683
J106: =J104/O103/2 -> 2588149.852 | K106: =J104/O103 -> 5176299.705 | L106: =J104/O103 -> 5176299.705 | M106: =J104/O103 -> 5176299.705
K107: =K104/O103/2 -> 241025.2152 | L107: =K104/O103 -> 482050.4305 | M107: =K104/O103 -> 482050.4305
L108: =L104/O103/2 -> 68620.75357 | M108: =L104/O103 -> 137241.5071
M109: =M104/O103/2 -> 75265.55916
I110: =SUM(I105:I109) -> 848327.3417 | J110: =SUM(J105:J109) -> 4284804.536 | K110: =SUM(K105:K109) -> 7113979.603 | L110: =SUM(L105:L109) -> 7423625.572 | M110: =SUM(M105:M109) -> 7567511.885
A112: 10-year asset accounting life актив із 10 -річним строком амортизації
A113: Procure frequency converter for Mahala 3rd lift PS Придбання частотного перетворювача для в.н./ст. Магала, 3й підйом | C113: =CVKInvest!C21*BasicData!C$33 -> 177457.5 | D113: =CVKInvest!D21*BasicData!D$33 -> 0 | E113: =CVKInvest!E21*BasicData!E$33 -> 0 | F113: =CVKInvest!F21*BasicData!F$33 -> 0 | G113: =CVKInvest!G21*BasicData!G$33 -> 0 | H113: 1 | I113: =C113*$H$100 -> 177457.5 | J113: 0 | K113: 0 | L113: 0 | M113: 0 | N113: =SUM(I113:M113) -> 177457.5 | O113: 10
A114: Rehabilitate electric cables in Bila Відновлення електричних кабелів на в.н./ст Біла | C114: =CVKInvest!C22*BasicData!C$33 -> 1146483 | D114: =CVKInvest!D22*BasicData!D$33 -> 0 | E114: =CVKInvest!E22*BasicData!E$33 -> 0 | F114: =CVKInvest!F22*BasicData!F$33 -> 0 | G114: =CVKInvest!G22*BasicData!G$33 -> 0 | H114: 1 | I114: 1146483 | J114: 0 | K114: 0 | L114: 0 | M114: 0 | N114: 1146483 | O114: 10
A115: Other measures to improve system reliability Інші заходи для підвищення надійності системи | C115: =CVKInvest!C23*BasicData!C$33 -> 0 | D115: =CVKInvest!D23*BasicData!D$33 -> 3403957.5 | E115: =CVKInvest!E23*BasicData!E$33 -> 3574155.375 | F115: =CVKInvest!F23*BasicData!F$33 -> 3752863.144 | G115: =CVKInvest!G23*BasicData!G$33 -> 0 | H115: 1 | I115: 0 | J115: 3403957.5 | K115: 3574155.375 | L115: 3752863.144 | M115: 0 | N115: 10730976.02 | O115: 10
A116: Fire hydrants Протипожежні гідранти | C116: =CVKInvest!C24*BasicData!C$33 -> 215100 | D116: =CVKInvest!D24*BasicData!D$33 -> 226930.5 | E116: =CVKInvest!E24*BasicData!E$33 -> 238277.025 | F116: =CVKInvest!F24*BasicData!F$33 -> 250190.8762 | G116: =CVKInvest!G24*BasicData!G$33 -> 262700.4201 | H116: 1 | I116: 215100 | J116: 226930.5 | K116: 238277.025 | L116: 250190.8762 | M116: 262700.4201 | N116: 1193198.821 | O116: 10
A117: Excravator JCB 3CX Sitemaster Екскаватор JCB 3CX Sitemaster | C117: =CVKInvest!C25*BasicData!C$33 -> 0 | D117: =CVKInvest!D25*BasicData!D$33 -> 2972789.55 | E117: =CVKInvest!E25*BasicData!E$33 -> 0 | F117: =CVKInvest!F25*BasicData!F$33 -> 0 | G117: =CVKInvest!G25*BasicData!G$33 -> 0 | H117: 0.7 | I117: =C117*$H117 -> 0 | J117: 2080952.685 | K117: 0 | L117: 0 | M117: 0 | N117: 2080952.685 | O117: 10
A118: Vacuum pump for manhole suction vehicle Вакуумний насос для асенізаторної машини | C118: =CVKInvest!C26*BasicData!C$33 -> 43020 | D118: =CVKInvest!D26*BasicData!D$33 -> 0 | E118: =CVKInvest!E26*BasicData!E$33 -> 0 | F118: =CVKInvest!F26*BasicData!F$33 -> 0 | G118: =CVKInvest!G26*BasicData!G$33 -> 0 | H118: 0.7 | I118: 30114 | J118: 0 | K118: 0 | L118: 0 | M118: 0 | N118: 30114 | O118: 10
A119: Mobile workshop vehicle Ремонтний автомобіль | C119: =CVKInvest!C27*BasicData!C$33 -> 806625 | D119: =CVKInvest!D27*BasicData!D$33 -> 850989.375 | E119: =CVKInvest!E27*BasicData!E$33 -> 893538.8437 | F119: =CVKInvest!F27*BasicData!F$33 -> 938215.7859 | G119: =CVKInvest!G27*BasicData!G$33 -> 985126.5752 | H119: 1 | I119: 806625 | J119: 850989.375 | K119: 893538.8437 | L119: 938215.7859 | M119: 985126.5752 | N119: 4474495.58 | O119: 10
A120: Crawler excravator Гусеничний екскаватор | C120: =CVKInvest!C28*BasicData!C$33 -> 0 | D120: =CVKInvest!D28*BasicData!D$33 -> 4538610 | E120: =CVKInvest!E28*BasicData!E$33 -> 0 | F120: =CVKInvest!F28*BasicData!F$33 -> 0 | G120: =CVKInvest!G28*BasicData!G$33 -> 0 | H120: 0.7 | I120: 0 | J120: 3177027 | K120: 0 | L120: 0 | M120: 0 | N120: 3177027 | O120: 10
A121: Truck crane Автокран | C121: =CVKInvest!C29*BasicData!C$33 -> 0 | D121: =CVKInvest!D29*BasicData!D$33 -> 2836631.25 | E121: =CVKInvest!E29*BasicData!E$33 -> 0 | F121: =CVKInvest!F29*BasicData!F$33 -> 0 | G121: =CVKInvest!G29*BasicData!G$33 -> 0 | H121: 0.7 | I121: 0 | J121: 1985641.875 | K121: 0 | L121: 0 | M121: 0 | N121: 1985641.875 | O121: 10
A122: Dump truck Самоскид | C122: =CVKInvest!C30*BasicData!C$33 -> 2151000 | D122: =CVKInvest!D30*BasicData!D$33 -> 0 | E122: =CVKInvest!E30*BasicData!E$33 -> 0 | F122: =CVKInvest!F30*BasicData!F$33 -> 0 | G122: =CVKInvest!G30*BasicData!G$33 -> 0 | H122: 0.7 | I122: 1505700 | J122: 0 | K122: 0 | L122: 0 | M122: 0 | N122: 1505700 | O122: 10
A123: Mini excravator Міні екскаватор | C123: =CVKInvest!C31*BasicData!C$33 -> 0 | D123: =CVKInvest!D31*BasicData!D$33 -> 1701978.75 | E123: =CVKInvest!E31*BasicData!E$33 -> 1787077.687 | F123: =CVKInvest!F31*BasicData!F$33 -> 0 | G123: =CVKInvest!G31*BasicData!G$33 -> 0 | H123: 0.7 | I123: 0 | J123: 1191385.125 | K123: 1250954.381 | L123: 0 | M123: 0 | N123: 2442339.506 | O123: 10
A124: Other technical equipment Інше технічше обладнання | C124: =CVKInvest!C32*BasicData!C$33 -> 0 | D124: =CVKInvest!D32*BasicData!D$33 -> 0 | E124: =CVKInvest!E32*BasicData!E$33 -> 6552618.187 | F124: =CVKInvest!F32*BasicData!F$33 -> 8756680.669 | G124: =CVKInvest!G32*BasicData!G$33 -> 9194514.702 | H124: 0.7 | I124: 0 | J124: 0 | K124: 4586832.731 | L124: 6129676.468 | M124: 6436160.292 | N124: 17152669.49 | O124: 10
A125: Sum Сума | I125: =SUM(I113:I124) -> 3881479.5 | J125: =SUM(J113:J124) -> 12916884.06 | K125: =SUM(K113:K124) -> 10543758.36 | L125: =SUM(L113:L124) -> 11070946.27 | M125: =SUM(M113:M124) -> 7683987.287
I126: =I125/O124/2 -> 194073.975 | J126: =I125/O124 -> 388147.95 | K126: =I125/O124 -> 388147.95 | L126: =I125/O124 -> 388147.95 | M126: =I125/O124 -> 388147.95
J127: =J125/O124/2 -> 645844.203 | K127: =J125/O124 -> 1291688.406 | L127: =J125/O124 -> 1291688.406 | M127: =J125/O124 -> 1291688.406
K128: =K125/O124/2 -> 527187.9178 | L128: =K125/O124 -> 1054375.836 | M128: =K125/O124 -> 1054375.836
L129: =L125/O124/2 -> 553547.3137 | M129: =L125/O124 -> 1107094.627
M130: =M125/O124/2 -> 384199.3643
I131: =SUM(I126:I130) -> 194073.975 | J131: =SUM(J126:J130) -> 1033992.153 | K131: =SUM(K126:K130) -> 2207024.274 | L131: =SUM(L126:L130) -> 3287759.505 | M131: =SUM(M126:M130) -> 4225506.183
A133: 15-year asset accounting life актив із 15 -річним строком амортизації
A134: Install small pump in Shubranets for day-time pumping Встановлення невеликого насосу на Шубранці для денного викачування | B134: 624704 | C134: =CVKInvest!C42*BasicData!C$33 -> 0 | D134: =CVKInvest!D42*BasicData!D$33 -> 708821.9554 | E134: =CVKInvest!E42*BasicData!E$33 -> 0 | F134: =CVKInvest!F42*BasicData!F$33 -> 0 | G134: =CVKInvest!G42*BasicData!G$33 -> 0 | H134: 1 | I134: =C134*$H$100 -> 0 | J134: 708821.9554 | K134: 0 | L134: 0 | M134: 0 | N134: =SUM(I134:M134) -> 708821.9554 | O134: 15
A135: Install pump with drive (KM 100-65) for Mahala Встановлення насосу із приводом (КМ 100-65) на Магалі | B135: 12000 | C135: =CVKInvest!C43*BasicData!C$33 -> 12906 | D135: =CVKInvest!D43*BasicData!D$33 -> 0 | E135: =CVKInvest!E43*BasicData!E$33 -> 0 | F135: =CVKInvest!F43*BasicData!F$33 -> 0 | G135: =CVKInvest!G43*BasicData!G$33 -> 0 | H135: 1 | I135: 12906 | J135: 0 | K135: 0 | L135: 0 | M135: 0 | N135: =SUM(I135:M135) -> 12906 | O135: 15
A136: Replace 2 existing pumps in Mahala Заміна 2 існуючих насосів на Магалі | B136: 90000 | C136: =CVKInvest!C44*BasicData!C$33 -> 96795 | D136: =CVKInvest!D44*BasicData!D$33 -> 0 | E136: =CVKInvest!E44*BasicData!E$33 -> 0 | F136: =CVKInvest!F44*BasicData!F$33 -> 0 | G136: =CVKInvest!G44*BasicData!G$33 -> 0 | H136: 1 | I136: 96795 | J136: 0 | K136: 0 | L136: 0 | M136: 0 | N136: =SUM(I136:M136) -> 96795 | O136: 15
A137: Procurement of pumping equipment Придбання насосного обладнання | B137: 850000 | C137: =CVKInvest!C45*BasicData!C$33 -> 914175 | D137: =CVKInvest!D45*BasicData!D$33 -> 0 | E137: =CVKInvest!E45*BasicData!E$33 -> 0 | F137: =CVKInvest!F45*BasicData!F$33 -> 0 | G137: =CVKInvest!G45*BasicData!G$33 -> 0 | H137: 1 | I137: 914175 | J137: 0 | K137: 0 | L137: 0 | M137: 0 | N137: =SUM(I137:M137) -> 914175 | O137: 15
A138: Sum Сума | I138: =SUM(I134:I137) -> 1023876 | J138: =SUM(J134:J137) -> 708821.9554 | K138: =SUM(K134:K137) -> 0 | L138: =SUM(L134:L137) -> 0 | M138: =SUM(M134:M137) -> 0
I139: =I138/O137/2 -> 34129.2 | J139: =I138/O137 -> 68258.4 | K139: =I138/O137 -> 68258.4 | L139: =I138/O137 -> 68258.4 | M139: =I138/O137 -> 68258.4
J140: =J138/O137/2 -> 23627.39851 | K140: =J138/O137 -> 47254.79702 | L140: =J138/O137 -> 47254.79702 | M140: =J138/O137 -> 47254.79702
K141: =K138/O137/2 -> 0 | L141: =K138/O137 -> 0 | M141: =K138/O137 -> 0
L142: =L138/O137/2 -> 0 | M142: =L138/O137 -> 0
M143: =M138/O137/2 -> 0
I144: =SUM(I139:I143) -> 34129.2 | J144: =SUM(J139:J143) -> 91885.79851 | K144: =SUM(K139:K143) -> 115513.197 | L144: =SUM(L139:L143) -> 115513.197 | M144: =SUM(M139:M143) -> 115513.197
A146: 20-year asset accounting life актив із 20 -річним строком амортизації
A147: Replace valves (D100 to D500) Заміна засувок (D100 to D500) | B147: 4375000 | C147: =CVKInvest!C55*BasicData!C$33 -> 941062.5 | D147: =CVKInvest!D55*BasicData!D$33 -> 992820.9375 | E147: =CVKInvest!E55*BasicData!E$33 -> 1042461.984 | F147: =CVKInvest!F55*BasicData!F$33 -> 1094585.084 | G147: =CVKInvest!G55*BasicData!G$33 -> 1149314.338 | H147: 1 | I147: =C147*$H$100 -> 941062.5 | J147: 992820.9375 | K147: 1042461.984 | L147: 1094585.084 | M147: 1149314.338 | N147: =SUM(I147:M147) -> 5220244.843 | O147: 20
A148: Repair valves in transmission main near Prut river Ремонт засувок на магістральному водогоні поблизу р. Прут | B148: 1200000 | C148: =CVKInvest!C56*BasicData!C$33 -> 1290600 | D148: =CVKInvest!D56*BasicData!D$33 -> 0 | E148: =CVKInvest!E56*BasicData!E$33 -> 0 | F148: =CVKInvest!F56*BasicData!F$33 -> 0 | G148: =CVKInvest!G56*BasicData!G$33 -> 0 | H148: 1 | I148: 1290600 | J148: 0 | K148: 0 | L148: 0 | M148: 0 | N148: =SUM(I148:M148) -> 1290600 | O148: 20
A149: Install air release valves Встановлення повітряпродувних клапанів | B149: 1992000 | C149: =CVKInvest!C57*BasicData!C$33 -> 2142396 | D149: =CVKInvest!D57*BasicData!D$33 -> 0 | E149: =CVKInvest!E57*BasicData!E$33 -> 0 | F149: =CVKInvest!F57*BasicData!F$33 -> 0 | G149: =CVKInvest!G57*BasicData!G$33 -> 0 | H149: 1 | I149: 2142396 | J149: 0 | K149: 0 | L149: 0 | M149: 0 | N149: =SUM(I149:M149) -> 2142396 | O149: 20
A150: Anti-theft manhole covers Антивандальні кришки люків | B150: 1000000 | C150: =CVKInvest!C58*BasicData!C$33 -> 215100 | D150: =CVKInvest!D58*BasicData!D$33 -> 226930.5 | E150: =CVKInvest!E58*BasicData!E$33 -> 238277.025 | F150: =CVKInvest!F58*BasicData!F$33 -> 250190.8762 | G150: =CVKInvest!G58*BasicData!G$33 -> 262700.4201 | H150: 1 | I150: 215100 | J150: 226930.5 | K150: 238277.025 | L150: 250190.8762 | M150: 262700.4201 | N150: =SUM(I150:M150) -> 1193198.821 | O150: 20
A151: Water hammer prevention equipment Обладнання для попередження гідравлічного удару | B151: 1800000 | C151: =CVKInvest!C59*BasicData!C$33 -> 1935900 | D151: =CVKInvest!D59*BasicData!D$33 -> 0 | E151: =CVKInvest!E59*BasicData!E$33 -> 0 | F151: =CVKInvest!F59*BasicData!F$33 -> 0 | G151: =CVKInvest!G59*BasicData!G$33 -> 0 | H151: 1 | I151: 1935900 | J151: 0 | K151: 0 | L151: 0 | M151: 0 | N151: =SUM(I151:M151) -> 1935900 | O151: 20
A152: Sum Сума | I152: =SUM(I147:I151) -> 6525058.5 | J152: 1219751.437 | K152: 1280739.009 | L152: 1344775.96 | M152: 1412014.758 | N152: 11782339.66
I153: =I152/O151/2 -> 163126.4625 | J153: =I152/O151 -> 326252.925 | K153: =I152/O151 -> 326252.925 | L153: =I152/O151 -> 326252.925 | M153: =I152/O151 -> 326252.925
J154: =J152/O151/2 -> 30493.78594 | K154: =J152/O151 -> 60987.57187 | L154: =J152/O151 -> 60987.57187 | M154: =J152/O151 -> 60987.57187
K155: =K152/O151/2 -> 32018.47523 | L155: =K152/O151 -> 64036.95047 | M155: =K152/O151 -> 64036.95047
L156: =L152/O151/2 -> 33619.399 | M156: =L152/O151 -> 67238.79799
M157: =M152/O151/2 -> 35300.36895
I158: =SUM(I153:I157) -> 163126.4625 | J158: =SUM(J153:J157) -> 356746.7109 | K158: =SUM(K153:K157) -> 419258.9721 | L158: =SUM(L153:L157) -> 484896.8463 | M158: =SUM(M153:M157) -> 553816.6143
A160: 60-year asset accounting life актив із 60 -річним строком амортизації
A161: Rehabilitate water distribution pipes in addition to KfW projects (City Council budget) Реконструкція водорозподільних труб окрім передбачених проектом KfW (бюджет міста) | B161: 12000000 | C161: =CVKInvest!C69*BasicData!C$33 -> 3226500 | D161: =CVKInvest!D69*BasicData!D$33 -> 3403957.5 | E161: =CVKInvest!E69*BasicData!E$33 -> 2382770.25 | F161: =CVKInvest!F69*BasicData!F$33 -> 2501908.762 | G161: =CVKInvest!G69*BasicData!G$33 -> 2627004.201 | H161: 1 | I161: =C161*$H$100 -> 3226500 | J161: 3403957.5 | K161: 2382770.25 | L161: 2501908.762 | M161: 2627004.201 | N161: =SUM(I161:M161) -> 14142140.71 | O161: 60
A162: Rehabilitate water distribution pipes in addition to KfW projects (CVK budget) Реконструкція водорозподільних труб окрім передбачених проектом KfW (бюджет ЧВК) | B162: 3000000 | C162: =CVKInvest!C70*BasicData!C$33 -> 0 | D162: =CVKInvest!D70*BasicData!D$33 -> 0 | E162: =CVKInvest!E70*BasicData!E$33 -> 1191385.125 | F162: =CVKInvest!F70*BasicData!F$33 -> 1250954.381 | G162: =CVKInvest!G70*BasicData!G$33 -> 1313502.1 | H162: 1 | I162: 0 | J162: 0 | K162: 1191385.125 | L162: 1250954.381 | M162: 1313502.1 | N162: =SUM(I162:M162) -> 3755841.607 | O162: 60
A163: Sum Сума | I163: =SUM(I161:I162) -> 3226500 | J163: =SUM(J161:J162) -> 3403957.5 | K163: =SUM(K161:K162) -> 3574155.375 | L163: =SUM(L161:L162) -> 3752863.144 | M163: =SUM(M161:M162) -> 3940506.301
I164: =I163/O162/2 -> 26887.5 | J164: =I163/O162 -> 53775 | K164: =I163/O162 -> 53775 | L164: =I163/O162 -> 53775 | M164: =I163/O162 -> 53775
J165: =J163/O162/2 -> 28366.3125 | K165: =J163/O162 -> 56732.625 | L165: =J163/O162 -> 56732.625 | M165: =J163/O162 -> 56732.625
K166: =K163/O162/2 -> 29784.62812 | L166: =K163/O162 -> 59569.25625 | M166: =K163/O162 -> 59569.25625
L167: =L163/O162/2 -> 31273.85953 | M167: =L163/O162 -> 62547.71906
M168: =M163/O162/2 -> 32837.55251
I169: =SUM(I164:I168) -> 26887.5 | J169: =SUM(J164:J168) -> 82141.3125 | K169: =SUM(K164:K168) -> 140292.2531 | L169: =SUM(L164:L168) -> 201350.7408 | M169: =SUM(M164:M168) -> 265462.1528
A173: TOTAL Investment, inflation adjusted, water business portion only ВСЬОГО інвестицій, з урахуванням інфляції, лише для водного господарства | I173: =I104+I125+I138+I152+I163 -> 23140187.42 | J173: =J104+J125+J138+J152+J163 -> 44130913.48 | K173: =K104+K125+K138+K152+K163 -> 17808904.89 | L173: =L104+L125+L138+L152+L163 -> 16854792.91 | M173: =M104+M125+M138+M152+M163 -> 13789163.94
A174: Total Depreciation, historic cost accounting Загальна амортизація, нарахування зносу за первісною вартістю | I174: =I110+I131+I144+I158+I169 -> 1266544.479 | J174: =J110+J131+J144+J158+J169 -> 5849570.511 | K174: =K110+K131+K144+K158+K169 -> 9996068.299 | L174: =L110+L131+L144+L158+L169 -> 11513145.86 | M174: =M110+M131+M144+M158+M169 -> 12727810.03

Sheet KfWProject
A1: KfW project implementation schedule projection, loan disbursement, interest, commitment charge, capital asset values План-графік реалізації проекту KfW, виплата кредиту, відсотки, комісія за резервування, капітальна вартість активу
A2: Status of construction schedule: September 2017 Стан графіка будівництва: вересень 2017 | M2: Sign - підписання; Build - будівництво; Hand-over - передача; Liability - гарантійний термін
A3: Note: Construction schedule projection needs to be updated regularly to reflect actual project progress Примітка: План-графік будівництва потребує регулярного оновлення для відображення в ньому поточного прогресу по проекту.
C5: KfW Project Implementation Schedule Project План-графік реалізації проекту KfW
C6: Contract 1 Контракт 1 | AL6: Contract 2 Контракт 2 | AU6: Contract 3 Контракт 3 | BE6: 17000000 | BG6: 0.0025 | BH6: 0.04 | BK6: Payment schedule Графік виплат
C7: Object #1 Об'єкт №1 | D7: Disbursement Виплата | F7: INT during construction Відсоток під час будівництва | G7: INT after construction Відсоток після будівництва | H7: CAV КВА | I7: Depreciation Амотризація | J7: Object #2 Об'єкт №2 | K7: Disbursement Виплата | M7: INT during construction Відсоток під час будівництва | N7: INT after construction Відсоток після будівництва | O7: CAV КВА | P7: Depreciation Амотризація | Q7: Object #3 Об'єкт №3 | R7: Disbursement Виплата | T7: INT during construction Відсоток під час будівництва | U7: INT after construction Відсоток після будівництва | V7: CAV КВА | W7: Depreciation Амотризація | X7: Object #4 Об'єкт №4 | Y7: Disbursement Виплата | AA7: INT during construction Відсоток під час будівництва | AB7: INT after construction Відсоток після будівництва | AC7: CAV КВА | AD7: Depreciation Амотризація | AE7: Object #5 Об'єкт №5 | AF7: Disbursement Виплата | AH7: INT during construction Відсоток під час будівництва | AI7: INT after construction Відсоток після будівництва | AJ7: CAV КВА | AK7: Depreciation Амотризація | AL7: Object #6 Об'єкт №6 | AM7: Disbursement Виплата | AO7: INT during construction Відсоток під час будівництва | AP7: INT after construction Відсоток після будівництва | AQ7: Actual work done Фактично зроблених робіт | AR7: value of work done incl. interest during construction Вартість зроблених робіт, включ. відсоток під час будівництва | AS7: CAV КВА | AT7: Depreciation Амотризація | AU7: Object #7 Об'єкт №7 | AV7: Disbursement Виплата | AX7: INT during construction Відсоток під час будівництва | AY7: INT after construction Відсоток після будівництва | AZ7: CAV КВА | BA7: Depreciation Амотризація | BC7: Total payment to contractors Загальна сума виплат підрядникам | BD7: Total sum disbursed from KfW Загальна сума виплат від KfW | BE7: Undisbursed loan Невикористаний кредит | BF7: Disbursed loan cumulated Використана частина кредиту | BG7: Commitment charge Комісія за резервування | BH7: Interest (2% to KfW + 2% to MoF) Відсоток (2% банку KfW + 2% Мінфін | BI7: Commitment charge (year) Комісія за резервування (рік) | BJ7: Interest (year) Відсотки (рік) | BK7: Commitment charge payable to KfW Комісія за резервування, сплачена KfW | BL7: Interest payable to KfW & MoF Комісія за резервування, сплачена KfW та Мінфну | BM7: INT during construction (sum) Відсотки під час будівництва (сума) | BN7: INT after construction (sum) Відсотки після будівництва (сума)
C8: Mytkiv Митків | D8: % | E8: EUR євро | F8: EUR євро | G8: EUR євро | H8: EUR євро | I8: 15.5 | J8: Vikno Вікно | K8: % | L8: EUR євро | M8: EUR євро | N8: EUR євро | O8: EUR євро | P8: 17.2 | Q8: Transmission Водогін | R8: % | S8: EUR євро | T8: EUR євро | U8: EUR євро | V8: EUR євро | W8: 59.6 | X8: Popov Попова | Y8: % | Z8: EUR євро | AA8: EUR євро | AB8: EUR євро | AC8: EUR євро | AD8: 19.4 | AE8: Rohizna Рогізна | AF8: % | AG8: EUR євро | AH8: EUR євро | AI8: EUR євро | AJ8: EUR євро | AK8: 18.2 | AL8: Network/ Zones Мережа/Зони | AM8: % | AN8: EUR євро | AO8: Interest on advance payment Відсотки за передоплатою | AP8: EUR євро | AQ8: % | AR8: EUR євро | AS8: EUR євро | AT8: 45 | AU8: SCADA | AV8: % | AW8: EUR євро | AX8: EUR євро | AY8: EUR євро | AZ8: EUR євро | BA8: 10 | BC8: EUR євро | BD8: EUR євро | BE8: EUR євро | BF8: EUR євро | BG8: EUR євро | BH8: EUR євро | BI8: EUR євро | BJ8: EUR євро | BK8: EUR євро | BL8: EUR євро | BM8: EUR євро | BN8: EUR євро
E9: 1020157 | L9: 1434815 | S9: 4151492 | Z9: 543773 | AG9: 169680 | AN9: 10113578 | AW9: 392682
A10: 2015-01-01 | BE10: 17000000 | BF10: =$BE$6-BE10 -> 0 | BG10: 0 | BH10: =$BH$6*BF10/12 -> 0
A11: 2015-02-01 | BE11: =BE10-BD11 -> 17000000 | BF11: 0 | BG11: 0 | BH11: 0
A12: 2015-03-01 | BE12: 17000000 | BF12: 0 | BG12: 0 | BH12: 0
A13: 2015-04-01 | BE13: 17000000 | BF13: 0 | BG13: 0 | BH13: 0
A14: 2015-05-01 | BE14: 17000000 | BF14: 0 | BG14: =$BG$6*BE14/12 -> 3541.666667 | BH14: 0 | BK14: commitment charge calculation starts 6th May 2015
A15: 2015-06-01 | BE15: 17000000 | BF15: 0 | BG15: 3541.666667 | BH15: 0
A16: 2015-07-01 | BE16: 17000000 | BF16: 0 | BG16: 3541.666667 | BH16: 0
A17: 2015-08-01 | BE17: 17000000 | BF17: 0 | BG17: 3541.666667 | BH17: 0
A18: 2015-09-01 | BE18: 17000000 | BF18: 0 | BG18: 3541.666667 | BH18: 0
A19: 2015-10-01 | BE19: 17000000 | BF19: 0 | BG19: 3541.666667 | BH19: 0
A20: 2015-11-01 | BE20: 17000000 | BF20: 0 | BG20: 3541.666667 | BH20: 0
A21: 2015-12-01 | BE21: 17000000 | BF21: 0 | BG21: 3541.666667 | BH21: 0 | BI21: =SUM(BG10:BG21) -> 28333.33333 | BJ21: =SUM(BH10:BH21) -> 0
A22: 2016-01-01 | BE22: 17000000 | BF22: 0 | BG22: 3541.666667 | BH22: 0
A23: 2016-02-01 | BE23: 17000000 | BF23: 0 | BG23: 3541.666667 | BH23: 0
A24: 2016-03-01 | BE24: 17000000 | BF24: 0 | BG24: 3541.666667 | BH24: 0
A25: 2016-04-01 | BE25: 17000000 | BF25: 0 | BG25: 3541.666667 | BH25: 0
A26: 2016-05-01 | BE26: 17000000 | BF26: 0 | BG26: 3541.666667 | BH26: 0
A27: 2016-06-01 | BE27: 17000000 | BF27: 0 | BG27: 3541.666667 | BH27: 0
A28: 2016-07-01 | BE28: 17000000 | BF28: 0 | BG28: 3541.666667 | BH28: 0
A29: 2016-08-01 | BE29: 17000000 | BF29: 0 | BG29: 3541.666667 | BH29: 0
A30: 2016-09-01 | BE30: 17000000 | BF30: 0 | BG30: 3541.666667 | BH30: 0
A31: 2016-10-01 | BE31: 17000000 | BF31: 0 | BG31: 3541.666667 | BH31: 0
A32: 2016-11-01 | BE32: 17000000 | BF32: 0 | BG32: 3541.666667 | BH32: 0
A33: 2016-12-01 | BE33: 17000000 | BF33: 0 | BG33: 3541.666667 | BH33: 0 | BI33: =SUM(BG22:BG33) -> 42500 | BJ33: =SUM(BH22:BH33) -> 0
A34: 2017-01-01 | BE34: 17000000 | BF34: 0 | BG34: 3541.666667 | BH34: 0
A35: 2017-02-01 | BE35: 17000000 | BF35: 0 | BG35: 3541.666667 | BH35: 0
A36: 2017-03-01 | BE36: 17000000 | BF36: 0 | BG36: 3541.666667 | BH36: 0
A37: 2017-04-01 | BE37: 17000000 | BF37: 0 | BG37: 3541.666667 | BH37: 0
A38: 2017-05-01 | BE38: 17000000 | BF38: 0 | BG38: 3541.666667 | BH38: 0
A39: 2017-06-01 | BE39: 17000000 | BF39: 0 | BG39: 3541.666667 | BH39: 0
A40: 2017-07-01 | BE40: 17000000 | BF40: 0 | BG40: 3541.666667 | BH40: 0
A41: 2017-08-01 | BE41: 17000000 | BF41: 0 | BG41: 3541.666667 | BH41: 0
A42: 2017-09-01 | BE42: 17000000 | BF42: =$BE$6-BE42 -> 0 | BG42: 3541.666667 | BH42: =$BH$6*BF42/12 -> 0
A43: 2017-10-01 | BE43: =BE42-BD43 -> 17000000 | BF43: 0 | BG43: 3541.666667 | BH43: 0
A44: 2017-11-01 | BE44: 17000000 | BF44: 0 | BG44: 3541.666667 | BH44: 0
A45: 2017-12-01 | BE45: 17000000 | BF45: 0 | BG45: 3541.666667 | BH45: 0 | BI45: =SUM(BG34:BG45) -> 42500 | BJ45: =SUM(BH34:BH45) -> 0
A46: 2018-01-01 | BE46: 17000000 | BF46: 0 | BG46: =$BG$6*BE46/12 -> 3541.666667 | BH46: 0
A47: 2018-02-01 | BE47: 17000000 | BF47: 0 | BG47: 3541.666667 | BH47: 0
A48: 2018-03-01 | BE48: 17000000 | BF48: 0 | BG48: 3541.666667 | BH48: 0
A49: 2018-04-01 | BE49: 17000000 | BF49: 0 | BG49: 3541.666667 | BH49: 0
A50: 2018-05-01 | BE50: 17000000 | BF50: 0 | BG50: 3541.666667 | BH50: 0
A51: 2018-06-01 | BE51: 17000000 | BF51: 0 | BG51: 3541.666667 | BH51: 0
A52: 2018-07-01 | BE52: 17000000 | BF52: 0 | BG52: 3541.666667 | BH52: 0
A53: 2018-08-01 | BE53: 17000000 | BF53: 0 | BG53: 3541.666667 | BH53: 0
A54: 2018-09-01 | B54: 1 | C54: Sign | D54: 0.25 | E54: =D54*E$9 -> 255039.25 | F54: =SUM($E$54:E54)*$BH$6/12 -> 850.1308333 | J54: Sign | K54: 0.25 | L54: =K54*L$9 -> 358703.75 | M54: =SUM($L$54:L54)*$BH$6/12 -> 1195.679167 | Q54: Sign | R54: 0.25 | S54: =R54*S$9 -> 1037873 | T54: =SUM($S$54:S54)*$BH$6/12 -> 3459.576667 | X54: Sign | Y54: 0.25 | Z54: =Y54*Z$9 -> 135943.25 | AA54: =SUM($Z$54:Z54)*$BH$6/12 -> 453.1441667 | AE54: Sign | AF54: 0.25 | AG54: =AF54*AG$9 -> 42420 | AH54: =SUM($AG$54:AG54)*$BH$6/12 -> 141.4 | AL54: Sign | AM54: 0.25 | AN54: =AM54*AN$9 -> 2528394.5 | AO54: =$AN$54*$BH$6/12 -> 8427.981667 | AU54: Sign | AV54: 0.25 | AW54: =AV54*AW$9 -> 98170.5 | AX54: =SUM($AW$54:AW54)*$BH$6/12 -> 327.235 | BC54: =E54+L54+S54+Z54+AG54+AN54+AW54 -> 4456544.25 | BD54: =BC54 -> 4456544.25 | BE54: 12543455.75 | BF54: 4456544.25 | BG54: 2613.219948 | BH54: 14855.1475 | BM54: =F54+M54+T54+AA54+AH54+AO54+AX54 -> 14855.1475 | BN54: =G54+N54+U54+AB54+AI54+AP54+AY54 -> 0
A55: 2018-10-01 | B55: 2 | C55: Build | F55: =SUM($E$54:E55)*$BH$6/12 -> 850.1308333 | J55: Build | M55: =SUM($L$54:L55)*$BH$6/12 -> 1195.679167 | T55: =SUM($S$54:S55)*$BH$6/12 -> 3459.576667 | AA55: =SUM($Z$54:Z55)*$BH$6/12 -> 453.1441667 | AH55: =SUM($AG$54:AG55)*$BH$6/12 -> 141.4 | AL55: Build | AO55: 8427.981667 | AX55: =SUM($AW$54:AW55)*$BH$6/12 -> 327.235 | BD55: =BC55 -> 0 | BE55: 12543455.75 | BF55: 4456544.25 | BG55: 2613.219948 | BH55: 14855.1475 | BM55: 14855.1475 | BN55: 0
A56: 2018-11-01 | B56: 3 | C56: Build | F56: =SUM($E$54:E56)*$BH$6/12 -> 850.1308333 | J56: Build | M56: =SUM($L$54:L56)*$BH$6/12 -> 1195.679167 | T56: =SUM($S$54:S56)*$BH$6/12 -> 3459.576667 | AA56: =SUM($Z$54:Z56)*$BH$6/12 -> 453.1441667 | AE56: Build | AH56: =SUM($AG$54:AG56)*$BH$6/12 -> 141.4 | AL56: Build | AO56: 8427.981667 | AX56: =SUM($AW$54:AW56)*$BH$6/12 -> 327.235 | BD56: 0 | BE56: 12543455.75 | BF56: 4456544.25 | BG56: 2613.219948 | BH56: 14855.1475 | BM56: 14855.1475 | BN56: 0
A57: 2018-12-01 | B57: 4 | C57: Build | F57: =SUM($E$54:E57)*$BH$6/12 -> 850.1308333 | J57: Build | M57: =SUM($L$54:L57)*$BH$6/12 -> 1195.679167 | T57: =SUM($S$54:S57)*$BH$6/12 -> 3459.576667 | AA57: =SUM($Z$54:Z57)*$BH$6/12 -> 453.1441667 | AE57: Build | AH57: =SUM($AG$54:AG57)*$BH$6/12 -> 141.4 | AL57: Build | AO57: 8427.981667 | AX57: =SUM($AW$54:AW57)*$BH$6/12 -> 327.235 | BD57: 0 | BE57: 12543455.75 | BF57: 4456544.25 | BG57: 2613.219948 | BH57: 14855.1475 | BI57: =SUM(BG46:BG57) -> 38786.21313 | BJ57: =SUM(BH46:BH57) -> 59420.59 | BK57: =SUM(BI57+BI45+BI33+BI21) -> 152119.5465 | BL57: =BJ57 -> 59420.59 | BM57: 14855.1475 | BN57: 0
A58: 2019-01-01 | B58: 5 | F58: =SUM($E$54:E58)*$BH$6/12 -> 850.1308333 | J58: Build | M58: =SUM($L$54:L58)*$BH$6/12 -> 1195.679167 | T58: =SUM($S$54:S58)*$BH$6/12 -> 3459.576667 | AA58: =SUM($Z$54:Z58)*$BH$6/12 -> 453.1441667 | AH58: =SUM($AG$54:AG58)*$BH$6/12 -> 141.4 | AL58: Build | AO58: 8427.981667 | AX58: =SUM($AW$54:AW58)*$BH$6/12 -> 327.235 | BD58: 0 | BE58: 12543455.75 | BF58: 4456544.25 | BG58: 2613.219948 | BH58: 14855.1475 | BM58: 14855.1475 | BN58: 0
A59: 2019-02-01 | B59: 6 | F59: =SUM($E$54:E59)*$BH$6/12 -> 850.1308333 | J59: Build | M59: =SUM($L$54:L59)*$BH$6/12 -> 1195.679167 | T59: =SUM($S$54:S59)*$BH$6/12 -> 3459.576667 | AA59: =SUM($Z$54:Z59)*$BH$6/12 -> 453.1441667 | AH59: =SUM($AG$54:AG59)*$BH$6/12 -> 141.4 | AL59: Build | AO59: 8427.981667 | AX59: =SUM($AW$54:AW59)*$BH$6/12 -> 327.235 | BD59: 0 | BE59: 12543455.75 | BF59: 4456544.25 | BG59: 2613.219948 | BH59: 14855.1475 | BM59: 14855.1475 | BN59: 0
A60: 2019-03-01 | B60: 7 | C60: Build | D60: =0.65/5 -> 0.13 | E60: =D60*$E$9 -> 132620.41 | F60: =SUM($E$54:E60)*$BH$6/12 -> 1292.198867 | J60: Build | K60: =0.65/5 -> 0.13 | L60: =K60*L$9 -> 186525.95 | M60: =SUM($L$54:L60)*$BH$6/12 -> 1817.432333 | Q60: Build | T60: =SUM($S$54:S60)*$BH$6/12 -> 3459.576667 | AA60: =SUM($Z$54:Z60)*$BH$6/12 -> 453.1441667 | AE60: Build | AF60: =0.65/2 -> 0.325 | AG60: =AF60*AG$9 -> 55146 | AH60: =SUM($AG$54:AG60)*$BH$6/12 -> 325.22 | AL60: Build | AM60: =0.65/9 -> 0.07222222222 | AN60: =AM60*AN$9 -> 730425.0778 | AO60: 8427.981667 | AP60: =SUM($AN$60:AN60)*$BH$6/12 -> 2434.750259 | AQ60: =1/9 -> 0.1111111111 | AR60: =AQ60*$AN$9+SUM($AO$54:$AO$84)/9 -> 1152760.604 | AX60: =SUM($AW$54:AW60)*$BH$6/12 -> 327.235 | BC60: =E60+L60+S60+Z60+AG60+AN60+AW60 -> 1104717.438 | BD60: 1104717.438 | BE60: 11438738.31 | BF60: 5561261.688 | BG60: 2383.070482 | BH60: 18537.53896 | BM60: 16102.7887 | BN60: 2434.750259
A61: 2019-04-01 | B61: 8 | C61: Build | F61: =SUM($E$54:E61)*$BH$6/12 -> 1292.198867 | J61: Build | M61: =SUM($L$54:L61)*$BH$6/12 -> 1817.432333 | Q61: Build | T61: =SUM($S$54:S61)*$BH$6/12 -> 3459.576667 | AA61: =SUM($Z$54:Z61)*$BH$6/12 -> 453.1441667 | AE61: Build | AH61: =SUM($AG$54:AG61)*$BH$6/12 -> 325.22 | AL61: Build | AO61: 8427.981667 | AP61: =SUM($AN$60:AN61)*$BH$6/12 -> 2434.750259 | AT61: =SUM($AR$60:AR60)/$AT$8/12 -> 2134.741858 | AX61: =SUM($AW$54:AW61)*$BH$6/12 -> 327.235 | BD61: 0 | BE61: 11438738.31 | BF61: 5561261.688 | BG61: 2383.070482 | BH61: 18537.53896 | BM61: 16102.7887 | BN61: 2434.750259
A62: 2019-05-01 | B62: 9 | C62: Build | F62: =SUM($E$54:E62)*$BH$6/12 -> 1292.198867 | J62: Build | M62: =SUM($L$54:L62)*$BH$6/12 -> 1817.432333 | Q62: Build | T62: =SUM($S$54:S62)*$BH$6/12 -> 3459.576667 | AA62: =SUM($Z$54:Z62)*$BH$6/12 -> 453.1441667 | AE62: Build | AH62: =SUM($AG$54:AG62)*$BH$6/12 -> 325.22 | AL62: Build | AO62: 8427.981667 | AP62: =SUM($AN$60:AN62)*$BH$6/12 -> 2434.750259 | AT62: =SUM($AR$60:AR61)/$AT$8/12 -> 2134.741858 | AX62: =SUM($AW$54:AW62)*$BH$6/12 -> 327.235 | BD62: 0 | BE62: 11438738.31 | BF62: 5561261.688 | BG62: 2383.070482 | BH62: 18537.53896 | BM62: 16102.7887 | BN62: 2434.750259
A63: 2019-06-01 | B63: 10 | C63: Build | F63: =SUM($E$54:E63)*$BH$6/12 -> 1292.198867 | J63: Build | M63: =SUM($L$54:L63)*$BH$6/12 -> 1817.432333 | Q63: Build | T63: =SUM($S$54:S63)*$BH$6/12 -> 3459.576667 | AA63: =SUM($Z$54:Z63)*$BH$6/12 -> 453.1441667 | AE63: Build | AH63: =SUM($AG$54:AG63)*$BH$6/12 -> 325.22 | AL63: Build | AM63: =0.65/9 -> 0.07222222222 | AN63: =AM63*AN$9 -> 730425.0778 | AO63: 8427.981667 | AP63: =SUM($AN$60:AN63)*$BH$6/12 -> 4869.500519 | AQ63: =1/9 -> 0.1111111111 | AR63: =AQ63*$AN$9+SUM($AO$54:$AO$84)/9 -> 1152760.604 | AT63: =SUM($AR$60:AR62)/$AT$8/12 -> 2134.741858 | AX63: =SUM($AW$54:AW63)*$BH$6/12 -> 327.235 | BC63: =E63+L63+S63+Z63+AG63+AN63+AW63 -> 730425.0778 | BD63: 730425.0778 | BE63: 10708313.23 | BF63: 6291686.766 | BG63: 2230.898591 | BH63: 20972.28922 | BK63: =SUM(BG58:BG63) -> 14606.54993 | BL63: =SUM(BH58:BH63) -> 106295.2011 | BM63: 16102.7887 | BN63: 4869.500519
A64: 2019-07-01 | B64: 11 | C64: Build | D64: =0.65/5 -> 0.13 | E64: =D64*$E$9 -> 132620.41 | F64: =SUM($E$54:E64)*$BH$6/12 -> 1734.2669 | J64: Build | K64: =0.65/5 -> 0.13 | L64: =K64*L$9 -> 186525.95 | M64: =SUM($L$54:L64)*$BH$6/12 -> 2439.1855 | Q64: Build | R64: =0.65/7 -> 0.09285714286 | S64: =R64*S$9 -> 385495.6857 | T64: =SUM($S$54:S64)*$BH$6/12 -> 4744.562286 | AA64: =SUM($Z$54:Z64)*$BH$6/12 -> 453.1441667 | AE64: Hand-over | AF64: =0.65/2 -> 0.325 | AG64: =AF64*AG$9 -> 55146 | AH64: =SUM($AG$54:AG64)*$BH$6/12 -> 509.04 | AJ64: =AG9+SUM(AH54:AH64) -> 172338.32 | AL64: Build | AO64: 8427.981667 | AP64: =SUM($AN$60:AN64)*$BH$6/12 -> 4869.500519 | AT64: =SUM($AR$60:AR63)/$AT$8/12 -> 4269.483717 | AX64: =SUM($AW$54:AW64)*$BH$6/12 -> 327.235 | BC64: =E64+L64+S64+Z64+AG64+AN64+AW64 -> 759788.0457 | BD64: 759788.0457 | BE64: 9948525.189 | BF64: 7051474.811 | BG64: 2072.609414 | BH64: 23504.91604 | BM64: 18635.41552 | BN64: 4869.500519
A65: 2019-08-01 | B65: 12 | C65: Build | F65: =SUM($E$54:E65)*$BH$6/12 -> 1734.2669 | J65: Build | M65: =SUM($L$54:L65)*$BH$6/12 -> 2439.1855 | Q65: Build | T65: =SUM($S$54:S65)*$BH$6/12 -> 4744.562286 | AA65: =SUM($Z$54:Z65)*$BH$6/12 -> 453.1441667 | AE65: Liability | AI65: =SUM($AG$54:AG65)*$BH$6/12 -> 509.04 | AK65: =$AJ$64/$AK$8/12 -> 789.0948718 | AL65: Build | AO65: 8427.981667 | AP65: =SUM($AN$60:AN65)*$BH$6/12 -> 4869.500519 | AT65: =SUM($AR$60:AR64)/$AT$8/12 -> 4269.483717 | AX65: =SUM($AW$54:AW65)*$BH$6/12 -> 327.235 | BD65: 0 | BE65: 9948525.189 | BF65: 7051474.811 | BG65: 2072.609414 | BH65: 23504.91604 | BM65: 18126.37552 | BN65: 5378.540519
A66: 2019-09-01 | B66: 13 | C66: Build | F66: =SUM($E$54:E66)*$BH$6/12 -> 1734.2669 | J66: Build | M66: =SUM($L$54:L66)*$BH$6/12 -> 2439.1855 | Q66: Build | T66: =SUM($S$54:S66)*$BH$6/12 -> 4744.562286 | AA66: =SUM($Z$54:Z66)*$BH$6/12 -> 453.1441667 | AE66: Liability | AI66: =SUM($AG$54:AG66)*$BH$6/12 -> 509.04 | AK66: =$AJ$64/$AK$8/12 -> 789.0948718 | AL66: Build | AM66: =0.65/9 -> 0.07222222222 | AN66: =AM66*AN$9 -> 730425.0778 | AO66: 8427.981667 | AP66: =SUM($AN$60:AN66)*$BH$6/12 -> 7304.250778 | AQ66: =1/9 -> 0.1111111111 | AR66: =AQ66*$AN$9+SUM($AO$54:$AO$84)/9 -> 1152760.604 | AT66: =SUM($AR$60:AR65)/$AT$8/12 -> 4269.483717 | AX66: =SUM($AW$54:AW66)*$BH$6/12 -> 327.235 | BC66: =E66+L66+S66+Z66+AG66+AN66+AW66 -> 730425.0778 | BD66: 730425.0778 | BE66: 9218100.111 | BF66: 7781899.889 | BG66: 1920.437523 | BH66: 25939.6663 | BM66: 18126.37552 | BN66: 7813.290778
A67: 2019-10-01 | B67: 14 | C67: Build | D67: =0.65/5 -> 0.13 | E67: =D67*$E$9 -> 132620.41 | F67: =SUM($E$54:E67)*$BH$6/12 -> 2176.334933 | J67: Build | K67: =0.65/5 -> 0.13 | L67: =K67*L$9 -> 186525.95 | M67: =SUM($L$54:L67)*$BH$6/12 -> 3060.938667 | Q67: Build | R67: =0.65/7 -> 0.09285714286 | S67: =R67*S$9 -> 385495.6857 | T67: =SUM($S$54:S67)*$BH$6/12 -> 6029.547905 | AA67: =SUM($Z$54:Z67)*$BH$6/12 -> 453.1441667 | AE67: Liability | AI67: =SUM($AG$54:AG67)*$BH$6/12 -> 509.04 | AK67: 789.0948718 | AL67: Build | AO67: 8427.981667 | AP67: =SUM($AN$60:AN67)*$BH$6/12 -> 7304.250778 | AT67: =SUM($AR$60:AR66)/$AT$8/12 -> 6404.225575 | AX67: =SUM($AW$54:AW67)*$BH$6/12 -> 327.235 | BC67: =E67+L67+S67+Z67+AG67+AN67+AW67 -> 704642.0457 | BD67: 704642.0457 | BE67: 8513458.065 | BF67: 8486541.935 | BG67: 1773.637097 | BH67: 28288.47312 | BM67: 20475.18234 | BN67: 7813.290778
A68: 2019-11-01 | B68: 15 | C68: Build | F68: =SUM($E$54:E68)*$BH$6/12 -> 2176.334933 | J68: Build | M68: =SUM($L$54:L68)*$BH$6/12 -> 3060.938667 | Q68: Build | T68: =SUM($S$54:S68)*$BH$6/12 -> 6029.547905 | AA68: =SUM($Z$54:Z68)*$BH$6/12 -> 453.1441667 | AE68: Liability | AI68: =SUM($AG$54:AG68)*$BH$6/12 -> 509.04 | AK68: 789.0948718 | AL68: Build | AO68: 8427.981667 | AP68: =SUM($AN$60:AN68)*$BH$6/12 -> 7304.250778 | AT68: =SUM($AR$60:AR67)/$AT$8/12 -> 6404.225575 | AX68: =SUM($AW$54:AW68)*$BH$6/12 -> 327.235 | BD68: 0 | BE68: 8513458.065 | BF68: 8486541.935 | BG68: 1773.637097 | BH68: 28288.47312 | BM68: 20475.18234 | BN68: 7813.290778
A69: 2019-12-01 | B69: 16 | C69: Build | F69: =SUM($E$54:E69)*$BH$6/12 -> 2176.334933 | J69: Build | M69: =SUM($L$54:L69)*$BH$6/12 -> 3060.938667 | Q69: Build | T69: =SUM($S$54:S69)*$BH$6/12 -> 6029.547905 | AA69: =SUM($Z$54:Z69)*$BH$6/12 -> 453.1441667 | AE69: Liability | AI69: =SUM($AG$54:AG69)*$BH$6/12 -> 509.04 | AK69: 789.0948718 | AL69: Build | AM69: =0.65/9 -> 0.07222222222 | AN69: =AM69*AN$9 -> 730425.0778 | AO69: 8427.981667 | AP69: =SUM($AN$60:AN69)*$BH$6/12 -> 9739.001037 | AQ69: =1/9 -> 0.1111111111 | AR69: =AQ69*$AN$9+SUM($AO$54:$AO$84)/9 -> 1152760.604 | AS69: =SUM(AR58:AR69) -> 4611042.414 | AT69: =SUM($AR$60:AR68)/$AT$8/12 -> 6404.225575 | AX69: =SUM($AW$54:AW69)*$BH$6/12 -> 327.235 | BC69: =E69+L69+S69+Z69+AG69+AN69+AW69 -> 730425.0778 | BD69: 730425.0778 | BE69: 7783032.987 | BF69: 9216967.013 | BG69: 1621.465206 | BH69: 30723.22338 | BI69: =SUM(BG58:BG69) -> 25840.94568 | BJ69: =SUM(BH58:BH69) -> 266544.8691 | BK69: =SUM(BG64:BG69) -> 11234.39575 | BL69: =SUM(BH64:BH69) -> 160249.668 | BM69: 20475.18234 | BN69: 10248.04104
A70: 2020-01-01 | B70: 17 | D70: =0.65/5 -> 0.13 | E70: =D70*$E$9 -> 132620.41 | F70: =SUM($E$54:E70)*$BH$6/12 -> 2618.402967 | J70: Build | K70: =0.65/5 -> 0.13 | L70: =K70*L$9 -> 186525.95 | M70: =SUM($L$54:L70)*$BH$6/12 -> 3682.691833 | Q70: Build | R70: =0.65/7 -> 0.09285714286 | S70: =R70*S$9 -> 385495.6857 | T70: =SUM($S$54:S70)*$BH$6/12 -> 7314.533524 | AA70: =SUM($Z$54:Z70)*$BH$6/12 -> 453.1441667 | AE70: Liability | AI70: =SUM($AG$54:AG70)*$BH$6/12 -> 509.04 | AK70: 789.0948718 | AL70: Build | AO70: 8427.981667 | AP70: =SUM($AN$60:AN70)*$BH$6/12 -> 9739.001037 | AT70: =SUM($AR$60:AR69)/$AT$8/12 -> 8538.967433 | AU70: Build | AX70: =SUM($AW$54:AW70)*$BH$6/12 -> 327.235 | BC70: =E70+L70+S70+Z70+AG70+AN70+AW70 -> 704642.0457 | BD70: 704642.0457 | BE70: 7078390.942 | BF70: 9921609.058 | BG70: 1474.66478 | BH70: 33072.03019 | BM70: 22823.98916 | BN70: 10248.04104
A71: 2020-02-01 | B71: 18 | F71: =SUM($E$54:E71)*$BH$6/12 -> 2618.402967 | J71: Build | M71: =SUM($L$54:L71)*$BH$6/12 -> 3682.691833 | Q71: Build | T71: =SUM($S$54:S71)*$BH$6/12 -> 7314.533524 | AA71: =SUM($Z$54:Z71)*$BH$6/12 -> 453.1441667 | AE71: Liability | AI71: =SUM($AG$54:AG71)*$BH$6/12 -> 509.04 | AK71: 789.0948718 | AL71: Build | AO71: 8427.981667 | AP71: =SUM($AN$60:AN71)*$BH$6/12 -> 9739.001037 | AT71: =SUM($AR$60:AR70)/$AT$8/12 -> 8538.967433 | AU71: Build | AX71: =SUM($AW$54:AW71)*$BH$6/12 -> 327.235 | BD71: 0 | BE71: 7078390.942 | BF71: 9921609.058 | BG71: 1474.66478 | BH71: 33072.03019 | BM71: 22823.98916 | BN71: 10248.04104
A72: 2020-03-01 | B72: 19 | C72: Build | F72: =SUM($E$54:E72)*$BH$6/12 -> 2618.402967 | J72: Build | M72: =SUM($L$54:L72)*$BH$6/12 -> 3682.691833 | Q72: Build | T72: =SUM($S$54:S72)*$BH$6/12 -> 7314.533524 | AA72: =SUM($Z$54:Z72)*$BH$6/12 -> 453.1441667 | AE72: Liability | AI72: =SUM($AG$54:AG72)*$BH$6/12 -> 509.04 | AK72: 789.0948718 | AL72: Build | AM72: =0.65/9 -> 0.07222222222 | AN72: =AM72*AN$9 -> 730425.0778 | AO72: 8427.981667 | AP72: =SUM($AN$60:AN72)*$BH$6/12 -> 12173.7513 | AQ72: =1/9 -> 0.1111111111 | AR72: =AQ72*$AN$9+SUM($AO$54:$AO$84)/9 -> 1152760.604 | AT72: =SUM($AR$60:AR71)/$AT$8/12 -> 8538.967433 | AU72: Build | AX72: =SUM($AW$54:AW72)*$BH$6/12 -> 327.235 | BC72: =E72+L72+S72+Z72+AG72+AN72+AW72 -> 730425.0778 | BD72: 730425.0778 | BE72: 6347965.864 | BF72: 10652034.14 | BG72: 1322.492888 | BH72: 35506.78045 | BM72: 22823.98916 | BN72: 12682.7913
A73: 2020-04-01 | B73: 20 | C73: Build | F73: =SUM($E$54:E73)*$BH$6/12 -> 2618.402967 | J73: Build | M73: =SUM($L$54:L73)*$BH$6/12 -> 3682.691833 | Q73: Build | T73: =SUM($S$54:S73)*$BH$6/12 -> 7314.533524 | X73: Build | AA73: =SUM($Z$54:Z73)*$BH$6/12 -> 453.1441667 | AE73: Liability | AI73: =SUM($AG$54:AG73)*$BH$6/12 -> 509.04 | AK73: 789.0948718 | AL73: Build | AO73: 8427.981667 | AP73: =SUM($AN$60:AN73)*$BH$6/12 -> 12173.7513 | AT73: =SUM($AR$60:AR72)/$AT$8/12 -> 10673.70929 | AU73: Build | AX73: =SUM($AW$54:AW73)*$BH$6/12 -> 327.235 | BD73: 0 | BE73: 6347965.864 | BF73: 10652034.14 | BG73: 1322.492888 | BH73: 35506.78045 | BM73: 22823.98916 | BN73: 12682.7913
A74: 2020-05-01 | B74: 21 | C74: Hand-over | D74: =0.65/5 -> 0.13 | E74: =D74*$E$9 -> 132620.41 | F74: =SUM($E$54:E74)*$BH$6/12 -> 3060.471 | H74: =E9+SUM(F54:F74) -> 1055692.469 | J74: Hand-over | K74: =0.65/5 -> 0.13 | L74: =K74*L$9 -> 186525.95 | M74: =SUM($L$54:L74)*$BH$6/12 -> 4304.445 | O74: =L9+SUM(M54:M74) -> 1484794.389 | Q74: Build | R74: =0.65/7 -> 0.09285714286 | S74: =R74*S$9 -> 385495.6857 | T74: =SUM($S$54:S74)*$BH$6/12 -> 8599.519143 | X74: Build | AA74: =SUM($Z$54:Z74)*$BH$6/12 -> 453.1441667 | AE74: Liability | AI74: =SUM($AG$54:AG74)*$BH$6/12 -> 509.04 | AK74: 789.0948718 | AL74: Build | AO74: 8427.981667 | AP74: =SUM($AN$60:AN74)*$BH$6/12 -> 12173.7513 | AT74: =SUM($AR$60:AR73)/$AT$8/12 -> 10673.70929 | AU74: Hand-over | AV74: 0.65 | AW74: =AV74*AW$9 -> 255243.3 | AX74: =SUM($AW$54:AW74)*$BH$6/12 -> 1178.046 | AZ74: =AW9+SUM(AX54:AX74) -> 400404.746 | BC74: =E74+L74+S74+Z74+AG74+AN74+AW74 -> 959885.3457 | BD74: 959885.3457 | BE74: 5388080.518 | BF74: =$BE$6-BE74 -> 11611919.48 | BG74: 1122.516775 | BH74: =$BH$6*BF74/12 -> 38706.39827 | BM74: 26023.60698 | BN74: 12682.7913
A75: 2020-06-01 | B75: 22 | C75: Liability | G75: =SUM($E$54:E75)*$BH$6/12 -> 3060.471 | I75: =$H$74/$I$8/12 -> 5675.765961 | J75: Liability | N75: =SUM($L$54:L75)*$BH$6/12 -> 4304.445 | P75: =$O$74/$P$8/12 -> 7193.771265 | Q75: Build | T75: =SUM($S$54:S75)*$BH$6/12 -> 8599.519143 | X75: Build | AA75: =SUM($Z$54:Z75)*$BH$6/12 -> 453.1441667 | AE75: Liability | AI75: =SUM($AG$54:AG75)*$BH$6/12 -> 509.04 | AK75: 789.0948718 | AL75: Build | AM75: =0.65/9 -> 0.07222222222 | AN75: =AM75*AN$9 -> 730425.0778 | AO75: 8427.981667 | AP75: =SUM($AN$60:AN75)*$BH$6/12 -> 14608.50156 | AQ75: =1/9 -> 0.1111111111 | AR75: =AQ75*$AN$9+SUM($AO$54:$AO$84)/9 -> 1152760.604 | AT75: =SUM($AR$60:AR74)/$AT$8/12 -> 10673.70929 | AU75: Liability | AY75: =SUM($AW$54:AW75)*$BH$6/12 -> 1178.046 | BA75: =$AZ$74/$BA$8/12 -> 3336.706217 | BC75: 730425.0778 | BD75: 730425.0778 | BE75: =BE74-BD75 -> 4657655.44 | BF75: 12342344.56 | BG75: 970.3448834 | BH75: 41141.14853 | BK75: =SUM(BG70:BG75) -> 7687.176994 | BL75: =SUM(BH70:BH75) -> 217005.1681 | BM75: 17480.64498 | BN75: 23660.50356
A76: 2020-07-01 | B76: 23 | C76: Liability | G76: =SUM($E$54:E76)*$BH$6/12 -> 3060.471 | I76: =$H$74/$I$8/12 -> 5675.765961 | J76: Liability | N76: =SUM($L$54:L76)*$BH$6/12 -> 4304.445 | P76: =$O$74/$P$8/12 -> 7193.771265 | Q76: Build | T76: =SUM($S$54:S76)*$BH$6/12 -> 8599.519143 | X76: Build | Y76: =0.65/3 -> 0.2166666667 | Z76: =Y76*Z$9 -> 117817.4833 | AA76: =SUM($Z$54:Z76)*$BH$6/12 -> 845.8691111 | AE76: Liability | AF76: 0.1 | AG76: =AF76*AG$9 -> 16968 | AI76: =SUM($AG$54:AG76)*$BH$6/12 -> 565.6 | AK76: 789.0948718 | AL76: Build | AO76: 8427.981667 | AP76: =SUM($AN$60:AN76)*$BH$6/12 -> 14608.50156 | AT76: =SUM($AR$60:AR75)/$AT$8/12 -> 12808.45115 | AU76: Liability | AY76: =SUM($AW$54:AW76)*$BH$6/12 -> 1178.046 | BA76: =$AZ$74/$BA$8/12 -> 3336.706217 | BC76: 134785.4833 | BD76: 134785.4833 | BE76: 4522869.957 | BF76: 12477130.04 | BG76: 942.2645744 | BH76: 41590.43348 | BM76: 17873.36992 | BN76: 23717.06356
A77: 2020-08-01 | B77: 24 | C77: Liability | G77: =SUM($E$54:E77)*$BH$6/12 -> 3060.471 | I77: 5675.765961 | J77: Liability | N77: =SUM($L$54:L77)*$BH$6/12 -> 4304.445 | P77: 7193.771265 | Q77: Build | R77: =0.65/7 -> 0.09285714286 | S77: =R77*S$9 -> 385495.6857 | T77: =SUM($S$54:S77)*$BH$6/12 -> 9884.504762 | X77: Build | AA77: =SUM($Z$54:Z77)*$BH$6/12 -> 845.8691111 | AI77: =SUM($AG$54:AG77)*$BH$6/12 -> 565.6 | AK77: 789.0948718 | AL77: Build | AO77: 8427.981667 | AP77: =SUM($AN$60:AN77)*$BH$6/12 -> 14608.50156 | AT77: =SUM($AR$60:AR76)/$AT$8/12 -> 12808.45115 | AU77: Liability | AY77: =SUM($AW$54:AW77)*$BH$6/12 -> 1178.046 | BA77: 3336.706217 | BC77: 385495.6857 | BD77: 385495.6857 | BE77: 4137374.271 | BF77: 12862625.73 | BG77: 861.9529732 | BH77: 42875.4191 | BM77: 19158.35554 | BN77: 23717.06356
A78: 2020-09-01 | B78: 25 | C78: Liability | G78: =SUM($E$54:E78)*$BH$6/12 -> 3060.471 | I78: 5675.765961 | J78: Liability | N78: =SUM($L$54:L78)*$BH$6/12 -> 4304.445 | P78: 7193.771265 | Q78: Build | T78: =SUM($S$54:S78)*$BH$6/12 -> 9884.504762 | X78: Build | AA78: =SUM($Z$54:Z78)*$BH$6/12 -> 845.8691111 | AI78: =SUM($AG$54:AG78)*$BH$6/12 -> 565.6 | AK78: 789.0948718 | AL78: Build | AM78: =0.65/9 -> 0.07222222222 | AN78: =AM78*AN$9 -> 730425.0778 | AO78: 8427.981667 | AP78: =SUM($AN$60:AN78)*$BH$6/12 -> 17043.25181 | AQ78: =1/9 -> 0.1111111111 | AR78: =AQ78*$AN$9+SUM($AO$54:$AO$84)/9 -> 1152760.604 | AT78: =SUM($AR$60:AR77)/$AT$8/12 -> 12808.45115 | AU78: Liability | AY78: =SUM($AW$54:AW78)*$BH$6/12 -> 1178.046 | BA78: 3336.706217 | BC78: 730425.0778 | BD78: 730425.0778 | BE78: 3406949.194 | BF78: 13593050.81 | BG78: =$BG$6*BE78/12 -> 709.781082 | BH78: 45310.16935 | BM78: 19158.35554 | BN78: 26151.81381
A79: 2020-10-01 | B79: 26 | C79: Liability | G79: =SUM($E$54:E79)*$BH$6/12 -> 3060.471 | I79: 5675.765961 | J79: Liability | N79: =SUM($L$54:L79)*$BH$6/12 -> 4304.445 | P79: 7193.771265 | Q79: Build | T79: =SUM($S$54:S79)*$BH$6/12 -> 9884.504762 | X79: Build | Y79: =0.65/3 -> 0.2166666667 | Z79: =Y79*Z$9 -> 117817.4833 | AA79: =SUM($Z$54:Z79)*$BH$6/12 -> 1238.594056 | AI79: =SUM($AG$54:AG79)*$BH$6/12 -> 565.6 | AK79: 789.0948718 | AL79: Build | AO79: 8427.981667 | AP79: =SUM($AN$60:AN79)*$BH$6/12 -> 17043.25181 | AT79: =SUM($AR$60:AR78)/$AT$8/12 -> 14943.19301 | AU79: Liability | AY79: =SUM($AW$54:AW79)*$BH$6/12 -> 1178.046 | BA79: 3336.706217 | BC79: 117817.4833 | BD79: 117817.4833 | BE79: 3289131.71 | BF79: 13710868.29 | BG79: 685.235773 | BH79: 45702.8943 | BM79: 19551.08048 | BN79: 26151.81381
A80: 2020-11-01 | B80: 27 | C80: Liability | G80: =SUM($E$54:E80)*$BH$6/12 -> 3060.471 | I80: 5675.765961 | J80: Liability | N80: =SUM($L$54:L80)*$BH$6/12 -> 4304.445 | P80: 7193.771265 | Q80: Build | R80: =0.65/7 -> 0.09285714286 | S80: =R80*S$9 -> 385495.6857 | T80: =SUM($S$54:S80)*$BH$6/12 -> 11169.49038 | X80: Build | AA80: =SUM($Z$54:Z80)*$BH$6/12 -> 1238.594056 | AI80: =SUM($AG$54:AG80)*$BH$6/12 -> 565.6 | AK80: 789.0948718 | AL80: Build | AO80: 8427.981667 | AP80: =SUM($AN$60:AN80)*$BH$6/12 -> 17043.25181 | AT80: =SUM($AR$60:AR79)/$AT$8/12 -> 14943.19301 | AU80: Liability | AY80: =SUM($AW$54:AW80)*$BH$6/12 -> 1178.046 | BA80: 3336.706217 | BC80: 385495.6857 | BD80: 385495.6857 | BE80: 2903636.025 | BF80: 14096363.98 | BG80: 604.9241718 | BH80: 46987.87992 | BM80: 20836.0661 | BN80: 26151.81381
A81: 2020-12-01 | B81: 28 | C81: Liability | G81: =SUM($E$54:E81)*$BH$6/12 -> 3060.471 | I81: 5675.765961 | J81: Liability | N81: =SUM($L$54:L81)*$BH$6/12 -> 4304.445 | P81: 7193.771265 | Q81: Build | T81: =SUM($S$54:S81)*$BH$6/12 -> 11169.49038 | X81: Build | AA81: =SUM($Z$54:Z81)*$BH$6/12 -> 1238.594056 | AI81: =SUM($AG$54:AG81)*$BH$6/12 -> 565.6 | AK81: 789.0948718 | AL81: Build | AM81: =0.65/9 -> 0.07222222222 | AN81: =AM81*AN$9 -> 730425.0778 | AO81: 8427.981667 | AP81: =SUM($AN$60:AN81)*$BH$6/12 -> 19478.00207 | AQ81: =1/9 -> 0.1111111111 | AR81: =AQ81*$AN$9+SUM($AO$54:$AO$84)/9 -> 1152760.604 | AS81: =SUM(AR70:AR81) -> 4611042.414 | AT81: =SUM($AR$60:AR80)/$AT$8/12 -> 14943.19301 | AU81: Liability | AY81: =SUM($AW$54:AW81)*$BH$6/12 -> 1178.046 | BA81: 3336.706217 | BC81: 730425.0778 | BD81: 730425.0778 | BE81: 2173210.947 | BF81: 14826789.05 | BG81: 452.7522806 | BH81: 49422.63018 | BI81: =SUM(BG70:BG81) -> 11944.08785 | BJ81: =SUM(BH70:BH81) -> 488894.5944 | BK81: =SUM(BG76:BG81) -> 4256.910855 | BL81: =SUM(BH76:BH81) -> 271889.4263 | BM81: 20836.0661 | BN81: 28586.56407
A82: 2021-01-01 | B82: 29 | C82: Liability | G82: =SUM($E$54:E82)*$BH$6/12 -> 3060.471 | I82: 5675.765961 | J82: Liability | N82: =SUM($L$54:L82)*$BH$6/12 -> 4304.445 | P82: 7193.771265 | Q82: Build | T82: =SUM($S$54:S82)*$BH$6/12 -> 11169.49038 | X82: Hand-over | Y82: =0.65/3 -> 0.2166666667 | Z82: =Y82*Z$9 -> 117817.4833 | AA82: =SUM($Z$54:Z82)*$BH$6/12 -> 1631.319 | AC82: =Z9+SUM(AA54:AA82) -> 561626.8802 | AI82: =SUM($AG$54:AG82)*$BH$6/12 -> 565.6 | AK82: 789.0948718 | AL82: Build | AO82: 8427.981667 | AP82: =SUM($AN$60:AN82)*$BH$6/12 -> 19478.00207 | AT82: =SUM($AR$60:AR81)/$AT$8/12 -> 17077.93487 | AU82: Liability | AY82: =SUM($AW$54:AW82)*$BH$6/12 -> 1178.046 | BA82: 3336.706217 | BC82: 117817.4833 | BD82: 117817.4833 | BE82: 2055393.463 | BF82: 14944606.54 | BG82: 428.2069716 | BH82: 49815.35512 | BM82: 21228.79105 | BN82: 28586.56407
A83: 2021-02-01 | B83: 30 | C83: Liability | G83: =SUM($E$54:E83)*$BH$6/12 -> 3060.471 | I83: 5675.765961 | J83: Liability | N83: =SUM($L$54:L83)*$BH$6/12 -> 4304.445 | P83: 7193.771265 | Q83: Hand-over | R83: =0.65/7 -> 0.09285714286 | S83: =R83*S$9 -> 385495.6857 | T83: =SUM($S$54:S83)*$BH$6/12 -> 12454.476 | V83: =S9+SUM(T54:T83) -> 4349083.25 | X83: Liability | AB83: =SUM($Z$54:Z83)*$BH$6/12 -> 1631.319 | AD83: =$AC$82/$AD$8/12 -> 2412.486599 | AI83: =SUM($AG$54:AG83)*$BH$6/12 -> 565.6 | AK83: 789.0948718 | AL83: Build | AO83: 8427.981667 | AP83: =SUM($AN$60:AN83)*$BH$6/12 -> 19478.00207 | AT83: =SUM($AR$60:AR82)/$AT$8/12 -> 17077.93487 | AU83: Liability | AY83: =SUM($AW$54:AW83)*$BH$6/12 -> 1178.046 | BA83: 3336.706217 | BC83: 385495.6857 | BD83: 385495.6857 | BE83: 1669897.778 | BF83: 15330102.22 | BG83: 347.8953704 | BH83: 51100.34074 | BM83: 20882.45767 | BN83: 30217.88307
A84: 2021-03-01 | B84: 31 | C84: Liability | G84: =SUM($E$54:E84)*$BH$6/12 -> 3060.471 | I84: 5675.765961 | J84: Liability | N84: =SUM($L$54:L84)*$BH$6/12 -> 4304.445 | P84: 7193.771265 | Q84: Liability | U84: =SUM($S$54:S84)*$BH$6/12 -> 12454.476 | W84: =$V$83/$W$8/12 -> 6080.932956 | X84: Liability | AB84: =SUM($Z$54:Z84)*$BH$6/12 -> 1631.319 | AD84: =$AC$82/$AD$8/12 -> 2412.486599 | AI84: =SUM($AG$54:AG84)*$BH$6/12 -> 565.6 | AK84: 789.0948718 | AL84: Hand-over | AM84: =0.65/9 -> 0.07222222222 | AN84: =AM84*AN$9 -> 730425.0778 | AO84: 8427.981667 | AP84: =SUM($AN$60:AN84)*$BH$6/12 -> 21912.75233 | AQ84: =1/9 -> 0.1111111111 | AR84: =AQ84*$AN$9+SUM($AO$54:$AO$84)/9 -> 1152760.604 | AT84: =SUM($AR$60:AR83)/$AT$8/12 -> 17077.93487 | AU84: Liability | AY84: =SUM($AW$54:AW84)*$BH$6/12 -> 1178.046 | BA84: 3336.706217 | BC84: 730425.0778 | BD84: 730425.0778 | BE84: 939472.7 | BF84: 16060527.3 | BG84: 195.7234792 | BH84: 53535.091 | BM84: 8427.981667 | BN84: 45107.10933
A85: 2021-04-01 | B85: 32 | C85: Liability | G85: =SUM($E$54:E85)*$BH$6/12 -> 3060.471 | I85: 5675.765961 | J85: Liability | N85: =SUM($L$54:L85)*$BH$6/12 -> 4304.445 | P85: 7193.771265 | Q85: Liability | U85: =SUM($S$54:S85)*$BH$6/12 -> 12454.476 | W85: =$V$83/$W$8/12 -> 6080.932956 | X85: Liability | AB85: =SUM($Z$54:Z85)*$BH$6/12 -> 1631.319 | AD85: 2412.486599 | AI85: =SUM($AG$54:AG85)*$BH$6/12 -> 565.6 | AK85: 789.0948718 | AL85: Liability | AP85: =(SUM($AN$60:AN85)*$BH$6/12)+($AN$54*$BH$6/12) -> 30340.734 | AS85: =SUM(AR82:AR84) -> 1152760.604 | AT85: =SUM($AR$60:AR84)/$AT$8/12 -> 19212.67673 | AU85: Liability | AY85: =SUM($AW$54:AW85)*$BH$6/12 -> 1178.046 | BA85: 3336.706217 | BD85: 0 | BE85: 939472.7 | BF85: 16060527.3 | BG85: 195.7234792 | BH85: 53535.091 | BM85: 0 | BN85: 53535.091
A86: 2021-05-01 | B86: 33 | C86: Liability | D86: 0.1 | E86: =D86*$E$9 -> 102015.7 | G86: =SUM($E$54:E86)*$BH$6/12 -> 3400.523333 | I86: 5675.765961 | J86: Liability | K86: 0.1 | L86: =K86*L$9 -> 143481.5 | N86: =SUM($L$54:L86)*$BH$6/12 -> 4782.716667 | P86: 7193.771265 | Q86: Liability | U86: =SUM($S$54:S86)*$BH$6/12 -> 12454.476 | W86: 6080.932956 | X86: Liability | AB86: =SUM($Z$54:Z86)*$BH$6/12 -> 1631.319 | AD86: 2412.486599 | AI86: =SUM($AG$54:AG86)*$BH$6/12 -> 565.6 | AK86: 789.0948718 | AL86: Liability | AP86: =(SUM($AN$60:AN86)*$BH$6/12)+($AN$54*$BH$6/12) -> 30340.734 | AT86: =SUM($AR$60:AR85)/$AT$8/12 -> 19212.67673 | AU86: Liability | AV86: 0.1 | AW86: =AV86*AW$9 -> 39268.2 | AY86: =SUM($AW$54:AW86)*$BH$6/12 -> 1308.94 | BA86: 3336.706217 | BC86: =E86+L86+S86+Z86+AG86+AN86+AW86 -> 284765.4 | BD86: 284765.4 | BE86: 654707.3 | BF86: 16345292.7 | BG86: 136.3973542 | BH86: 54484.309 | BM86: 0 | BN86: 54484.309
A87: 2021-06-01 | B87: 34 | G87: =SUM($E$54:E87)*$BH$6/12 -> 3400.523333 | I87: 5675.765961 | N87: =SUM($L$54:L87)*$BH$6/12 -> 4782.716667 | P87: 7193.771265 | Q87: Liability | U87: =SUM($S$54:S87)*$BH$6/12 -> 12454.476 | W87: 6080.932956 | X87: Liability | AB87: =SUM($Z$54:Z87)*$BH$6/12 -> 1631.319 | AD87: 2412.486599 | AI87: =SUM($AG$54:AG87)*$BH$6/12 -> 565.6 | AK87: 789.0948718 | AL87: Liability | AP87: =(SUM($AN$60:AN87)*$BH$6/12)+($AN$54*$BH$6/12) -> 30340.734 | AT87: =SUM($AR$60:AR86)/$AT$8/12 -> 19212.67673 | AY87: =SUM($AW$54:AW87)*$BH$6/12 -> 1308.94 | BA87: 3336.706217 | BD87: 0 | BE87: 654707.3 | BF87: 16345292.7 | BG87: 136.3973542 | BH87: 54484.309 | BK87: =SUM(BG82:BG87) -> 1440.344009 | BL87: =SUM(BH82:BH87) -> 316954.4959 | BM87: 0 | BN87: 54484.309
A88: 2021-07-01 | B88: 35 | G88: =SUM($E$54:E88)*$BH$6/12 -> 3400.523333 | I88: 5675.765961 | N88: =SUM($L$54:L88)*$BH$6/12 -> 4782.716667 | P88: 7193.771265 | Q88: Liability | U88: =SUM($S$54:S88)*$BH$6/12 -> 12454.476 | W88: 6080.932956 | X88: Liability | AB88: =SUM($Z$54:Z88)*$BH$6/12 -> 1631.319 | AD88: 2412.486599 | AI88: =SUM($AG$54:AG88)*$BH$6/12 -> 565.6 | AK88: 789.0948718 | AL88: Liability | AP88: =(SUM($AN$60:AN88)*$BH$6/12)+($AN$54*$BH$6/12) -> 30340.734 | AT88: =SUM($AR$60:AR87)/$AT$8/12 -> 19212.67673 | AY88: =SUM($AW$54:AW88)*$BH$6/12 -> 1308.94 | BA88: 3336.706217 | BD88: 0 | BE88: 654707.3 | BF88: 16345292.7 | BG88: 136.3973542 | BH88: 54484.309 | BM88: 0 | BN88: 54484.309
A89: 2021-08-01 | B89: 36 | G89: =SUM($E$54:E89)*$BH$6/12 -> 3400.523333 | I89: 5675.765961 | N89: =SUM($L$54:L89)*$BH$6/12 -> 4782.716667 | P89: 7193.771265 | Q89: Liability | U89: =SUM($S$54:S89)*$BH$6/12 -> 12454.476 | W89: 6080.932956 | X89: Liability | AB89: =SUM($Z$54:Z89)*$BH$6/12 -> 1631.319 | AD89: 2412.486599 | AI89: =SUM($AG$54:AG89)*$BH$6/12 -> 565.6 | AK89: 789.0948718 | AL89: Liability | AP89: =(SUM($AN$60:AN89)*$BH$6/12)+($AN$54*$BH$6/12) -> 30340.734 | AT89: =SUM($AR$60:AR88)/$AT$8/12 -> 19212.67673 | AY89: =SUM($AW$54:AW89)*$BH$6/12 -> 1308.94 | BA89: 3336.706217 | BD89: 0 | BE89: 654707.3 | BF89: 16345292.7 | BG89: 136.3973542 | BH89: 54484.309 | BM89: 0 | BN89: 54484.309
A90: 2021-09-01 | B90: 37 | G90: =SUM($E$54:E90)*$BH$6/12 -> 3400.523333 | I90: 5675.765961 | N90: =SUM($L$54:L90)*$BH$6/12 -> 4782.716667 | P90: 7193.771265 | Q90: Liability | U90: =SUM($S$54:S90)*$BH$6/12 -> 12454.476 | W90: 6080.932956 | X90: Liability | AB90: =SUM($Z$54:Z90)*$BH$6/12 -> 1631.319 | AD90: 2412.486599 | AI90: =SUM($AG$54:AG90)*$BH$6/12 -> 565.6 | AK90: 789.0948718 | AL90: Liability | AP90: =(SUM($AN$60:AN90)*$BH$6/12)+($AN$54*$BH$6/12) -> 30340.734 | AT90: =SUM($AR$60:AR89)/$AT$8/12 -> 19212.67673 | AY90: =SUM($AW$54:AW90)*$BH$6/12 -> 1308.94 | BA90: 3336.706217 | BD90: 0 | BE90: 654707.3 | BF90: 16345292.7 | BG90: 136.3973542 | BH90: 54484.309 | BM90: 0 | BN90: 54484.309
A91: 2021-10-01 | B91: 38 | G91: =SUM($E$54:E91)*$BH$6/12 -> 3400.523333 | I91: 5675.765961 | N91: =SUM($L$54:L91)*$BH$6/12 -> 4782.716667 | P91: 7193.771265 | Q91: Liability | U91: =SUM($S$54:S91)*$BH$6/12 -> 12454.476 | W91: 6080.932956 | X91: Liability | AB91: =SUM($Z$54:Z91)*$BH$6/12 -> 1631.319 | AD91: 2412.486599 | AI91: =SUM($AG$54:AG91)*$BH$6/12 -> 565.6 | AK91: 789.0948718 | AL91: Liability | AP91: =(SUM($AN$60:AN91)*$BH$6/12)+($AN$54*$BH$6/12) -> 30340.734 | AT91: =SUM($AR$60:AR90)/$AT$8/12 -> 19212.67673 | AY91: =SUM($AW$54:AW91)*$BH$6/12 -> 1308.94 | BA91: 3336.706217 | BD91: 0 | BE91: 654707.3 | BF91: 16345292.7 | BG91: 136.3973542 | BH91: 54484.309 | BM91: 0 | BN91: 54484.309
A92: 2021-11-01 | B92: 39 | G92: =SUM($E$54:E92)*$BH$6/12 -> 3400.523333 | I92: 5675.765961 | N92: =SUM($L$54:L92)*$BH$6/12 -> 4782.716667 | P92: 7193.771265 | Q92: Liability | U92: =SUM($S$54:S92)*$BH$6/12 -> 12454.476 | W92: 6080.932956 | X92: Liability | AB92: =SUM($Z$54:Z92)*$BH$6/12 -> 1631.319 | AD92: 2412.486599 | AI92: =SUM($AG$54:AG92)*$BH$6/12 -> 565.6 | AK92: 789.0948718 | AL92: Liability | AP92: =(SUM($AN$60:AN92)*$BH$6/12)+($AN$54*$BH$6/12) -> 30340.734 | AT92: =SUM($AR$60:AR91)/$AT$8/12 -> 19212.67673 | AY92: =SUM($AW$54:AW92)*$BH$6/12 -> 1308.94 | BA92: 3336.706217 | BD92: 0 | BE92: =BE91-BD92 -> 654707.3 | BF92: 16345292.7 | BG92: 136.3973542 | BH92: 54484.309 | BM92: 0 | BN92: 54484.309
A93: 2021-12-01 | B93: 40 | G93: =SUM($E$54:E93)*$BH$6/12 -> 3400.523333 | I93: 5675.765961 | N93: =SUM($L$54:L93)*$BH$6/12 -> 4782.716667 | P93: 7193.771265 | Q93: Liability | U93: =SUM($S$54:S93)*$BH$6/12 -> 12454.476 | W93: 6080.932956 | X93: Liability | Y93: 0.1 | Z93: =Y93*Z$9 -> 54377.3 | AB93: =SUM($Z$54:Z93)*$BH$6/12 -> 1812.576667 | AD93: 2412.486599 | AI93: =SUM($AG$54:AG93)*$BH$6/12 -> 565.6 | AK93: 789.0948718 | AL93: Liability | AP93: =(SUM($AN$60:AN93)*$BH$6/12)+($AN$54*$BH$6/12) -> 30340.734 | AT93: =SUM($AR$60:AR92)/$AT$8/12 -> 19212.67673 | AY93: =SUM($AW$54:AW93)*$BH$6/12 -> 1308.94 | BA93: 3336.706217 | BC93: =E93+L93+S93+Z93+AG93+AN93+AW93 -> 54377.3 | BD93: 54377.3 | BE93: =BE92-BD93 -> 600330 | BF93: 16399670 | BG93: 125.06875 | BH93: 54665.56667 | BI93: =SUM(BG82:BG93) -> 2247.399529 | BJ93: =SUM(BH82:BH93) -> 644041.6075 | BK93: =SUM(BG88:BG93) -> 807.0555208 | BL93: =SUM(BH88:BH93) -> 327087.1117 | BM93: 0 | BN93: 54665.56667
A94: 2022-01-01 | B94: 41 | G94: =SUM($E$54:E94)*$BH$6/12 -> 3400.523333 | I94: 5675.765961 | N94: =SUM($L$54:L94)*$BH$6/12 -> 4782.716667 | P94: 7193.771265 | Q94: Liability | U94: =SUM($S$54:S94)*$BH$6/12 -> 12454.476 | W94: 6080.932956 | AB94: =SUM($Z$54:Z94)*$BH$6/12 -> 1812.576667 | AD94: 2412.486599 | AI94: =SUM($AG$54:AG94)*$BH$6/12 -> 565.6 | AK94: 789.0948718 | AL94: Liability | AP94: =(SUM($AN$60:AN94)*$BH$6/12)+($AN$54*$BH$6/12) -> 30340.734 | AT94: =SUM($AR$60:AR93)/$AT$8/12 -> 19212.67673 | AY94: =SUM($AW$54:AW94)*$BH$6/12 -> 1308.94 | BA94: 3336.706217 | BD94: 0 | BE94: 600330 | BF94: 16399670 | BG94: 125.06875 | BH94: 54665.56667 | BM94: 0 | BN94: 54665.56667
A95: 2022-02-01 | B95: 42 | G95: =SUM($E$54:E95)*$BH$6/12 -> 3400.523333 | I95: 5675.765961 | N95: =SUM($L$54:L95)*$BH$6/12 -> 4782.716667 | P95: 7193.771265 | Q95: Liability | R95: 0.1 | S95: =R95*S$9 -> 415149.2 | U95: =SUM($S$54:S95)*$BH$6/12 -> 13838.30667 | W95: 6080.932956 | AB95: =SUM($Z$54:Z95)*$BH$6/12 -> 1812.576667 | AD95: 2412.486599 | AI95: =SUM($AG$54:AG95)*$BH$6/12 -> 565.6 | AK95: 789.0948718 | AL95: Liability | AP95: =(SUM($AN$60:AN95)*$BH$6/12)+($AN$54*$BH$6/12) -> 30340.734 | AT95: =SUM($AR$60:AR94)/$AT$8/12 -> 19212.67673 | AY95: =SUM($AW$54:AW95)*$BH$6/12 -> 1308.94 | BA95: 3336.706217 | BC95: =E95+L95+S95+Z95+AG95+AN95+AW95 -> 415149.2 | BD95: 415149.2 | BE95: 185180.8 | BF95: 16814819.2 | BG95: 38.57933333 | BH95: 56049.39733 | BM95: 0 | BN95: 56049.39733
A96: 2022-03-01 | B96: 43 | G96: =SUM($E$54:E96)*$BH$6/12 -> 3400.523333 | I96: 5675.765961 | N96: =SUM($L$54:L96)*$BH$6/12 -> 4782.716667 | P96: 7193.771265 | U96: =SUM($S$54:S96)*$BH$6/12 -> 13838.30667 | W96: 6080.932956 | AB96: =SUM($Z$54:Z96)*$BH$6/12 -> 1812.576667 | AD96: 2412.486599 | AI96: =SUM($AG$54:AG96)*$BH$6/12 -> 565.6 | AK96: 789.0948718 | AL96: Liability | AP96: =(SUM($AN$60:AN96)*$BH$6/12)+($AN$54*$BH$6/12) -> 30340.734 | AT96: =SUM($AR$60:AR95)/$AT$8/12 -> 19212.67673 | AY96: =SUM($AW$54:AW96)*$BH$6/12 -> 1308.94 | BA96: 3336.706217 | BD96: 0 | BE96: 185180.8 | BF96: 16814819.2 | BG96: 38.57933333 | BH96: 56049.39733 | BM96: 0 | BN96: 56049.39733
A97: 2022-04-01 | B97: 44 | G97: =SUM($E$54:E97)*$BH$6/12 -> 3400.523333 | I97: 5675.765961 | N97: =SUM($L$54:L97)*$BH$6/12 -> 4782.716667 | P97: 7193.771265 | U97: =SUM($S$54:S97)*$BH$6/12 -> 13838.30667 | W97: 6080.932956 | AB97: =SUM($Z$54:Z97)*$BH$6/12 -> 1812.576667 | AD97: 2412.486599 | AI97: =SUM($AG$54:AG97)*$BH$6/12 -> 565.6 | AK97: 789.0948718 | AL97: Liability | AM97: 0.1 | AN97: =AM97*AN$9 -> 1011357.8 | AP97: =(SUM($AN$60:AN97)*$BH$6/12)+($AN$54*$BH$6/12) -> 33711.92667 | AT97: =SUM($AR$60:AR96)/$AT$8/12 -> 19212.67673 | AY97: =SUM($AW$54:AW97)*$BH$6/12 -> 1308.94 | BA97: 3336.706217 | BC97: =E97+L97+S97+Z97+AG97+AN97+AW97-BC108 -> 185180.8 | BD97: 185180.8 | BE97: -8.731149137e-10 | BF97: 17000000 | BG97: -1.818989404e-13 | BH97: 56666.66667 | BM97: =F97+M97+T97+AA97+AH97+AO97+AX97 -> 0 | BN97: =G97+N97+U97+AB97+AI97+AP97+AY97 -> 59420.59
A98: 2022-05-01 | G98: =SUM($E$54:E98)*$BH$6/12 -> 3400.523333 | I98: 5675.765961 | N98: =SUM($L$54:L98)*$BH$6/12 -> 4782.716667 | P98: 7193.771265 | U98: =SUM($S$54:S98)*$BH$6/12 -> 13838.30667 | W98: 6080.932956 | AB98: =SUM($Z$54:Z98)*$BH$6/12 -> 1812.576667 | AD98: 2412.486599 | AI98: =SUM($AG$54:AG98)*$BH$6/12 -> 565.6 | AK98: 789.0948718 | AP98: =(SUM($AN$60:AN98)*$BH$6/12)+($AN$54*$BH$6/12) -> 33711.92667 | AT98: =SUM($AR$60:AR97)/$AT$8/12 -> 19212.67673 | AY98: =SUM($AW$54:AW98)*$BH$6/12 -> 1308.94 | BA98: 3336.706217 | BE98: -8.731149137e-10 | BF98: 17000000 | BG98: -1.818989404e-13 | BH98: 56666.66667 | BM98: 0 | BN98: 59420.59
A99: 2022-06-01 | G99: =SUM($E$54:E99)*$BH$6/12 -> 3400.523333 | I99: 5675.765961 | N99: =SUM($L$54:L99)*$BH$6/12 -> 4782.716667 | P99: 7193.771265 | U99: =SUM($S$54:S99)*$BH$6/12 -> 13838.30667 | W99: 6080.932956 | AB99: =SUM($Z$54:Z99)*$BH$6/12 -> 1812.576667 | AD99: 2412.486599 | AI99: =SUM($AG$54:AG99)*$BH$6/12 -> 565.6 | AK99: 789.0948718 | AP99: =(SUM($AN$60:AN99)*$BH$6/12)+($AN$54*$BH$6/12) -> 33711.92667 | AT99: =SUM($AR$60:AR98)/$AT$8/12 -> 19212.67673 | AY99: =SUM($AW$54:AW99)*$BH$6/12 -> 1308.94 | BA99: 3336.706217 | BE99: -8.731149137e-10 | BF99: 17000000 | BG99: -1.818989404e-13 | BH99: 56666.66667 | BK99: =SUM(BG94:BG99) -> 202.2274167 | BL99: =SUM(BH94:BH99) -> 336764.3613 | BM99: 0 | BN99: 59420.59
A100: 2022-07-01 | G100: =SUM($E$54:E100)*$BH$6/12 -> 3400.523333 | I100: 5675.765961 | N100: =SUM($L$54:L100)*$BH$6/12 -> 4782.716667 | P100: 7193.771265 | U100: =SUM($S$54:S100)*$BH$6/12 -> 13838.30667 | W100: 6080.932956 | AB100: =SUM($Z$54:Z100)*$BH$6/12 -> 1812.576667 | AD100: 2412.486599 | AI100: =SUM($AG$54:AG100)*$BH$6/12 -> 565.6 | AK100: 789.0948718 | AP100: =(SUM($AN$60:AN100)*$BH$6/12)+($AN$54*$BH$6/12) -> 33711.92667 | AT100: =SUM($AR$60:AR99)/$AT$8/12 -> 19212.67673 | AY100: =SUM($AW$54:AW100)*$BH$6/12 -> 1308.94 | BA100: 3336.706217 | BE100: -8.731149137e-10 | BF100: 17000000 | BG100: -1.818989404e-13 | BH100: 56666.66667 | BM100: 0 | BN100: 59420.59
A101: 2022-08-01 | G101: =SUM($E$54:E101)*$BH$6/12 -> 3400.523333 | I101: 5675.765961 | N101: =SUM($L$54:L101)*$BH$6/12 -> 4782.716667 | P101: 7193.771265 | U101: =SUM($S$54:S101)*$BH$6/12 -> 13838.30667 | W101: 6080.932956 | AB101: =SUM($Z$54:Z101)*$BH$6/12 -> 1812.576667 | AD101: 2412.486599 | AI101: =SUM($AG$54:AG101)*$BH$6/12 -> 565.6 | AK101: 789.0948718 | AP101: =(SUM($AN$60:AN101)*$BH$6/12)+($AN$54*$BH$6/12) -> 33711.92667 | AT101: =SUM($AR$60:AR100)/$AT$8/12 -> 19212.67673 | AY101: =SUM($AW$54:AW101)*$BH$6/12 -> 1308.94 | BA101: 3336.706217 | BE101: -8.731149137e-10 | BF101: 17000000 | BG101: -1.818989404e-13 | BH101: 56666.66667 | BM101: 0 | BN101: 59420.59
A102: 2022-09-01 | G102: =SUM($E$54:E102)*$BH$6/12 -> 3400.523333 | I102: 5675.765961 | N102: =SUM($L$54:L102)*$BH$6/12 -> 4782.716667 | P102: 7193.771265 | U102: =SUM($S$54:S102)*$BH$6/12 -> 13838.30667 | W102: 6080.932956 | AB102: =SUM($Z$54:Z102)*$BH$6/12 -> 1812.576667 | AD102: 2412.486599 | AI102: =SUM($AG$54:AG102)*$BH$6/12 -> 565.6 | AK102: 789.0948718 | AP102: =(SUM($AN$60:AN102)*$BH$6/12)+($AN$54*$BH$6/12) -> 33711.92667 | AT102: =SUM($AR$60:AR101)/$AT$8/12 -> 19212.67673 | AY102: =SUM($AW$54:AW102)*$BH$6/12 -> 1308.94 | BA102: 3336.706217 | BE102: -8.731149137e-10 | BF102: 17000000 | BG102: -1.818989404e-13 | BH102: 56666.66667 | BM102: 0 | BN102: 59420.59
A103: 2022-10-01 | G103: =SUM($E$54:E103)*$BH$6/12 -> 3400.523333 | I103: 5675.765961 | N103: =SUM($L$54:L103)*$BH$6/12 -> 4782.716667 | P103: 7193.771265 | U103: =SUM($S$54:S103)*$BH$6/12 -> 13838.30667 | W103: 6080.932956 | AB103: =SUM($Z$54:Z103)*$BH$6/12 -> 1812.576667 | AD103: 2412.486599 | AI103: =SUM($AG$54:AG103)*$BH$6/12 -> 565.6 | AK103: 789.0948718 | AP103: =(SUM($AN$60:AN103)*$BH$6/12)+($AN$54*$BH$6/12) -> 33711.92667 | AT103: =SUM($AR$60:AR102)/$AT$8/12 -> 19212.67673 | AY103: =SUM($AW$54:AW103)*$BH$6/12 -> 1308.94 | BA103: 3336.706217 | BE103: -8.731149137e-10 | BF103: 17000000 | BG103: -1.818989404e-13 | BH103: 56666.66667 | BM103: 0 | BN103: 59420.59
A104: 2022-11-01 | G104: =SUM($E$54:E104)*$BH$6/12 -> 3400.523333 | I104: 5675.765961 | N104: =SUM($L$54:L104)*$BH$6/12 -> 4782.716667 | P104: 7193.771265 | U104: =SUM($S$54:S104)*$BH$6/12 -> 13838.30667 | W104: 6080.932956 | AB104: =SUM($Z$54:Z104)*$BH$6/12 -> 1812.576667 | AD104: 2412.486599 | AI104: =SUM($AG$54:AG104)*$BH$6/12 -> 565.6 | AK104: 789.0948718 | AP104: =(SUM($AN$60:AN104)*$BH$6/12)+($AN$54*$BH$6/12) -> 33711.92667 | AT104: =SUM($AR$60:AR103)/$AT$8/12 -> 19212.67673 | AY104: =SUM($AW$54:AW104)*$BH$6/12 -> 1308.94 | BA104: 3336.706217 | BE104: -8.731149137e-10 | BF104: 17000000 | BG104: -1.818989404e-13 | BH104: 56666.66667 | BM104: 0 | BN104: 59420.59
A105: 2022-12-01 | G105: =SUM($E$54:E105)*$BH$6/12 -> 3400.523333 | I105: 5675.765961 | N105: =SUM($L$54:L105)*$BH$6/12 -> 4782.716667 | P105: 7193.771265 | U105: =SUM($S$54:S105)*$BH$6/12 -> 13838.30667 | W105: 6080.932956 | AB105: =SUM($Z$54:Z105)*$BH$6/12 -> 1812.576667 | AD105: 2412.486599 | AI105: =SUM($AG$54:AG105)*$BH$6/12 -> 565.6 | AK105: 789.0948718 | AP105: =(SUM($AN$60:AN105)*$BH$6/12)+($AN$54*$BH$6/12) -> 33711.92667 | AT105: =SUM($AR$60:AR104)/$AT$8/12 -> 19212.67673 | AY105: =SUM($AW$54:AW105)*$BH$6/12 -> 1308.94 | BA105: 3336.706217 | BE105: -8.731149137e-10 | BF105: 17000000 | BG105: -1.818989404e-13 | BH105: 56666.66667 | BI105: =SUM(BG94:BG105) -> 202.2274167 | BJ105: =SUM(BH94:BH105) -> 676764.3613 | BK105: =SUM(BG100:BG105) -> -1.091393642e-12 | BL105: =SUM(BH100:BH105) -> 340000 | BM105: 0 | BN105: 59420.59
A107: Interest during construction Відсотки під час будівництва | BC107: Costs exceeding 17 mio EUR, need other financing sources!! Для покриття витрат понад 17 млн. євро потрібні додаткові джерела фінансування!! | BH107: =SUM(BH10:BH106) -> 2135666.022 | BM107: =SUM(BM54:BM106) -> 572608.486 | BN107: =SUM(BN54:BN106) -> 1587842.846
A108: 2017 | F108: =SUM(F34:F45) -> 0 | M108: =SUM(M34:M45) -> 0 | T108: =SUM(T34:T45) -> 0 | AA108: =SUM(AA34:AA45) -> 0 | AH108: =SUM(AH34:AH45) -> 0 | AO108: =SUM(AO34:AO45) -> 0 | AX108: =SUM(AX34:AX45) -> 0 | BC108: 826177
A109: 2018 | F109: =SUM(F46:F57) -> 3400.523333 | M109: =SUM(M46:M57) -> 4782.716667 | T109: =SUM(T46:T57) -> 13838.30667 | AA109: =SUM(AA46:AA57) -> 1812.576667 | AH109: =SUM(AH46:AH57) -> 565.6 | AO109: =SUM(AO46:AO57) -> 33711.92667 | AX109: =SUM(AX46:AX57) -> 1308.94 | BC109: It assumed that the remaining amount will be loaned to CVK at the same conditions as the KfW loan. Передбачається, що залишкова сума буде надаватися ЧВК на тих самих умовах, що й кредит KfW. | BM109: =SUM(BM107:BN107) -> 2160451.332
A110: 2019 | F110: =SUM(F58:F69) -> 18600.86263 | M110: =SUM(M58:M69) -> 26161.46017 | T110: =SUM(T58:T69) -> 53079.79057 | AA110: =SUM(AA58:AA69) -> 5437.73 | AH110: =SUM(AH58:AH69) -> 2092.72 | AO110: =SUM(AO58:AO69) -> 101135.78 | AX110: =SUM(AX58:AX69) -> 3926.82
A111: 2020 | F111: =SUM(F70:F81) -> 13534.08287 | M111: =SUM(M70:M81) -> 19035.21233 | T111: =SUM(T70:T81) -> 107049.1866 | AA111: =SUM(AA70:AA81) -> 8972.2545 | AH111: =SUM(AH70:AH81) -> 0 | AO111: =SUM(AO70:AO81) -> 101135.78 | AX111: =SUM(AX70:AX81) -> 2486.986
A112: 2021 | F112: =SUM(F82:F93) -> 0 | M112: =SUM(M82:M93) -> 0 | T112: =SUM(T82:T93) -> 23623.96638 | AA112: =SUM(AA82:AA93) -> 1631.319 | AH112: =SUM(AH82:AH93) -> 0 | AO112: =SUM(AO82:AO93) -> 25283.945 | AX112: =SUM(AX82:AX93) -> 0
A113: 2022 | F113: =SUM(F94:F105) -> 0 | M113: =SUM(M94:M105) -> 0 | T113: =SUM(T94:T105) -> 0 | AA113: =SUM(AA94:AA105) -> 0 | AH113: =SUM(AH94:AH105) -> 0 | AO113: =SUM(AO94:AO105) -> 0 | AX113: =SUM(AX94:AX105) -> 0 | BI113: Total commitment charge Всього комісія за резервування
F114: =SUM(F108:F113) -> 35535.46883 | M114: =SUM(M108:M113) -> 49979.38917 | T114: =SUM(T108:T113) -> 197591.2502 | AA114: =SUM(AA108:AA113) -> 17853.88017 | AH114: =SUM(AH108:AH113) -> 2658.32 | AO114: =SUM(AO108:AO113) -> 261267.4317 | AX114: =SUM(AX108:AX113) -> 7722.746 | BJ114: 2018 | BK114: =SUM(BK46:BK57) -> 152119.5465
A115: Total interest during construction Всього відсотків під час будівництва | BJ115: 2019 | BK115: =SUM(BK58:BK69) -> 25840.94568
A116: 2017 | F116: =SUM(F108:BA108) -> 0 | BJ116: 2020 | BK116: =SUM(BK70:BK81) -> 11944.08785
A117: 2018 | F117: 59420.59 | BJ117: 2021 | BK117: =SUM(BK82:BK93) -> 2247.399529
A118: 2019 | F118: 210435.1634 | BJ118: 2022 | BK118: =SUM(BK94:BK105) -> 202.2274167
A119: 2020 | F119: 252213.5023
A120: 2021 | F120: 50539.23038
A121: 2022 | F121: 0
F122: =SUM(F116:F121) -> 572608.486
A125: Interest after construction Відсотки після будівництва
A126: 2017 | G126: =SUM(G34:G45) -> 0 | N126: =SUM(N34:N45) -> 0 | U126: =SUM(U34:U45) -> 0 | AB126: =SUM(AB34:AB45) -> 0 | AI126: =SUM(AI34:AI45) -> 0 | AP126: =SUM(AP34:AP45) -> 0 | AY126: =SUM(AY34:AY45) -> 0
A127: 2018 | G127: =SUM(G46:G57) -> 0 | N127: =SUM(N46:N57) -> 0 | U127: =SUM(U46:U57) -> 0 | AB127: =SUM(AB46:AB57) -> 0 | AI127: =SUM(AI46:AI57) -> 0 | AP127: =SUM(AP46:AP57) -> 0 | AY127: =SUM(AY46:AY57) -> 0
A128: 2019 | G128: =SUM(G58:G69) -> 0 | N128: =SUM(N58:N69) -> 0 | U128: =SUM(U58:U69) -> 0 | AB128: =SUM(AB58:AB69) -> 0 | AI128: =SUM(AI58:AI69) -> 2545.2 | AP128: =SUM(AP58:AP69) -> 53564.5057 | AY128: =SUM(AY58:AY69) -> 0
A129: 2020 | G129: =SUM(G70:G81) -> 21423.297 | N129: =SUM(N70:N81) -> 30131.115 | U129: =SUM(U70:U81) -> 0 | AB129: =SUM(AB70:AB81) -> 0 | AI129: =SUM(AI70:AI81) -> 6447.84 | AP129: =SUM(AP70:AP81) -> 170432.5181 | AY129: =SUM(AY70:AY81) -> 8246.322
A130: 2021 | G130: =SUM(G82:G93) -> 39446.07067 | N130: =SUM(N82:N93) -> 55479.51333 | U130: =SUM(U82:U93) -> 124544.76 | AB130: =SUM(AB82:AB93) -> 18125.76667 | AI130: =SUM(AI82:AI93) -> 6787.2 | AP130: =SUM(AP82:AP93) -> 333935.3625 | AY130: =SUM(AY82:AY93) -> 15183.704
A131: 2022 | G131: =SUM(G94:G105) -> 40806.28 | N131: =SUM(N94:N105) -> 57392.6 | U131: =SUM(U94:U105) -> 164675.8493 | AB131: =SUM(AB94:AB105) -> 21750.92 | AI131: =SUM(AI94:AI105) -> 6787.2 | AP131: =SUM(AP94:AP105) -> 394429.542 | AY131: =SUM(AY94:AY105) -> 15707.28
G132: =SUM(G126:G131) -> 101675.6477 | N132: =SUM(N126:N131) -> 143003.2283 | U132: =SUM(U126:U131) -> 289220.6093 | AB132: =SUM(AB126:AB131) -> 39876.68667 | AI132: =SUM(AI126:AI131) -> 22567.44 | AP132: =SUM(AP126:AP131) -> 952361.9283 | AY132: =SUM(AY126:AY131) -> 39137.306
A134: Total interest after construction Всього відсотків після будівництва
A135: 2017 | F135: 2017 | G135: =SUM(G126:BB126) -> 0
A136: 2018 | F136: 2018 | G136: 0
A137: 2019 | F137: 2019 | G137: 56109.7057
A138: 2020 | F138: 2020 | G138: 236681.0921
A139: 2021 | F139: 2021 | G139: 593502.3771
A140: 2022 | F140: 2022 | G140: 701549.6713
G141: =SUM(G135:G140) -> 1587842.846
A143: KfW disbursements Виплати KfW
A144: 2017 | E144: =SUM(E34:E45) -> 0 | L144: =SUM(L34:L45) -> 0 | S144: =SUM(S34:S45) -> 0 | Z144: =SUM(Z34:Z45) -> 0 | AG144: =SUM(AG34:AG45) -> 0 | AN144: =SUM(AN34:AN45) -> 0 | AW144: =SUM(AW34:AW45) -> 0
A145: 2018 | E145: =SUM(E46:E57) -> 255039.25 | L145: =SUM(L46:L57) -> 358703.75 | S145: =SUM(S46:S57) -> 1037873 | Z145: =SUM(Z46:Z57) -> 135943.25 | AG145: =SUM(AG46:AG57) -> 42420 | AN145: =SUM(AN46:AN57) -> 2528394.5 | AW145: =SUM(AW46:AW57) -> 98170.5
A146: 2019 | E146: =SUM(E58:E69) -> 397861.23 | L146: =SUM(L58:L69) -> 559577.85 | S146: =SUM(S58:S69) -> 770991.3714 | Z146: =SUM(Z58:Z69) -> 0 | AG146: =SUM(AG58:AG69) -> 110292 | AN146: =SUM(AN58:AN69) -> 2921700.311 | AW146: =SUM(AW58:AW69) -> 0
A147: 2020 | E147: =SUM(E70:E81) -> 265240.82 | L147: =SUM(L70:L81) -> 373051.9 | S147: =SUM(S70:S81) -> 1541982.743 | Z147: =SUM(Z70:Z81) -> 235634.9667 | AG147: =SUM(AG70:AG81) -> 16968 | AN147: =SUM(AN70:AN81) -> 2921700.311 | AW147: =SUM(AW70:AW81) -> 255243.3
A148: 2021 | E148: =SUM(E82:E93) -> 102015.7 | L148: =SUM(L82:L93) -> 143481.5 | S148: =SUM(S82:S93) -> 385495.6857 | Z148: =SUM(Z82:Z93) -> 172194.7833 | AG148: =SUM(AG82:AG93) -> 0 | AN148: =SUM(AN82:AN93) -> 730425.0778 | AW148: =SUM(AW82:AW93) -> 39268.2
A149: 2022 | E149: =SUM(E94:E105) -> 0 | L149: =SUM(L94:L105) -> 0 | S149: =SUM(S94:S105) -> 415149.2 | Z149: =SUM(Z94:Z105) -> 0 | AG149: =SUM(AG94:AG105) -> 0 | AN149: =SUM(AN94:AN105) -> 1011357.8 | AW149: =SUM(AW94:AW105) -> 0
E150: =SUM(E144:E149) -> 1020157 | L150: =SUM(L144:L149) -> 1434815 | S150: =SUM(S144:S149) -> 4151492 | Z150: =SUM(Z144:Z149) -> 543773 | AG150: =SUM(AG144:AG149) -> 169680 | AN150: =SUM(AN144:AN149) -> 10113578 | AW150: =SUM(AW144:AW149) -> 392682
A151: Total KfW disbursements Всього виплати KfW
D152: 2017 | E152: =SUM(E144:AW144) -> 0
D153: 2018 | E153: =SUM(E145:AW145) -> 4456544.25
D154: 2019 | E154: 4760422.763
D155: 2020 | E155: 5609822.041
D156: 2021 | E156: 1572880.947
D157: 2022 | E157: 1426507
E158: =SUM(E152:E157) -> 17826177
A160: Total annual expenditures EUR real (2017) Загальні щорічні витрати євро в цінах 2017 року | E160: 2017 | F160: 2018 | G160: 2019 | H160: 2020 | I160: 2021 | J160: 2022
A161: Total interest during construction Всього відсотків під час будівництва | E161: =F116 -> 0 | F161: =$F117 -> 59420.59 | G161: =$F118 -> 210435.1634 | H161: =$F119 -> 252213.5023 | I161: =$F120 -> 50539.23038 | J161: =$F121 -> 0
A162: KWF disbusements Виплати KfW | E162: =E152 -> 0 | F162: =$E153 -> 4456544.25 | G162: =$E154 -> 4760422.763 | H162: =$E155 -> 5609822.041 | I162: =$E156 -> 1572880.947 | J162: =$E157 -> 1426507
A163: Total construction cash flows Всього грошові потоки під час будівництва | E163: =SUM(E161:E162) -> 0 | F163: =SUM(F161:F162) -> 4515964.84 | G163: 4970857.926 | H163: 5862035.543 | I163: 1623420.177 | J163: 1426507
A165: Total annual expenditures UAH nominal Загальні щорічні витрати грн з урахуванням інфляції | E165: 2017 | F165: 2018 | G165: 2019 | H165: 2020 | I165: 2021 | J165: 2022
A166: Total interest during construction Всього відсотків під час будівництва | E166: =E161*BasicData!B41 -> 0 | F166: =F161*BasicData!C41 -> 1865108.805 | G166: =G161*BasicData!D41 -> 7296269.925 | H166: =H161*BasicData!E41 -> 9992853.922 | I166: =I161*BasicData!F41 -> 2367073.329 | J166: =J161*BasicData!G41 -> 0
A167: KWF disbusements Виплати KfW | E167: =E162*EURratemid*BasicData!B33 -> 0 | F167: =F162*EURratemid*BasicData!C33 -> 141771583 | G167: =G162*EURratemid*BasicData!D33 -> 159767687.2 | H167: =H162*EURratemid*BasicData!E33 -> 197688683.3 | I167: =I162*EURratemid*BasicData!F33 -> 58199315.25 | J167: =J162*EURratemid*BasicData!G33 -> 55422387.38
A168: Total construction cash flows Всього грошові потоки під час будівництва | E168: =SUM(E166:E167) -> 0 | F168: =SUM(F166:F167) -> 143636691.8 | G168: =SUM(G166:G167) -> 167063957.1 | H168: =SUM(H166:H167) -> 207681537.2 | I168: =SUM(I166:I167) -> 60566388.58 | J168: =SUM(J166:J167) -> 55422387.38

Sheet KfWInterest
A1: Interest and commitment charge for KfW loan Відсотки та комісія за резервування кредиту KfW
D3: 2017 | E3: 2018 | F3: 2019 | G3: 2020 | H3: 2021 | I3: 2022
B4: Interest Видсотки
B5: Interest Видсотки | C5: EUR євро | D5: =LOOKUP(D3,KfWProject!$F$135:$F$140,KfWProject!$G$135:$G$140) -> 0 | E5: =LOOKUP(E3,KfWProject!$F$135:$F$140,KfWProject!$G$135:$G$140) -> 0 | F5: =LOOKUP(F3,KfWProject!$F$135:$F$140,KfWProject!$G$135:$G$140) -> 56109.7057 | G5: =LOOKUP(G3,KfWProject!$F$135:$F$140,KfWProject!$G$135:$G$140) -> 236681.0921 | H5: =LOOKUP(H3,KfWProject!$F$135:$F$140,KfWProject!$G$135:$G$140) -> 593502.3771 | I5: =LOOKUP(I3,KfWProject!$F$135:$F$140,KfWProject!$G$135:$G$140) -> 701549.6713
B6: Interest at projected exchange rates Відсотки за прогнозованими курсами валют | C6: UAH грн | D6: =D5*BasicData!B41 -> 0 | E6: =E5*BasicData!C41 -> 0 | F6: =F5*BasicData!D41 -> 1945452.232 | G6: =G5*BasicData!E41 -> 9377450.29 | H6: =H5*BasicData!F41 -> 27797487.95 | I6: =I5*BasicData!G41 -> 39500503.74
B7: Interest at base year (2017) price levels Відсотки за базовим рівнем цін (2017р.) | C7: UAH грн | D7: =D6/BasicData!B33 -> 0 | E7: =E6/BasicData!C33 -> 0 | F7: =F6/BasicData!D33 -> 1714579.778 | G7: =G6/BasicData!E33 -> 7871048.658 | H7: =H6/BasicData!F33 -> 22221024.5 | I7: =I6/BasicData!G33 -> 30072661.27
B9: Commitment charge Комісія за резервування
B10: Commitment charge Комісія за резервування | C10: EUR євро | D10: =BP!I595 -> 0 | E10: =KfWProject!BK114 -> 152119.5465 | F10: =KfWProject!BK115 -> 25840.94568 | G10: =KfWProject!BK116 -> 11944.08785 | H10: =KfWProject!BK117 -> 2247.399529 | I10: =KfWProject!BK118 -> 202.2274167
B11: Commitment charge at projected exchange rates Комісія за резервування за прогнозованими курсами валют | C11: UAH грн | D11: =D10*BasicData!B41 -> 0 | E11: =E10*BasicData!C41 -> 4774767.559 | F11: =F10*BasicData!D41 -> 895964.8749 | G11: =G10*BasicData!E41 -> 473232.0991 | H11: =H10*BasicData!F41 -> 105260.0019 | I11: =I10*BasicData!G41 -> 11386.34249
B12: Commitment charge at base year (2017) price levels Комісія за резервування за базовим рівнем цін (2017р.) | C12: UAH грн | D12: =D11/BasicData!B33 -> 0 | E12: =E11/BasicData!C33 -> 4439579.32 | F12: =F11/BasicData!D33 -> 789638.127 | G12: =G11/BasicData!E33 -> 397211.6901 | H12: =H11/BasicData!F33 -> 84143.75734 | I12: =I11/BasicData!G33 -> 8668.689972
B14: Total financing charges Всього фінансові платежі
B15: Total Всього | C15: EUR євро | D15: =D5+D10 -> 0 | E15: =E5+E10 -> 152119.5465 | F15: 81950.65139 | G15: 248625.18 | H15: 595749.7767 | I15: 701751.8987
B16: Total at projected exchange rates Всього за прогнозованими курсами валют | C16: UAH грн | D16: =D6+D11 -> 0 | E16: 4774767.559 | F16: 2841417.107 | G16: 9850682.389 | H16: 27902747.96 | I16: 39511890.08
B17: Total at base year (2017) price levels Всього за базовим рівнем цін (2017р.) | C17: UAH грн | D17: =D7+D12 -> 0 | E17: 4439579.32 | F17: 2504217.905 | G17: 8268260.348 | H17: 22305168.26 | I17: 30081329.96

Sheet BP
A1: Примітка: для коректного відображення всіх цифр в колонці А необхідно обрати будь-яку комірку на цьому листі та натиснути на клавіатурі "Ctrl+Alt+F9"
A2: Note: To display all numbers in column A correctly, single-click on any cell in this sheet and then press "Ctrl+Alt+F9"
A3: Chernivtsivodokanal Business Plan 2018-2022 | C3: Бізнес-план КП "Чернівціводоканал" на 2018-2022 рр.
A5: No | B5: Activity | C5: Захід | D5: Notes | E5: Примітки | F5: Unit | G5: од. вимірювання | H5: 2016 | I5: 2017 | J5: 2018 | K5: 2019 | L5: 2020 | M5: 2021 | N5: 2022
A7: A | B7: Operations & Water Loss Reduction Plan | C7: План операційної діяльність та скорочення втрат води
A9: 1 | B9: Asset Management System Development | C9: Розробка системи управління активами | F9: UAH | G9: грн. | J9: 0 | K9: 0 | L9: 0 | M9: 0 | N9: 0
A10: =WBSNumbering() ->  | B10: Administrative activities | C10: Адміністративні заходи
B11: Institualisation AMS into CVK | C11: Інституалізація СУА на ЧВК | D11: Designing and approval job descriptions on AM officers, model/ scheme of communication with other CVK units and WS facilities, action plan on providing technical inventarisation, ets. | E11: Розробка та затвердження посадових інструкцій спеціалістів УА, моделі / схеми комунікації із підрозділами ЧВК та водопостачальними об'єктами, план дій щодо проведення технічної інвентаризації тощо. | F11: UAH | G11: грн. | J11: 0
B12: Recruitment of staff for the Asset documentation & management unit | C12: Залучення персоналу в команду ведення документації та управління активами | D12: at least 3 specialists class 1-2 | E12: щонайменше 3 спеціалісти 1-2 класу | F12: persons | G12: осіб | J12: 3
B13: Technical support /Procurement | C13: Технічна підтримка / Закупівля | D13: Equipment for 3 working places (2 System Units (Intel Core i5 / RAM 8 ГБ / SSD + HDD), 1 Laptop (''15'6 Intel Core i5 / RAM 8 ГБ / SSD) 3 Screens ''22-23, 3 Tablets ( camera (5MPixels+) , MFP) and stationers (folders, paper ets). Costs included in IT plan. | E13: Обладнання для 3 робочих місць ( 2 системі блоки (Intel Core i5 / RAM 8 ГБ / SSD + HDD), 1 ноутбук (''15'6 Intel Core i5 / RAM 8 ГБ / SSD) 3 монітори ''22-23, 3 планшети (камера (5MPixels+) , БФУ) та канцелярія (папка, папір тощо). Витрати включені в план заходів, що відносяться до інформаційних технологій | F13: units | G13: одиниць | J13: 3
B14: Expert assistants and coaching AMU staff | C14: Експертна підтримка та навчання команди СУА | D14: Workshop on AMS introduction, providing technical inventory and assesment, using QGIS; experts provided through EU grant | E14: Семінар для представлення СУА, проведення технічної інвентаризації та оцінки з використанням QGIS; надання експертної підтримки фінансується грантом ЄС | F14: expert days | G14: експертних днів | J14: =10*12 -> 120
B15: Stakeholder support /presentation AMS activities | C15: Підтримка зацікавлених сторін / презентація заходів СУА | D15: Launch meeting with heads of CVK units and facilities; working meetings with city council for cooperation on development city's GIS | E15: Стартова зустріч із керівництвом відділів та об'єктів ЧВК; робочі зустрічі із міською радою щодо співробітництва для розробки GIS міста | F15: UAH | G15: грн. | J15: 0
B16: Technical inventorisation and assessment activities | C16: Заходи з технічної інвентаризації та оцінки
B17: Completed QGIS Data Base on Above-Ground (A-G) and Below Ground (B-G) Assets | C17: Завершення бази даних QGIS для наземних та підземних активів | D17: All A-G and B-G Assets will be grouped on 8 territorial zones. In each zone the AM officers with CVK spesialists will be providing technical inventarization and assessment assets, verification and adds financial inventory numbers. All current data with assesment result will be entered into QGIS Data Base during 2 years. In next periods existing data will be corrected and updated. | E17: Всі наземні та підземні активи будуть поділені на групи в 8 територіальних зонах. В кожній зоні експерт з УА, разом із спеціалістами ЧВК проведе технічну інвентаризацію та оцінку активів, їх верифікацію та закріпить фінансовий реєстраційний номер. Всі поточні дані із результатами оцінки будуть занесені в базу даних QGIS протягом 2 років. В наступні роки існуючі дані будуть виправлятися та оновлюватися. | F17: % | G17: % | I17: 0 | J17: 0.5 | K17: 1 | L17: 1 | M17: 1 | N17: 1
B18: Updated the QGIS DataBase on B-G assets repairs data | C18: Оновлення база даних QGIS для ремонту підземних активів | D18: Water Network Unit officer will be recording and entering data on repairs into QGIS DataBase | E18: Спеціаліст дільниці водопровідних мереж буде вести записи та вносити дані щодо ремонту до бази даних QGIS | F18: unit (record) | G18: одиниця (запис) | J18: =BP!J25*0.3 -> 777 | K18: =BP!K25*0.5 -> 1181.0659 | L18: =BP!L25*0.8 -> 1704.627689 | M18: =BP!M25*0.9 -> 1809.470815 | N18: =BP!N25*0.95 -> 1909.996972
B19: Analysis and reporting activities | C19: Аналіз та звітування
B20: Designed reports for Investment planning activities | C20: Сформовані звіти для заходів з інвестиційного планування | D20: Strategic planning department will analyse asset criticality and prepare recommendations/reports to investment programmes and plans | E20: Відділ стратегічного планування буде аналізувати критичність активу та готувати рекомендації / звіти до інвестиційних програм та планів. | F20: units | G20: одиниць | J20: 2 | K20: 2 | L20: 2 | M20: 2 | N20: 2
A22: 2 | B22: Maintenance & Repair | C22: Технічне обслуговування та ремонт | F22: UAH | G22: грн. | J22: =SUM(J33:J41) -> 2804790.1 | K22: =SUM(K33:K41,K31) -> 2897508.068 | L22: =SUM(L33:L41) -> 2905961.957 | M22: =SUM(M33:M41) -> 3078556.235 | N22: =SUM(N33:N41) -> 3371745.737
A23: =WBSNumbering() ->  | B23: Emergency response & repairs | C23: Аварійний режим роботи та ремонти
B24: Estimated changes in emergency incidents due to KfW project (network & transmission) | C24: Зміни, які очікуються відносно аварійних випадків, обумовлені роботою проекту KfW (мережа та водогін) | D24: Includes reduced incidents due to pipe replacements in project areas of network and due to improved pressure management in entire network, figures according to GKW | E24: Включає зменшення кількості випадків завдяки замінам труб на ділянках мереж, охоплених роботою проекту та завдяки вдосконаленню регулювання тиску в мережі в цілому, дані згідно інформації, отриманої від консультантів GKW | F24: % | G24: % | H24: 0 | I24: 0 | J24: 0 | K24: -0.08798 | L24: -0.09794 | M24: -0.05644 | N24: 0
B25: Total number of incidents (network & transmission) | C25: Загальна кількість випадків (мережа та водогін) | F25: unit | G25: одиниць | H25: 2590 | I25: =H25+(H25*I24) -> 2590 | J25: 2590 | K25: 2362.1318 | L25: 2130.784612 | M25: 2010.523128 | N25: 2010.523128
B26: Total incidents reduced (network & transmission) | C26: На скільки загалом зменшено кількість випадків (мережа та водогін) | F26: unit | G26: одиниць | H26: 0 | I26: =I25-H25 -> 0 | J26: 0 | K26: -227.8682 | L26: -231.3471885 | M26: -120.2614835 | N26: 0
B27: Changes in budget for emergency repairs | C27: Зміни в бюджеті для аварійного ремонту | D27: this depends on CVKs policy for asset replacements/repair | E27: залежить від політики ЧВК щодо замін/ремонту активів | F27: % | G27: % | H27: =H24 -> 0 | I27: 0 | J27: 0 | K27: -0.08798 | L27: -0.09794 | M27: -0.05644 | N27: 0
B28: Preventive leak detection and repair (preventive maintenance) | C28: Планово-попереджувальне виявлення витоків та ремонт (планово-попереджувальні роботи)
B29: Establish leak detection team | C29: Створення команди для роботи по виявленню витоків | D29: Ideally this team would work under water network unit, as water network unit will conduct pre-emptive repairs of detected leaks | E29: Бажано, щоб команда працювала у складі ділянки водопровідної мережі, оскільки ділянка водопровідної мережі буде займатися попереднім ремонтом виявлених витоків | I29: X
B30: Recruit or reallocate personnel to work in the team | C30: Прийняти на роботу або перерозподілити робітників для роботи в команді | F30: persons | G30: осіб | J30: 3
B31: Train team members and additional backup teams | C31: Підготовка членів команди та додаткових резервних команд | D31: Some trainings can be conducted internally, budget here is for additional external trainings. | E31: Деяке навчання можливо провести власними силами, тут необхідно закласти в бюджет додаткові тренінги, проведені зовнішніми організаціями | F31: UAH | G31: грн. | K31: 60000
B32: Budget for repair and maintenance (material costs only) | C32: Бюджет для ремонту та обслуговування (лише матеріальні витрати)
B33: Budget for emergency repairs (dispatch service / water network unit) | C33: Бюджет для аварійно-ремонтних робіт (диспетчерська служба / ділянка водопровідної мережі) | D33: includes material costs only | E33: включає лише матеріальні витрати | F33: UAH | G33: грн. | H33: =BasicData!B7 -> 1334338 | I33: =H33+(H33*I27) -> 1334338 | J33: 1334338 | K33: 1216942.943 | L33: 1097755.551 | M33: 1035798.228 | N33: 1035798.228
B34: Budget for leaks detected in network (small reactive repairs of non-emergency leaks) | C34: Бюджет для витоків, виявлених в мережі (невеликий швидкий ремонт не аварійних витоків) | D34: start at 15% of emergency budget, increase by 15%/year | E34: розпочати на рівні 15% бюджету для надзвичайних ситуацій, підвищувати на 15%/рік | F34: UAH | G34: грн. | H34: 0 | I34: 0 | J34: =J33*15% -> 200150.7 | K34: =J34*125% -> 250188.375 | L34: =K34*125% -> 312735.4687 | M34: =L34*125% -> 390919.3359 | N34: =M34*125% -> 488649.1699
B35: Budget for preventive maintenance in network | C35: Бюджет для планово-попереджувальних робіт в мережі | D35: start at 15% of emergency budget, increase by 30%/year | E35: розпочати на рівні 15% бюджету для надзвичайних ситуацій, підвищувати на 30%/рік | F35: UAH | G35: грн. | H35: 0 | I35: 0 | J35: =J33*15% -> 200150.7 | K35: =J35*125% -> 250188.375 | L35: 312735.4687 | M35: 390919.3359 | N35: 488649.1699
B36: Budget for preventive maintenance in production & transmission facilities | C36: Бюджет для планово-попереджувальних робіт на виробничих та водогінних об'єктах | D36: start at 15% of emergency budget, increase by 20%/year | E36: розпочати на рівні 15% бюджету для надзвичайних ситуацій, підвищувати на 20%/рік | F36: UAH | G36: грн. | H36: 0 | I36: 0 | J36: =J33*15% -> 200150.7 | K36: 250188.375 | L36: 312735.4687 | M36: 390919.3359 | N36: 488649.1699
B37: Outsourced maintenance works | C37: Аутсорсингові роботи з технічного обслуговування
B38: Cleaning Mytkiv intake river screens | C38: Очистка решіток водозабіру Митків | D38: based on CVKs plan submitted to city council in August 2017 | E38: на підставі плану ЧВК, поданого до міської ради в серпні 2017 року | F38: UAH | G38: грн. | J38: 350000 | K38: 350000 | L38: 350000 | M38: 350000 | N38: 350000
B39: Cleaning sedimentation basins, reaction chamber and reservoirs in Vikno, Shubranetz and Popova | C39: Очистка відстійника, реакційної камери та резервуарів Вікно, Шубранець та Попова | D39: based on CVKs plan submitted to city council in August 2017 | E39: на підставі плану ЧВК, поданого до міської ради в серпні 2017 року | F39: UAH | G39: грн. | J39: 320000 | K39: 320000 | L39: 320000 | M39: 320000 | N39: 320000
B40: Cleaning bore holes in Rohizna, Lenkivtsi, Ocheret, Mahala | C40: Очистка свердловин Рогізна, Ленківці, Очерет, Магала | D40: based on CVKs plan submitted to city council in August 2017 | E40: на підставі плану ЧВК, поданого до міської ради в серпні 2017 року | F40: UAH | G40: грн. | J40: 50000 | K40: 50000 | L40: 50000 | M40: 50000 | N40: 50000
B41: Testing electrical equipment | C41: Тестування електрообладнання | D41: based on CVKs plan submitted to city council in August 2017 | E41: на підставі плану ЧВК, поданого до міської ради в серпні 2017 року | F41: UAH | G41: грн. | J41: 150000 | K41: 150000 | L41: 150000 | M41: 150000 | N41: 150000
A43: 3 | B43: Physical water loss reduction | C43: Скорочення фізичних втрат води | F43: UAH | G43: грн. | J43: 0 | K43: 0 | L43: 0 | M43: 0 | N43: 0
A44: =WBSNumbering() ->  | B44: Distribution network | C44: Розподільча мережа
B45: Relative estimated changes of physical water losses in distribution network | C45: Відповідні розраховані зміни щодо фізичних втрат води в розподільчій мережі | D45: "+" means higher losses, "-" means less losses. Higher losses due toconstruction activities | E45: "+" означає більші втрати, "-" - менші втрати. Більші втрати через будівельні роботи | F45: % | G45: % | H45: 0 | I45: 0 | J45: =SUM(J46:J49) -> -0.01 | K45: =SUM(K46:K49) -> -0.0425 | L45: =SUM(L46:L49) -> -0.096125 | M45: =SUM(M46:M49) -> -0.19393125 | N45: =SUM(N46:N49) -> -0.0244140625
B46: - reduced losses due to replaced (new) pipes | C46: - зменшення втрат завдяки заміні (новим) трубам | D46: figures based on GKW calculations | E46: інформація на основі розрахунків консультантів GKW | F46: % | G46: % | H46: 0 | I46: 0 | J46: 0 | K46: -0.05 | L46: -0.058 | M46: -0.035 | N46: 0
B47: - reduced losses due to pressure zoning measures | C47: - зменшення втрат завдяки заходам зонування тиску | D47: figures based on GKW calculations | E47: інформація на основі розрахунків консультантів GKW | F47: % | G47: % | H47: 0 | I47: 0 | J47: 0 | K47: 0 | L47: -0.0425 | M47: -0.1394 | N47: 0
B48: - reduced losses due to preventive maintenance | C48: - зменшення втрат завдяки планово-попереджувальним роботам | D48: figures follow the allocated budget for preventive maintenance | E48: Цифри залежать від виділеного бюджету для планово-попереджувальних робіт | F48: % | G48: % | H48: 0 | I48: 0 | J48: -0.01 | K48: =J48*125% -> -0.0125 | L48: =K48*125% -> -0.015625 | M48: =L48*125% -> -0.01953125 | N48: =M48*125% -> -0.0244140625
B49: - increased losses caused by construction works | C49: - збільшення втрат через роботи з будівництва | F49: % | G49: % | H49: 0 | I49: 0 | J49: 0 | K49: 0.02 | L49: 0.02 | M49: 0 | N49: 0
B50: Absolute estimated changes of physical water losses in distribution network | C50: Абсолютні розраховані зміни в фізичних втратах води в розподільчій мережі | D50: Figures for each year are based on total production of preceding year | E50: Дані на кожний рік базуються на загальному обсязі виробництва попереднього року | F50: m3 | G50: м3 | H50: 0 | I50: =H51*I45 -> 0 | J50: -107816.6675 | K50: -453638.6283 | L50: -982417.8256 | M50: -1791496.865 | N50: -181794.3545
B51: Total physical water losses in distribution network (m3) | C51: Загальні фізичні втрати води в розподільчій мережі (м3) | D51: includes "technical losses" and "operational losses", excludes "commercial losses", data source: Feasibility study in 2009 and own water balance update in 2016 | E51: включає "технічні втрати" та "операційні втрати", виключає "комерційні втрати", джерело інформації: техніко-економічне обґрунтування, 2009 рік та оновлений власний водний баланс у 2016 році | F51: m3 | G51: м3 | H51: =BasicData!$B$13 -> 10781666.75 | I51: =H51+I50 -> 10781666.75 | J51: 10673850.08 | K51: 10220211.45 | L51: 9237793.624 | M51: 7446296.759 | N51: 7264502.405
B52: Total reduced production demand through improvements in network | C52: Загальний обсяг зниження виробничого попиту через вдосконалення мережі | F52: m3 | G52: м3 | H52: =BasicData!$B$8 -> 28236765 | I52: =H52+I50 -> 28236765 | J52: 28128948.33 | K52: 27675309.7 | L52: 26692891.88 | M52: 24901395.01 | N52: 24719600.66
B53: Total physical water losses in distribution network (% of total production) | C53: Загальні фізичні втрати води в розподільчій мережі (% від загального виробництва) | D53: percentage based on current year | E53: відсоток на основі поточного року | F53: % | G53: % | H53: =H51/H52 -> 0.3818308062 | I53: =I51/I52 -> 0.3818308062 | J53: 0.3794613987 | K53: 0.3692898673 | L53: 0.3460769131 | M53: 0.2990313095 | N53: 0.2938762039
B54: Transmission main | C54: Магістральний водогін
B55: Relative estimated changes of physical water losses in transmission main (Mytkiv-Popov line) | C55: Відповідні розраховані зміни щодо фізичних втрат води в магістральному водогоні (дільниця Митків-Попов) | D55: includes "technical losses" and "operational losses" | E55: включає "технічні втрати" та "операційні втрати" | F55: % | G55: % | H55: 0 | I55: 0 | J55: =SUM(J56:J58) -> -0.005 | K55: =SUM(K56:K58) -> -0.00025 | L55: =SUM(L56:L58) -> -0.4515 | M55: =SUM(M56:M58) -> -0.274625 | N55: =SUM(N56:N58) -> -0.0094875
B56: - reduced losses in Mytkiv-Popov (replace Mytkiv pumps, valves and transmission mains) | C56: - зменшення втрат на дільниці Митків-Вікно (заміна насосів, засувок та магістрального водогону на станції Митків) | D56: includes losses in Vikno WTP due to broken valves (filter backflush) | E56: виключає втрати на ВОС Вікно через несправні засувки (зворотна промивка фільтру) | F56: % | G56: % | H56: 0 | I56: 0 | J56: 0 | K56: 0 | L56: -0.45 | M56: -0.266 | N56: 0
B57: - reduced losses in transmission and production due to preventive maintenance | C57: - зменшення втрат на водогоні та виробництві завдяки планово-попереджувальним роботам | D57: figures follow the allocated budget for preventive maintenance | E57: Цифри залежать від виділеного бюджету для планово-попереджувальних робіт | F57: % | G57: % | H57: 0 | I57: 0 | J57: -0.005 | K57: =J57*125% -> -0.00625 | L57: =K57*120% -> -0.0075 | M57: =L57*115% -> -0.008625 | N57: =M57*110% -> -0.0094875
B58: - increased losses caused by construction works | C58: - збільшення втрат через роботи з будівництва | F58: % | G58: % | H58: 0 | I58: 0 | J58: 0 | K58: 0.006 | L58: 0.006 | M58: 0 | N58: 0
B59: Absolute estimated changes of physical water losses in transmission main | C59: Абсолютні розраховані зміни в фізичних втратах води в магістральному водогоні | D59: Figures for each year are based on total production of preceding year | E59: Дані на кожний рік базуються на загальному обсязі виробництва попереднього року | F59: m3 | G59: м3 | H59: 0 | I59: 0 | J59: =I60*J55 -> -34021.65 | K59: =J60*K55 -> -1692.577088 | L59: =K60*L55 -> -3056030.021 | M59: =L60*M55 -> -1019568.862 | N59: =M60*N55 -> -25549.99774
B60: Total physical water losses in transmission main (m3) | C60: Загальні фізичні втрати води в магістральному водогоні (м3) | D60: includes "technical losses" and "operational losses", excludes "commercial losses" | E60: включає "технічні втрати" та "операційні втрати", виключає "комерційні втрати" | F60: m3 | G60: м3 | H60: =BasicData!$B$12 -> 6804330 | I60: =H60 -> 6804330 | J60: =I60+J59 -> 6770308.35 | K60: =J60+K59 -> 6768615.773 | L60: =K60+L59 -> 3712585.751 | M60: =L60+M59 -> 2693016.889 | N60: =M60+N59 -> 2667466.892
B61: Total reduced production demand through improvements in transmission main | C61: Загальний обсяг зниження виробничого попиту через вдосконалення магістрального водогону | F61: m3 | G61: м3 | H61: =BasicData!$B$8 -> 28236765 | I61: =H61+I59 -> 28236765 | J61: 28202743.35 | K61: 28201050.77 | L61: 25145020.75 | M61: 24125451.89 | N61: 24099901.89
B62: Total physical water losses in transmission (% of total production) | C62: Загальні фізичні втрати води в водогоні (% від загального виробництва) | F62: % | G62: % | H62: =H60/H61 -> 0.2409741343 | I62: =I60/I61 -> 0.2409741343 | J62: 0.240058503 | K62: 0.2400128927 | L62: 0.1476469552 | M62: 0.1116255522 | N62: 0.1106837241
A64: 4 | B64: Summary of production and losses | C64: Загальна інформація по виробництву та втратам | F64: UAH | G64: грн. | J64: 0 | K64: 0 | L64: 0 | M64: 0 | N64: 0
A65: =WBSNumbering() ->  | B65: Development of water production demand | C65: Динаміка виробничого попиту води | F65: m3 | G65: м3 | H65: =BasicData!$B$8+H59+H50 -> 28236765 | I65: =H65+I59+I50 -> 28236765 | J65: 28094926.68 | K65: =J65+K59+K50 -> 27639595.48 | L65: 23601147.63 | M65: 20790081.9 | N65: 20582737.55
B66: Revenue water | C66: Дохідна вода | D66: additional revenue percentages relate to the relevant previous year | E66: додаткові відсотки доходу відносяться до відповідного попереднього року | F66: m3 | G66: м3 | H66: =BasicData!$B$9 -> 8758905 | I66: =H66 -> 8758905 | J66: =I66+(I66*J183) -> 9047948.865 | K66: =J66+(J66*K183) -> 9826072.467 | L66: =K66+(K66*L183) -> 10032419.99 | M66: =L66+(L66*M183) -> 10142776.61 | N66: =M66+(M66*N183) -> 10254347.15
B67: Non-revenue water (NRW) | C67: Бездохідна вода (БВ) | F67: m3 | G67: м3 | H67: =BasicData!$B$10 -> 19477860 | I67: =SUM(I68+I71) -> 19477860 | J67: 19046977.82 | K67: 17813523.01 | L67: 13568727.64 | M67: 10647305.29 | N67: 10328390.4
B68: Physical & technical losses | C68: Фізичні та технічні втрати | F68: m3 | G68: м3 | H68: =BasicData!$B$11 -> 17585996.75 | I68: =SUM(I69:I70) -> 17585996.75 | J68: 17444158.43 | K68: 16988827.22 | L68: 12950379.38 | M68: 10139313.65 | N68: 9931969.296
B69: Physical losses in production & transmission | C69: Фізичні втрати в виробництві та водогоні | F69: m3 | G69: м3 | H69: =BasicData!$B$12 -> 6804330 | I69: =H69 -> 6804330 | J69: =J60 -> 6770308.35 | K69: =K60 -> 6768615.773 | L69: =L60 -> 3712585.751 | M69: =M60 -> 2693016.889 | N69: =N60 -> 2667466.892
B70: Physical losses in distribution | C70: Фізичні втрати в розподіленні | F70: m3 | G70: м3 | H70: =BasicData!$B$13 -> 10781666.75 | I70: =H70 -> 10781666.75 | J70: =J51 -> 10673850.08 | K70: =K51 -> 10220211.45 | L70: =L51 -> 9237793.624 | M70: =M51 -> 7446296.759 | N70: =N51 -> 7264502.405
B71: Commercial losses | C71: Комерційні втрати | F71: m3 | G71: м3 | H71: =BasicData!$B$14 -> 1891863.255 | I71: =I65-I66-I68 -> 1891863.255 | J71: 1602819.39 | K71: 824695.7876 | L71: 618348.2658 | M71: 507991.6459 | N71: 396421.1032
A73: 5 | B73: CVK Water Balance | C73: Водний баланс ЧВК | F73: UAH | G73: грн. | J73: 0 | K73: 0 | L73: 0 | M73: 0 | N73: 0
A74: =WBSNumbering() ->  | B74: Total water production | C74: Загальне виробництво води | F74: % | G74: % | H74: 1 | I74: 1 | J74: 1 | K74: 1 | L74: 1 | M74: 1 | N74: 1
B75: Revenue water | C75: Дохідна вода | F75: % | G75: % | H75: =H66/H65 -> 0.3101950595 | I75: =I66/I65 -> 0.3101950595 | J75: 0.3220492072 | K75: 0.3555071012 | L75: 0.4250818709 | M75: 0.4878661208 | N75: 0.4982013265
B76: Non-revenue water (NRW) | C76: Бездохідна вода (БВ) | F76: % | G76: % | H76: =SUM(H77,H80) -> 0.6898049405 | I76: =SUM(I77,I80) -> 0.6898049405 | J76: 0.6779507928 | K76: 0.6444928988 | L76: 0.5749181291 | M76: 0.5121338792 | N76: 0.5017986735
B77: Physical & technical losses | C77: Фізичні та технічні втрати | F77: % | G77: % | H77: =SUM(H78:H79) -> 0.6228049405 | I77: =SUM(I78:I79) -> 0.6228049405 | J77: 0.6209006567 | K77: 0.614655422 | L77: 0.5487182055 | M77: 0.4876995529 | N77: 0.4825387911
B78: Physical losses in production & transmission | C78: Фізичні втрати в виробництві та водогоні | F78: % | G78: % | H78: =H69/H65 -> 0.2409741343 | I78: =I69/I65 -> 0.2409741343 | J78: 0.2409797479 | K78: 0.2448883805 | L78: 0.1573053061 | M78: 0.1295337316 | N78: 0.1295972844
B79: Physical losses in distribution | C79: Фізичні втрати в розподіленні | F79: % | G79: % | H79: =H70/H65 -> 0.3818308062 | I79: =I70/I65 -> 0.3818308062 | J79: 0.3799209088 | K79: 0.3697670416 | L79: 0.3914128994 | M79: 0.3581658213 | N79: 0.3529415068
B80: Commercial losses | C80: Комерційні втрати | F80: % | G80: % | H80: =H71/H65 -> 0.067 | I80: 0.067 | J80: 0.05705013607 | K80: 0.02983747676 | L80: 0.02619992364 | M80: 0.02443432634 | N80: 0.01925988233
A83: B | B83: Commercial Plan | C83: Комерційний план
A85: 6 | B85: Meter reading | C85: Зняття показників лічильників | F85: UAH | G85: грн. | J85: 0 | K85: 0 | L85: 0 | M85: 0 | N85: 0
A86: =WBSNumbering() ->  | B86: Improvement of meter data submission discipline | C86: Удосконалення дисципліни подання даних лічильнику
A87: =WBSNumbering() ->  | B87: Develop a concept to incentivise timely meter data provision | C87: Розробка концепції для стимулювання своєчасного надання показників лічильника | F87: UAH | G87: грн. | I87: 0
A88: =WBSNumbering() ->  | B88: Establish additional ways and forms for data submission | C88: Створення додаткових засобів та форм для подання даних | D88: i.e. hotline, website | E88: наприклад, "гаряча лінія", веб-сайт | F88: UAH | G88: грн. | J88: 0
B89: Inform social offices on defaulting debtors to exert pressure | C89: Інформування соціальних установ щодо боржників, які не виконують зобов'язань для вчинення тиску | D89: pressure via stopping subsidies | E89: вплив через припинення субсидування | F89: times/year | G89: раз/рік | I89: 0 | J89: 12 | K89: 12 | L89: 12 | M89: 12 | N89: 12
B90: Bill customers according to average consumption if meter data were not submitted | C90: Облік споживачів відповідно до середнього споживання у випадку, якщо показники лічильника не були надані | D90: printed bills, printing costs are under "Billing" | E90: друковані рахунки, витрати на друк в розділі "виставлення рахунків" | F90: UAH | G90: грн. | J90: 0 | K90: 0 | L90: 0 | M90: 0 | N90: 0
B91: Development of total number of meters | C91: Динаміка загальної кількості лічильників
B92: Dead souls | C92: "Мертві душі" | D92: Legal entities with zero consumption (e.g. closed factories that are still registered) | E92: Підприємства із нульовим споживанням (непрацюючі заводи, які все ще є в базі) | F92: units | G92: одиниць | I92: 1360 | J92: 1360 | K92: 1360 | L92: 1360 | M92: 1360 | N92: 1360
B93: Legal entities (large consumers) | C93: Підприємства (великі споживачі) | D93: e.g. gas utility, industrial, restaurents, hotels - will be equipped with GSM data transmitters | E93: наприклад, газопостачальна компанія, промисловість, ресторани, готелі - всі будуть обладнані GSM-передавачами даних | F93: units | G93: одиниць | I93: =2590-I92/2 -> 1910 | J93: =I93 -> 1910 | K93: =J93 -> 1910 | L93: =K93 -> 1910 | M93: =L93 -> 1910 | N93: =M93 -> 1910
B94: Legal entities (large consumers) - with GSM module | C94: Підприємства (великі споживачі) - із GSM-модулем | F94: units | G94: одиниць | I94: 0 | J94: =J147 -> 300 | K94: =J94+K147 -> 1100 | L94: =K94+L147 -> 1910 | M94: =L94+M147 -> 1910 | N94: =M94+N147 -> 1910
B95: Legal entities (large consumers that require reading) | C95: Підприємства (великий лічильник, що вимагає зняття показників) | F95: units | G95: одиниць | I95: =I93-I94 -> 1910 | J95: 1610 | K95: 810 | L95: 0 | M95: 0 | N95: 0
B96: Legal entities (small consumers) | C96: Підприємства (із малим лічильником) | D96: e.g. small businesses and shops that consume small amounts | E96: наприклад, невеликі суб'єкти господарювання та магазини, які споживають малу кількість | F96: units | G96: одиниць | I96: =2695-I92/2 -> 2015 | J96: =I96 -> 2015 | K96: 2015 | L96: 2015 | M96: 2015 | N96: 2015
B97: Legal entities (managed MAB) | C97: Підприємства (БКБ, з ОСББ або іншою обслуговуючою компанією (із великим лічильником) | D97: have associations, registered as legal entities - will be equipped with GSM data transmitters, we will forecast how many unmanaged MAB turn into managed MAB and sign single contract with CVK per year based on historic statistics | E97: ті, що мають асоціації, зареєстровані як юридичні особи будуть оснащені GSM-передавачами даних, ми зробимо прогнозування щодо того, скільки БКБ без ОСББ або іншої обслуговуючої компанії перейдуть в БКБ із ОСББ або іншою обслуговуючою компанією та підпишуть єдиний договір із ЧВК за рік, виходячи з історичної статистики | F97: units | G97: одиниць | I97: 274 | J97: 274 | K97: 274 | L97: 274 | M97: 274 | N97: 274
B98: Unmanaged MAB (with bulk meter) | C98: БКБ без ОСББ або іншої компанії-управителя (з будинковим лічильником) | D98: bulk meters so far only used to calculate in-house losses and charge to norm customers | E98: на сьогодні будинкові лічильники використовуються лише для розрахунку внутрибудинкових втрат та виставлення рахунку споживачам, які розраховуються за споживання по нормам | F98: units | G98: одиниць | I98: 475 | J98: =I98+J146 -> 975 | K98: =J98+K146 -> 2611 | L98: =K98+L146 -> 2611 | M98: =L98+M146 -> 2611 | N98: =M98+N146 -> 2611
B99: MAB (with bulk meter) - with GSM module | C99: БКБ (із будинковим лічильником) - із GSM-модулем | F99: units | G99: одиниць | I99: 0 | J99: =J148 -> 500 | K99: =J99+K148 -> 2136 | L99: =K99+L148 -> 2885 | M99: =L99+M148 -> 2885 | N99: =M99+N148 -> 2885
B100: MAB bulk meter (that require reading) | C100: Будинковий лічильник БКБ (який вимагає зняття показників) | F100: units | G100: одиниць | I100: =I97+I98-I99 -> 749 | J100: 749 | K100: 749 | L100: 0 | M100: 0 | N100: 0
B101: Unmanged MAB (without bulk meter) | C101: БКБ без ОСББ або іншої компанії-управителя (без будинкового лічильника) | D101: will be equipped with bulk meters in KfW project | E101: будуть оснащені будинковими лічильниками в рамках проекту KfW | F101: units | G101: одиниць | I101: 2136 | J101: =I101-J146 -> 1636 | K101: =J101-K146 -> 0 | L101: =K101-L146 -> 0 | M101: =L101-M146 -> 0 | N101: =M101-N146 -> 0
B102: Apartments (with meter) | C102: Квартири (із лічильником) | F102: units | G102: одиниць | I102: 46310 | J102: =I102+(I103-J103) -> 47405 | K102: =J102+(J103-K103) -> 49157 | L102: =K102+(K103-L103) -> 50033 | M102: =L102+L103-M103 -> 50909 | N102: =M102+(M103-N103) -> 51785
B103: Apartments (without meter) | C103: Квартири (без лічильника) | D103: assumed each year 25% install a meter | E103: припускається, що кожен рік 25% встановлюють лічильники | F103: units | G103: одиниць | I103: 5475 | J103: =I103*0.8 -> 4380 | K103: =J103*0.6 -> 2628 | L103: =J103*0.4 -> 1752 | M103: =J103*0.2 -> 876 | N103: 0
B104: Individual houses (with meter) | C104: Приватні будинки (із лічильником) | F104: units | G104: одиниць | I104: 9587 | J104: =I104+(I105-J105) -> 9749.7 | K104: =J104+(J105-K105) -> 10042.56 | L104: =K104+(K105-L105) -> 10188.99 | M104: =L104+L105-M105 -> 10335.42 | N104: =M104+(M105-N105) -> 10481.85
B105: Individual houses (without meter) | C105: Приватні будинки (без лічильника) | D105: assumed each year 10% install a meter | E105: припускається, що кожен рік 10% встановлюють лічильники | F105: units | G105: одиниць | I105: 1627 | J105: =I105*0.9 -> 1464.3 | K105: =J105*0.8 -> 1171.44 | L105: =J105*0.7 -> 1025.01 | M105: =J105*0.6 -> 878.58 | N105: =J105*0.5 -> 732.15
B106: Annual verification bulk meter (extra) | C106: Щорічне контрольне зняття показників будинкового лічильника (додатково) | I106: =I94+I99 -> 0 | J106: 800 | K106: 3236 | L106: 4795 | M106: 4795 | N106: 4795
B107: Development of meter reading frequency | C107: Динаміка частоти зняття показників лічильника | I107: =SUM(I100:I106)+I96+I95 -> 69809
B108: Legal entities (with bulk meter) | C108: Підприємства (із будинковим лічильником) | D108: e.g. gas utility, industrial, restaurents, hotels - will be equipped with GSM data transmitters | E108: наприклад, газопостачальна компанія, промисловість, ресторани, готелі - всі будуть обладнані GSM-передавачами даних | F108: times/year | G108: раз/рік | I108: 12 | J108: 12 | K108: 12 | L108: 6 | M108: 3 | N108: 1
B109: Legal entities (with small meter) | C109: Підприємства (із лічильником) | D109: e.g. small businesses and shops that consume small amounts, need monthly bill | E109: наприклад, невеликі суб'єкти господарювання та магазини, які споживають малу кількість, потребують щомісячний рахунок | F109: times/year | G109: раз/рік | I109: 12 | J109: 12 | K109: 12 | L109: 12 | M109: 12 | N109: 12
B110: Managed & unmanaged MAB (with bulk meter) | C110: БКБ з/без ОСББ або компанії-управителя (із будинковим лічильником) | D110: have associations, registered as legal entities - will be equipped with GSM data transmitters | E110: ті, що мають асоціації, зареєстровані як юридичні особи будуть оснащені GSM-передавачами даних | F110: times/year | G110: раз/рік | I110: 12 | J110: 12 | K110: 12 | L110: 6 | M110: 3 | N110: 1
B111: Unmanged MAB (without bulk meter) | C111: БКБ без ОСББ або іншої компанії-управителя (без будинкового лічильника) | D111: will be equipped with bulk meters in KfW project | E111: будуть оснащені будинковими лічильниками в рамках проекту KfW | F111: times/year | G111: раз/рік | I111: 0 | J111: 0 | K111: 0 | L111: 0 | M111: 0 | N111: 0
B112: Apartments (with meter) | C112: Квартири (із лічильником) | F112: times/year | G112: раз/рік | I112: 4 | J112: 4 | K112: 4 | L112: 4 | M112: 2 | N112: 1
B113: Apartments (without meter) | C113: Квартири (без лічильника) | D113: by law, all have to be equipped with meters in 2018 and 2019 | E113: відповідно до закону, повинні мати встановлені лічильники в 2018 та 2019 рр. | F113: times/year | G113: раз/рік | I113: 0 | J113: 0 | K113: 0 | L113: 0 | M113: 0 | N113: 0
B114: Individual houses (with meter) | C114: Приватні будинки (із лічильником) | F114: times/year | G114: раз/рік | I114: 4 | J114: 4 | K114: 4 | L114: 4 | M114: 4 | N114: 4
B115: Individual houses (without meter) | C115: Приватні будинки (без лічильника) | D115: by law, all have to be equipped with meters in 2018 and 2019 | E115: відповідно до закону, повинні мати встановлені лічильники в 2018 та 2019 рр. | F115: times/year | G115: раз/рік | I115: 0 | J115: 0 | K115: 0 | L115: 0 | M115: 0 | N115: 0
B116: Development of total meter readings | C116: Динаміка всіх зчитувань показників лічильників
B117: Legal entities (with bulk meter) | C117: Підприємства (із будниковим лічильником) | F117: times/year | G117: раз/рік | I117: =I108*I95 -> 22920 | J117: 19320 | K117: 9720 | L117: 0 | M117: 0 | N117: 0
B118: Legal entities (with small meter) | C118: Підприємства (із лічильником) | D118: continue monthly readings | E118: продовжувати щомісячні зняття показників | F118: times/year | G118: раз/рік | I118: 24180 | J118: 24180 | K118: 24180 | L118: 24180 | M118: 24180 | N118: 24180
B119: Managed & unmanaged MAB (with bulk meter) | C119: БКБ з/без ОСББ або іншої компанії-управителя (із будинковим лчильником) | F119: times/year | G119: раз/рік | I119: =I110*I100 -> 8988 | J119: 8988 | K119: 8988 | L119: 0 | M119: 0 | N119: 0
B120: Unmanged MAB (without bulk meter) | C120: БКБ без ОСББ або іншої компанії-управителя (без будинкового лічильника) | D120: will be equipped with bulk meters in KfW project | E120: будуть оснащені будинковими лічильниками в рамках проекту KfW | F120: times/year | G120: раз/рік | I120: 0 | J120: 0 | K120: 0 | L120: 0 | M120: 0 | N120: 0
B121: Apartments (with meter) | C121: Квартири (із лічильником) | F121: times/year | G121: раз/рік | I121: 185240 | J121: 189620 | K121: 196628 | L121: 200132 | M121: 101818 | N121: 51785
B122: Apartments (without meter) | C122: Квартири (без лічильника) | D122: by law, all have to be equipped with meters in 2018 and 2019 | E122: відповідно до закону, повинні мати встановлені лічильники в 2018 та 2019 рр. | F122: times/year | G122: раз/рік | I122: 0 | J122: 0 | K122: 0 | L122: 0 | M122: 0 | N122: 0
B123: Individual houses (with meter) | C123: Приватні будинки (із лічильником) | F123: times/year | G123: раз/рік | I123: 38348 | J123: 38998.8 | K123: 40170.24 | L123: 40755.96 | M123: 41341.68 | N123: 41927.4
B124: Individual houses (without meter) | C124: Приватні будинки (без лічильника) | D124: by law, all have to be equipped with meters in 2018 and 2019 | E124: відповідно до закону, повинні мати встановлені лічильники в 2018 та 2019 рр. | F124: times/year | G124: раз/рік | I124: 0 | J124: 0 | K124: 0 | L124: 0 | M124: 0 | N124: 0
B125: Annual inspection reading of GSM equipped meters | C125: Щорічне контрольне зняття показників лічильників, обладнаних GSM | D125: all GSM meters | E125: усі GSM лічильники | F125: times/year | G125: раз/рік | I125: =1*(I94+I99) -> 0 | J125: 800 | K125: 3236 | L125: 4795 | M125: 4795 | N125: 4795
A127: 7 | B127: Billing | C127: Виставлення рахунків | F127: UAH | G127: грн. | J127: =SUM(J130,J131,J415,J133) -> 394500 | K127: =SUM(K130,K131,K415,K133) -> 2540000 | L127: =SUM(L130,L131,L415,L133) -> 2193750 | M127: =SUM(M130,M131,M415,M133) -> 2195000 | N127: =SUM(N130,N131,N415,N133) -> 2190000
A128: =WBSNumbering() ->  | B128: Improvement of billing efficiency | C128: Удосконалення процесу виставлення рахунків
B129: Modify billing procedure | C129: Зміна процедури виставлення рахунків | F129: UAH | G129: грн. | J129: 0
B130: 100% of legal entities receive monthly bill from 2018 onward | C130: Починаючи з 2018 року, 100% підприємств щомісячно отримують рахунок на сплату | D130: CVK pays for printing and postage | E130: ЧВК покриває витрати на друк та поштове надсилання | F130: UAH | G130: грн. | H130: =2000*1.5*12 -> 36000 | I130: =2000*1.5*12 -> 36000 | J130: =5000*5*12 -> 300000 | K130: =5000*5*12 -> 300000 | L130: =5000*5*12 -> 300000 | M130: =5000*5*12 -> 300000 | N130: =5000*5*12 -> 300000
B131: 100% of risk groups/subsidy receipients receive monthly bill from 2019 onward | C131: Починаючи з 2019 року, 100% груп ризику/отримувачів субсидій щомісячно отримують рахунок на сплату | F131: UAH | G131: грн. | H131: =63000/4*0.5*12 -> 94500 | I131: =63000/4*0.5*12 -> 94500 | J131: =63000/4*0.5*12 -> 94500 | K131: =63000/2*5*12 -> 1890000 | L131: =63000/2*5*12 -> 1890000 | M131: =63000/2*5*12 -> 1890000 | N131: =63000/2*5*12 -> 1890000
B132: Expand number of customers using online cabinet to receive bills | C132: Збільшення кількості споживачів, які користуються он-лайн кабінетом для отримання рахунків | D132: from discussion, not confirmed yet, using simplified registration procedure via SMS | E132: з обговорення, ще не підтверджено, використовуючи спрощену процедуру реєстрації через SMS | F132: customers | G132: споживачів | H132: 0 | I132: 5000 | J132: 10000 | K132: 15000 | L132: 30000 | M132: 50000 | N132: 50000
B133: Associated costs for technical implementation of cabinet system | C133: Супутні витрати для технічної реалізації системи он-лайн кабінету | D133: e.g. software, registration SMS | E133: наприклад, програмне забезпечення, реєстрація SMS-повідомлень | F133: UAH | G133: грн. | H133: 0 | I133: 0 | J133: 0 | K133: 0 | L133: =15000*0.25 -> 3750 | M133: =20000*0.25 -> 5000 | N133: 0
B134: Staff savings due to adjusted billing procedure | C134: Економія персоналу завдяки змінам в процедурі виставлення рахунків | F134: persons | G134: осіб | H134: 0 | I134: 0 | J134: 1 | K134: 1 | L134: 0 | M134: 0 | N134: 0
B135: Estimated additional revenue due to improved billing system (%) | C135: Очікуваний додатковий прибуток завдяки покращеній системі виставлення рахунків (%) | D135: additional revenue percentages relate to the relevant previous year | E135: додаткові відсотки доходу відносяться до відповідного попереднього року | F135: % | G135: % | H135: 0 | I135: 0 | J135: 0 | K135: 0.003 | L135: 0.003 | M135: 0.003 | N135: 0.003
A137: 8 | B137: Commercial loss reduction | C137: Зменшення комерційних втрат | F137: UAH | G137: грн. | J137: =J142+J153 -> 150000 | K137: =K142+K153 -> 200000 | L137: =L142+L153 -> 200000 | M137: =M142+M153 -> 0 | N137: =N142+N153 -> 0
A138: =WBSNumbering() ->  | B138: Conceptual preparation | C138: Підготовка концепції
B139: Develop a program for installation and calibration of bulk and individual meters | C139: Розробка програми по встановленню та повірці буникових та індивідуальних лічильників | D139: According to new law on commercial metering, no costs | E139: Відповідно до нового закону про комерційний облік, без витрат | F139: UAH | G139: грн. | J139: 0
B140: Meter calibration | C140: Повірка лічильника
B141: Calibrate individual meters (total 48.000 out of 56.000 meters) | C141: Повірка індивідуальних лічильників (всього 48 000 із 56 000 лічильників) | D141: CVK has no manpower to calibrate meters, this will be outsourced. Costs cannot be included in tariff but need to be billed separately. Last year is 2.25% higher as new meters from 2018 need to be calcibrated in 2022. | E141: ЧВК не має людських ресурсів для проведення повірки лічильників, має бути віддане на зовнішнє обслуговування. Витрати не можуть бути включені в тариф, але мають обчислюватися окремо. В останньому році БП, 2022, цей показник вище на 2,25% оскільки на той час потребуватимуть повірки ті лічильники, що будуть встановленні в 2018 році) | F141: units | G141: одиниць | J141: 13380 | K141: =J141 -> 13380 | L141: =K141 -> 13380 | M141: =L141 -> 13380 | N141: =M141+(M141*0.0225) -> 13681.05
B142: Associated costs for meter calibration | C142: Супутні витрати для повірки лічильників | F142: UAH | G142: грн. | J142: =J141*140*0 -> 0 | K142: =K141*140*0 -> 0 | L142: =L141*140*0 -> 0 | M142: 0 | N142: 0
B143: Estimated additional revenue due to meter calibration (%) | C143: Очікуваний додатковий прибуток завдяки повірці лічильників (%) | D143: additional revenue percentages relate to the relevant previous year | E143: додаткові відсотки доходу відносяться до відповідного попереднього року | F143: % | G143: % | H143: 0 | I143: 0 | J143: 0.008 | K143: 0.008 | L143: 0.008 | M143: 0.008 | N143: 0.008
B144: Bulk metering | C144: Будинкові лічильники
B145: Inspect all unmanaged MAB on number of incoming pipes | C145: Перевірка всіх БКБ без ОСББ або іншої обслуговуючої компанії на кількість вхідних труб | D145: this will impact the number of bulk meters and GSM modules that need to be installed and therewith also impact the frequency of reading and staff needed (current assumption is 1 pipe per MAB) | E145: це вплине на кількість будинкових лічильників та GSM-модулів, які необхідно встановити, та, відповідно, впливає на частоту зняття показників та необхідну кількість працівників (поточне припущення - 1 труба на багатоквартирний будинок) | F145: UAH | G145: грн. | I145: 0 | J145: 0
B146: Install bulk meters for unmanaged MAB | C146: Встановлення будинкових лічильників для БКБ без ОСББ або іншої компанії-управителя | D146: costs for bulk meters are to be billed to respective residents over a period of 5 years. Total 2136 buildings are to be equipped. Number of ingoing pipes for each building is unknown. | E146: витрати на будинкові лічильники повинні оплачуватися відповідними мешканцями протягом 5 років. Всього 2136 будівель мають бути обладнані. Кількість вхідних труб в кожній будівлі не відома. | F146: units | G146: одиниць | J146: 500 | K146: 1636
B147: Install GSM modules for legal entity bulk meters | C147: Встановлення GSM-модулів для підприємств із будинковими лічильниками | D147: 1910 legal entities need GSM module | E147: 1910 підприємств потребують GSM-модулів | F147: units | G147: одиниць | J147: 300 | K147: 800 | L147: 810 | M147: 0 | N147: 0
B148: Install GSM modules for MAB bulk meters | C148: Встановлення GSM-модулів для багатоквартирних будинків із будинковими лічильниками | D148: 2885 MAB need GSM module | E148: 2885 багатоквартирних будинків потребують GSM-модулів | F148: units | G148: одиниць | J148: 500 | K148: 1636 | L148: 749 | M148: 0 | N148: 0
B149: Total GSM modules to be installed | C149: Загальна кількість GSM-модулів, які мають бути встановлені | D149: total 4795 | E149: всього 4795 | F149: units | G149: одиниць | J149: =SUM(J147:J148) -> 800 | K149: =SUM(K147:K148) -> 2436 | L149: =SUM(L147:L148) -> 1559 | M149: =SUM(M147:M148) -> 0 | N149: =SUM(N147:N148) -> 0
B150: Estimated additional revenue due to installed bulk meters (%) | C150: Очікуваний додатковий прибуток завдяки встановленим будинковим лічильникам (%) | D150: additional revenue percentages relate to the relevant previous year | E150: додаткові відсотки доходу відносяться до відповідного попереднього року | F150: % | G150: % | J150: 0.02 | K150: 0.07 | L150: 0.005 | M150: 0 | N150: 0
B151: Meter manipulation | C151: Маніпуляції із лічильником
B152: Reduce meter manipulation with anti-magnetic seals for individual meters | C152: Зменшення кількості випадків маніпуляції із лічильниками завдяки використанню антимагнітної пломби для індивідуальних лічильників | F152: units | G152: одиниць | J152: 3000 | K152: 4000 | L152: 4000
B153: Associated costs for anti-magnet sealing of meters | C153: Супутні витрати для антимагнітного опломбування лічильників | D153: one seal costs 50 UAH | E153: одна пломба коштує 50 грн. | F153: UAH | G153: грн. | J153: =J152*50 -> 150000 | K153: =K152*50 -> 200000 | L153: =L152*50 -> 200000
B154: Procure ultrasonic flow meters to check MAB bulk meters for manipulation | C154: Закупівля ультразвукових витратомірів для перевірки будинкових лічильників багатоквартирних будинків на предмет маніпуляцій | F154: units | G154: одиниць | J154: 5 | K154: 5 | L154: 5 | M154: 5 | N154: 5
B155: Estimated additional revenue due to reduced meter manipulation (%) | C155: Очікуваний додатковий прибуток завдяки зменшенню кількості випадків маніпуляцій із лічильником (%) | D155: additional revenue percentages relate to the relevant previous year | E155: додаткові відсотки доходу відносяться до відповідного попереднього року | F155: % | G155: % | J155: 0.005 | K155: 0.005 | L155: 0.005 | M155: 0 | N155: 0
A157: 9 | B157: Customer service and complaint management | C157: Обслуговування споживачів та управління зверненнями | F157: UAH | G157: грн. | J157: =J161+J166 -> 103000 | K157: =K166+K168+K170+K172+K173 -> 895200 | L157: =L166+L168 -> 712600 | M157: =M166+M168 -> 712600 | N157: =N166+N168+N176 -> 1140100
A158: =WBSNumbering() ->  | B158: Department organisation | C158: Організація відділу
B159: Adapt internal procedures to match one-stop shop requirements | C159: Адаптація внутрішніх процедур для відповідності вимогам "єдиного вікна" | D159: incl. complaint management, one stop shop, debt restructuring etc. | E159: включ. управління зверненнями, єдине вікно, реструктуризацію заборгованості тощо. | F159: UAH | G159: грн. | J159: 0
B160: Adapt and document new structure of customer department | C160: Адаптація та документація нової структури абонентського відділу | D160: incl. one-stop shop, PR unit, new staff... | E160: включ. єдине вікно, PR-службу, новий персонал… | F160: UAH | G160: грн. | J160: 0
B161: Develop a customer relationship management manual | C161: Розробка посібника з управління відносинами із споживачем | D161: incl. procedures, complaint management, organisation structure, policies | E161: включ. процедури, управління зверненнями, організаційну структуру, практики | F161: UAH | G161: грн. | J161: 40000
B162: Establish customer service hotline system | C162: Створення системи "гарячої лінії" для обслуговування споживачів | D162: procure equipment and announce on website and bills (costs under capital nvestment plan) | E162: закупівля обладнання та оголошення на веб-сайт та рахунках (витрати включені в план капітальних інвестицій) | F162: UAH | G162: грн. | K162: X
B163: Household visit campaign | C163: Кампанії по домовим візитам
B164: Prepare concept and logistics for campaign | C164: Підготовка концепції та логістики для кампанії | J164: 0
B165: Conduct household visit campaign (4 pages per contract incl PR page, 2 UAH per customer, own meter readers will ditribute, no costs except printing) | C165: Проведення компанії по домовим візитам (4 сторінки на контракт, включ. PR-сторінку, 2 грн. на споживача, збільшення кількості випадків особистого зняття показників лічильників, відсутні інші витрати, окрім витрат на друкування) | D165: Campaign purpose: sign service contracts with each customer, distribute PR material, inform about meter reading and calibration and collect mobile phone number | E165: Мета кампанії: підписання договорів на обслуговування із кожним споживачем, розповсюдження PR-матеріалів, інформування щодо зняття показників лічильників та їх повірки та реєстрації номерів мобільних телефонів | F165: customers visited | G165: відвіданих споживачів | I165: 0 | J165: 0.5 | K165: 0.7 | L165: 0.8 | M165: 0.9 | N165: 1
B166: Associated costs for household visit campaign | C166: Супутні витрати для компанії по домовим візитам | D166: e.g. additional personnel for the visits, or outsourcing | E166: наприклад, додаткові працівники для візитів, або аутсорсинг | F166: UAH | G166: грн. | J166: =31500*2 -> 63000 | K166: =63000/5*2 -> 25200 | L166: =K166/2 -> 12600 | M166: =L166 -> 12600 | N166: =M166 -> 12600
B167: Establish one-stop shop for customers | C167: Створення "єдиного вікна" для споживачів
B168: Move customer department to new premises in city center (rent costs) | C168: Перенесення абонентського відділу до нового приміщення в центрі міста (витрати на оренду) | D168: costs include rent of 300m3 office space and furniture (not IT) | E168: витрати включають в себе офіс 300 м3 та меблі (без комп'ютерного обладнання) | F168: UAH | G168: грн. | K168: 700000 | L168: 700000 | M168: 700000 | N168: 700000
B169: Equipment and furniture for one-stop shop and customer department | C169: Обладнання та меблі для "єдиного вікна" та абонентського відділу | D169: costs under capital investment plan | E169: витрати включені в план капітальних інвестицій | F169: UAH | G169: грн.
B170: Opening event | C170: Захід з відкриття | F170: UAH | G170: грн. | K170: 50000
B171: Recruit or reallocate staff needed for one-stop shop | C171: Залучення нового персоналу або перерозподіл обов'язків існуючого для роботи в "єдиному вікні" | F171: persons | G171: осіб | K171: 5
B172: Train staff of one-stop shop | C172: Підготовка персоналу для роботи в "єдиному вікні" | F172: UAH | G172: грн. | K172: 100000
B173: PR campaign for one-stop shop | C173: PR-компанія для "єдиного вікна" | D173: via media, website: costs to be moved to PR plan | E173: через ЗМІ, веб-сайт: витрати перенести в PR-план | F173: UAH | G173: грн. | K173: 20000
B174: Interruption announcements | C174: Оголошення про перебої у постачанні
B175: Announce planned service interruptions via website and media | C175: Оголошення про планові перерви в обслуговуванні через веб-сайт та ЗМІ | D175: no associated costs | E175: без супутніх витрат
B176: Announce planned service interruptions via SMS and Viber | C176: Оголошення про планові перерви в обслуговуванні через SMS-повідомлення та Viber | D176: Assumed 90% of phone numbers collected by 2022 Viber: 8ct/SMS, Normal: 25ct/SMS | E176: Припускається, що до 2022 року 90% телефонних номерів буде зібрано Viber: 8 коп./SMS, Звичайне повідомлення: 25 коп./SMS | F176: UAH | G176: грн. | N176: =57000*50*0.15 -> 427500
A178: 10 | B178: Summary of additional revenue water | C178: Загальна інформація по додатковій дохідній воді | F178: UAH | G178: грн. | J178: 0 | K178: 0 | L178: 0 | M178: 0 | N178: 0
A179: =WBSNumbering() ->  | B179: Estimated additional revenue water due to improved billing system (%) | C179: Очікуваний додатковий прибуток завдяки покращеній системі обчислення споживання (%) | D179: additional revenue percentages relate to the relevant previous year | E179: додаткові відсотки доходу відносяться до відповідного попереднього року | F179: % | G179: % | J179: =J135 -> 0 | K179: =K135 -> 0.003 | L179: =L135 -> 0.003 | M179: =M135 -> 0.003 | N179: =N135 -> 0.003
A180: =WBSNumbering() ->  | B180: Estimated additional revenue water due to meter calibration (%) | C180: Очікуваний додатковий прибуток завдяки повірці лічильників (%) | D180: additional revenue percentages relate to the relevant previous year | E180: додаткові відсотки доходу відносяться до відповідного попереднього року | F180: % | G180: % | J180: =J143 -> 0.008 | K180: =K143 -> 0.008 | L180: =L143 -> 0.008 | M180: =M143 -> 0.008 | N180: =N143 -> 0.008
A181: =WBSNumbering() ->  | B181: Estimated additional revenue water due to installed bulk meters (%) | C181: Очікуваний додатковий прибуток завдяки встановленим будинковим лічильникам (%) | D181: additional revenue percentages relate to the relevant previous year | E181: додаткові відсотки доходу відносяться до відповідного попереднього року | F181: % | G181: % | J181: =J150 -> 0.02 | K181: =K150 -> 0.07 | L181: =L150 -> 0.005 | M181: =M150 -> 0 | N181: =N150 -> 0
A182: =WBSNumbering() ->  | B182: Estimated additional revenue water due to reduced meter manipulation (%) | C182: Очікуваний додатковий прибуток завдяки зменшенню кількості випадків маніпуляцій із лічильником (%) | D182: additional revenue percentages relate to the relevant previous year | E182: додаткові відсотки доходу відносяться до відповідного попереднього року | F182: % | G182: % | J182: =J155 -> 0.005 | K182: =K155 -> 0.005 | L182: =L155 -> 0.005 | M182: =M155 -> 0 | N182: =N155 -> 0
A183: =WBSNumbering() ->  | B183: Total relative additional revenue water (%) | C183: Загальна відповідна додаткова дохідна вода | D183: additional revenue percentages relate to the relevant previous year | E183: додаткові відсотки доходу відносяться до відповідного попереднього року | F183: % | G183: % | J183: =SUM(J179:J182) -> 0.033 | K183: =SUM(K179:K182) -> 0.086 | L183: =SUM(L179:L182) -> 0.021 | M183: =SUM(M179:M182) -> 0.011 | N183: =SUM(N179:N182) -> 0.011
A185: C | B185: Capital Investment Plan | C185: План капітальних інвестицій
A187: 11 | B187: KfW project investment measures | C187: Інвестиційні заходи в рамках проекту KfW | F187: UAH | G187: грн. | J187: =SUM(J190,J200,J210,J220,J228,J237,J247) -> 131819231.1 | K187: =SUM(K190,K200,K210,K220,K228,K237,K247) -> 140807592.8 | L187: =SUM(L190,L200,L210,L220,L228,L237,L247) -> 165931804.2 | M187: =SUM(M190,M200,M210,M220,M228,M237,M247) -> 46523930.95 | N187: =SUM(N190,N200,N210,N220,N228,N237,N247)+N254 -> 17757041
A188: =WBSNumbering() ->  | B188: Mytkiv Raw Water Intake (C1) | C188: Водозабір Митків (C1) | D188: =KfWProject!$E$9 -> 1020157 | E188: =KfWProject!$E$9 -> 1020157 | F188: =D188*EURratemid -> 30175019.87
B189: Payment schedule (EUR) | C189: Графік платежів (євро) | F189: EUR | G189: Євро | J189: =SUM(KfWProject!E46:E57) -> 255039.25 | K189: =SUM(KfWProject!E58:E69) -> 397861.23 | L189: =SUM(KfWProject!E70:E81) -> 265240.82 | M189: =SUM(KfWProject!E82:E93) -> 102015.7 | N189: =SUM(KfWProject!E94:E105) -> 0
B190: Payment schedule (UAH) | C190: Графік платежів (грн) | D190: exchange risk is with CVK, rate of day of payment applies!, these costs here are the payments to contractors | E190: ріски, пов'язанні із різницею курсу валюти несе ЧВК, застосовується курс на день оплати!, тут ці витрати є сплатами підрядчиками | F190: UAH | G190: грн. | J190: =J189*EURratemid -> 7543754.968 | K190: =K189*EURratemid -> 11768257.75 | L190: =L189*EURratemid -> 7845505.167 | M190: =M189*EURratemid -> 3017501.987 | N190: =N189*EURratemid -> 0
B191: Begin of depreciation | C191: Початок амортизації | L191: Jun
B192: Energy savings kick-in | C192: Початок заходів з енергозбереження | L192: May
B193: Loss savings kick-in | C193: Початок заходів із скорочення втрат | L193: May
B194: Capital Asset Value after construction (EUR) | C194: Вартість основного активу після будівництва (євро) | D194: includes interest during construction | E194: включає відсоток під час будівництва | F194: EUR | G194: Євро | L194: =KfWProject!H74 -> 1055692.469
B195: Capital Asset Value after construction (UAH) | C195: Вартість основного активу після будівництва (грн) | D195: includes interest during construction | E195: включає відсоток під час будівництва | F195: UAH | G195: грн. | L195: =L194*EURratemid -> 31226116.4
B196: Depreciation costs (EUR) | C196: Амортизаційні витрати (євро) | F196: EUR | G196: Євро | L196: =SUM(KfWProject!I70:I81) -> 39730.36173 | M196: =SUM(KfWProject!I82:I93) -> 68109.19154 | N196: =SUM(KfWProject!I94:I105) -> 68109.19154
B197: Depreciation costs (UAH) | C197: Амортизаційні витрати (грн) | F197: UAH | G197: грн. | L197: =L196*EURratemid -> 1175176.424 | M197: =M196*EURratemid -> 2014588.155 | N197: =N196*EURratemid -> 2014588.155
B198: Vikno Water Treatment Plant (C1) | C198: Водоочисні Вікно (C1) | D198: =KfWProject!$L$9 -> 1434815 | E198: =KfWProject!$L$9 -> 1434815 | F198: =D198*EURratemid -> 42440105.92
B199: Payment schedule (EUR) | C199: Графік платежів (євро) | F199: EUR | G199: Євро | J199: =SUM(KfWProject!L46:L57) -> 358703.75 | K199: =SUM(KfWProject!L58:L69) -> 559577.85 | L199: =SUM(KfWProject!L70:L81) -> 373051.9 | M199: =SUM(KfWProject!L82:L93) -> 143481.5 | N199: =SUM(KfWProject!L94:L105) -> 0
B200: Payment schedule (UAH) | C200: Графік платежів (грн) | D200: exchange risk is with CVK, rate of day of payment applies!, these costs here are the payments to contractors | E200: ріски, пов'язанні із різницею курсу валюти несе ЧВК, застосовується курс на день оплати!, тут ці витрати є сплатами підрядчиками | F200: UAH | G200: грн. | J200: =J199*EURratemid -> 10610026.48 | K200: =K199*EURratemid -> 16551641.31 | L200: =L199*EURratemid -> 11034427.54 | M200: =M199*EURratemid -> 4244010.592 | N200: =N199*EURratemid -> 0
B201: Begin of depreciation | C201: Початок амортизації | L201: Jun
B202: Energy savings kick-in | C202: Початок заходів з енергозбереження | L202: May
B203: Loss savings kick-in | C203: Початок заходів із скорочення втрат | L203: May
B204: Capital Asset Value after construction (EUR) | C204: Вартість основного активу після будівництва (євро) | D204: includes interest during construction | E204: включає відсоток під час будівництва | F204: EUR | G204: Євро | L204: =KfWProject!O74 -> 1484794.389
B205: Capital Asset Value after construction (UAH) | C205: Вартість основного активу після будівництва (грн) | D205: includes interest during construction | E205: включає відсоток під час будівництва | F205: UAH | G205: грн. | L205: =L204*EURratemid -> 43918436.28
B206: Depreciation costs (EUR) | C206: Амортизаційні витрати (євро) | F206: EUR | G206: Євро | L206: =SUM(KfWProject!P70:P81) -> 50356.39886 | M206: =SUM(KfWProject!P82:P93) -> 86325.25518 | N206: =SUM(KfWProject!P94:P105) -> 86325.25518
B207: Depreciation costs (UAH) | C207: Амортизаційні витрати (грн) | F207: UAH | G207: грн. | L207: =L206*EURratemid -> 1489481.851 | M207: =M206*EURratemid -> 2553397.458 | N207: =N206*EURratemid -> 2553397.458
B208: Transmission Main from Shubranets to Popova (C1) | C208: Магістральний водопровід Шубранець-Попова (C1) | D208: =KfWProject!$S$9 -> 4151492 | E208: =KfWProject!$S$9 -> 4151492 | F208: =D208*EURratemid -> 122796151.6
B209: Payment schedule (EUR) | C209: Графік платежів (євро) | F209: EUR | G209: Євро | J209: =SUM(KfWProject!S46:S57) -> 1037873 | K209: =SUM(KfWProject!S58:S69) -> 770991.3714 | L209: =SUM(KfWProject!S70:S81) -> 1541982.743 | M209: =SUM(KfWProject!S82:S93) -> 385495.6857 | N209: =SUM(KfWProject!S94:S105) -> 415149.2
B210: Payment schedule (UAH) | C210: Графік платежів (грн) | D210: exchange risk is with CVK, rate of day of payment applies!, these costs here are the payments to contractors | E210: ріски, пов'язанні із різницею курсу валюти несе ЧВК, застосовується курс на день оплати!, тут ці витрати є сплатами підрядчиками | F210: UAH | G210: грн. | J210: =J209*EURratemid -> 30699037.89 | K210: =K209*EURratemid -> 22804999.58 | L210: =L209*EURratemid -> 45609999.15 | M210: =M209*EURratemid -> 11402499.79 | N210: =N209*EURratemid -> 12279615.16
B211: Begin of depreciation | C211: Початок амортизації | M211: Mar
B212: Energy savings kick-in | C212: Початок заходів з енергозбереження | D212: gradually | E212: поступово | K212: starting Jul
B213: Loss savings kick-in | C213: Початок заходів із скорочення втрат | D213: gradually | E213: поступово | K213: starting Jul
B214: Capital Asset Value after construction (EUR) | C214: Вартість основного активу після будівництва (євро) | D214: includes interest during construction | E214: включає відсоток під час будівництва | F214: EUR | G214: Євро | M214: =KfWProject!V83 -> 4349083.25
B215: Capital Asset Value after construction (UAH) | C215: Вартість основного активу після будівництва (грн) | D215: includes interest during construction | E215: включає відсоток під час будівництва | F215: UAH | G215: грн. | M215: =M214*EURratemid -> 128640663.6
B216: Depreciation costs (EUR) | C216: Амортизаційні витрати (євро) | F216: EUR | G216: Євро | M216: =SUM(KfWProject!W82:W93) -> 60809.32956 | N216: =SUM(KfWProject!W94:W105) -> 72971.19547
... 446 more rows

Sheet Assets
A1: Asset values, Depreciation and Return on Capital Вартість активу, амортизація та дохід на капітал
G3: 2017 | H3: 2018 | I3: 2019 | J3: 2020 | K3: 2021 | L3: 2022
D4: Inflation factor (Ukraine) Фактор інфляції (Україна) | E4: % | G4: 1 | H4: =BasicData!C33 -> 1.0755 | I4: =BasicData!D33 -> 1.1346525 | J4: =BasicData!E33 -> 1.191385125 | K4: =BasicData!F33 -> 1.250954381 | L4: =BasicData!G33 -> 1.3135021
D5: Asset values and depreciation Вартість активу та амортизація
D6: Existing assets Існуючі активи
D7: Historic cost convention Метод первісної вартості
D8: Asset value at start of year (2017 off model calculation) Вартість активу на початок року (2017; розрахунок проводився окремо) | E8: UAH грн | G8: 28848431.29 | H8: =G11 -> 30414562.54 | I8: =H11 -> 27129901.95 | J8: 24355381.47 | K8: 22244119.3 | L8: 20487830.7
D9: Investments 2017 Інвестиції 2017 | E9: UAH грн | G9: 5777355.398
D10: Depreciation existing assets (off model calculation) Амортизація існуючих активів (розрахунок проводився окремо) | E10: UAH грн | G10: -4211224.151 | H10: -3284660.588 | I10: -2774520.483 | J10: -2111262.164 | K10: -1756288.606 | L10: -1390630.641
D11: Asset value at end of year Вартість активу на кінець року | E11: UAH грн | G11: =SUM(G8:G10) -> 30414562.54 | H11: =SUM(H8:H10) -> 27129901.95 | I11: =SUM(I8:I10) -> 24355381.47 | J11: 22244119.3 | K11: 20487830.7 | L11: 19097200.05
D12: Average value during year Середня вартість протягом року | E12: UAH грн | G12: =(G8+G11)/2 -> 29631496.91 | H12: =(H8+H11)/2 -> 28772232.24 | I12: 25742641.71 | J12: 23299750.38 | K12: 21365975 | L12: 19792515.38
D14: Current cost convention at 2017 base year price levels Метод поточної ціни на рівні базової ціни 2017 року | E14: (inflation adjusted) з урахуванням інфляції
D15: Depreciable assets (excluding fully depreciated) Активи, що амортизуються (за виключенням повністю амортизованих)
D16: Asset value at start of year (off model calculation) Вартість активу на початок року (розрахунок проводився окремо) | E16: UAH грн | G16: 169359525.5 | H16: =G19 -> 131763107 | I16: =H19 -> 98907966.86 | J16: 74144952.86 | K16: 60348951.14 | L16: 51345691.06
D17: Investments 2017 Інвестиції 2017 | E17: UAH грн | G17: 5777355.398
D18: Depreciation existing assets (off model calculation) Амортизація існуючих активів (розрахунок проводився окремо) | E18: UAH грн | G18: -43373773.86 | H18: -32855140.14 | I18: -24763014 | J18: -13796001.71 | K18: -9003260.088 | L18: -5200819.11
D19: Asset value at end of year Вартість активу на кінець року | E19: UAH грн | G19: =SUM(G16:G18) -> 131763107 | H19: =SUM(H16:H18) -> 98907966.86 | I19: 74144952.86 | J19: 60348951.14 | K19: 51345691.06 | L19: 46144871.95
D20: Average value during year Середня вартість протягом року | E20: UAH грн | G20: =(G16+G19)/2 -> 150561316.2 | H20: =(H16+H19)/2 -> 115335536.9 | I20: =(I16+I19)/2 -> 86526459.86 | J20: =(J16+J19)/2 -> 67246952 | K20: =(K16+K19)/2 -> 55847321.1 | L20: =(L16+L19)/2 -> 48745281.5
D22: KfW investments Інвестиції KfW
D23: Historic cost convention Метод первісної вартості
D24: UAH basis основа грн
D25: Asset value at start of year Вартість активу на початок року | E25: UAH грн | G25: =G73 -> 0 | H25: =G62 -> 0 | I25: =H62 -> 0 | J25: 153464616.2 | K25: 410802015.7 | L25: 617314877.5
A26: Depreciation years Амортизація роки | B26: Year Рік | C26: Month Місяць | D26: Additonal investments (inc interest during construction) Додаткові інвестиції (включ. відсотки під час будівництва | E26: UAH грн
A27: =KfWProject!I8 -> 15.5 | B27: 2020 | C27: 5 | D27: Contract 1 Контракт 1 | E27: UAH грн | G27: =IF(G$3=$B27,EURratemid*SUM(KfWProject!$H$10:$H$105)*G$4,0) -> 0 | H27: =IF(H$3=$B27,EURratemid*SUM(KfWProject!$H$10:$H$105)*H$4,0) -> 0 | I27: =IF(I$3=$B27,EURratemid*SUM(KfWProject!$H$10:$H$105)*I$4,0) -> 0 | J27: =IF(J$3=$B27,EURratemid*SUM(KfWProject!$H$10:$H$105)*J$4,0) -> 37202330.59 | K27: =IF(K$3=$B27,EURratemid*SUM(KfWProject!$H$10:$H$105)*K$4,0) -> 0 | L27: =IF(L$3=$B27,EURratemid*SUM(KfWProject!$H$10:$H$105)*L$4,0) -> 0
A28: =KfWProject!P8 -> 17.2 | B28: 2020 | C28: 5 | D28: Contract 2 Контракт 2 | E28: UAH грн | G28: =IF(G$3=$B28,EURratemid*SUM(KfWProject!$O$10:$O$105)*G$4,0) -> 0 | H28: =IF(H$3=$B28,EURratemid*SUM(KfWProject!$O$10:$O$105)*H$4,0) -> 0 | I28: =IF(I$3=$B28,EURratemid*SUM(KfWProject!$O$10:$O$105)*I$4,0) -> 0 | J28: =IF(J$3=$B28,EURratemid*SUM(KfWProject!$O$10:$O$105)*J$4,0) -> 52323771.7 | K28: =IF(K$3=$B28,EURratemid*SUM(KfWProject!$O$10:$O$105)*K$4,0) -> 0 | L28: =IF(L$3=$B28,EURratemid*SUM(KfWProject!$O$10:$O$105)*L$4,0) -> 0
A29: =KfWProject!W8 -> 59.6 | B29: 2021 | C29: 2 | D29: Contract 3 Контракт 3 | E29: UAH грн | G29: =IF(G$3=$B29,EURratemid*SUM(KfWProject!$V$10:$V$105)*G$4,0) -> 0 | H29: =IF(H$3=$B29,EURratemid*SUM(KfWProject!$V$10:$V$105)*H$4,0) -> 0 | I29: =IF(I$3=$B29,EURratemid*SUM(KfWProject!$V$10:$V$105)*I$4,0) -> 0 | J29: =IF(J$3=$B29,EURratemid*SUM(KfWProject!$V$10:$V$105)*J$4,0) -> 0 | K29: =IF(K$3=$B29,EURratemid*SUM(KfWProject!$V$10:$V$105)*K$4,0) -> 160923601.8 | L29: =IF(L$3=$B29,EURratemid*SUM(KfWProject!$V$10:$V$105)*L$4,0) -> 0
A30: =KfWProject!AD8 -> 19.4 | B30: 2021 | C30: 1 | D30: Contract 4 Контракт 4 | E30: UAH грн | G30: =IF(G$3=$B30,EURratemid*SUM(KfWProject!$AC$10:$AC$105)*G$4,0) -> 0 | H30: =IF(H$3=$B30,EURratemid*SUM(KfWProject!$AC$10:$AC$105)*H$4,0) -> 0 | I30: =IF(I$3=$B30,EURratemid*SUM(KfWProject!$AC$10:$AC$105)*I$4,0) -> 0 | J30: =IF(J$3=$B30,EURratemid*SUM(KfWProject!$AC$10:$AC$105)*J$4,0) -> 0 | K30: =IF(K$3=$B30,EURratemid*SUM(KfWProject!$AC$10:$AC$105)*K$4,0) -> 20781165.87 | L30: =IF(L$3=$B30,EURratemid*SUM(KfWProject!$AC$10:$AC$105)*L$4,0) -> 0
A31: =KfWProject!AK8 -> 18.2 | B31: 2109 | C31: 7 | D31: Contract 5 Контракт 5 | E31: UAH грн | G31: =IF(G$3=$B31,EURratemid*SUM(KfWProject!$AJ$10:$AJ$105)*G$4,0) -> 0 | H31: =IF(H$3=$B31,EURratemid*SUM(KfWProject!$AJ$10:$AJ$105)*H$4,0) -> 0 | I31: =IF(I$3=$B31,EURratemid*SUM(KfWProject!$AJ$10:$AJ$105)*I$4,0) -> 0 | J31: =IF(J$3=$B31,EURratemid*SUM(KfWProject!$AJ$10:$AJ$105)*J$4,0) -> 0 | K31: =IF(K$3=$B31,EURratemid*SUM(KfWProject!$AJ$10:$AJ$105)*K$4,0) -> 0 | L31: =IF(L$3=$B31,EURratemid*SUM(KfWProject!$AJ$10:$AJ$105)*L$4,0) -> 0
D32: Contract 6 Контракт 6 | E32: UAH грн
A33: =KfWProject!AT8 -> 45 | B33: 2019 | C33: 3 | D33: Part 1 Частина 1 | E33: UAH грн | G33: =IF(G$3=$B33,EURratemid*SUM(KfWProject!$AS$10:$AS$105)/9*G$4,0) -> 0 | H33: =IF(H$3=$B33,EURratemid*SUM(KfWProject!$AS$10:$AS$105)/9*H$4,0) -> 0 | I33: =IF(I$3=$B33,EURratemid*SUM(KfWProject!$AS$10:$AS$105)/9*I$4,0) -> 38688558.71 | J33: =IF(J$3=$B33,EURratemid*SUM(KfWProject!$AS$10:$AS$105)/9*J$4,0) -> 0 | K33: =IF(K$3=$B33,EURratemid*SUM(KfWProject!$AS$10:$AS$105)/9*K$4,0) -> 0 | L33: =IF(L$3=$B33,EURratemid*SUM(KfWProject!$AS$10:$AS$105)/9*L$4,0) -> 0
A34: =A33 -> 45 | B34: 2019 | C34: 6 | D34: Part 2 Частина 2 | E34: UAH грн | G34: =IF(G$3=$B34,EURratemid*SUM(KfWProject!$AS$10:$AS$105)/9*G$4,0) -> 0 | H34: =IF(H$3=$B34,EURratemid*SUM(KfWProject!$AS$10:$AS$105)/9*H$4,0) -> 0 | I34: =IF(I$3=$B34,EURratemid*SUM(KfWProject!$AS$10:$AS$105)/9*I$4,0) -> 38688558.71 | J34: =IF(J$3=$B34,EURratemid*SUM(KfWProject!$AS$10:$AS$105)/9*J$4,0) -> 0 | K34: =IF(K$3=$B34,EURratemid*SUM(KfWProject!$AS$10:$AS$105)/9*K$4,0) -> 0 | L34: =IF(L$3=$B34,EURratemid*SUM(KfWProject!$AS$10:$AS$105)/9*L$4,0) -> 0
A35: =A34 -> 45 | B35: 2019 | C35: 9 | D35: Part 3 Частина 3 | E35: UAH грн | G35: =IF(G$3=$B35,EURratemid*SUM(KfWProject!$AS$10:$AS$105)/9*G$4,0) -> 0 | H35: =IF(H$3=$B35,EURratemid*SUM(KfWProject!$AS$10:$AS$105)/9*H$4,0) -> 0 | I35: =IF(I$3=$B35,EURratemid*SUM(KfWProject!$AS$10:$AS$105)/9*I$4,0) -> 38688558.71 | J35: =IF(J$3=$B35,EURratemid*SUM(KfWProject!$AS$10:$AS$105)/9*J$4,0) -> 0 | K35: =IF(K$3=$B35,EURratemid*SUM(KfWProject!$AS$10:$AS$105)/9*K$4,0) -> 0 | L35: =IF(L$3=$B35,EURratemid*SUM(KfWProject!$AS$10:$AS$105)/9*L$4,0) -> 0
A36: 45 | B36: 2019 | C36: 12 | D36: Part 4 Частина 4 | E36: UAH грн | G36: =IF(G$3=$B36,EURratemid*SUM(KfWProject!$AS$10:$AS$105)/9*G$4,0) -> 0 | H36: =IF(H$3=$B36,EURratemid*SUM(KfWProject!$AS$10:$AS$105)/9*H$4,0) -> 0 | I36: =IF(I$3=$B36,EURratemid*SUM(KfWProject!$AS$10:$AS$105)/9*I$4,0) -> 38688558.71 | J36: =IF(J$3=$B36,EURratemid*SUM(KfWProject!$AS$10:$AS$105)/9*J$4,0) -> 0 | K36: =IF(K$3=$B36,EURratemid*SUM(KfWProject!$AS$10:$AS$105)/9*K$4,0) -> 0 | L36: =IF(L$3=$B36,EURratemid*SUM(KfWProject!$AS$10:$AS$105)/9*L$4,0) -> 0
A37: 45 | B37: 2020 | C37: 3 | D37: Part 5 Частина 5 | E37: UAH грн | G37: =IF(G$3=$B37,EURratemid*SUM(KfWProject!$AS$10:$AS$105)/9*G$4,0) -> 0 | H37: =IF(H$3=$B37,EURratemid*SUM(KfWProject!$AS$10:$AS$105)/9*H$4,0) -> 0 | I37: =IF(I$3=$B37,EURratemid*SUM(KfWProject!$AS$10:$AS$105)/9*I$4,0) -> 0 | J37: =IF(J$3=$B37,EURratemid*SUM(KfWProject!$AS$10:$AS$105)/9*J$4,0) -> 40622986.64 | K37: =IF(K$3=$B37,EURratemid*SUM(KfWProject!$AS$10:$AS$105)/9*K$4,0) -> 0 | L37: =IF(L$3=$B37,EURratemid*SUM(KfWProject!$AS$10:$AS$105)/9*L$4,0) -> 0
A38: 45 | B38: 2020 | C38: 6 | D38: Part 6 Частина 6 | E38: UAH грн | G38: =IF(G$3=$B38,EURratemid*SUM(KfWProject!$AS$10:$AS$105)/9*G$4,0) -> 0 | H38: =IF(H$3=$B38,EURratemid*SUM(KfWProject!$AS$10:$AS$105)/9*H$4,0) -> 0 | I38: =IF(I$3=$B38,EURratemid*SUM(KfWProject!$AS$10:$AS$105)/9*I$4,0) -> 0 | J38: =IF(J$3=$B38,EURratemid*SUM(KfWProject!$AS$10:$AS$105)/9*J$4,0) -> 40622986.64 | K38: =IF(K$3=$B38,EURratemid*SUM(KfWProject!$AS$10:$AS$105)/9*K$4,0) -> 0 | L38: =IF(L$3=$B38,EURratemid*SUM(KfWProject!$AS$10:$AS$105)/9*L$4,0) -> 0
A39: 45 | B39: 2020 | C39: 9 | D39: Part 7 Частина 7 | E39: UAH грн | G39: =IF(G$3=$B39,EURratemid*SUM(KfWProject!$AS$10:$AS$105)/9*G$4,0) -> 0 | H39: =IF(H$3=$B39,EURratemid*SUM(KfWProject!$AS$10:$AS$105)/9*H$4,0) -> 0 | I39: =IF(I$3=$B39,EURratemid*SUM(KfWProject!$AS$10:$AS$105)/9*I$4,0) -> 0 | J39: =IF(J$3=$B39,EURratemid*SUM(KfWProject!$AS$10:$AS$105)/9*J$4,0) -> 40622986.64 | K39: =IF(K$3=$B39,EURratemid*SUM(KfWProject!$AS$10:$AS$105)/9*K$4,0) -> 0 | L39: =IF(L$3=$B39,EURratemid*SUM(KfWProject!$AS$10:$AS$105)/9*L$4,0) -> 0
A40: 45 | B40: 2020 | C40: 12 | D40: Part 8 Частина 8 | E40: UAH грн | G40: =IF(G$3=$B40,EURratemid*SUM(KfWProject!$AS$10:$AS$105)/9*G$4,0) -> 0 | H40: =IF(H$3=$B40,EURratemid*SUM(KfWProject!$AS$10:$AS$105)/9*H$4,0) -> 0 | I40: =IF(I$3=$B40,EURratemid*SUM(KfWProject!$AS$10:$AS$105)/9*I$4,0) -> 0 | J40: =IF(J$3=$B40,EURratemid*SUM(KfWProject!$AS$10:$AS$105)/9*J$4,0) -> 40622986.64 | K40: =IF(K$3=$B40,EURratemid*SUM(KfWProject!$AS$10:$AS$105)/9*K$4,0) -> 0 | L40: =IF(L$3=$B40,EURratemid*SUM(KfWProject!$AS$10:$AS$105)/9*L$4,0) -> 0
A41: 45 | B41: 2021 | C41: 3 | D41: Part 9 Частина 9 | E41: UAH грн | G41: =IF(G$3=$B41,EURratemid*SUM(KfWProject!$AS$10:$AS$105)/9*G$4,0) -> 0 | H41: =IF(H$3=$B41,EURratemid*SUM(KfWProject!$AS$10:$AS$105)/9*H$4,0) -> 0 | I41: =IF(I$3=$B41,EURratemid*SUM(KfWProject!$AS$10:$AS$105)/9*I$4,0) -> 0 | J41: =IF(J$3=$B41,EURratemid*SUM(KfWProject!$AS$10:$AS$105)/9*J$4,0) -> 0 | K41: =IF(K$3=$B41,EURratemid*SUM(KfWProject!$AS$10:$AS$105)/9*K$4,0) -> 42654135.97 | L41: =IF(L$3=$B41,EURratemid*SUM(KfWProject!$AS$10:$AS$105)/9*L$4,0) -> 0
A42: =KfWProject!BA8 -> 10 | B42: 2020 | C42: 5 | D42: Contract 7 Контракт 7 | E42: UAH грн | G42: =IF(G$3=$B42,EURratemid*SUM(KfWProject!$AZ$10:$AZ$105)*G$4,0) -> 0 | H42: =IF(H$3=$B42,EURratemid*SUM(KfWProject!$AZ$10:$AZ$105)*H$4,0) -> 0 | I42: =IF(I$3=$B42,EURratemid*SUM(KfWProject!$AZ$10:$AZ$105)*I$4,0) -> 0 | J42: =IF(J$3=$B42,EURratemid*SUM(KfWProject!$AZ$10:$AZ$105)*J$4,0) -> 14110160.08 | K42: =IF(K$3=$B42,EURratemid*SUM(KfWProject!$AZ$10:$AZ$105)*K$4,0) -> 0 | L42: =IF(L$3=$B42,EURratemid*SUM(KfWProject!$AZ$10:$AZ$105)*L$4,0) -> 0
D43: Total new assets Всього нових активів | E43: UAH грн | G43: =SUM(G27:G42) -> 0 | H43: =SUM(H27:H42) -> 0 | I43: 154754234.8 | J43: 266128208.9 | K43: 224358903.6 | L43: 0
D44: Depreciation Амортизація | E44: UAH грн
D45: Component 1 Компонент 1 | E45: UAH грн | G45: =-IF(G$3<$B27,0,IF(G$3=$B27,(12-$C27)/12*SUM($G27:$L27)/$A27,SUM($G27:$L27)/$A27)) -> 0 | H45: =-IF(H$3<$B27,0,IF(H$3=$B27,(12-$C27)/12*SUM($G27:$L27)/$A27,SUM($G27:$L27)/$A27)) -> 0 | I45: 0 | J45: -1400087.71 | K45: -2400150.36 | L45: -2400150.36
D46: Component 2 Компонент 2 | E46: UAH грн | G46: =-IF(G$3<$B28,0,IF(G$3=$B28,(12-$C28)/12*SUM($G28:$L28)/$A28,SUM($G28:$L28)/$A28)) -> 0 | H46: 0 | I46: 0 | J46: -1774546.521 | K46: -3042079.75 | L46: -3042079.75
D47: Component 3 Компонент 3 | E47: UAH грн | G47: =-IF(G$3<$B29,0,IF(G$3=$B29,(12-$C29)/12*SUM($G29:$L29)/$A29,SUM($G29:$L29)/$A29)) -> 0 | H47: 0 | I47: 0 | J47: 0 | K47: -2250050.361 | L47: -2700060.433
D48: Component 4 Компонент 4 | E48: UAH грн | G48: =-IF(G$3<$B30,0,IF(G$3=$B30,(12-$C30)/12*SUM($G30:$L30)/$A30,SUM($G30:$L30)/$A30)) -> 0 | H48: 0 | I48: 0 | J48: 0 | K48: -981927.9407 | L48: -1071194.117
D49: Component 5 Компонент 5 | E49: UAH грн | G49: =-IF(G$3<$B31,0,IF(G$3=$B31,(12-$C31)/12*SUM($G31:$L31)/$A31,SUM($G31:$L31)/$A31)) -> 0 | H49: 0 | I49: 0 | J49: 0 | K49: 0 | L49: 0
D50: Component 6 Компонент 6 | E50: UAH грн
D51: Part 1 Частина 1 | E51: UAH грн | G51: =-IF(G$3<$B33,0,IF(G$3=$B33,(12-$C33)/12*SUM($G33:$L33)/$A33,SUM($G33:$L33)/$A33)) -> 0 | H51: 0 | I51: -644809.3118 | J51: -859745.749 | K51: -859745.749 | L51: -859745.749
D52: Part 2 Частина 2 | E52: UAH грн | G52: =-IF(G$3<$B34,0,IF(G$3=$B34,(12-$C34)/12*SUM($G34:$L34)/$A34,SUM($G34:$L34)/$A34)) -> 0 | H52: 0 | I52: -429872.8745 | J52: -859745.749 | K52: -859745.749 | L52: -859745.749
D53: Part 3 Частина 3 | E53: UAH грн | G53: =-IF(G$3<$B35,0,IF(G$3=$B35,(12-$C35)/12*SUM($G35:$L35)/$A35,SUM($G35:$L35)/$A35)) -> 0 | H53: 0 | I53: -214936.4373 | J53: -859745.749 | K53: -859745.749 | L53: -859745.749
D54: Part 4 Частина 4 | E54: UAH грн | G54: =-IF(G$3<$B36,0,IF(G$3=$B36,(12-$C36)/12*SUM($G36:$L36)/$A36,SUM($G36:$L36)/$A36)) -> 0 | H54: 0 | I54: 0 | J54: -859745.749 | K54: -859745.749 | L54: -859745.749
D55: Part 5 Частина 5 | E55: UAH грн | G55: =-IF(G$3<$B37,0,IF(G$3=$B37,(12-$C37)/12*SUM($G37:$L37)/$A37,SUM($G37:$L37)/$A37)) -> 0 | H55: 0 | I55: 0 | J55: -677049.7774 | K55: -902733.0365 | L55: -902733.0365
D56: Part 6 Частина 6 | E56: UAH грн | G56: =-IF(G$3<$B38,0,IF(G$3=$B38,(12-$C38)/12*SUM($G38:$L38)/$A38,SUM($G38:$L38)/$A38)) -> 0 | H56: 0 | I56: 0 | J56: -451366.5182 | K56: -902733.0365 | L56: -902733.0365
D57: Part 7 Частина 7 | E57: UAH грн | G57: =-IF(G$3<$B39,0,IF(G$3=$B39,(12-$C39)/12*SUM($G39:$L39)/$A39,SUM($G39:$L39)/$A39)) -> 0 | H57: 0 | I57: 0 | J57: -225683.2591 | K57: -902733.0365 | L57: -902733.0365
D58: Part 8 Частина 8 | E58: UAH грн | G58: =-IF(G$3<$B40,0,IF(G$3=$B40,(12-$C40)/12*SUM($G40:$L40)/$A40,SUM($G40:$L40)/$A40)) -> 0 | H58: 0 | I58: 0 | J58: 0 | K58: -902733.0365 | L58: -902733.0365
D59: Part 9 Частина 9 | E59: UAH грн | G59: =-IF(G$3<$B41,0,IF(G$3=$B41,(12-$C41)/12*SUM($G41:$L41)/$A41,SUM($G41:$L41)/$A41)) -> 0 | H59: 0 | I59: 0 | J59: 0 | K59: -710902.2662 | L59: -947869.6883
D60: Component 7 компонент 7 | E60: UAH грн | G60: 0 | H60: 0 | I60: 0 | J60: -823092.6713 | K60: -1411016.008 | L60: -1411016.008
D61: Total depreciation Всього амортизація | E61: UAH грн | G61: =SUM(G45:G60) -> 0 | H61: =SUM(H45:H60) -> 0 | I61: -1289618.624 | J61: -8790809.453 | K61: -17846041.83 | L61: -18622285.5
D62: Asset value at end of year Вартість активу на кінець року | E62: UAH грн | G62: =G25+G43+G61 -> 0 | H62: =H25+H43+H61 -> 0 | I62: 153464616.2 | J62: 410802015.7 | K62: 617314877.5 | L62: 598692592
D63: Average value during year Середня вартість протягом року | E63: UAH грн | G63: =(G25+G62)/2 -> 0 | H63: =(H25+H62)/2 -> 0 | I63: 76732308.1 | J63: 282133315.9 | K63: 514058446.6 | L63: 608003734.7
D65: Current cost convention at 2017 base year price levels Метод поточної ціни на рівні базової ціни 2017 року
D66: EUR basis основа євро
D67: Asset value at start of year Вартість активу на початку року | E67: EUR євро | G67: 0 | H67: =G70 -> 0 | I67: =H70 -> 0 | J67: 4741009.906 | K67: 12029138.22 | L67: 17015543.44
D68: Additonal investments (inc interest during construction) Додаткові інвестиції (включ. відсотками під час будівництва) | E68: EUR євро | G68: =SUM(KfWProject!$H34:$H45,KfWProject!$O34:$O45,KfWProject!$V34:$V45,KfWProject!AC34:AC45,KfWProject!$AJ34:$AJ45,KfWProject!$AS34:$AS45,KfWProject!$AZ34:$AZ45) -> 0 | H68: =SUM(KfWProject!$H46:$H57,KfWProject!$O46:$O57,KfWProject!$V46:$V57,KfWProject!AD46:AD57,KfWProject!$AJ46:$AJ57,KfWProject!$AS46:$AS57,KfWProject!$AZ46:$AZ57) -> 0 | I68: =SUM(KfWProject!$H58:$H69,KfWProject!$O58:$O69,KfWProject!$V58:$V69,KfWProject!AE58:AE69,KfWProject!$AJ58:$AJ69,KfWProject!$AS58:$AS69,KfWProject!$AZ58:$AZ69) -> 4783380.734 | J68: =SUM(KfWProject!$H70:$H81,KfWProject!$O70:$O81,KfWProject!$V70:$V81,KfWProject!AF70:AF81,KfWProject!$AJ70:$AJ81,KfWProject!$AS70:$AS81,KfWProject!$AZ70:$AZ81) -> 7551934.118 | K68: =SUM(KfWProject!$H82:$H93,KfWProject!$O82:$O93,KfWProject!$V82:$V93,KfWProject!AG82:AG93,KfWProject!$AJ82:$AJ93,KfWProject!$AS82:$AS93,KfWProject!$AZ82:$AZ93) -> 5501843.854 | L68: =SUM(KfWProject!$H94:$H105,KfWProject!$O94:$O105,KfWProject!$V94:$V105,KfWProject!AH94:AH105,KfWProject!$AJ94:$AJ105,KfWProject!$AS94:$AS105,KfWProject!$AZ94:$AZ105) -> 0
D69: Less depreciation Зменшення на амортизацію | E69: EUR євро | G69: =-SUM(KfWProject!$I34:$I45,KfWProject!$P34:$P45,KfWProject!$W34:$W45,KfWProject!$AD34:$AD45,KfWProject!$AK34:$AK45,KfWProject!$AT34:$AT45,KfWProject!$BA34:$BA45) -> 0 | H69: =-SUM(KfWProject!$I46:$I57,KfWProject!$P46:$P57,KfWProject!$W46:$W57,KfWProject!$AD46:$AD57,KfWProject!$AK46:$AK57,KfWProject!$AT46:$AT57,KfWProject!$BA46:$BA57) -> 0 | I69: =-SUM(KfWProject!$I58:$I69,KfWProject!$P58:$P69,KfWProject!$W58:$W69,KfWProject!$AD58:$AD69,KfWProject!$AK58:$AK69,KfWProject!$AT58:$AT69,KfWProject!$BA58:$BA69) -> -42370.82781 | J69: =-SUM(KfWProject!$I70:$I81,KfWProject!$P70:$P81,KfWProject!$W70:$W81,KfWProject!$AD70:$AD81,KfWProject!$AK70:$AK81,KfWProject!$AT70:$AT81,KfWProject!$BA70:$BA81) -> -263805.8052 | K69: =-SUM(KfWProject!$I82:$I93,KfWProject!$P82:$P93,KfWProject!$W82:$W93,KfWProject!$AD82:$AD93,KfWProject!$AK82:$AK93,KfWProject!$AT82:$AT93,KfWProject!$BA82:$BA93) -> -515438.6371 | L69: =-SUM(KfWProject!$I94:$I105,KfWProject!$P94:$P105,KfWProject!$W94:$W105,KfWProject!$AD94:$AD105,KfWProject!$AK94:$AK105,KfWProject!$AT94:$AT105,KfWProject!$BA94:$BA105) -> -536417.2151
D70: Asset value at end of year Вартість активу на кінець року | E70: EUR євро | G70: =SUM(G67:G69) -> 0 | H70: 0 | I70: 4741009.906 | J70: 12029138.22 | K70: 17015543.44 | L70: 16479126.22
D71: Average asset value during year Середня вартість активу протягом року | E71: UAH грн | G71: =(G67+G70)/2 -> 0 | H71: =(H67+H70)/2 -> 0 | I71: 2370504.953 | J71: 8385074.063 | K71: 14522340.83 | L71: 16747334.83
D72: UAH basis основа грн | E72: UAH грн
D73: Asset value at start of year Вартість активу на початку року | E73: UAH грн | G73: =G67*EURratemid -> 0 | H73: 0 | I73: 0 | J73: 140233383.8 | K73: 355807473.6 | L73: 503299356.2
D74: Additonal investments (inc interest during construction) Додаткові інвестиції (включ. відсотками під час будівництва) | E74: UAH грн | G74: 0 | H74: 0 | I74: 141486662.1 | J74: 223377148.9 | K74: 162737939 | L74: 0
D75: Less depreciation Зменшення на амортизацію | E75: UAH грн | G75: 0 | H75: 0 | I75: -1253278.242 | J75: -7803059.151 | K75: -15246056.36 | L75: -15866577.52
D76: Asset value at end of year Вартість активу на кінець року | E76: UAH грн | G76: 0 | H76: 0 | I76: 140233383.8 | J76: 355807473.6 | K76: 503299356.2 | L76: 487432778.7
D77: Average asset value during year Середня вартість активу протягом року | E77: UAH грн | G77: =(G73+G76)/2 -> 0 | H77: =(H73+H76)/2 -> 0 | I77: =(I73+I76)/2 -> 70116691.91 | J77: =(J73+J76)/2 -> 248020428.7 | K77: =(K73+K76)/2 -> 429553414.9 | L77: =(L73+L76)/2 -> 495366067.4
D79: CVK investments Інвестиції ЧВК
D80: Historic cost convention Метод первісної вартості
D81: Asset value at start of year Вартість активу на початку року | E81: UAH грн | G81: 0 | H81: =G84 -> 0 | I81: =H84 -> 21873642.94 | J81: 60154985.9 | K81: 67967822.5 | L81: 73309469.55
D82: Investment (inflation adjusted) Інвестиції (з урахуванням інфляції) | E82: UAH грн | G82: 0 | H82: =CVKInvest!I173 -> 23140187.42 | I82: =CVKInvest!J173 -> 44130913.48 | J82: =CVKInvest!K173 -> 17808904.89 | K82: =CVKInvest!L173 -> 16854792.91 | L82: =CVKInvest!M173 -> 13789163.94
D83: Depreciation Амортизація | E83: UAH грн | G83: 0 | H83: =-CVKInvest!I174 -> -1266544.479 | I83: =-CVKInvest!J174 -> -5849570.511 | J83: =-CVKInvest!K174 -> -9996068.299 | K83: =-CVKInvest!L174 -> -11513145.86 | L83: =-CVKInvest!M174 -> -12727810.03
D84: Asset value at end of year Вартість активу на кінець року | E84: UAH грн | G84: =SUM(G81:G83) -> 0 | H84: =SUM(H81:H83) -> 21873642.94 | I84: =SUM(I81:I83) -> 60154985.9 | J84: 67967822.5 | K84: 73309469.55 | L84: 74370823.45
D85: Average asset value during year Середня вартість активу протягом року | E85: UAH грн | G85: =(G81+G84)/2 -> 0 | H85: =(H81+H84)/2 -> 10936821.47 | I85: =(I81+I84)/2 -> 41014314.42 | J85: 64061404.2 | K85: 70638646.02 | L85: 73840146.5
D87: Current cost convention at 2017 base year price levels Метод поточної ціни на рівні базової ціни 2017 року
D88: Asset value at start of year Вартість активу на початку року | E88: UAH грн | G88: 0 | H88: =G91 -> 0 | I88: =H91 -> 20338115.24 | J88: 53953713.91 | K88: 60004022.88 | L88: 63333900.43
D89: Investment (2017 prices) Інвестиції (ціни 2017 року) | E89: UAH грн | G89: 0 | H89: =CVKInvest!I82 -> 21515748.41 | I89: =CVKInvest!J82 -> 38893770.1 | J89: =CVKInvest!K82 -> 14948067.19 | K89: =CVKInvest!L82 -> 13473547.21 | L89: =CVKInvest!M82 -> 10498014.38
D90: Depreciation Амортизація | E90: UAH грн | G90: 0 | H90: =-CVKInvest!I83 -> -1177633.175 | I90: =-CVKInvest!J83 -> -5278171.426 | J90: =-CVKInvest!K83 -> -8897758.221 | K90: =-CVKInvest!L83 -> -10143669.66 | L90: =-CVKInvest!M83 -> -11094575.82
D91: Asset value at end of year Вартість активу на кінець року | E91: UAH грн | G91: =SUM(G88:G90) -> 0 | H91: =SUM(H88:H90) -> 20338115.24 | I91: =SUM(I88:I90) -> 53953713.91 | J91: 60004022.88 | K91: 63333900.43 | L91: 62737338.99
D92: Average asset value during year Середня вартість активу протягом року | E92: UAH грн | G92: =(G88+G91)/2 -> 0 | H92: =(H88+H91)/2 -> 10169057.62 | I92: 37145914.57 | J92: 56978868.39 | K92: 61668961.65 | L92: 63035619.71
D94: Total Всього
D95: Historic cost convention Метод первісної вартості
D96: Asset value at start of year Вартість активу на початку року | E96: UAH грн | G96: =G8+G25+G81 -> 28848431.29 | H96: =H8+H25+H81 -> 30414562.54 | I96: 49003544.89 | J96: 237974983.6 | K96: 501013957.5 | L96: 711112177.7
D97: Investment Інвестиції | E97: UAH грн | G97: =G9+G43+G82 -> 5777355.398 | H97: =H9+H43+H82 -> 23140187.42 | I97: =I9+I43+I82 -> 198885148.3 | J97: 283937113.8 | K97: 241213696.5 | L97: 13789163.94
D98: Depreciation Амортизація | E98: UAH грн | G98: =G10+G61+G83 -> -4211224.151 | H98: =H10+H61+H83 -> -4551205.067 | I98: =I10+I61+I83 -> -9913709.617 | J98: -20898139.92 | K98: -31115476.3 | L98: -32740726.17
D99: Asset value at end of year Вартість активу на кінець року | E99: UAH грн | G99: =G11+G62+G84 -> 30414562.54 | H99: =H11+H62+H84 -> 49003544.89 | I99: 237974983.6 | J99: 501013957.5 | K99: 711112177.7 | L99: 692160615.5
D100: Average asset value during year Середня вартість активу протягом року | E100: UAH грн | G100: =(G96+G99)/2 -> 29631496.91 | H100: =(H96+H99)/2 -> 39709053.71 | I100: 143489264.2 | J100: 369494470.5 | K100: 606063067.6 | L100: 701636396.6
D102: Current cost convention at 2017 base year price levels Метод поточної ціни на рівні базової ціни 2017 року
D103: Asset value at start of year Вартість активу на початку року | E103: UAH грн | G103: =G16+G73+G88 -> 169359525.5 | H103: =H16+H73+H88 -> 131763107 | I103: 119246082.1 | J103: 268332050.6 | K103: 476160447.6 | L103: 617978947.7
D104: Investment Інвестиції | E104: UAH грн | G104: =G17+G74+G89 -> 5777355.398 | H104: =H17+H74+H89 -> 21515748.41 | I104: =I17+I74+I89 -> 180380432.2 | J104: 238325216.1 | K104: 176211486.2 | L104: 10498014.38
D105: Depreciation Амортизація | E105: UAH грн | G105: =G18+G75+G90 -> -43373773.86 | H105: =H18+H75+H90 -> -34032773.32 | I105: -31294463.66 | J105: -30496819.09 | K105: -34392986.11 | L105: =L18+L75+L90 -> -32161972.45
D106: Asset value at end of year Вартість активу на кінець року | E106: UAH грн | G106: =G19+G76+G91 -> 131763107 | H106: =H19+H76+H91 -> 119246082.1 | I106: 268332050.6 | J106: 476160447.6 | K106: 617978947.7 | L106: 596314989.6
D107: Average asset value during year Середня вартість активу протягом року | E107: UAH грн | G107: =(G103+G106)/2 -> 150561316.2 | H107: =(H103+H106)/2 -> 125504594.5 | I107: 193789066.3 | J107: 372246249.1 | K107: 547069697.6 | L107: 607146968.6
D109: Variation - reduced opening RAV to arbitrary value of UAH 1000 per connection at base year price levels Варіація: коригування початкової РВА до умовної вартості у 1000 грн/підключення на рівні базової ціни 2017 року
D110: Recalculation of RAV for existing assets Перерахування РВА для існуючих активів
D111: Opening RAV Початкова РВА | E111: UAH грн | F111: =70000*1000 -> 70000000
D112: Depreciation rate of opening RAV Рівень амотризації початкової РВА | E112: Роки | F112: 10
D113: RAV at start of year РВА на початку року | E113: UAH грн | G113: =F111 -> 70000000 | H113: =G115 -> 63000000 | I113: =H115 -> 56000000 | J113: 49000000 | K113: 42000000 | L113: 35000000
D114: Depreciation on existing assets (real) Амортизація на існуючі активи (без урахування інфляції) | E114: UAH грн | G114: =-$F$111/$F$112 -> -7000000 | H114: =-$F$111/$F$112 -> -7000000 | I114: -7000000 | J114: -7000000 | K114: -7000000 | L114: -7000000
D115: Existing RAV at end of year Існуюча РВА на кінець року | E115: UAH грн | G115: =SUM(G113:G114) -> 63000000 | H115: =SUM(H113:H114) -> 56000000 | I115: 49000000 | J115: 42000000 | K115: 35000000 | L115: 28000000
D116: Average existing RAV during year Середня існуюча РВА протягом року | E116: UAH грн | G116: =(G113+G115)/2 -> 66500000 | H116: 59500000 | I116: 52500000 | J116: 45500000 | K116: 38500000 | L116: 31500000
D117: Depreciation on existing assets (nominal) Амортизація на існуючі активи (з урахуванням інфляції) | E117: UAH грн | G117: =G114*BasicData!B38 -> -7000000 | H117: =H114*BasicData!C38 -> -7094500 | I117: =I114*BasicData!D38 -> -7190275.75 | J117: =J114*BasicData!E38 -> -7298129.886 | K117: =K114*BasicData!F38 -> -7407601.835 | L117: =L114*BasicData!G38 -> -7648348.894
D118: Recalculation of Total RAV Перерахування загальної РВА
D119: RAV at start of year РВА на початок року | E119: UAH грн | G119: =G73+G88+G113 -> 70000000 | H119: =G122 -> 68777355.4 | I119: =H122 -> 82115470.64 | J119: 248964453.1 | K119: 463588851.8 | L119: 607410612
D120: Additions Збільшення | E120: UAH грн | G120: =G17+G74+G89 -> 5777355.398 | H120: =H17+H74+H89 -> 21515748.41 | I120: 180380432.2 | J120: 238325216.1 | K120: 176211486.2 | L120: 10498014.38
D121: Depreciation Амортизація | E121: UAH грн | G121: =G114+G75+G90 -> -7000000 | H121: =H114+H75+H90 -> -8177633.175 | I121: -13531449.67 | J121: -23700817.37 | K121: -32389726.02 | L121: -33961153.34
D122: RAV at end of year РВА на кінець року | E122: UAH грн | G122: =SUM(G119:G121) -> 68777355.4 | H122: =SUM(H119:H121) -> 82115470.64 | I122: 248964453.1 | J122: 463588851.8 | K122: 607410612 | L122: 583947473
D123: Average RAV during year Середня РВА протягом року | E123: UAH грн | G123: =(G119+G122)/2 -> 69388677.7 | H123: =(H119+H122)/2 -> 75446413.02 | I123: =(I119+I122)/2 -> 165539961.9 | J123: =(J119+J122)/2 -> 356276652.5 | K123: =(K119+K122)/2 -> 535499731.9 | L123: =(L119+L122)/2 -> 595679042.5
D125: Return on capital Дохід на капітал
D126: Tariff option 2 - Full current cost accounting value of RAV Варіант тарифу 2 - Повна існуюча облікова вартість РВА
F127: Rate of return Дохід на капітал
D128: Return on capital Дохід на капітал | E128: UAH грн | F128: 0.05 | G128: =$F128*$G$107 -> 7528065.811 | H128: =$F128*$H$107 -> 6275229.727 | I128: =$F128*$I$107 -> 9689453.317 | J128: =$F128*$J$107 -> 18612312.45 | K128: =$F128*$K$107 -> 27353484.88 | L128: =$F128*$L$107 -> 30357348.43
F129: 0.055 | G129: =$F129*$G$107 -> 8280872.393 | H129: =$F129*$H$107 -> 6902752.7 | I129: =$F129*$I$107 -> 10658398.65 | J129: =$F129*$J$107 -> 20473543.7 | K129: =$F129*$K$107 -> 30088833.37 | L129: =$F129*$L$107 -> 33393083.27
F130: 0.06 | G130: 9033678.974 | H130: 7530275.673 | I130: 11627343.98 | J130: 22334774.94 | K130: 32824181.86 | L130: 36428818.12
F131: 0.065 | G131: 9786485.555 | H131: 8157798.645 | I131: 12596289.31 | J131: 24196006.19 | K131: 35559530.35 | L131: 39464552.96
F132: 0.07 | G132: 10539292.14 | H132: 8785321.618 | I132: 13565234.64 | J132: 26057237.44 | K132: 38294878.83 | L132: 42500287.8
F133: 0.075 | G133: 11292098.72 | H133: 9412844.591 | I133: 14534179.98 | J133: 27918468.68 | K133: 41030227.32 | L133: 45536022.65
F134: 0.08 | G134: 12044905.3 | H134: 10040367.56 | I134: 15503125.31 | J134: 29779699.93 | K134: 43765575.81 | L134: 48571757.49
F135: 0.085 | G135: 12797711.88 | H135: 10667890.54 | I135: 16472070.64 | J135: 31640931.17 | K135: 46500924.3 | L135: 51607492.33
F136: 0.09 | G136: 13550518.46 | H136: 11295413.51 | I136: 17441015.97 | J136: 33502162.42 | K136: 49236272.79 | L136: 54643227.18
F137: 0.095 | G137: 14303325.04 | H137: 11922936.48 | I137: 18409961.3 | J137: 35363393.66 | K137: 51971621.27 | L137: 57678962.02
F138: 0.1 | G138: 15056131.62 | H138: 12550459.45 | I138: 19378906.63 | J138: 37224624.91 | K138: 54706969.76 | L138: 60714696.86
F139: 0.105 | G139: 15808938.2 | H139: 13177982.43 | I139: 20347851.97 | J139: 39085856.15 | K139: 57442318.25 | L139: 63750431.71
F140: 0.11 | G140: 16561744.79 | H140: 13805505.4 | I140: 21316797.3 | J140: 40947087.4 | K140: 60177666.74 | L140: 66786166.55
F141: 0.115 | G141: 17314551.37 | H141: 14433028.37 | I141: 22285742.63 | J141: 42808318.64 | K141: 62913015.23 | L141: 69821901.39
F142: 0.12 | G142: 18067357.95 | H142: 15060551.35 | I142: 23254687.96 | J142: 44669549.89 | K142: 65648363.71 | L142: 72857636.23
F143: 0.125 | G143: 18820164.53 | H143: 15688074.32 | I143: 24223633.29 | J143: 46530781.13 | K143: 68383712.2 | L143: 75893371.08
F144: 0.13 | G144: 19572971.11 | H144: 16315597.29 | I144: 25192578.62 | J144: 48392012.38 | K144: 71119060.69 | L144: 78929105.92
F145: 0.135 | G145: 20325777.69 | H145: 16943120.26 | I145: 26161523.96 | J145: 50253243.63 | K145: 73854409.18 | L145: 81964840.76
F146: 0.14 | G146: 21078584.27 | H146: 17570643.24 | I146: 27130469.29 | J146: 52114474.87 | K146: 76589757.67 | L146: 85000575.61
F147: 0.145 | G147: 21831390.85 | H147: 18198166.21 | I147: 28099414.62 | J147: 53975706.12 | K147: 79325106.15 | L147: 88036310.45
F148: 0.15 | G148: 22584197.43 | H148: 18825689.18 | I148: 29068359.95 | J148: 55836937.36 | K148: 82060454.64 | L148: 91072045.29
D149: Tariff option 2a - Existing assets adjusted to alternative value Варіант тарифу 2а - Існуючі активи із коригуванням до альтернативної вартості
F150: Rate of return Дохід на капітал
D151: Rate of return Дохід на капітал | E151: UAH грн | F151: 0.03 | G151: =$F151*$G$123 -> 2081660.331 | H151: =$F151*$H$123 -> 2263392.391 | I151: =$F151*$I$123 -> 4966198.856 | J151: =$F151*$J$123 -> 10688299.57 | K151: =$F151*$K$123 -> 16064991.96 | L151: =$F151*$L$123 -> 17870371.28
F152: 0.035 | G152: 2428603.719 | H152: 2640624.456 | I152: 5793898.666 | J152: 12469682.84 | K152: 18742490.62 | L152: 20848766.49
F153: 0.04 | G153: 2775547.108 | H153: 3017856.521 | I153: 6621598.475 | J153: 14251066.1 | K153: 21419989.28 | L153: 23827161.7
F154: 0.045 | G154: 3122490.496 | H154: 3395088.586 | I154: 7449298.285 | J154: 16032449.36 | K154: 24097487.94 | L154: 26805556.91
F155: 0.05 | G155: 3469433.885 | H155: 3772320.651 | I155: 8276998.094 | J155: 17813832.62 | K155: 26774986.6 | L155: 29783952.13
F156: 0.055 | G156: 3816377.273 | H156: 4149552.716 | I156: 9104697.903 | J156: 19595215.89 | K156: 29452485.26 | L156: 32762347.34
F157: 0.06 | G157: 4163320.662 | H157: 4526784.781 | I157: 9932397.713 | J157: 21376599.15 | K157: 32129983.91 | L157: 35740742.55
F158: 0.065 | G158: 4510264.05 | H158: 4904016.846 | I158: 10760097.52 | J158: 23157982.41 | K158: 34807482.57 | L158: 38719137.76
F159: 0.07 | G159: 4857207.439 | H159: 5281248.911 | I159: 11587797.33 | J159: 24939365.67 | K159: 37484981.23 | L159: 41697532.98
F160: 0.075 | G160: 5204150.827 | H160: 5658480.976 | I160: 12415497.14 | J160: 26720748.94 | K160: 40162479.89 | L160: 44675928.19
F161: 0.08 | G161: 5551094.216 | H161: 6035713.041 | I161: 13243196.95 | J161: 28502132.2 | K161: 42839978.55 | L161: 47654323.4
F162: 0.085 | G162: 5898037.604 | H162: 6412945.106 | I162: 14070896.76 | J162: 30283515.46 | K162: 45517477.21 | L162: 50632718.61
F163: 0.09 | G163: 6244980.993 | H163: 6790177.172 | I163: 14898596.57 | J163: 32064898.72 | K163: 48194975.87 | L163: 53611113.83
F164: 0.095 | G164: 6591924.381 | H164: 7167409.237 | I164: 15726296.38 | J164: 33846281.99 | K164: 50872474.53 | L164: 56589509.04
F165: 0.1 | G165: 6938867.77 | H165: 7544641.302 | I165: 16553996.19 | J165: 35627665.25 | K165: 53549973.19 | L165: 59567904.25
F166: 0.105 | G166: 7285811.158 | H166: 7921873.367 | I166: 17381696 | J166: 37409048.51 | K166: 56227471.85 | L166: 62546299.46
F167: 0.11 | G167: 7632754.547 | H167: 8299105.432 | I167: 18209395.81 | J167: 39190431.77 | K167: 58904970.51 | L167: 65524694.68
F168: 0.115 | G168: 7979697.935 | H168: 8676337.497 | I168: 19037095.62 | J168: 40971815.03 | K168: 61582469.17 | L168: 68503089.89
F169: 0.12 | G169: 8326641.324 | H169: 9053569.562 | I169: 19864795.43 | J169: 42753198.3 | K169: 64259967.83 | L169: 71481485.1
F170: 0.125 | G170: 8673584.712 | H170: 9430801.627 | I170: 20692495.23 | J170: 44534581.56 | K170: 66937466.49 | L170: 74459880.31
F171: 0.13 | G171: 9020528.101 | H171: 9808033.692 | I171: 21520195.04 | J171: 46315964.82 | K171: 69614965.15 | L171: 77438275.53
F174: Existing Поточні | G174: =G18 -> -43373773.86 | H174: =H18 -> -32855140.14 | I174: -24763014 | J174: -13796001.71 | K174: -9003260.088 | L174: -5200819.11
F175: KFW new Нові KfW | G175: =G75 -> 0 | H175: 0 | I175: -1253278.242 | J175: -7803059.151 | K175: -15246056.36 | L175: =L75 -> -15866577.52
F176: CVK ЧВК | G176: =G90 -> 0 | H176: -1177633.175 | I176: -5278171.426 | J176: -8897758.221 | K176: -10143669.66 | L176: -11094575.82
G177: =SUM(G174:G176) -> -43373773.86 | H177: =SUM(H174:H176) -> -34032773.32 | I177: -31294463.66 | J177: -30496819.09 | K177: -34392986.11 | L177: -32161972.45
G179: =G176+G175 -> 0 | H179: -1177633.175 | I179: -6531449.667 | J179: -16700817.37 | K179: -25389726.02 | L179: =L176+L175 -> -26961153.34

Sheet Tariffs
A1: Tariff Analysis and Adjustment Plan 2018-2022 Аналіз тарифу та план коригування тарифу 2018-2022
E3: 2017 | F3: 2018 | G3: 2019 | H3: 2020 | I3: 2021 | J3: 2022
B4: Option 1: Cost plus model with costs projected in accordance with inflation projections and using historic cost convention Варіант 1: Модель "витрати плюс" із прогнозованими витратами згідно з прогнозами щодо інфляції та використанням первісної вартості
B5: Revenue requirement Вимоги до доходу | C5: UAH грн | E5: =E6+E11+E15+E18 -> 99624976.66 | F5: =F6+F11+F15+F18 -> 132304929.9 | G5: 163709574.8 | H5: 133235683.8 | I5: 140940924.7 | J5: 151550133.4
B6: Operational costs Операційні витрати | C6: UAH грн | E6: =SUM(E7:E10) -> 99624976.66 | F6: =SUM(F7:F10) -> 100309466.6 | G6: 109226150.7 | H6: 105576096.5 | I6: 96183383.88 | J6: 98249079.34
B7: - Energy - Електроенергія | C7: UAH грн | E7: =BP!I694 -> 49846533.5 | F7: =BP!J694 -> 48080669.76 | G7: =BP!K694 -> 50725106.6 | H7: =BP!L694 -> 45671647.69 | I7: =BP!M694 -> 34016764.22 | J7: =BP!N694 -> 32084433.03
B8: - Other consumables and materials - Інші матеріальні витрати | C8: UAH грн | E8: =BP!I695 -> 10963898.95 | F8: =BP!J695 -> 13402439.73 | G8: =BP!K695 -> 14187041.93 | H8: =BP!L695 -> 14368799.32 | I8: =BP!M695 -> 14910177.36 | J8: =BP!N695 -> 16010356.53
B9: - Salaries and wages including pensions and other social provisions - Фонд оплати праці, включаючи пенсійні та соціальні відрахування | C9: UAH грн | E9: =BP!I696 -> 28997805 | F9: =BP!J696 -> 27970528.5 | G9: =BP!K696 -> 29508907.57 | H9: =BP!L696 -> 30984352.95 | I9: =BP!M696 -> 32533570.59 | J9: =BP!N696 -> 34160249.12
B10: - Other operating expenses - Інші операційні витрати | C10: UAH грн | E10: =BP!I697 -> 9816739.203 | F10: =BP!J697 -> 10855828.56 | G10: =BP!K697 -> 14805094.59 | H10: =BP!L697 -> 14551296.57 | I10: =BP!M697 -> 14722871.7 | J10: =BP!N697 -> 15994040.66
B11: Depreciation Амортизація | C11: UAH грн | E11: =SUM(E12:E14) -> 4211224.151 | F11: =SUM(F12:F14) -> 4551205.067 | G11: 9913709.617 | H11: 20898139.92 | I11: 31115476.3 | J11: 32740726.17
B12: - KfW project investments - Інвестиції в рамках проекту KfW | C12: UAH грн | E12: =-Assets!G61 -> 0 | F12: =-Assets!H61 -> 0 | G12: =-Assets!I61 -> 1289618.624 | H12: =-Assets!J61 -> 8790809.453 | I12: =-Assets!K61 -> 17846041.83 | J12: =-Assets!L61 -> 18622285.5
B13: - CVK investments - Інвестиції ЧВХ | C13: UAH грн | E13: =-Assets!G83 -> 0 | F13: =-Assets!H83 -> 1266544.479 | G13: =-Assets!I83 -> 5849570.511 | H13: =-Assets!J83 -> 9996068.299 | I13: =-Assets!K83 -> 11513145.86 | J13: =-Assets!L83 -> 12727810.03
B14: - Existing assets - Існуючі активи | C14: UAH грн | E14: =-Assets!G10 -> 4211224.151 | F14: =-Assets!H10 -> 3284660.588 | G14: =-Assets!I10 -> 2774520.483 | H14: =-Assets!J10 -> 2111262.164 | I14: =-Assets!K10 -> 1756288.606 | J14: =-Assets!L10 -> 1390630.641
B15: Financing costs Фінансові витрати | C15: UAH грн | E15: =SUM(E16:E17) -> 0 | F15: =SUM(F16:F17) -> 4774767.559 | G15: 2841417.107 | H15: 9850682.389 | I15: 27902747.96 | J15: 39511890.08
B16: - Interest - Відсотки по кредиту | C16: UAH грн | E16: =KfWInterest!D6 -> 0 | F16: =KfWInterest!E6 -> 0 | G16: =KfWInterest!F6 -> 1945452.232 | H16: =KfWInterest!G6 -> 9377450.29 | I16: =KfWInterest!H6 -> 27797487.95 | J16: =KfWInterest!I6 -> 39500503.74
B17: - Commitment charge - Комісія за резервування коштів | C17: UAH грн | E17: =KfWInterest!D11 -> 0 | F17: =KfWInterest!E11 -> 4774767.559 | G17: =KfWInterest!F11 -> 895964.8749 | H17: =KfWInterest!G11 -> 473232.0991 | I17: =KfWInterest!H11 -> 105260.0019 | J17: =KfWInterest!I11 -> 11386.34249
B18: Profit for investment (CVK investment less depreciation including depreciation on KfW funded investments) Прибуток для інвестицій (інвестиції ЧВК за вирахуванням амортизації, включаючи амортизацію на інвестиції, що фінансуються KfW) | C18: UAH грн | E18: =IF(Assets!G82+Assets!G83+Assets!G10+Assets!G61<0,Assets!G82+Assets!G83+Assets!G10+Assets!G61,(Assets!G82+Assets!G83+Assets!G10+Assets!G61)/0.82) -> -4211224.151 | F18: =IF(Assets!H82+Assets!H83+Assets!H10+Assets!H61<0,Assets!H82+Assets!H83+Assets!H10+Assets!H61,(Assets!H82+Assets!H83+Assets!H10+Assets!H61)/0.82) -> 22669490.67 | G18: =IF(Assets!I82+Assets!I83+Assets!I10+Assets!I61<0,Assets!I82+Assets!I83+Assets!I10+Assets!I61,(Assets!I82+Assets!I83+Assets!I10+Assets!I61)/0.82) -> 41728297.39 | H18: =IF(Assets!J82+Assets!J83+Assets!J10+Assets!J61<0,Assets!J82+Assets!J83+Assets!J10+Assets!J61,(Assets!J82+Assets!J83+Assets!J10+Assets!J61)/0.82) -> -3089235.024 | I18: =IF(Assets!K82+Assets!K83+Assets!K10+Assets!K61<0,Assets!K82+Assets!K83+Assets!K10+Assets!K61,(Assets!K82+Assets!K83+Assets!K10+Assets!K61)/0.82) -> -14260683.38 | J18: =IF(Assets!L82+Assets!L83+Assets!L10+Assets!L61<0,Assets!L82+Assets!L83+Assets!L10+Assets!L61,(Assets!L82+Assets!L83+Assets!L10+Assets!L61)/0.82) -> -18951562.23
B20: Sales volume Обсяг реалізації
B21: Water abstraction Об'єм піднятої води | C21: m3/year м3/рік | E21: =BP!I65 -> 28236765 | F21: =BP!J65 -> 28094926.68 | G21: =BP!K65 -> 27639595.48 | H21: =BP!L65 -> 23601147.63 | I21: =BP!M65 -> 20790081.9 | J21: =BP!N65 -> 20582737.55
B22: Projected sales Прогнозована реалізація | C22: m3/year м3/рік | E22: =BP!I66 -> 8758905 | F22: =BP!J66 -> 9047948.865 | G22: =BP!K66 -> 9826072.467 | H22: =BP!L66 -> 10032419.99 | I22: =BP!M66 -> 10142776.61 | J22: =BP!N66 -> 10254347.15
B23: NRW БДВ | C23: m3/year м3/рік | E23: =E21-E22 -> 19477860 | F23: =F21-F22 -> 19046977.82 | G23: 17813523.01 | H23: 13568727.64 | I23: 10647305.29 | J23: 10328390.4
B24: Max permissible NRW accroding to norms (40.04% of abstraction) Максимально допустима БДВ відповідно до норм (40,04% від об'єму поднятої) | C24: m3/year м3/рік | E24: =E21*0.4204 -> 11870736.01 | F24: =F21*0.4204 -> 11811107.18 | G24: 11619685.94 | H24: 9921922.464 | I24: 8740150.432 | J24: 8652982.867
B25: Projected sales after adjustment for norms on 42% max NRW Прогнозована реалізація після коригування для норм на 42% макс. БДВ | C25: m3/year м3/рік | E25: =E21-E24 -> 16366028.99 | F25: =F21-F24 -> 16283819.51 | G25: 16019909.54 | H25: 13679225.17 | I25: 12049931.47 | J25: 11929754.68
B27: Option 1a - Cost plus tariffs with adjustment for NRW norms Варіант 1а - Тарифи за принципом "витрати плюс" із коригуванням для норм БДВ
B28: Середні тарифи
B29: Projected tariffs with adjustment for NRW norms (inflation adjusted) Прогнозовані тарифи із коригуванням для норм БДВ (з урахуванням інфляції) | C29: UAH/m3 грн/м3 | E29: =E5/E25 -> 6.087302955 | F29: 8.124932226 | G29: 10.21913229 | H29: 9.740002243 | I29: 11.69640882 | J29: 12.70354147
B30: Projected tariffs with adjustment for NRW norms (2017 price levels) Прогнозовані тарифи із коригуванням для норм БДВ (рівень цін 2017 року) | C30: UAH/m3 грн/м3 | E30: =E29/BasicData!B$33 -> 6.087302955 | F30: =F29/BasicData!C$33 -> 7.554562739 | G30: =G29/BasicData!D$33 -> 9.006398247 | H30: =H29/BasicData!E$33 -> 8.175359956 | I30: =I29/BasicData!F$33 -> 9.349988294 | J30: =J29/BasicData!G$33 -> 9.671504496
B32: Tariff breakdown Основні складові тарифу
B33: Projected tariffs with adjustment for NRW norms (inflation adjusted) Прогнозовані тарифи із коригуванням для норм БДВ (з урахуванням інфляції)
B34: Operational costs (inflation adjusted) Операційні витрати (з урахуванням інфляції) | E34: =E$29*E6/E$5 -> 6.087302955 | F34: 6.16006991 | G34: 6.818150278 | H34: 7.717988061 | I34: 7.982068953 | J34: 8.23563283
B35: Depreciation (inflation adjusted) Амортизація (з урахуванням інфляції) | E35: =E$29*E11/E$5 -> 0.2573149634 | F35: 0.2794924781 | G35: 0.6188368039 | H35: 1.527728337 | I35: 2.582211888 | J35: 2.744459298
B36: Financing costs (inflation adjusted) Фінансові витрати (з урахуванням інфляції) | E36: =E$29*E15/E$5 -> 0 | F36: 0.2932215969 | G36: 0.1773678621 | H36: 0.7201199095 | I36: 2.315593912 | J36: 3.31204548
B37: Profit for investment (CVK investment less depreciation) (inflation adjusted) Прибуток для інвестицій (інвестиції ЧВК за вирахуванням амортизації, із урахуванням інфляції) | E37: =E$29*E18/E$5 -> -0.2573149634 | F37: 1.39214824 | G37: 2.604777342 | H37: -0.2258340649 | I37: -1.183465932 | J37: -1.588596139
B39: Projected tariffs with adjustment for NRW norms (2017 price levels) Прогнозовані тарифи із коригуванням для норм БДВ (рівень цін 2017 року)
B40: Operational costs (2017 price levels) Операційні витрати (рівень цін 2017 року) | E40: =E$30*E6/E$5 -> 6.087302955 | F40: 5.727633575 | G40: 6.009020628 | H40: 6.478163861 | I40: 6.380783402 | J40: 6.269980709
B41: Depreciation (2017 price levels) Амортизація (рівень цін 2017 року) | E41: =E$30*E11/E$5 -> 0.2573149634 | F41: 0.2598721322 | G41: 0.5453976472 | H41: 1.282312751 | I41: 2.064193488 | J41: 2.089421325
B42: Financing costs (2017 price levels) Фінансові витрати (рівень цін 2017 року) | E42: =E$30*E15/E$5 -> 0 | F42: 0.272637468 | G42: 0.156319104 | H42: 0.6044392316 | I42: 1.851061835 | J42: 2.521538016
B43: Profit for investment (CVK investment less depreciation) (2017 price levels) Прибуток для інвестицій (інвестиції ЧВК за вирахуванням амортизації, рівень цін 2017 року) | E43: =E$30*E18/E$5 -> -0.2573149634 | F43: 1.294419563 | G43: 2.295660867 | H43: -0.1895558876 | I43: -0.9460504316 | J43: -1.209435553
B45: Option 1b: Cost plus tariffs without adjustment for NRW norms Варіант 1б: Тарифи за принципом "витрати плюс" без коригуванням для норм БДВ
B46: Середні тарифи
B47: Projected tariffs without adjustment for NRW norms (inflation adjusted) Прогнозовані тарифи без коригуванням для норм БДВ (з урахуванням інфляції) | C47: UAH/m3 грн/м3 | E47: =E5/E22 -> 11.374136 | F47: 14.62264341 | G47: 16.66073351 | H47: 13.28051297 | I47: 13.89569446 | J47: 14.77911086
B48: Projected tariffs without adjustment for NRW norms (2017 price levels) Прогнозовані тарифи без коригуванням для норм БДВ (рівень цін 2017 року) | C48: UAH/m3 грн/м3 | E48: =E47/BasicData!B$33 -> 11.374136 | F48: =F47/BasicData!C$33 -> 13.5961352 | G48: =G47/BasicData!D$33 -> 14.68355598 | H48: =H47/BasicData!E$33 -> 11.14712001 | I48: =I47/BasicData!F$33 -> 11.1080745 | J48: =J47/BasicData!G$33 -> 11.25168422
B50: Tariff breakdown Основні складові тарифу
B51: Projected tariffs without adjustment for NRW norms (inflation adjusted) Прогнозовані тарифи без коригуванням для норм БДВ (з урахуванням інфляції)
B52: Operational costs (inflation adjusted) Операційні витрати (з урахуванням інфляції) | E52: =E$47*E6/E$5 -> 11.374136 | F52: 11.08643164 | G52: 11.11595208 | H52: 10.5234925 | I52: 9.482944127 | J52: 9.581212522
B53: Depreciation (inflation adjusted) Амортизація (з урахуванням інфляції) | E53: =E$47*E11/E$5 -> 0.4807934498 | F53: 0.503009592 | G53: 1.008918838 | H53: 2.083060711 | I53: 3.067747373 | J53: 3.192863055
B54: Financing costs (inflation adjusted) Фінансові витрати (з урахуванням інфляції) | E54: =E$47*E15/E$5 -> 0 | F54: 0.5277182298 | G54: 0.2891711939 | H54: 0.9818849689 | I54: 2.750996993 | J54: 3.853184361
B55: Profit for investment (CVK investment less depreciation) (inflation adjusted) Прибуток для інвестицій (інвестиції ЧВК за вирахуванням амортизації, з урахуванням інфляції) | E55: =E$47*E18/E$5 -> -0.4807934498 | F55: 2.505483951 | G55: 4.246691394 | H55: -0.3079252092 | I55: -1.405994032 | J55: -1.848149078
B57: Projected tariffs without adjustment for NRW norms (2017 price levels) Прогнозовані тарифи без коригуванням для норм БДВ (рівень цін 2017 року)
B58: Operational costs (2017 price levels) Операційні витрати (рівень цін 2017 року) | E58: =E$48*E6/E$5 -> 11.374136 | F58: 10.30816517 | G58: 9.796789836 | H58: 8.832989669 | I58: 7.580567501 | J58: 7.294402133
B59: Depreciation (2017 price levels) Амортизація (рівень цін 2017 року) | E59: =E$48*E11/E$5 -> 0.4807934498 | F59: 0.4676983654 | G59: 0.8891875161 | H59: 1.748436058 | I59: 2.452325535 | J59: 2.430801636
B60: Financing costs (2017 price levels) Фінансові витрати (рівень цін 2017 року) | E60: =E$48*E15/E$5 -> 0 | F60: 0.4906724592 | G60: 0.2548544104 | H60: 0.824154128 | I60: 2.199118557 | J60: 2.933519756
B61: Profit for investment (CVK investment less depreciation) (2017 price levels) Прибуток для інвестицій (інвестиції ЧВК за вирахуванням амортизації, рівень цін 2017 року) | E61: =E$48*E18/E$5 -> -0.4807934498 | F61: 2.329599211 | G61: 3.742724221 | H61: -0.2584598403 | I61: -1.123937094 | J61: -1.407039302
B64: Option 2: Incentive based model with costs based on base year (2017) price levels Варіант 2: Модель стимулюючого тарифоутворення на основі базових рівнів цін (2017 року)
B65: Option 2a: Incentive based model with costs based on base year (2017) price levels, full MEAV and 12,5% return on capital Варіант 2а: Модель стимулюючого тарифоутворення на основі базових рівнів цін (2017 року), повна ПВЕА та 12,5% доходу на капітал
B66: Revenue requirement Вимоги до доходу | E66: =SUM(E67:E71) -> 161818915.2 | F66: =SUM(F67:F71) -> 157413598.8 | G66: 162464303.8 | H66: 177371307.4 | I66: 191971785.3 | J66: 194509870.6
B67: Operational costs Операційні витрати | C67: UAH грн | E67: =BP!I691 -> 99624976.66 | F67: =BP!J691 -> 93267751.33 | G67: =BP!K691 -> 96263966.88 | H67: =BP!L691 -> 88616262.11 | I67: =BP!M691 -> 76888002.73 | J67: =BP!N691 -> 74799331.74
B68: Financing costs excluding interest Фінансові витрати за виключенням відсотків по кредиту | C68: UAH грн | E68: =KfWInterest!D12 -> 0 | F68: =KfWInterest!E12 -> 4439579.32 | G68: =KfWInterest!F12 -> 789638.127 | H68: =KfWInterest!G12 -> 397211.6901 | I68: =KfWInterest!H12 -> 84143.75734 | J68: =KfWInterest!I12 -> 8668.689972
B69: Depreciation Амортизація | C69: UAH грн | E69: =-Assets!G105 -> 43373773.86 | F69: =-Assets!H105 -> 34032773.32 | G69: =-Assets!I105 -> 31294463.66 | H69: =-Assets!J105 -> 30496819.09 | I69: =-Assets!K105 -> 34392986.11 | J69: =-Assets!L105 -> 32161972.45
B70: Pre-tax return on capital Дохід на капітал до оподоткування | C70: % | E70: 0.125 | F70: 0.2045621893 | G70: 0.1760482961 | H70: 0.1554374678 | I70: 0.1473425652 | J70: 0.1441823844
B71: Pre-tax return on capital Дохід на капітал до оподоткування | C71: UAH грн | E71: =E70*Assets!G107 -> 18820164.53 | F71: =F70*Assets!H107 -> 25673494.62 | G71: =G70*Assets!I107 -> 34116234.94 | H71: =H70*Assets!J107 -> 57861014.35 | I71: =I70*Assets!K107 -> 80606652.57 | J71: =J70*Assets!L107 -> 87539897.59
B72: Post-tax return on capital Дохід на капітал після оподоткування | C72: UAH | F72: =F71+'P&L'!F45/BasicData!C33 -> 15688074.32 | G72: =G71+'P&L'!G45/BasicData!D33 -> 24223633.29 | H72: =H71+'P&L'!H45/BasicData!E33 -> 46530781.13 | I72: =I71+'P&L'!I45/BasicData!F33 -> 68383712.2 | J72: =J71+'P&L'!J45/BasicData!G33 -> 75893371.08
B73: Post-tax return on capital Дохід на капітал після оподоткування | C73: % | F73: =F72/Assets!H107 -> 0.125 | G73: =G72/Assets!I107 -> 0.125 | H73: =H72/Assets!J107 -> 0.125 | I73: =I72/Assets!K107 -> 0.125 | J73: =J72/Assets!L107 -> 0.125
B75: Average tariffs Середні тарифи
B76: Projected tariffs (base year 2017 price levels) Прогнозовані тарифи (на рівні цін базового 2017 року) | C76: UAH/m3 грн/м3 | E76: =E66/E22 -> 18.47478825 | F76: 17.39771092 | G76: 16.5340022 | H76: 17.67981281 | I76: 18.92694601 | J76: 18.96852796
B77: Projected tariffs (nominal price levels with expected inflation) Прогнозовані тарифи (із урахуванням очікуваної інфляції) | C77: UAH/m3 грн/м3 | E77: =E76*BasicData!B33 -> 18.47478825 | F77: =F76*BasicData!C33 -> 18.7112381 | G77: =G76*BasicData!D33 -> 18.76034693 | H77: =H76*BasicData!E33 -> 21.06346599 | I77: =I76*BasicData!F33 -> 23.67674604 | J77: =J76*BasicData!G33 -> 24.91520131
D78: `
B79: Average tariffs including VAT at 20% Середні тарифи із 20% ПДВ
B80: Projected tariffs (base year 2017 price levels) Прогнозовані тарифи (на рівні цін базового 2017 року) | C80: UAH/m3 грн/м3 | E80: =E76*1.2 -> 22.1697459 | F80: =F76*1.2 -> 20.87725311 | G80: 19.84080264 | H80: 21.21577537 | I80: 22.71233522 | J80: 22.76223355
B81: Projected tariffs (nominal price levels with expected inflation) Прогнозовані тарифи (із урахуванням очікуваної інфляції) | C81: UAH/m3 грн/м3 | E81: =E77*1.2 -> 22.1697459 | F81: =F77*1.2 -> 22.45348572 | G81: 22.51241632 | H81: 25.27615919 | I81: 28.41209525 | J81: 29.89824157
B83: Tariff breakdown (real) Основні складові тарифу (без урахування інфляції)
B84: Operational costs Операційні витрати | E84: =E76*(E68+E67)/E66 -> 11.374136 | F84: =F76*(F68+F67)/F66 -> 10.79883763 | G84: 9.877151357 | H84: 8.872582478 | I84: 7.58886343 | J84: 7.2952475
B85: Depreciation Амортизація | E85: =E76*E69/E66 -> 4.951963043 | F85: =F76*F69/F66 -> 3.761379935 | G85: 3.184839494 | H85: 3.039826794 | I85: 3.390884709 | J85: 3.136423214
B86: Return on capital Дохід на капітал | E86: =E76*E71/E66 -> 2.148689194 | F86: =F76*F71/F66 -> 2.837493338 | G86: 3.47201133 | H86: 5.767403519 | I86: 7.94719786 | J86: 8.536857227
B88: Option 2b: Incentive based model with costs based on base year (2017) price levels, adjusted opening RAV on existing assets and 5% return on capital Варіант 2б: Модель стимулюючого тарифоутворення на основі базових рівнів цін (2017 року), скоригована РВА на існуючі активи та 5% доходу на капітал
B89: Revenue requirement Вимоги до доходу | E89: =SUM(E90:E94) -> 110094410.6 | F89: =SUM(F90:F94) -> 111351533 | G89: =SUM(G90:G94) -> 121354975.4 | H89: =SUM(H90:H94) -> 134062831.4 | I89: =SUM(I90:I94) -> 138786436.8 | J89: =SUM(J90:J94) -> 140472994.8
B90: Operational costs Операційні витрати | C90: UAH грн | E90: =BP!I691 -> 99624976.66 | F90: =BP!J691 -> 93267751.33 | G90: =BP!K691 -> 96263966.88 | H90: =BP!L691 -> 88616262.11 | I90: =BP!M691 -> 76888002.73 | J90: =BP!N691 -> 74799331.74
B91: Financing costs excluding interest Фінансові витрати за виключенням відсотків по кредиту | C91: UAH грн | E91: =KfWInterest!D12 -> 0 | F91: =KfWInterest!E12 -> 4439579.32 | G91: =KfWInterest!F12 -> 789638.127 | H91: =KfWInterest!G12 -> 397211.6901 | I91: =KfWInterest!H12 -> 84143.75734 | J91: =KfWInterest!I12 -> 8668.689972
B92: Depreciation Амортизація | C92: UAH грн | E92: =-Assets!G121 -> 7000000 | F92: =-Assets!H121 -> 8177633.175 | G92: =-Assets!I121 -> 13531449.67 | H92: =-Assets!J121 -> 23700817.37 | I92: =-Assets!K121 -> 32389726.02 | J92: =-Assets!L121 -> 33961153.34
B93: Pre-tax return on capital Дохід на капітал до оподоткування | C93: % | E93: 0.05 | F93: 0.07245631563 | G93: 0.06505933976 | H93: 0.05992124381 | I93: 0.05494785986 | J93: 0.05322302571
B94: Pre-tax return on capital Дохід на капітал до оподоткування | C94: UAH грн | E94: =E93*Assets!G123 -> 3469433.885 | F94: =F93*Assets!H123 -> 5466569.115 | G94: =G93*Assets!I123 -> 10769920.62 | H94: =H93*Assets!J123 -> 21348540.16 | I94: =I93*Assets!K123 -> 29424564.23 | J94: =J93*Assets!L123 -> 31703841
B95: Post-tax return on capital Дохід на капітал після оподоткування | C95: UAH | F95: =F94+'P&L'!F60/BasicData!C33 -> 3772320.651 | G95: =G94+'P&L'!G60/BasicData!D33 -> 8276998.094 | H95: =H94+'P&L'!H60/BasicData!E33 -> 17813832.62 | I95: =I94+'P&L'!I60/BasicData!F33 -> 26774986.6 | J95: =J94+'P&L'!J60/BasicData!G33 -> 29783952.13
B96: Post-tax return on capital Дохід на капітал після оподоткування | C96: % | F96: =F95/Assets!H123 -> 0.05 | G96: =G95/Assets!I123 -> 0.05 | H96: =H95/Assets!J123 -> 0.05 | I96: =I95/Assets!K123 -> 0.05 | J96: =J95/Assets!L123 -> 0.05
B98: Average tariffs Середні тарифи
B99: Projected tariffs (base year 2017 price levels) Прогнозовані тарифи (на рівні цін базового 2017 року) | C99: UAH/m3 грн/м3 | E99: =E89/E22 -> 12.56942627 | F99: 12.30682607 | G99: 12.35030331 | H99: 13.36296044 | I99: 13.68327847 | J99: 13.69887256
B100: Projected tariffs (nominal price levels with expected inflation) Прогнозовані тарифи (із урахуванням очікуваної інфляції) | C100: UAH/m3 грн/м3 | E100: =E99*BasicData!B33 -> 12.56942627 | F100: =F99*BasicData!C33 -> 13.23599144 | G100: =G99*BasicData!D33 -> 14.01330253 | H100: =H99*BasicData!E33 -> 15.92043229 | I100: =I99*BasicData!F33 -> 17.11715715 | J100: =J99*BasicData!G33 -> 17.99349788
B102: Average tariffs including VAT at 20% Середні тарифи із 20% ПДВ
B103: Projected tariffs (base year 2017 price levels) Прогнозовані тарифи (на рівні цін базового 2017 року) | C103: UAH/m3 грн/м3 | E103: =E99*1.2 -> 15.08331152 | F103: =F99*1.2 -> 14.76819129 | G103: 14.82036398 | H103: 16.03555252 | I103: 16.41993416 | J103: 16.43864707
B104: Projected tariffs (nominal price levels with expected inflation) Прогнозовані тарифи (із урахуванням очікуваної інфляції) | C104: UAH/m3 грн/м3 | E104: =E100*1.2 -> 15.08331152 | F104: =F100*1.2 -> 15.88318973 | G104: 16.81596304 | H104: 19.10451875 | I104: 20.54058858 | J104: 21.59219746
B106: Tariff breakdown (real) Основні складові тарифу (без урахування інфляції)
B107: Operational costs Операційні витрати | E107: =E99*(E90+E91)/E89 -> 11.374136 | F107: =F99*(F90+F91)/F89 -> 10.79883763 | G107: 9.877151357 | H107: 8.872582478 | I107: 7.58886343 | J107: 7.2952475
B108: Depreciation Амортизація | E108: =E99*E92/E89 -> 0.7991866563 | F108: =F99*F92/F89 -> 0.9038107196 | G108: 1.377096466 | H108: 2.362422765 | I108: 3.193378625 | J108: 3.311878644
B109: Return on capital Дохід на капітал | E109: =E99*E94/E89 -> 0.3961036094 | F109: =F99*F94/F89 -> 0.6041777199 | G109: 1.096055485 | H109: 2.127955187 | I109: 2.901036408 | J109: 3.09174641

Sheet P&L
A1: CVK Profit and Loss Analysis 2018-2022 Аналіз прибутку та збитків ЧВК 2018-2022
E3: 2017 | F3: 2018 | G3: 2019 | H3: 2020 | I3: 2021 | J3: 2022
B4: Option 1: Cost plus model with costs projected in accordance with inflation projections and using historic cost convention Варіант 1: Модель "витрати плюс" із прогнозованими витратами згідно з прогнозами щодо інфляції та використанням первісної вартості
B5: Option 1a - Cost plus tariffs with adjustment for NRW norms Варіант 1а - Тарифи за принципом "витрати плюс" із коригуванням для норм БДВ
B6: Income Дохід
B7: Income from water sales Дохід від реалізації послуг централізованого водопостачання | C7: UAH грн | F7: =Tariffs!F29*Tariffs!F22 -> 73513971.31 | G7: =Tariffs!G29*Tariffs!G22 -> 100413934.4 | H7: =Tariffs!H29*Tariffs!H22 -> 97715793.19 | I7: =Tariffs!I29*Tariffs!I22 -> 118634061.8 | J7: =Tariffs!J29*Tariffs!J22 -> 130266524.3
B8: Expenditure Витрати
B9: Operating costs Операційні витрати | C9: UAH грн | F9: =-Tariffs!F6 -> -100309466.6 | G9: =-Tariffs!G6 -> -109226150.7 | H9: =-Tariffs!H6 -> -105576096.5 | I9: =-Tariffs!I6 -> -96183383.88 | J9: =-Tariffs!J6 -> -98249079.34
B10: Financing costs excluding interest Фінансові витрати за виключенням відсотків по кредиту | C10: UAH грн | F10: =-KfWInterest!E11 -> -4774767.559 | G10: =-KfWInterest!F11 -> -895964.8749 | H10: =-KfWInterest!G11 -> -473232.0991 | I10: =-KfWInterest!H11 -> -105260.0019 | J10: =-KfWInterest!I11 -> -11386.34249
B11: Earnings before depreciation, interest and tax (EBDIT) Доходи до відрахувань на амортизацію, сплати відсотків по кредиту та податків (EBDIT) | C11: UAH грн | F11: =SUM(F7:F10) -> -31570262.81 | G11: -9708181.153 | H11: -8333535.422 | I11: 22345417.91 | J11: 32006058.6
B12: Depreciation Амортизація | C12: UAH грн | F12: =Assets!H98 -> -4551205.067 | G12: =Assets!I98 -> -9913709.617 | H12: =Assets!J98 -> -20898139.92 | I12: =Assets!K98 -> -31115476.3 | J12: =Assets!L98 -> -32740726.17
B13: Earnings before interest and tax (EBIT) Доходи до сплати відсотків по кредиту та податків (EBIT) | C13: UAH грн | F13: =SUM(F11:F12) -> -36121467.87 | G13: -19621890.77 | H13: -29231675.34 | I13: -8770058.381 | J13: -734667.5674
B14: Interest Відсотки по кредиту | C14: UAH грн | F14: =-KfWInterest!E6 -> 0 | G14: =-KfWInterest!F6 -> -1945452.232 | H14: =-KfWInterest!G6 -> -9377450.29 | I14: =-KfWInterest!H6 -> -27797487.95 | J14: =-KfWInterest!I6 -> -39500503.74
B15: Earnings before tax (EBT) Доходи до сплати податків (EBT) | C15: UAH грн | F15: =SUM(F13:F14) -> -36121467.87 | G15: -21567343 | H15: -38609125.63 | I15: -36567546.33 | J15: -40235171.31
B16: Taxation Сплата податків | C16: UAH грн | F16: =IF(F15<0,0,-F15*0.18) -> 0 | G16: 0 | H16: 0 | I16: 0 | J16: 0
B17: Net earnings Чистий дохід | C17: UAH грн | F17: =SUM(F15:F16) -> -36121467.87 | G17: -21567343 | H17: -38609125.63 | I17: -36567546.33 | J17: -40235171.31
B19: Option 1b - Cost plus tariffs without adjustment for NRW norms Варіант 1б: Тарифи за принципом "витрати плюс" без коригуванням для норм БДВ
B20: Income Дохід
B21: Income from water sales Дохід від реалізації послуг централізованого водопостачання | C21: UAH грн | F21: =Tariffs!F47*Tariffs!F22 -> 132304929.9 | G21: =Tariffs!G47*Tariffs!G22 -> 163709574.8 | H21: =Tariffs!H47*Tariffs!H22 -> 133235683.8 | I21: =Tariffs!I47*Tariffs!I22 -> 140940924.7 | J21: =Tariffs!J47*Tariffs!J22 -> 151550133.4
B22: Expenditure Витрати
B23: Operating costs Операційні витрати | C23: UAH грн | F23: =-Tariffs!F6 -> -100309466.6 | G23: =-Tariffs!G6 -> -109226150.7 | H23: =-Tariffs!H6 -> -105576096.5 | I23: =-Tariffs!I6 -> -96183383.88 | J23: =-Tariffs!J6 -> -98249079.34
B24: Financing costs excluding interest Фінансові витрати за виключенням відсотків по кредиту | C24: UAH грн | F24: =-KfWInterest!E11 -> -4774767.559 | G24: =-KfWInterest!F11 -> -895964.8749 | H24: =-KfWInterest!G11 -> -473232.0991 | I24: =-KfWInterest!H11 -> -105260.0019 | J24: =-KfWInterest!I11 -> -11386.34249
B25: Earnings before depreciation, interest and tax (EBDIT) Доходи до відрахувань на амортизацію, сплати відсотків по кредиту та податків (EBDIT) | C25: UAH грн | F25: =SUM(F21:F24) -> 27220695.74 | G25: =SUM(G21:G24) -> 53587459.24 | H25: =SUM(H21:H24) -> 27186355.18 | I25: =SUM(I21:I24) -> 44652280.87 | J25: =SUM(J21:J24) -> 53289667.68
B26: Depreciation Амортизація | C26: UAH грн | F26: =Assets!H98 -> -4551205.067 | G26: =Assets!I98 -> -9913709.617 | H26: =Assets!J98 -> -20898139.92 | I26: =Assets!K98 -> -31115476.3 | J26: =Assets!L98 -> -32740726.17
B27: Earnings before interest and tax (EBIT) Доходи до сплати відсотків по кредиту та податків (EBIT) | C27: UAH грн | F27: =SUM(F25:F26) -> 22669490.67 | G27: =SUM(G25:G26) -> 43673749.62 | H27: =SUM(H25:H26) -> 6288215.266 | I27: =SUM(I25:I26) -> 13536804.57 | J27: =SUM(J25:J26) -> 20548941.51
B28: Interest Відсотки по кредиту | C28: UAH грн | F28: =-KfWInterest!E6 -> 0 | G28: =-KfWInterest!F6 -> -1945452.232 | H28: =-KfWInterest!G6 -> -9377450.29 | I28: =-KfWInterest!H6 -> -27797487.95 | J28: =-KfWInterest!I6 -> -39500503.74
B29: Earnings before tax (EBT) Доходи до сплати податків (EBT) | C29: UAH грн | F29: =SUM(F27:F28) -> 22669490.67 | G29: =SUM(G27:G28) -> 41728297.39 | H29: =SUM(H27:H28) -> -3089235.024 | I29: =SUM(I27:I28) -> -14260683.38 | J29: =SUM(J27:J28) -> -18951562.23
B30: Taxation Сплата податків | C30: UAH грн | F30: =IF(F29<0,0,-F29*0.18) -> -4080508.321 | G30: =IF(G29<0,0,-G29*0.18) -> -7511093.53 | H30: =IF(H29<0,0,-H29*0.18) -> 0 | I30: =IF(I29<0,0,-I29*0.18) -> 0 | J30: =IF(J29<0,0,-J29*0.18) -> 0
B31: Net earnings Чистий дохід | C31: UAH грн | F31: =SUM(F29:F30) -> 18588982.35 | G31: =SUM(G29:G30) -> 34217203.86 | H31: =SUM(H29:H30) -> -3089235.024 | I31: =SUM(I29:I30) -> -14260683.38 | J31: =SUM(J29:J30) -> -18951562.23
B33: Option 2: Incentive based model, historic cost convention with costs projected in accordance with inflation projections Варіант 2: Модель стимулюючого тарифоутворення, метод первісної вартості із прогнозованими витратами відповідно до прогнозу щодо інфляції
B34: Option 2a - tariffs based on full MEAV and NEURC return on capital of 12.5% real Варіант 2а - Тарифи із повною ПВЕА та доходом на капітал 12,5% НКРЕКП без урахування інфляції
B35: Income Дохід
B36: Income from water sales Дохід від реалізації послуг централізованого водопостачання | C36: UAH грн | F36: =Tariffs!F77*Tariffs!F22 -> 169298325.5 | G36: =Tariffs!G77*Tariffs!G22 -> 184340528.4 | H36: =Tariffs!H77*Tariffs!H22 -> 211317537.2 | I36: =Tariffs!I77*Tariffs!I22 -> 240147945.9 | J36: =Tariffs!J77*Tariffs!J22 -> 255489123.6
B37: Expenditure Витрати
B38: Operating costs Операційні витрати | C38: UAH грн | F38: =-Tariffs!F6 -> -100309466.6 | G38: =-Tariffs!G6 -> -109226150.7 | H38: =-Tariffs!H6 -> -105576096.5 | I38: =-Tariffs!I6 -> -96183383.88 | J38: =-Tariffs!J6 -> -98249079.34
B39: Financing costs excluding interest Фінансові витрати за виключенням відсотків по кредиту | C39: UAH грн | F39: =-KfWInterest!E11 -> -4774767.559 | G39: =-KfWInterest!F11 -> -895964.8749 | H39: =-KfWInterest!G11 -> -473232.0991 | I39: =-KfWInterest!H11 -> -105260.0019 | J39: =-KfWInterest!I11 -> -11386.34249
B40: Earnings before depreciation, interest and tax (EBDIT) Доходи до відрахувань на амортизацію, сплати відсотків по кредиту та податків (EBDIT) | C40: UAH грн | F40: =SUM(F36:F39) -> 64214091.39 | G40: =SUM(G36:G39) -> 74218412.89 | H40: =SUM(H36:H39) -> 105268208.6 | I40: =SUM(I36:I39) -> 143859302 | J40: =SUM(J36:J39) -> 157228657.9
B41: Depreciation Амортизація | C41: UAH грн | F41: =Assets!H98 -> -4551205.067 | G41: =Assets!I98 -> -9913709.617 | H41: =Assets!J98 -> -20898139.92 | I41: =Assets!K98 -> -31115476.3 | J41: =Assets!L98 -> -32740726.17
B42: Earnings before interest and tax (EBIT) Доходи до сплати відсотків по кредиту та податків (EBIT) | C42: UAH грн | F42: =SUM(F40:F41) -> 59662886.32 | G42: =SUM(G40:G41) -> 64304703.28 | H42: =SUM(H40:H41) -> 84370068.7 | I42: =SUM(I40:I41) -> 112743825.7 | J42: =SUM(J40:J41) -> 124487931.7
B43: Interest Відсотки по кредиту | C43: UAH грн | F43: =-KfWInterest!E6 -> 0 | G43: =-KfWInterest!F6 -> -1945452.232 | H43: =-KfWInterest!G6 -> -9377450.29 | I43: =-KfWInterest!H6 -> -27797487.95 | J43: =-KfWInterest!I6 -> -39500503.74
B44: Earnings before tax (EBT) Доходи до сплати податків (EBT) | C44: UAH грн | F44: =SUM(F42:F43) -> 59662886.32 | G44: =SUM(G42:G43) -> 62359251.05 | H44: =SUM(H42:H43) -> 74992618.41 | I44: =SUM(I42:I43) -> 84946337.77 | J44: =SUM(J42:J43) -> 84987427.99
B45: Taxation Сплата податків | C45: UAH грн | F45: =IF(F44<0,0,-F44*0.18) -> -10739319.54 | G45: =IF(G44<0,0,-G44*0.18) -> -11224665.19 | H45: =IF(H44<0,0,-H44*0.18) -> -13498671.31 | I45: =IF(I44<0,0,-I44*0.18) -> -15290340.8 | J45: =IF(J44<0,0,-J44*0.18) -> -15297737.04
B46: Net earnings Чистий дохід | C46: UAH грн | F46: =SUM(F44:F45) -> 48923566.78 | G46: =SUM(G44:G45) -> 51134585.86 | H46: =SUM(H44:H45) -> 61493947.1 | I46: =SUM(I44:I45) -> 69655996.97 | J46: =SUM(J44:J45) -> 69689690.95
B47: Net earnings + interest (2017 price levels) | F47: =(F46-F43)/BasicData!C$33 -> 45489136.94 | G47: =(G46-G43)/BasicData!D$33 -> 46780876.16 | H47: =(H46-H43)/BasicData!E$33 -> 59486555.52 | I47: =(I46-I43)/BasicData!F$33 -> 77903308.38 | J47: =(J46-J43)/BasicData!G$33 -> 83129059.84
B49: Option 2b - tariffs based on adjusted opening RAV and reduced return on capital (5%) Варіант 2б: Тарифи із скоригованою початковою РВА та зменшеним доходом на капітал (5%)
B50: Income Дохід
B51: Income from water sales Дохід від реалізації послуг централізованого водопостачання | C51: UAH грн | F51: =Tariffs!F100*Tariffs!F22 -> 119758573.8 | G51: =Tariffs!G100*Tariffs!G22 -> 137695726.2 | H51: =Tariffs!H100*Tariffs!H22 -> 159720463.1 | I51: =Tariffs!I100*Tariffs!I22 -> 173615501.2 | J51: =Tariffs!J100*Tariffs!J22 -> 184511573.7
B52: Expenditure Витрати
B53: Operating costs Операційні витрати | C53: UAH грн | F53: =-Tariffs!F6 -> -100309466.6 | G53: =-Tariffs!G6 -> -109226150.7 | H53: =-Tariffs!H6 -> -105576096.5 | I53: =-Tariffs!I6 -> -96183383.88 | J53: =-Tariffs!J6 -> -98249079.34
B54: Financing costs excluding interest Фінансові витрати за виключенням відсотків по кредиту | C54: UAH грн | F54: =-KfWInterest!E11 -> -4774767.559 | G54: =-KfWInterest!F11 -> -895964.8749 | H54: =-KfWInterest!G11 -> -473232.0991 | I54: =-KfWInterest!H11 -> -105260.0019 | J54: =-KfWInterest!I11 -> -11386.34249
B55: Earnings before depreciation, interest and tax (EBDIT) Доходи до відрахувань на амортизацію, сплати відсотків по кредиту та податків (EBDIT) | C55: UAH грн | F55: =SUM(F51:F54) -> 14674339.64 | G55: =SUM(G51:G54) -> 27573610.63 | H55: =SUM(H51:H54) -> 53671134.52 | I55: =SUM(I51:I54) -> 77326857.27 | J55: =SUM(J51:J54) -> 86251108.05
B56: Depreciation Амортизація | C56: UAH грн | F56: =Assets!H98 -> -4551205.067 | G56: =Assets!I98 -> -9913709.617 | H56: =Assets!J98 -> -20898139.92 | I56: =Assets!K98 -> -31115476.3 | J56: =Assets!L98 -> -32740726.17
B57: Earnings before interest and tax (EBIT) Доходи до сплати відсотків по кредиту та податків (EBIT) | C57: UAH грн | F57: =SUM(F55:F56) -> 10123134.57 | G57: =SUM(G55:G56) -> 17659901.01 | H57: =SUM(H55:H56) -> 32772994.61 | I57: =SUM(I55:I56) -> 46211380.98 | J57: =SUM(J55:J56) -> 53510381.88
B58: Interest Відсотки по кредиту | C58: UAH грн | F58: =-KfWInterest!E6 -> 0 | G58: =-KfWInterest!F6 -> -1945452.232 | H58: =-KfWInterest!G6 -> -9377450.29 | I58: =-KfWInterest!H6 -> -27797487.95 | J58: =-KfWInterest!I6 -> -39500503.74
B59: Earnings before tax (EBT) Доходи до сплати податків (EBT) | C59: UAH грн | F59: =SUM(F57:F58) -> 10123134.57 | G59: =SUM(G57:G58) -> 15714448.78 | H59: =SUM(H57:H58) -> 23395544.32 | I59: =SUM(I57:I58) -> 18413893.02 | J59: =SUM(J57:J58) -> 14009878.14
B60: Taxation Сплата податків | C60: UAH грн | F60: =IF(F59<0,0,-F59*0.18) -> -1822164.223 | G60: =IF(G59<0,0,-G59*0.18) -> -2828600.78 | H60: =IF(H59<0,0,-H59*0.18) -> -4211197.977 | I60: =IF(I59<0,0,-I59*0.18) -> -3314500.744 | J60: =IF(J59<0,0,-J59*0.18) -> -2521778.065
B61: Net earnings Чистий дохід | C61: UAH грн | F61: =SUM(F59:F60) -> 8300970.35 | G61: =SUM(G59:G60) -> 12885848 | H61: =SUM(H59:H60) -> 19184346.34 | I61: =SUM(I59:I60) -> 15099392.28 | J61: =SUM(J59:J60) -> 11488100.08
B62: Net earnings + interest (2017 price levels) | F62: =(F61-F58)/BasicData!C$33 -> 7718243.003 | G62: =(G61-G58)/BasicData!D$33 -> 13071226.86 | H62: =(H61-H58)/BasicData!E$33 -> 23973605.2 | I62: =(I61-I58)/BasicData!F$33 -> 34291322.59 | J62: =(J61-J58)/BasicData!G$33 -> 38818821.69
B66: Below is a repeat of the above recorded in UAH x 1000 Далі повторюється інформація, що викладена вище в грн х 1000
B67: Option 1: Cost plus model with costs projected in accordance with inflation projections and using historic cost convention Варіант 1: Модель "витрати плюс" із прогнозованими витратами згідно з прогнозами щодо інфляції та використанням первісної вартості
B68: Option 1a - Cost plus tariffs with adjustment for NRW norms Варіант 1а - Тарифи за принципом "витрати плюс" із коригуванням для норм БДВ
B69: Income Дохід
B70: Income from water sales Дохід від реалізації послуг централізованого водопостачання | C70: UAH грн | E70: =E7/1000 -> 0 | F70: =F7/1000 -> 73513.97131 | G70: 100413.9344 | H70: 97715.79319 | I70: 118634.0618 | J70: 130266.5243
B71: Expenditure Витрати | E71: =E8/1000 -> 0 | F71: 0 | G71: 0 | H71: 0 | I71: 0 | J71: 0
B72: Operating costs Операційні витрати | C72: UAH грн | E72: =E9/1000 -> 0 | F72: -100309.4666 | G72: -109226.1507 | H72: -105576.0965 | I72: -96183.38388 | J72: -98249.07934
B73: Financing costs excluding interest Фінансові витрати за виключенням відсотків по кредиту | C73: UAH грн | E73: =E10/1000 -> 0 | F73: -4774.767559 | G73: -895.9648749 | H73: -473.2320991 | I73: -105.2600019 | J73: -11.38634249
B74: Earnings before depreciation, interest and tax (EBDIT) Доходи до відрахувань на амортизацію, сплати відсотків по кредиту та податків (EBDIT) | C74: UAH грн | E74: =E11/1000 -> 0 | F74: -31570.26281 | G74: -9708.181153 | H74: -8333.535422 | I74: 22345.41791 | J74: 32006.0586
B75: Depreciation Амортизація | C75: UAH грн | E75: =E12/1000 -> 0 | F75: -4551.205067 | G75: -9913.709617 | H75: -20898.13992 | I75: -31115.4763 | J75: -32740.72617
B76: Earnings before interest and tax (EBIT) Доходи до сплати відсотків по кредиту та податків (EBIT) | C76: UAH грн | E76: =E13/1000 -> 0 | F76: -36121.46787 | G76: -19621.89077 | H76: -29231.67534 | I76: -8770.058381 | J76: -734.6675674
B77: Interest Відсотки по кредиту | C77: UAH грн | E77: =E14/1000 -> 0 | F77: 0 | G77: -1945.452232 | H77: -9377.45029 | I77: -27797.48795 | J77: -39500.50374
B78: Earnings before tax (EBT) Доходи до сплати податків (EBT) | C78: UAH грн | E78: =E15/1000 -> 0 | F78: -36121.46787 | G78: -21567.343 | H78: -38609.12563 | I78: -36567.54633 | J78: -40235.17131
B79: Taxation Сплата податків | C79: UAH грн | E79: =E16/1000 -> 0 | F79: 0 | G79: 0 | H79: 0 | I79: 0 | J79: 0
B80: Net earnings Чистий дохід | C80: UAH грн | E80: =E17/1000 -> 0 | F80: -36121.46787 | G80: -21567.343 | H80: -38609.12563 | I80: -36567.54633 | J80: -40235.17131
E81: =E18/1000 -> 0 | F81: 0 | G81: 0 | H81: 0 | I81: 0 | J81: 0
B82: Option 1b - Cost plus tariffs without adjustment for NRW norms Варіант 1б: Тарифи за принципом "витрати плюс" без коригуванням для норм БДВ
B83: Income Дохід | E83: =E20/1000 -> 0 | F83: 0 | G83: 0 | H83: 0 | I83: 0 | J83: 0
B84: Income from water sales Дохід від реалізації послуг централізованого водопостачання | C84: UAH грн | E84: =E21/1000 -> 0 | F84: 132304.9299 | G84: 163709.5748 | H84: 133235.6838 | I84: 140940.9247 | J84: 151550.1334
B85: Expenditure Витрати | E85: =E22/1000 -> 0 | F85: 0 | G85: 0 | H85: 0 | I85: 0 | J85: 0
B86: Operating costs Операційні витрати | C86: UAH грн | E86: =E23/1000 -> 0 | F86: -100309.4666 | G86: -109226.1507 | H86: -105576.0965 | I86: -96183.38388 | J86: -98249.07934
B87: Financing costs excluding interest Фінансові витрати за виключенням відсотків по кредиту | C87: UAH грн | E87: =E24/1000 -> 0 | F87: -4774.767559 | G87: -895.9648749 | H87: -473.2320991 | I87: -105.2600019 | J87: -11.38634249
B88: Earnings before depreciation, interest and tax (EBDIT) Доходи до відрахувань на амортизацію, сплати відсотків по кредиту та податків (EBDIT) | C88: UAH грн | E88: =E25/1000 -> 0 | F88: 27220.69574 | G88: 53587.45924 | H88: 27186.35518 | I88: 44652.28087 | J88: 53289.66768
B89: Depreciation Амортизація | C89: UAH грн | E89: =E26/1000 -> 0 | F89: -4551.205067 | G89: -9913.709617 | H89: -20898.13992 | I89: -31115.4763 | J89: -32740.72617
B90: Earnings before interest and tax (EBIT) Доходи до сплати відсотків по кредиту та податків (EBIT) | C90: UAH грн | E90: =E27/1000 -> 0 | F90: 22669.49067 | G90: 43673.74962 | H90: 6288.215266 | I90: 13536.80457 | J90: 20548.94151
B91: Interest Відсотки по кредиту | C91: UAH грн | E91: =E28/1000 -> 0 | F91: 0 | G91: -1945.452232 | H91: -9377.45029 | I91: -27797.48795 | J91: -39500.50374
B92: Earnings before tax (EBT) Доходи до сплати податків (EBT) | C92: UAH грн | E92: =E29/1000 -> 0 | F92: 22669.49067 | G92: 41728.29739 | H92: -3089.235024 | I92: -14260.68338 | J92: -18951.56223
B93: Taxation Сплата податків | C93: UAH грн | E93: =E30/1000 -> 0 | F93: -4080.508321 | G93: -7511.09353 | H93: 0 | I93: 0 | J93: 0
B94: Net earnings Чистий дохід | C94: UAH грн | E94: =E31/1000 -> 0 | F94: 18588.98235 | G94: 34217.20386 | H94: -3089.235024 | I94: -14260.68338 | J94: -18951.56223
E95: =E32/1000 -> 0 | F95: 0 | G95: 0 | H95: 0 | I95: 0 | J95: 0
B96: Option 2: Incentive based model, historic cost convention with costs projected in accordance with inflation projections Варіант 2: Модель стимулюючого тарифоутворення, метод первісної вартості із прогнозованими витратами відповідно до прогнозу щодо інфляції
B97: Option 2a - tariffs based on full MEAV and NEURC return on capital of 12.5% real Варіант 2а - Тарифи із повною ПВЕА та доходом на капітал 12,5% НКРЕКП
B98: Income Дохід | E98: =E35/1000 -> 0 | F98: 0 | G98: 0 | H98: 0 | I98: 0 | J98: 0
B99: Income from water sales Дохід від реалізації послуг централізованого водопостачання | C99: UAH грн | E99: =E36/1000 -> 0 | F99: 169298.3255 | G99: 184340.5284 | H99: 211317.5372 | I99: 240147.9459 | J99: 255489.1236
B100: Expenditure Витрати | E100: =E37/1000 -> 0 | F100: 0 | G100: 0 | H100: 0 | I100: 0 | J100: 0
B101: Operating costs Операційні витрати | C101: UAH грн | E101: =E38/1000 -> 0 | F101: -100309.4666 | G101: -109226.1507 | H101: -105576.0965 | I101: -96183.38388 | J101: -98249.07934
B102: Financing costs excluding interest Фінансові витрати за виключенням відсотків по кредиту | C102: UAH грн | E102: =E39/1000 -> 0 | F102: -4774.767559 | G102: -895.9648749 | H102: -473.2320991 | I102: -105.2600019 | J102: -11.38634249
B103: Earnings before depreciation, interest and tax (EBDIT) Доходи до відрахувань на амортизацію, сплати відсотків по кредиту та податків (EBDIT) | C103: UAH грн | E103: =E40/1000 -> 0 | F103: 64214.09139 | G103: 74218.41289 | H103: 105268.2086 | I103: 143859.302 | J103: 157228.6579
B104: Depreciation Амортизація | C104: UAH грн | E104: =E41/1000 -> 0 | F104: -4551.205067 | G104: -9913.709617 | H104: -20898.13992 | I104: -31115.4763 | J104: -32740.72617
B105: Earnings before interest and tax (EBIT) Доходи до сплати відсотків по кредиту та податків (EBIT) | C105: UAH грн | E105: =E42/1000 -> 0 | F105: 59662.88632 | G105: 64304.70328 | H105: 84370.0687 | I105: 112743.8257 | J105: 124487.9317
B106: Interest Відсотки по кредиту | C106: UAH грн | E106: =E43/1000 -> 0 | F106: 0 | G106: -1945.452232 | H106: -9377.45029 | I106: -27797.48795 | J106: -39500.50374
B107: Earnings before tax (EBT) Доходи до сплати податків (EBT) | C107: UAH грн | E107: =E44/1000 -> 0 | F107: 59662.88632 | G107: 62359.25105 | H107: 74992.61841 | I107: 84946.33777 | J107: 84987.42799
B108: Taxation Сплата податків | C108: UAH грн | E108: =E45/1000 -> 0 | F108: -10739.31954 | G108: -11224.66519 | H108: -13498.67131 | I108: -15290.3408 | J108: -15297.73704
B109: Net earnings Чистий дохід | C109: UAH грн | E109: =E46/1000 -> 0 | F109: 48923.56678 | G109: 51134.58586 | H109: 61493.9471 | I109: 69655.99697 | J109: 69689.69095
E110: =E48/1000 -> 0 | F110: 0 | G110: 0 | H110: 0 | I110: 0 | J110: 0
B111: Option 2b - tariffs based on adjusted opening asset value and reduced return on capital (5%) Варіант 2б: Тарифи із скоригованою початковою вартістю активу та зменшеним доходом на капітал (5%)
B112: Income Дохід | E112: =E50/1000 -> 0 | F112: 0 | G112: 0 | H112: 0 | I112: 0 | J112: 0
B113: Income from water sales Дохід від реалізації послуг централізованого водопостачання | C113: UAH грн | E113: =E51/1000 -> 0 | F113: 119758.5738 | G113: 137695.7262 | H113: 159720.4631 | I113: 173615.5012 | J113: 184511.5737
B114: Expenditure Витрати | E114: =E52/1000 -> 0 | F114: 0 | G114: 0 | H114: 0 | I114: 0 | J114: 0
B115: Operating costs Операційні витрати | C115: UAH грн | E115: =E53/1000 -> 0 | F115: -100309.4666 | G115: -109226.1507 | H115: -105576.0965 | I115: -96183.38388 | J115: -98249.07934
B116: Financing costs excluding interest Фінансові витрати за виключенням відсотків по кредиту | C116: UAH грн | E116: =E54/1000 -> 0 | F116: -4774.767559 | G116: -895.9648749 | H116: -473.2320991 | I116: -105.2600019 | J116: -11.38634249
B117: Earnings before depreciation, interest and tax (EBDIT) Доходи до відрахувань на амортизацію, сплати відсотків по кредиту та податків (EBDIT) | C117: UAH грн | E117: =E55/1000 -> 0 | F117: 14674.33964 | G117: 27573.61063 | H117: 53671.13452 | I117: 77326.85727 | J117: 86251.10805
B118: Depreciation Амортизація | C118: UAH грн | E118: =E56/1000 -> 0 | F118: -4551.205067 | G118: -9913.709617 | H118: -20898.13992 | I118: -31115.4763 | J118: -32740.72617
B119: Earnings before interest and tax (EBIT) Доходи до сплати відсотків по кредиту та податків (EBIT) | C119: UAH грн | E119: =E57/1000 -> 0 | F119: 10123.13457 | G119: 17659.90101 | H119: 32772.99461 | I119: 46211.38098 | J119: 53510.38188
B120: Interest Відсотки по кредиту | C120: UAH грн | E120: =E58/1000 -> 0 | F120: 0 | G120: -1945.452232 | H120: -9377.45029 | I120: -27797.48795 | J120: -39500.50374
B121: Earnings before tax (EBT) Доходи до сплати податків (EBT) | C121: UAH грн | E121: =E59/1000 -> 0 | F121: 10123.13457 | G121: 15714.44878 | H121: 23395.54432 | I121: 18413.89302 | J121: 14009.87814
B122: Taxation Сплата податків | C122: UAH грн | E122: =E60/1000 -> 0 | F122: -1822.164223 | G122: -2828.60078 | H122: -4211.197977 | I122: -3314.500744 | J122: -2521.778065
B123: Net earnings Чистий дохід | C123: UAH грн | E123: =E61/1000 -> 0 | F123: 8300.97035 | G123: 12885.848 | H123: 19184.34634 | I123: 15099.39228 | J123: 11488.10008

Sheet CashFlow
A1: CVK Cash Flow Projections (real cost basis) Прогнозування грошового потоку ЧВК (на основі витрат без урахування інфляції)
A2: Not adjusted for inflation Без урахування інфляції
E3: 2017 | F3: 2018 | G3: 2019 | H3: 2020 | I3: 2021 | J3: 2022
B4: Option 1: Cost plus model with costs projected in accordance with inflation projections and using historic cost convention Варіант 1: Модель "витрати плюс" із прогнозованими витратами згідно з прогнозами щодо інфляції та використанням первісної вартості
B5: Option 1a - Cost plus tariffs with adjustment for NRW norms Варіант 1а - Тарифи за принципом "витрати плюс" із коригуванням для норм БДВ
B7: Net income Чистий дохід | C7: UAH грн | E7: =CashFlow!E59/BasicData!B$33 -> 0 | F7: =CashFlow!F59/BasicData!C$33 -> -33585744.19 | G7: =CashFlow!G59/BasicData!D$33 -> -19007883.91 | H7: =CashFlow!H59/BasicData!E$33 -> -32406922.68 | I7: =CashFlow!I59/BasicData!F$33 -> -29231718.5 | J7: =CashFlow!J59/BasicData!G$33 -> -30631980.94
B8: Add depreciation Плюс амортизація | C8: UAH грн | E8: =CashFlow!E60/BasicData!B$33 -> 0 | F8: =CashFlow!F60/BasicData!C$33 -> 4231710.895 | G8: =CashFlow!G60/BasicData!D$33 -> 8737220.971 | H8: =CashFlow!H60/BasicData!E$33 -> 17541044.85 | I8: =CashFlow!I60/BasicData!F$33 -> 24873390.08 | J8: =CashFlow!J60/BasicData!G$33 -> 24926283.84
B9: Income from KfW loans Дохід від кредиту KfW | C9: UAH грн | E9: =CashFlow!E61/BasicData!B$33 -> 0 | F9: =CashFlow!F61/BasicData!C$33 -> 130063375.5 | G9: =CashFlow!G61/BasicData!D$33 -> 145467250.3 | H9: =CashFlow!H61/BasicData!E$33 -> 186559821.3 | I9: =CashFlow!I61/BasicData!F$33 -> 58889445.77 | J9: =CashFlow!J61/BasicData!G$33 -> 61148716.28
B10: Less CVK capital contibution to meet loan ceiling Мінус внесок капіталу ЧВК для досягнення максимальної суми кредиту | C10: UAH грн | E10: =CashFlow!E62/BasicData!B$33 -> 0 | F10: =CashFlow!F62/BasicData!C$33 -> 0 | G10: =CashFlow!G62/BasicData!D$33 -> 0 | H10: =CashFlow!H62/BasicData!E$33 -> 0 | I10: =CashFlow!I62/BasicData!F$33 -> 0 | J10: =CashFlow!J62/BasicData!G$33 -> -29459503.07
B11: Capital expenditure inc interest during construction Капітальні витрати, включ. відсоток по кредиту під час будівництва | C11: UAH грн | E11: =CashFlow!E63/BasicData!B$33 -> 0 | F11: =CashFlow!F63/BasicData!C$33 -> -153558754.3 | G11: =CashFlow!G63/BasicData!D$33 -> -181516126.9 | H11: =CashFlow!H63/BasicData!E$33 -> -186866194.4 | I11: =CashFlow!I63/BasicData!F$33 -> -59186759.25 | J11: =CashFlow!J63/BasicData!G$33 -> -50186750.17
B12: Net cash flow Чистий грошовий потік | C12: UAH грн | E12: =CashFlow!E67/BasicData!B$33 -> 0 | F12: =CashFlow!F67/BasicData!C$33 -> -52849412.08 | G12: =CashFlow!G67/BasicData!D$33 -> -46319539.58 | H12: =CashFlow!H67/BasicData!E$33 -> -15172250.96 | I12: =CashFlow!I67/BasicData!F$33 -> -4655641.903 | J12: =CashFlow!J67/BasicData!G$33 -> -24203234.07
B13: Net cumulative cash flow Чистий кумулятивний грошовий потік | C13: UAH грн | E13: =CashFlow!E68/BasicData!B$33 -> 0 | F13: =CashFlow!F68/BasicData!C$33 -> -52849412.08 | G13: =CashFlow!G68/BasicData!D$33 -> -96413769.03 | H13: =CashFlow!H68/BasicData!E$33 -> -106994888.1 | I13: =CashFlow!I68/BasicData!F$33 -> -106555535.4 | J13: =CashFlow!J68/BasicData!G$33 -> -125684696.3
B15: Option 1b - Cost plus tariffs without adjustment for NRW norms Варіант 1б: Тарифи за принципом "витрати плюс" без коригуванням для норм БДВ
B17: Net income Чистий дохід | C17: UAH грн | E17: =CashFlow!E72/BasicData!B$33 -> 0 | F17: =CashFlow!F72/BasicData!C$33 -> 17284037.52 | G17: =CashFlow!G72/BasicData!D$33 -> 30156549.13 | H17: =CashFlow!H72/BasicData!E$33 -> -2592977.668 | I17: =CashFlow!I72/BasicData!F$33 -> -11399842.87 | J17: =CashFlow!J72/BasicData!G$33 -> -14428269.46
B18: Add depreciation Плюс амортизація | C18: UAH грн | E18: =CashFlow!E73/BasicData!B$33 -> 0 | F18: =CashFlow!F73/BasicData!C$33 -> 4231710.895 | G18: =CashFlow!G73/BasicData!D$33 -> 8737220.971 | H18: =CashFlow!H73/BasicData!E$33 -> 17541044.85 | I18: =CashFlow!I73/BasicData!F$33 -> 24873390.08 | J18: =CashFlow!J73/BasicData!G$33 -> 24926283.84
B19: Income from KfW loans Дохід від кредиту KfW | C19: UAH грн | E19: =CashFlow!E74/BasicData!B$33 -> 0 | F19: =CashFlow!F74/BasicData!C$33 -> 130063375.5 | G19: =CashFlow!G74/BasicData!D$33 -> 145467250.3 | H19: =CashFlow!H74/BasicData!E$33 -> 186559821.3 | I19: =CashFlow!I74/BasicData!F$33 -> 58889445.77 | J19: =CashFlow!J74/BasicData!G$33 -> 61148716.28
B20: Less CVK capital contibution to meet loan ceiling Мінус внесок капіталу ЧВК для досягнення максимальної суми кредиту | C20: UAH грн | E20: =CashFlow!E75/BasicData!B$33 -> 0 | F20: =CashFlow!F75/BasicData!C$33 -> 0 | G20: =CashFlow!G75/BasicData!D$33 -> 0 | H20: =CashFlow!H75/BasicData!E$33 -> 0 | I20: =CashFlow!I75/BasicData!F$33 -> 0 | J20: =CashFlow!J75/BasicData!G$33 -> -29459503.07
B21: Capital expenditure inc interest during construction Капітальні витрати, включ. відсоток по кредиту під час будівництва | C21: UAH грн | E21: =CashFlow!E76/BasicData!B$33 -> 0 | F21: =CashFlow!F76/BasicData!C$33 -> -153558754.3 | G21: =CashFlow!G76/BasicData!D$33 -> -181516126.9 | H21: =CashFlow!H76/BasicData!E$33 -> -186866194.4 | I21: =CashFlow!I76/BasicData!F$33 -> -59186759.25 | J21: =CashFlow!J76/BasicData!G$33 -> -50186750.17
B22: Net cash flow Чистий грошовий потік | C22: UAH грн | E22: =CashFlow!E80/BasicData!B$33 -> 0 | F22: =CashFlow!F80/BasicData!C$33 -> -1979630.371 | G22: =CashFlow!G80/BasicData!D$33 -> 2844893.464 | H22: =CashFlow!H80/BasicData!E$33 -> 14641694.05 | I22: =CashFlow!I80/BasicData!F$33 -> 13176233.73 | J22: =CashFlow!J80/BasicData!G$33 -> -7999522.583
B23: Net cumulative cash flow Чистий кумулятивний грошовий потік | C23: UAH грн | E23: =CashFlow!E81/BasicData!B$33 -> 0 | F23: =CashFlow!F81/BasicData!C$33 -> -1979630.371 | G23: =CashFlow!G81/BasicData!D$33 -> 968466.5718 | H23: =CashFlow!H81/BasicData!E$33 -> 15564043.16 | I23: =CashFlow!I81/BasicData!F$33 -> 27999131.98 | J23: =CashFlow!J81/BasicData!G$33 -> 18666317.4
B27: Option 2: Incentive based model, historic cost convention with costs projected in accordance with inflation projections Варіант 2: Модель стимулюючого тарифоутворення, метод первісної вартості із прогнозованими витратами відповідно до прогнозу щодо інфляції
B28: Option 2a - tariffs based on full MEAV and NEURC return on capital of 12.5% real Варіант 2а - Тарифи із повною ПВЕА та доходом на капітал 12,5% НКРЕКП без урахування інфляції
B30: Net income Чистий дохід | C30: UAH грн | E30: =CashFlow!E86/BasicData!B$33 -> 0 | F30: =CashFlow!F86/BasicData!C$33 -> 45489136.94 | G30: =CashFlow!G86/BasicData!D$33 -> 45066296.38 | H30: =CashFlow!H86/BasicData!E$33 -> 51615506.86 | I30: =CashFlow!I86/BasicData!F$33 -> 55682283.88 | J30: =CashFlow!J86/BasicData!G$33 -> 53056398.57
B31: Add depreciation Плюс амортизація | C31: UAH грн | E31: =CashFlow!E87/BasicData!B$33 -> 0 | F31: =CashFlow!F87/BasicData!C$33 -> 4231710.895 | G31: =CashFlow!G87/BasicData!D$33 -> 8737220.971 | H31: =CashFlow!H87/BasicData!E$33 -> 17541044.85 | I31: =CashFlow!I87/BasicData!F$33 -> 24873390.08 | J31: =CashFlow!J87/BasicData!G$33 -> 24926283.84
B32: Income from KfW loans Дохід від кредиту KfW | C32: UAH грн | E32: =CashFlow!E88/BasicData!B$33 -> 0 | F32: =CashFlow!F88/BasicData!C$33 -> 130063375.5 | G32: =CashFlow!G88/BasicData!D$33 -> 145467250.3 | H32: =CashFlow!H88/BasicData!E$33 -> 186559821.3 | I32: =CashFlow!I88/BasicData!F$33 -> 58889445.77 | J32: =CashFlow!J88/BasicData!G$33 -> 61148716.28
B33: Less CVK capital contibution to meet loan ceiling Мінус внесок капіталу ЧВК для досягнення максимальної суми кредиту | C33: UAH грн | E33: =CashFlow!E89/BasicData!B$33 -> 0 | F33: =CashFlow!F89/BasicData!C$33 -> 0 | G33: =CashFlow!G89/BasicData!D$33 -> 0 | H33: =CashFlow!H89/BasicData!E$33 -> 0 | I33: =CashFlow!I89/BasicData!F$33 -> 0 | J33: =CashFlow!J89/BasicData!G$33 -> -29459503.07
B34: Capital expenditure inc interest during construction Капітальні витрати, включ. відсоток по кредиту під час будівництва | C34: UAH грн | E34: =CashFlow!E90/BasicData!B$33 -> 0 | F34: =CashFlow!F90/BasicData!C$33 -> -153558754.3 | G34: =CashFlow!G90/BasicData!D$33 -> -181516126.9 | H34: =CashFlow!H90/BasicData!E$33 -> -186866194.4 | I34: =CashFlow!I90/BasicData!F$33 -> -59186759.25 | J34: =CashFlow!J90/BasicData!G$33 -> -50186750.17
B35: Net cash flow Чистий грошовий потік | C35: UAH грн | E35: =CashFlow!E94/BasicData!B$33 -> 0 | F35: =CashFlow!F94/BasicData!C$33 -> 26225469.06 | G35: =CashFlow!G94/BasicData!D$33 -> 17754640.72 | H35: =CashFlow!H94/BasicData!E$33 -> 68850178.58 | I35: =CashFlow!I94/BasicData!F$33 -> 80258360.48 | J35: =CashFlow!J94/BasicData!G$33 -> 59485145.44
B36: Net cumulative cash flow Чистий кумулятивний грошовий потік | C36: UAH грн | E36: =CashFlow!E95/BasicData!B$33 -> 0 | F36: =CashFlow!F95/BasicData!C$33 -> 26225469.06 | G36: =CashFlow!G95/BasicData!D$33 -> 42612905.23 | H36: =CashFlow!H95/BasicData!E$33 -> 109433897.8 | I36: =CashFlow!I95/BasicData!F$33 -> 184481120.3 | J36: =CashFlow!J95/BasicData!G$33 -> 235181450.5
B38: Option 2b - tariffs based on adjusted opening RAV and reduced return on capital (5%) Варіант 2б: Тарифи із скоригованою початковою РВА та зменшеним доходом на капітал (5%)
B40: Net income Чистий дохід | C40: UAH грн | E40: =CashFlow!E99/BasicData!B$33 -> 0 | F40: =CashFlow!F99/BasicData!C$33 -> 7718243.003 | G40: =CashFlow!G99/BasicData!D$33 -> 11356647.08 | H40: =CashFlow!H99/BasicData!E$33 -> 16102556.54 | I40: =CashFlow!I99/BasicData!F$33 -> 12070298.09 | J40: =CashFlow!J99/BasicData!G$33 -> 8746160.416
B41: Add depreciation Плюс амортизація | C41: UAH грн | E41: =CashFlow!E100/BasicData!B$33 -> 0 | F41: =CashFlow!F100/BasicData!C$33 -> 4231710.895 | G41: =CashFlow!G100/BasicData!D$33 -> 8737220.971 | H41: =CashFlow!H100/BasicData!E$33 -> 17541044.85 | I41: =CashFlow!I100/BasicData!F$33 -> 24873390.08 | J41: =CashFlow!J100/BasicData!G$33 -> 24926283.84
B42: Income from KfW loans Дохід від кредиту KfW | C42: UAH грн | E42: =CashFlow!E101/BasicData!B$33 -> 0 | F42: =CashFlow!F101/BasicData!C$33 -> 130063375.5 | G42: =CashFlow!G101/BasicData!D$33 -> 145467250.3 | H42: =CashFlow!H101/BasicData!E$33 -> 186559821.3 | I42: =CashFlow!I101/BasicData!F$33 -> 58889445.77 | J42: =CashFlow!J101/BasicData!G$33 -> 61148716.28
B43: Less CVK capital contibution to meet loan ceiling Мінус внесок капіталу ЧВК для досягнення максимальної суми кредиту | C43: UAH грн | E43: =CashFlow!E102/BasicData!B$33 -> 0 | F43: =CashFlow!F102/BasicData!C$33 -> 0 | G43: =CashFlow!G102/BasicData!D$33 -> 0 | H43: =CashFlow!H102/BasicData!E$33 -> 0 | I43: =CashFlow!I102/BasicData!F$33 -> 0 | J43: =CashFlow!J102/BasicData!G$33 -> -29459503.07
B44: Capital expenditure inc interest during construction Капітальні витрати, включ. відсоток по кредиту під час будівництва | C44: UAH грн | E44: =CashFlow!E103/BasicData!B$33 -> 0 | F44: =CashFlow!F103/BasicData!C$33 -> -153558754.3 | G44: =CashFlow!G103/BasicData!D$33 -> -181516126.9 | H44: =CashFlow!H103/BasicData!E$33 -> -186866194.4 | I44: =CashFlow!I103/BasicData!F$33 -> -59186759.25 | J44: =CashFlow!J103/BasicData!G$33 -> -50186750.17
B45: Net cash flow Чистий грошовий потік | C45: UAH грн | E45: =CashFlow!E107/BasicData!B$33 -> 0 | F45: =CashFlow!F107/BasicData!C$33 -> -11545424.89 | G45: =CashFlow!G107/BasicData!D$33 -> -15955008.59 | H45: =CashFlow!H107/BasicData!E$33 -> 33337228.26 | I45: =CashFlow!I107/BasicData!F$33 -> 36646374.69 | J45: =CashFlow!J107/BasicData!G$33 -> 15174907.29
B46: Net cumulative cash flow Чистий кумулятивний грошовий потік | C46: UAH грн | E46: =CashFlow!E108/BasicData!B$33 -> 0 | F46: =CashFlow!F108/BasicData!C$33 -> -11545424.89 | G46: =CashFlow!G108/BasicData!D$33 -> -26898539.28 | H46: =CashFlow!H108/BasicData!E$33 -> 7719571.8 | I46: =CashFlow!I108/BasicData!F$33 -> 43998347.83 | J46: =CashFlow!J108/BasicData!G$33 -> 57078095.7
A53: CVK Cash Flow Projections (nominal cost basis) Прогнозування грошового потоку ЧВК (на основі витрат із урахуванням інфляції)
A54: Adjusted for expected inflation acc. to NBU Із урахуванням інфляції, прогнозованої НБУ
E55: 2017 | F55: 2018 | G55: 2019 | H55: 2020 | I55: 2021 | J55: 2022
B56: Option 1: Cost plus model with costs projected in accordance with inflation projections and using historic cost convention Варіант 1: Модель "витрати плюс" із прогнозованими витратами згідно з прогнозами щодо інфляції та використанням первісної вартості
B57: Option 1a - Cost plus tariffs with adjustment for NRW norms Варіант 1а - Тарифи за принципом "витрати плюс" із коригуванням для норм БДВ
B59: Net income Чистий дохід | C59: UAH грн | F59: ='P&L'!F17 -> -36121467.87 | G59: ='P&L'!G17 -> -21567343 | H59: ='P&L'!H17 -> -38609125.63 | I59: ='P&L'!I17 -> -36567546.33 | J59: ='P&L'!J17 -> -40235171.31
B60: Add depreciation Плюс амортизація | C60: UAH грн | F60: =-'P&L'!F12 -> 4551205.067 | G60: =-'P&L'!G12 -> 9913709.617 | H60: =-'P&L'!H12 -> 20898139.92 | I60: =-'P&L'!I12 -> 31115476.3 | J60: =-'P&L'!J12 -> 32740726.17
B61: Income from KfW loans Дохід від кредиту KfW | C61: UAH грн | F61: =LOOKUP(F55,KfWProject!$D$152:$D$157,KfWProject!$E$152:$E$157)*BasicData!C41 -> 139883160.3 | G61: =LOOKUP(G55,KfWProject!$D$152:$D$157,KfWProject!$E$152:$E$157)*BasicData!D41 -> 165054779.2 | H61: =LOOKUP(H55,KfWProject!$D$152:$D$157,KfWProject!$E$152:$E$157)*BasicData!E41 -> 222264596 | I61: =LOOKUP(I55,KfWProject!$D$152:$D$157,KfWProject!$E$152:$E$157)*BasicData!F41 -> 73668010.2 | J61: =LOOKUP(J55,KfWProject!$D$152:$D$157,KfWProject!$E$152:$E$157)*BasicData!G41 -> 80318967.27
B62: Less CVK capital contibution to meet loan ceiling Мінус внесок капіталу ЧВК для досягнення максимальної суми кредиту | C62: UAH грн | F62: 0 | G62: 0 | H62: 0 | J62: =-KfWProject!BC108*BasicData!F41 -> -38695119.16
B63: Capital expenditure inc interest during construction Капітальні витрати, включ. відсоток по кредиту під час будівництва | C63: UAH грн | F63: =SUM(F64:F66) -> -165152440.2 | G63: =SUM(G64:G66) -> -205957727.2 | H63: =SUM(H64:H66) -> -222629604.4 | I63: =SUM(I64:I66) -> -74039935.79 | J63: =SUM(J64:J66) -> -65920401.76
B64: KfW funded expenditure Витрати, що фінансуються KfW | C64: UAH грн | F64: =-KfWProject!F167 -> -141771583 | G64: =-KfWProject!G167 -> -159767687.2 | H64: =-KfWProject!H167 -> -197688683.3 | I64: =-KfWProject!I167 -> -58199315.25 | J64: =-KfWProject!J167 -> -55422387.38
B65: KfW interest during construction Відсоток по кредиту KfW під час будівництва | C65: UAH грн | F65: =-KfWProject!F166 -> -1865108.805 | G65: =-KfWProject!G166 -> -7296269.925 | H65: =-KfWProject!H166 -> -9992853.922 | I65: =-KfWProject!I166 -> -2367073.329 | J65: =-KfWProject!J166 -> 0
B66: CVK capital expenditure Капітальні витрати ЧВК | C66: UAH грн | F66: =-Assets!H89 -> -21515748.41 | G66: =-Assets!I89 -> -38893770.1 | H66: =-Assets!J89 -> -14948067.19 | I66: =-Assets!K89 -> -13473547.21 | J66: =-Assets!L89 -> -10498014.38
B67: Net cash flow Чистий грошовий потік | C67: UAH грн | F67: =SUM(F59:F63) -> -56839542.69 | G67: =SUM(G59:G63) -> -52556581.38 | H67: =SUM(H59:H63) -> -18075994.11 | I67: =SUM(I59:I63) -> -5823995.636 | J67: =SUM(J59:J63) -> -31790998.79
